Workbook

Sheet ADP-Rank (hidden)
A1: PLAYERNAME | B1: PlayerID | C1: Pos | D1: OF Pos | E1: TEAM | F1: Age | G1: FT | H1: High | I1: Low | J1: Yahoo | K1: High | L1: Low | M1: CBS ADP | N1: High | O1: Low | P1: ESPN | Q1: High | R1: Low | S1: Fpros | T1: High | U1: Low | V1: NFBC | W1: High | X1: Low | Y1: Comb | Z1: High | AA1: Low | AB1: RotoChamp | AC1: Yahoo Staff | AD1: ESPN Points | AE1: ESPN Karabell | AF1: Fantasy Pros Avg | AG1: MC | AH1: Team In Sheet? | AI1: Rank Chosen | AJ1: Filtered-Rank | AK1: Chosen-ADP | AL1: Filtered-ADP-Rank | AM1: ADP Round | AN1: Early | AO1: Late | AP1: Filtered-Early | AQ1: Filtered-Late | AR1: ImportADP | AS1: High | AT1: Low | AU1: =IF(VLOOKUP(A2,'Name-Sort'!$D$2:$E$961,2,FALSE)="",A2,"") -> Jose Abreu | AV1: =IFERROR(INDEX($AU$1:$AU$961,SMALL(IF($AU$1:$AU$961<>"",ROW($AU$1:$AU$961)),ROW(AU1))),"") -> Jose Abreu
A2: Jose Abreu | B2: abreujo02 | C2: 1B | E2: CWS | F2: 32 | G2: 76 | H2: 47 | I2: 121 | J2: 54 | K2: 40.5 | L2: 121 | M2: 68.83 | N2: 47 | O2: 95 | P2: 77 | Q2: 47 | R2: 121 | S2: 73.8 | T2: 47 | U2: 121 | V2: 85.18 | W2: 53 | X2: 121 | Y2: 72.46833333 | Z2: 47 | AA2: 121 | AB2: 79 | AC2: 48 | AD2: 58 | AE2: 51 | AF2: 52 | AH2: =IFERROR(INDEX('Guts-2'!$K$1:$K$30,MATCH(E2,'Guts-2'!$J$1:$J$30,0)),TRUE) -> TRUE | AI2: =IF(AH2=FALSE,"",IFERROR(CHOOSE('Guts-2'!$D$27,AB2,AC2,AD2,AE2,AF2,AG2),"")) -> 58 | AJ2: =IFERROR(RANK(AI2,$AI$2:$AI$961,1),"") -> 58 | AK2: =IF(AH2=FALSE,"",IFERROR(CHOOSE('Guts-2'!$D$26,G2,J2,M2,P2,S2,V2,Y2,AR2),"")) -> 68.83 | AL2: =IFERROR(IF(Settings!$L$5="Mixed (Standard)",AK2,RANK(AK2,$AK$2:$AK$961,1)),"") -> 68.83 | AM2: =IFERROR(IF(Settings!$L$5="Mixed (Standard)",(RANK(AK2,$AK$2:$AK$961,1)/('Guts-2'!$N$1+1))+1,(RANK(AL2,$AL$2:$AL$961,1)/('Guts-2'!$N$1+1))+1),"") -> 5.769230769 | AN2: =IFERROR(CHOOSE('Guts-2'!$D$26,H2,K2,N2,Q2,T2,W2,Z2,AS2),"") -> 47 | AO2: =IFERROR(CHOOSE('Guts-2'!$D$26,I2,L2,O2,R2,U2,X2,AA2,AT2),"") -> 95 | AP2: =IFERROR(IF(AH2=TRUE,IF((AN2-COUNTIFS($AN$2:$AN$961,"<"&AN2,$AH$2:$AH$961,FALSE))<1,1,AN2-COUNTIFS($AN$2:$AN$961,"<"&AN2,$AH$2:$AH$961,FALSE)),""),"") -> 47 | AQ2: =IFERROR(IF(AH2=FALSE,"",IF((AO2-COUNTIFS($AO$2:$AO$961,"<"&AO2,$AH$2:$AH$961,FALSE))<1,1,AO2-COUNTIFS($AO$2:$AO$961,"<"&AO2,$AH$2:$AH$961,FALSE))),"") -> 95 | AR2: =INDEX('Import (ADP)'!$C$2:$C$999,MATCH(A2, 'Import (ADP)'!$B$2:$B$999,0)) ->  | AS2: =IFERROR(MIN(N2,W2,ROUND(AR2*0.75,0)),ROUND(AR2*0.75,0)) ->  | AT2: =IFERROR(MAX(O2,X2,ROUND(AR2*1.25,0)),ROUND(AS2*1.25,0)) ->  | AU2: =IF(VLOOKUP(A3,'Name-Sort'!$D$2:$E$961,2,FALSE)="",A3,"") -> Ronald Acuna | AV2: =IFERROR(INDEX($AU$1:$AU$961,SMALL(IF($AU$1:$AU$961<>"",ROW($AU$1:$AU$961)),ROW(AU2))),"") -> Ronald Acuna
A3: Ronald Acuna | B3: acunaro01 | C3: OF | D3: LF,CF | E3: ATL | F3: 21 | G3: 10 | H3: 3 | I3: 29 | J3: 9 | K3: 3 | L3: 29 | M3: 14.52 | N3: 5 | O3: 29 | P3: 17 | Q3: 3 | R3: 29 | S3: 11.3 | T3: 3 | U3: 29 | V3: 8.32 | W3: 3 | X3: 18 | Y3: 11.69 | Z3: 3 | AA3: 29 | AB3: 12 | AC3: 9 | AD3: 28 | AE3: 9 | AF3: 9 | AH3: =IFERROR(INDEX('Guts-2'!$K$1:$K$30,MATCH(E3,'Guts-2'!$J$1:$J$30,0)),TRUE) -> TRUE | AI3: =IF(AH3=FALSE,"",IFERROR(CHOOSE('Guts-2'!$D$27,AB3,AC3,AD3,AE3,AF3,AG3),"")) -> 28 | AJ3: 28 | AK3: =IF(AH3=FALSE,"",IFERROR(CHOOSE('Guts-2'!$D$26,G3,J3,M3,P3,S3,V3,Y3,AR3),"")) -> 14.52 | AL3: =IFERROR(IF(Settings!$L$5="Mixed (Standard)",AK3,RANK(AK3,$AK$2:$AK$961,1)),"") -> 14.52 | AM3: =IFERROR(IF(Settings!$L$5="Mixed (Standard)",(RANK(AK3,$AK$2:$AK$961,1)/('Guts-2'!$N$1+1))+1,(RANK(AL3,$AL$2:$AL$961,1)/('Guts-2'!$N$1+1))+1),"") -> 2.230769231 | AN3: =IFERROR(CHOOSE('Guts-2'!$D$26,H3,K3,N3,Q3,T3,W3,Z3,AS3),"") -> 5 | AO3: =IFERROR(CHOOSE('Guts-2'!$D$26,I3,L3,O3,R3,U3,X3,AA3,AT3),"") -> 29 | AP3: 5 | AQ3: 29 | AR3: =INDEX('Import (ADP)'!$C$2:$C$999,MATCH(A3, 'Import (ADP)'!$B$2:$B$999,0)) ->  | AU3: =IF(VLOOKUP(A4,'Name-Sort'!$D$2:$E$961,2,FALSE)="",A4,"") -> Willy Adames | AV3: =IFERROR(INDEX($AU$1:$AU$961,SMALL(IF($AU$1:$AU$961<>"",ROW($AU$1:$AU$961)),ROW(AU3))),"") -> Willy Adames
A4: Willy Adames | B4: adamewi01 | C4: SS | E4: TB | F4: 23 | G4: 198 | H4: 136 | I4: 357 | J4: 370 | K4: 136 | L4: 492.1 | P4: 352 | Q4: 136 | R4: 468.16 | S4: 311.8 | T4: 136 | U4: 414.694 | V4: 239.41 | W4: 136 | X4: 357 | Y4: 294.242 | Z4: 136 | AA4: 391.34186 | AB4: 228 | AC4: 277 | AD4: 242 | AE4: 179 | AF4: 254 | AH4: =IFERROR(INDEX('Guts-2'!$K$1:$K$30,MATCH(E4,'Guts-2'!$J$1:$J$30,0)),TRUE) -> TRUE | AI4: =IF(AH4=FALSE,"",IFERROR(CHOOSE('Guts-2'!$D$27,AB4,AC4,AD4,AE4,AF4,AG4),"")) -> 242 | AJ4: 242 | AK4: =IF(AH4=FALSE,"",IFERROR(CHOOSE('Guts-2'!$D$26,G4,J4,M4,P4,S4,V4,Y4,AR4),"")) ->  | AL4: =IFERROR(IF(Settings!$L$5="Mixed (Standard)",AK4,RANK(AK4,$AK$2:$AK$961,1)),"") ->  | AM4: =IFERROR(IF(Settings!$L$5="Mixed (Standard)",(RANK(AK4,$AK$2:$AK$961,1)/('Guts-2'!$N$1+1))+1,(RANK(AL4,$AL$2:$AL$961,1)/('Guts-2'!$N$1+1))+1),"") ->  | AN4: =IFERROR(CHOOSE('Guts-2'!$D$26,H4,K4,N4,Q4,T4,W4,Z4,AS4),"") ->  | AO4: =IFERROR(CHOOSE('Guts-2'!$D$26,I4,L4,O4,R4,U4,X4,AA4,AT4),"") ->  | AR4: =INDEX('Import (ADP)'!$C$2:$C$999,MATCH(A4, 'Import (ADP)'!$B$2:$B$999,0)) ->  | AU4: =IF(VLOOKUP(A5,'Name-Sort'!$D$2:$E$961,2,FALSE)="",A5,"") -> Matt Adams | AV4: =IFERROR(INDEX($AU$1:$AU$961,SMALL(IF($AU$1:$AU$961<>"",ROW($AU$1:$AU$961)),ROW(AU4))),"") -> Matt Adams
A5: Matt Adams | B5: adamsma01 | C5: 1B | D5: LF | E5: WAS | F5: 30 | G5: 478 | H5: 334 | I5: 635.74 | P5: 414 | Q5: 310.5 | R5: 594 | S5: 454 | T5: 334 | U5: 603.82 | V5: 634.31 | W5: 334 | X5: 594 | Y5: 495.0775 | Z5: 334 | AA5: 658.453075 | AF5: 589 | AH5: =IFERROR(INDEX('Guts-2'!$K$1:$K$30,MATCH(E5,'Guts-2'!$J$1:$J$30,0)),TRUE) -> TRUE | AI5: =IF(AH5=FALSE,"",IFERROR(CHOOSE('Guts-2'!$D$27,AB5,AC5,AD5,AE5,AF5,AG5),"")) ->  | AK5: =IF(AH5=FALSE,"",IFERROR(CHOOSE('Guts-2'!$D$26,G5,J5,M5,P5,S5,V5,Y5,AR5),"")) ->  | AL5: =IFERROR(IF(Settings!$L$5="Mixed (Standard)",AK5,RANK(AK5,$AK$2:$AK$961,1)),"") ->  | AM5: =IFERROR(IF(Settings!$L$5="Mixed (Standard)",(RANK(AK5,$AK$2:$AK$961,1)/('Guts-2'!$N$1+1))+1,(RANK(AL5,$AL$2:$AL$961,1)/('Guts-2'!$N$1+1))+1),"") ->  | AN5: =IFERROR(CHOOSE('Guts-2'!$D$26,H5,K5,N5,Q5,T5,W5,Z5,AS5),"") ->  | AO5: =IFERROR(CHOOSE('Guts-2'!$D$26,I5,L5,O5,R5,U5,X5,AA5,AT5),"") ->  | AR5: =INDEX('Import (ADP)'!$C$2:$C$999,MATCH(A5, 'Import (ADP)'!$B$2:$B$999,0)) ->  | AU5: =IF(VLOOKUP(A6,'Name-Sort'!$D$2:$E$961,2,FALSE)="",A6,"") -> Ehire Adrianza | AV5: =IFERROR(INDEX($AU$1:$AU$961,SMALL(IF($AU$1:$AU$961<>"",ROW($AU$1:$AU$961)),ROW(AU5))),"") -> Ehire Adrianza
A6: Ehire Adrianza | B6: adriaeh01 | C6: SS | D6: LF | E6: MIN | F6: 29 | G6: 642 | H6: 410 | I6: 853.86 | P6: 513 | Q6: 384.75 | R6: 750 | S6: 596.5 | T6: 410 | U6: 793.345 | V6: 738.67 | W6: 410 | X6: 750 | Y6: 622.5425 | Z6: 410 | AA6: 827.981525 | AF6: 607 | AH6: =IFERROR(INDEX('Guts-2'!$K$1:$K$30,MATCH(E6,'Guts-2'!$J$1:$J$30,0)),TRUE) -> TRUE | AI6: =IF(AH6=FALSE,"",IFERROR(CHOOSE('Guts-2'!$D$27,AB6,AC6,AD6,AE6,AF6,AG6),"")) ->  | AK6: =IF(AH6=FALSE,"",IFERROR(CHOOSE('Guts-2'!$D$26,G6,J6,M6,P6,S6,V6,Y6,AR6),"")) ->  | AL6: =IFERROR(IF(Settings!$L$5="Mixed (Standard)",AK6,RANK(AK6,$AK$2:$AK$961,1)),"") ->  | AM6: =IFERROR(IF(Settings!$L$5="Mixed (Standard)",(RANK(AK6,$AK$2:$AK$961,1)/('Guts-2'!$N$1+1))+1,(RANK(AL6,$AL$2:$AL$961,1)/('Guts-2'!$N$1+1))+1),"") ->  | AN6: =IFERROR(CHOOSE('Guts-2'!$D$26,H6,K6,N6,Q6,T6,W6,Z6,AS6),"") ->  | AO6: =IFERROR(CHOOSE('Guts-2'!$D$26,I6,L6,O6,R6,U6,X6,AA6,AT6),"") ->  | AR6: =INDEX('Import (ADP)'!$C$2:$C$999,MATCH(A6, 'Import (ADP)'!$B$2:$B$999,0)) ->  | AU6: =IF(VLOOKUP(A7,'Name-Sort'!$D$2:$E$961,2,FALSE)="",A7,"") -> Jesus Aguilar | AV6: =IFERROR(INDEX($AU$1:$AU$961,SMALL(IF($AU$1:$AU$961<>"",ROW($AU$1:$AU$961)),ROW(AU6))),"") -> Jesus Aguilar
A7: Jesus Aguilar | B7: aguilje01 | C7: 1B | E7: MIL | F7: 28 | G7: 75 | H7: 41 | I7: 162 | J7: 78 | K7: 41 | L7: 162 | M7: 114.32 | N7: 60 | O7: 162 | P7: 81 | Q7: 41 | R7: 162 | S7: 79 | T7: 41 | U7: 162 | V7: 80.15 | W7: 41 | X7: 127 | Y7: 84.57833333 | Z7: 41 | AA7: 162 | AB7: 66 | AC7: 76 | AD7: 90 | AE7: 85 | AF7: 79 | AH7: =IFERROR(INDEX('Guts-2'!$K$1:$K$30,MATCH(E7,'Guts-2'!$J$1:$J$30,0)),TRUE) -> TRUE | AI7: =IF(AH7=FALSE,"",IFERROR(CHOOSE('Guts-2'!$D$27,AB7,AC7,AD7,AE7,AF7,AG7),"")) -> 90 | AJ7: 90 | AK7: =IF(AH7=FALSE,"",IFERROR(CHOOSE('Guts-2'!$D$26,G7,J7,M7,P7,S7,V7,Y7,AR7),"")) -> 114.32 | AL7: =IFERROR(IF(Settings!$L$5="Mixed (Standard)",AK7,RANK(AK7,$AK$2:$AK$961,1)),"") -> 114.32 | AM7: =IFERROR(IF(Settings!$L$5="Mixed (Standard)",(RANK(AK7,$AK$2:$AK$961,1)/('Guts-2'!$N$1+1))+1,(RANK(AL7,$AL$2:$AL$961,1)/('Guts-2'!$N$1+1))+1),"") -> 9.692307692 | AN7: =IFERROR(CHOOSE('Guts-2'!$D$26,H7,K7,N7,Q7,T7,W7,Z7,AS7),"") -> 60 | AO7: =IFERROR(CHOOSE('Guts-2'!$D$26,I7,L7,O7,R7,U7,X7,AA7,AT7),"") -> 162 | AP7: 60 | AQ7: 162 | AR7: =INDEX('Import (ADP)'!$C$2:$C$999,MATCH(A7, 'Import (ADP)'!$B$2:$B$999,0)) ->  | AU7: =IF(VLOOKUP(A8,'Name-Sort'!$D$2:$E$961,2,FALSE)="",A8,"") -> Nick Ahmed | AV7: =IFERROR(INDEX($AU$1:$AU$961,SMALL(IF($AU$1:$AU$961<>"",ROW($AU$1:$AU$961)),ROW(AU7))),"") -> Nick Ahmed
A8: Nick Ahmed | B8: ahmedni01 | C8: SS | E8: ARI | F8: 29 | G8: 455 | H8: 293 | I8: 605.15 | S8: 431.5 | T8: 293 | U8: 573.895 | V8: 566.02 | W8: 293 | X8: 534 | Y8: 484.1733333 | Z8: 293 | AA8: 643.9505333 | AF8: 406 | AH8: =IFERROR(INDEX('Guts-2'!$K$1:$K$30,MATCH(E8,'Guts-2'!$J$1:$J$30,0)),TRUE) -> TRUE | AI8: =IF(AH8=FALSE,"",IFERROR(CHOOSE('Guts-2'!$D$27,AB8,AC8,AD8,AE8,AF8,AG8),"")) ->  | AK8: =IF(AH8=FALSE,"",IFERROR(CHOOSE('Guts-2'!$D$26,G8,J8,M8,P8,S8,V8,Y8,AR8),"")) ->  | AL8: =IFERROR(IF(Settings!$L$5="Mixed (Standard)",AK8,RANK(AK8,$AK$2:$AK$961,1)),"") ->  | AM8: =IFERROR(IF(Settings!$L$5="Mixed (Standard)",(RANK(AK8,$AK$2:$AK$961,1)/('Guts-2'!$N$1+1))+1,(RANK(AL8,$AL$2:$AL$961,1)/('Guts-2'!$N$1+1))+1),"") ->  | AN8: =IFERROR(CHOOSE('Guts-2'!$D$26,H8,K8,N8,Q8,T8,W8,Z8,AS8),"") ->  | AO8: =IFERROR(CHOOSE('Guts-2'!$D$26,I8,L8,O8,R8,U8,X8,AA8,AT8),"") ->  | AR8: =INDEX('Import (ADP)'!$C$2:$C$999,MATCH(A8, 'Import (ADP)'!$B$2:$B$999,0)) ->  | AU8: =IF(VLOOKUP(A9,'Name-Sort'!$D$2:$E$961,2,FALSE)="",A9,"") -> Ozzie Albies | AV8: =IFERROR(INDEX($AU$1:$AU$961,SMALL(IF($AU$1:$AU$961<>"",ROW($AU$1:$AU$961)),ROW(AU8))),"") -> Ozzie Albies
A9: Ozzie Albies | B9: albieoz01 | C9: 2B | E9: ATL | F9: 22 | G9: 47 | H9: 35.25 | I9: 124 | J9: 50 | K9: 37.5 | L9: 124 | M9: 80.82 | N9: 44 | O9: 124 | P9: 46 | Q9: 34.5 | R9: 124 | S9: 53.3 | T9: 39.975 | U9: 124 | V9: 59.28 | W9: 43 | X9: 86 | Y9: 56.06666667 | Z9: 42.05 | AA9: 124 | AB9: 93 | AC9: 56 | AD9: 57 | AE9: 54 | AF9: 51 | AH9: =IFERROR(INDEX('Guts-2'!$K$1:$K$30,MATCH(E9,'Guts-2'!$J$1:$J$30,0)),TRUE) -> TRUE | AI9: =IF(AH9=FALSE,"",IFERROR(CHOOSE('Guts-2'!$D$27,AB9,AC9,AD9,AE9,AF9,AG9),"")) -> 57 | AJ9: 57 | AK9: =IF(AH9=FALSE,"",IFERROR(CHOOSE('Guts-2'!$D$26,G9,J9,M9,P9,S9,V9,Y9,AR9),"")) -> 80.82 | AL9: =IFERROR(IF(Settings!$L$5="Mixed (Standard)",AK9,RANK(AK9,$AK$2:$AK$961,1)),"") -> 80.82 | AM9: =IFERROR(IF(Settings!$L$5="Mixed (Standard)",(RANK(AK9,$AK$2:$AK$961,1)/('Guts-2'!$N$1+1))+1,(RANK(AL9,$AL$2:$AL$961,1)/('Guts-2'!$N$1+1))+1),"") -> 6.692307692 | AN9: =IFERROR(CHOOSE('Guts-2'!$D$26,H9,K9,N9,Q9,T9,W9,Z9,AS9),"") -> 44 | AO9: =IFERROR(CHOOSE('Guts-2'!$D$26,I9,L9,O9,R9,U9,X9,AA9,AT9),"") -> 124 | AP9: 44 | AQ9: 124 | AR9: =INDEX('Import (ADP)'!$C$2:$C$999,MATCH(A9, 'Import (ADP)'!$B$2:$B$999,0)) ->  | AU9: =IF(VLOOKUP(A10,'Name-Sort'!$D$2:$E$961,2,FALSE)="",A10,"") -> Sandy Alcantara | AV9: =IFERROR(INDEX($AU$1:$AU$961,SMALL(IF($AU$1:$AU$961<>"",ROW($AU$1:$AU$961)),ROW(AU9))),"") -> Sandy Alcantara
A10: Sandy Alcantara | B10: alcansa01 | C10: SP | E10: MIA | F10: 23 | G10: 378 | H10: 283.5 | I10: 600 | P10: 462 | Q10: 288 | R10: 614.46 | S10: 440 | T10: 288 | U10: 600 | V10: 554.95 | W10: 288 | X10: 600 | Y10: 458.7375 | Z10: 288 | AA10: 610.120875 | AF10: 494 | AH10: =IFERROR(INDEX('Guts-2'!$K$1:$K$30,MATCH(E10,'Guts-2'!$J$1:$J$30,0)),TRUE) -> TRUE | AI10: =IF(AH10=FALSE,"",IFERROR(CHOOSE('Guts-2'!$D$27,AB10,AC10,AD10,AE10,AF10,AG10),"")) ->  | AK10: =IF(AH10=FALSE,"",IFERROR(CHOOSE('Guts-2'!$D$26,G10,J10,M10,P10,S10,V10,Y10,AR10),"")) ->  | AL10: =IFERROR(IF(Settings!$L$5="Mixed (Standard)",AK10,RANK(AK10,$AK$2:$AK$961,1)),"") ->  | AM10: =IFERROR(IF(Settings!$L$5="Mixed (Standard)",(RANK(AK10,$AK$2:$AK$961,1)/('Guts-2'!$N$1+1))+1,(RANK(AL10,$AL$2:$AL$961,1)/('Guts-2'!$N$1+1))+1),"") ->  | AN10: =IFERROR(CHOOSE('Guts-2'!$D$26,H10,K10,N10,Q10,T10,W10,Z10,AS10),"") ->  | AO10: =IFERROR(CHOOSE('Guts-2'!$D$26,I10,L10,O10,R10,U10,X10,AA10,AT10),"") ->  | AR10: =INDEX('Import (ADP)'!$C$2:$C$999,MATCH(A10, 'Import (ADP)'!$B$2:$B$999,0)) ->  | AU10: =IF(VLOOKUP(A11,'Name-Sort'!$D$2:$E$961,2,FALSE)="",A11,"") -> Jorge Alfaro | AV10: =IFERROR(INDEX($AU$1:$AU$961,SMALL(IF($AU$1:$AU$961<>"",ROW($AU$1:$AU$961)),ROW(AU10))),"") -> Jorge Alfaro
A11: Jorge Alfaro | B11: alfarjo01 | C11: C | E11: PHI | F11: 25 | G11: 260 | H11: 173 | I11: 345.8 | J11: 258 | K11: 173 | L11: 343.14 | P11: 310 | Q11: 173 | R11: 412.3 | S11: 260 | T11: 173 | U11: 345.8 | V11: 240.06 | W11: 173 | X11: 341 | Y11: 265.612 | Z11: 173 | AA11: 353.26396 | AB11: 215 | AE11: 248 | AF11: 308 | AH11: =IFERROR(INDEX('Guts-2'!$K$1:$K$30,MATCH(E11,'Guts-2'!$J$1:$J$30,0)),TRUE) -> TRUE | AI11: =IF(AH11=FALSE,"",IFERROR(CHOOSE('Guts-2'!$D$27,AB11,AC11,AD11,AE11,AF11,AG11),"")) ->  | AK11: =IF(AH11=FALSE,"",IFERROR(CHOOSE('Guts-2'!$D$26,G11,J11,M11,P11,S11,V11,Y11,AR11),"")) ->  | AL11: =IFERROR(IF(Settings!$L$5="Mixed (Standard)",AK11,RANK(AK11,$AK$2:$AK$961,1)),"") ->  | AM11: =IFERROR(IF(Settings!$L$5="Mixed (Standard)",(RANK(AK11,$AK$2:$AK$961,1)/('Guts-2'!$N$1+1))+1,(RANK(AL11,$AL$2:$AL$961,1)/('Guts-2'!$N$1+1))+1),"") ->  | AN11: =IFERROR(CHOOSE('Guts-2'!$D$26,H11,K11,N11,Q11,T11,W11,Z11,AS11),"") ->  | AO11: =IFERROR(CHOOSE('Guts-2'!$D$26,I11,L11,O11,R11,U11,X11,AA11,AT11),"") ->  | AR11: =INDEX('Import (ADP)'!$C$2:$C$999,MATCH(A11, 'Import (ADP)'!$B$2:$B$999,0)) ->  | AU11: =IF(VLOOKUP(A12,'Name-Sort'!$D$2:$E$961,2,FALSE)="",A12,"") -> Anthony Alford | AV11: =IFERROR(INDEX($AU$1:$AU$961,SMALL(IF($AU$1:$AU$961<>"",ROW($AU$1:$AU$961)),ROW(AU11))),"") -> Anthony Alford
A12: Anthony Alford | B12: alforan01 | C12: OF | D12: LF | E12: TOR | F12: 24 | G12: 710 | H12: 355 | I12: 944.3 | P12: 694 | Q12: 355 | R12: 923.02 | S12: 734 | T12: 355 | U12: 976.22 | V12: 744.05 | W12: 355 | X12: 750 | Y12: 720.5125 | Z12: 355 | AA12: 958.281625 | AH12: =IFERROR(INDEX('Guts-2'!$K$1:$K$30,MATCH(E12,'Guts-2'!$J$1:$J$30,0)),TRUE) -> TRUE | AI12: =IF(AH12=FALSE,"",IFERROR(CHOOSE('Guts-2'!$D$27,AB12,AC12,AD12,AE12,AF12,AG12),"")) ->  | AK12: =IF(AH12=FALSE,"",IFERROR(CHOOSE('Guts-2'!$D$26,G12,J12,M12,P12,S12,V12,Y12,AR12),"")) ->  | AL12: =IFERROR(IF(Settings!$L$5="Mixed (Standard)",AK12,RANK(AK12,$AK$2:$AK$961,1)),"") ->  | AM12: =IFERROR(IF(Settings!$L$5="Mixed (Standard)",(RANK(AK12,$AK$2:$AK$961,1)/('Guts-2'!$N$1+1))+1,(RANK(AL12,$AL$2:$AL$961,1)/('Guts-2'!$N$1+1))+1),"") ->  | AN12: =IFERROR(CHOOSE('Guts-2'!$D$26,H12,K12,N12,Q12,T12,W12,Z12,AS12),"") ->  | AO12: =IFERROR(CHOOSE('Guts-2'!$D$26,I12,L12,O12,R12,U12,X12,AA12,AT12),"") ->  | AR12: =INDEX('Import (ADP)'!$C$2:$C$999,MATCH(A12, 'Import (ADP)'!$B$2:$B$999,0)) ->  | AU12: =IF(VLOOKUP(A13,'Name-Sort'!$D$2:$E$961,2,FALSE)="",A13,"") -> Kolby Allard | AV12: =IFERROR(INDEX($AU$1:$AU$961,SMALL(IF($AU$1:$AU$961<>"",ROW($AU$1:$AU$961)),ROW(AU12))),"") -> Kolby Allard
A13: Kolby Allard | B13: allarko01 | C13: SP | E13: ATL | F13: 21 | V13: 745.81 | W13: 532 | X13: 739 | Y13: 745.81 | Z13: 532 | AA13: 991.9273 | AF13: 758 | AH13: =IFERROR(INDEX('Guts-2'!$K$1:$K$30,MATCH(E13,'Guts-2'!$J$1:$J$30,0)),TRUE) -> TRUE | AI13: =IF(AH13=FALSE,"",IFERROR(CHOOSE('Guts-2'!$D$27,AB13,AC13,AD13,AE13,AF13,AG13),"")) ->  | AK13: =IF(AH13=FALSE,"",IFERROR(CHOOSE('Guts-2'!$D$26,G13,J13,M13,P13,S13,V13,Y13,AR13),"")) ->  | AL13: =IFERROR(IF(Settings!$L$5="Mixed (Standard)",AK13,RANK(AK13,$AK$2:$AK$961,1)),"") ->  | AM13: =IFERROR(IF(Settings!$L$5="Mixed (Standard)",(RANK(AK13,$AK$2:$AK$961,1)/('Guts-2'!$N$1+1))+1,(RANK(AL13,$AL$2:$AL$961,1)/('Guts-2'!$N$1+1))+1),"") ->  | AN13: =IFERROR(CHOOSE('Guts-2'!$D$26,H13,K13,N13,Q13,T13,W13,Z13,AS13),"") ->  | AO13: =IFERROR(CHOOSE('Guts-2'!$D$26,I13,L13,O13,R13,U13,X13,AA13,AT13),"") ->  | AR13: =INDEX('Import (ADP)'!$C$2:$C$999,MATCH(A13, 'Import (ADP)'!$B$2:$B$999,0)) ->  | AU13: =IF(VLOOKUP(A14,'Name-Sort'!$D$2:$E$961,2,FALSE)="",A14,"") -> Cody Allen | AV13: =IFERROR(INDEX($AU$1:$AU$961,SMALL(IF($AU$1:$AU$961<>"",ROW($AU$1:$AU$961)),ROW(AU13))),"") -> Cody Allen
A14: Cody Allen | B14: allenco01 | C14: RP | E14: LAA | F14: 30 | G14: 222 | H14: 93 | I14: 295.26 | J14: 156 | K14: 93 | L14: 264 | M14: 177.07 | N14: 99 | O14: 264 | P14: 182 | Q14: 93 | R14: 264 | S14: 163 | T14: 93 | U14: 264 | V14: 164.45 | W14: 93 | X14: 258 | Y14: 177.42 | Z14: 93 | AA14: 264 | AB14: 107 | AC14: 167 | AD14: 127 | AE14: 165 | AF14: 167 | AH14: =IFERROR(INDEX('Guts-2'!$K$1:$K$30,MATCH(E14,'Guts-2'!$J$1:$J$30,0)),TRUE) -> TRUE | AI14: =IF(AH14=FALSE,"",IFERROR(CHOOSE('Guts-2'!$D$27,AB14,AC14,AD14,AE14,AF14,AG14),"")) -> 127 | AJ14: 127 | AK14: =IF(AH14=FALSE,"",IFERROR(CHOOSE('Guts-2'!$D$26,G14,J14,M14,P14,S14,V14,Y14,AR14),"")) -> 177.07 | AL14: =IFERROR(IF(Settings!$L$5="Mixed (Standard)",AK14,RANK(AK14,$AK$2:$AK$961,1)),"") -> 177.07 | AM14: =IFERROR(IF(Settings!$L$5="Mixed (Standard)",(RANK(AK14,$AK$2:$AK$961,1)/('Guts-2'!$N$1+1))+1,(RANK(AL14,$AL$2:$AL$961,1)/('Guts-2'!$N$1+1))+1),"") -> 15.46153846 | AN14: =IFERROR(CHOOSE('Guts-2'!$D$26,H14,K14,N14,Q14,T14,W14,Z14,AS14),"") -> 99 | AO14: =IFERROR(CHOOSE('Guts-2'!$D$26,I14,L14,O14,R14,U14,X14,AA14,AT14),"") -> 264 | AP14: 99 | AQ14: 264 | AR14: =INDEX('Import (ADP)'!$C$2:$C$999,MATCH(A14, 'Import (ADP)'!$B$2:$B$999,0)) ->  | AU14: =IF(VLOOKUP(A15,'Name-Sort'!$D$2:$E$961,2,FALSE)="",A15,"") -> Greg Allen | AV14: =IFERROR(INDEX($AU$1:$AU$961,SMALL(IF($AU$1:$AU$961<>"",ROW($AU$1:$AU$961)),ROW(AU14))),"") -> Greg Allen
A15: Greg Allen | B15: allengr01 | C15: OF | D15: CF,RF | E15: CLE | F15: 26 | G15: 347 | H15: 209 | I15: 461.51 | J15: 359 | K15: 209 | L15: 477.47 | S15: 342.3 | T15: 209 | U15: 455.259 | V15: 341.28 | W15: 209 | X15: 420 | Y15: 347.395 | Z15: 209 | AA15: 462.03535 | AF15: 358 | AH15: =IFERROR(INDEX('Guts-2'!$K$1:$K$30,MATCH(E15,'Guts-2'!$J$1:$J$30,0)),TRUE) -> TRUE | AI15: =IF(AH15=FALSE,"",IFERROR(CHOOSE('Guts-2'!$D$27,AB15,AC15,AD15,AE15,AF15,AG15),"")) ->  | AK15: =IF(AH15=FALSE,"",IFERROR(CHOOSE('Guts-2'!$D$26,G15,J15,M15,P15,S15,V15,Y15,AR15),"")) ->  | AL15: =IFERROR(IF(Settings!$L$5="Mixed (Standard)",AK15,RANK(AK15,$AK$2:$AK$961,1)),"") ->  | AM15: =IFERROR(IF(Settings!$L$5="Mixed (Standard)",(RANK(AK15,$AK$2:$AK$961,1)/('Guts-2'!$N$1+1))+1,(RANK(AL15,$AL$2:$AL$961,1)/('Guts-2'!$N$1+1))+1),"") ->  | AN15: =IFERROR(CHOOSE('Guts-2'!$D$26,H15,K15,N15,Q15,T15,W15,Z15,AS15),"") ->  | AO15: =IFERROR(CHOOSE('Guts-2'!$D$26,I15,L15,O15,R15,U15,X15,AA15,AT15),"") ->  | AR15: =INDEX('Import (ADP)'!$C$2:$C$999,MATCH(A15, 'Import (ADP)'!$B$2:$B$999,0)) ->  | AU15: =IF(VLOOKUP(A16,'Name-Sort'!$D$2:$E$961,2,FALSE)="",A16,"") -> Albert Almora | AV15: =IFERROR(INDEX($AU$1:$AU$961,SMALL(IF($AU$1:$AU$961<>"",ROW($AU$1:$AU$961)),ROW(AU15))),"") -> Albert Almora
A16: Albert Almora | B16: almoral01 | C16: OF | D16: CF | E16: CHC | F16: 24 | P16: 363 | Q16: 272.25 | R16: 606 | S16: 445 | T16: 333.75 | U16: 606 | V16: 655.14 | W16: 377 | X16: 606 | Y16: 487.7133333 | Z16: 365.785 | AA16: 648.6587333 | AF16: 436 | AH16: =IFERROR(INDEX('Guts-2'!$K$1:$K$30,MATCH(E16,'Guts-2'!$J$1:$J$30,0)),TRUE) -> TRUE | AI16: =IF(AH16=FALSE,"",IFERROR(CHOOSE('Guts-2'!$D$27,AB16,AC16,AD16,AE16,AF16,AG16),"")) ->  | AK16: =IF(AH16=FALSE,"",IFERROR(CHOOSE('Guts-2'!$D$26,G16,J16,M16,P16,S16,V16,Y16,AR16),"")) ->  | AL16: =IFERROR(IF(Settings!$L$5="Mixed (Standard)",AK16,RANK(AK16,$AK$2:$AK$961,1)),"") ->  | AM16: =IFERROR(IF(Settings!$L$5="Mixed (Standard)",(RANK(AK16,$AK$2:$AK$961,1)/('Guts-2'!$N$1+1))+1,(RANK(AL16,$AL$2:$AL$961,1)/('Guts-2'!$N$1+1))+1),"") ->  | AN16: =IFERROR(CHOOSE('Guts-2'!$D$26,H16,K16,N16,Q16,T16,W16,Z16,AS16),"") ->  | AO16: =IFERROR(CHOOSE('Guts-2'!$D$26,I16,L16,O16,R16,U16,X16,AA16,AT16),"") ->  | AR16: =INDEX('Import (ADP)'!$C$2:$C$999,MATCH(A16, 'Import (ADP)'!$B$2:$B$999,0)) ->  | AU16: =IF(VLOOKUP(A17,'Name-Sort'!$D$2:$E$961,2,FALSE)="",A17,"") -> Peter Alonso | AV16: =IFERROR(INDEX($AU$1:$AU$961,SMALL(IF($AU$1:$AU$961<>"",ROW($AU$1:$AU$961)),ROW(AU16))),"") -> Peter Alonso
A17: Peter Alonso | B17: alonspe01 | C17: 1B | E17: NYM | F17: 24 | J17: 349 | K17: 65 | L17: 464.17 | M17: 190.82 | N17: 65 | O17: 268 | P17: 291 | Q17: 65 | R17: 387.03 | S17: 287.5 | T17: 65 | U17: 382.375 | V17: 242.25 | W17: 130 | X17: 340 | Y17: 272.114 | Z17: 65 | AA17: 361.91162 | AE17: 220 | AF17: 266 | AH17: =IFERROR(INDEX('Guts-2'!$K$1:$K$30,MATCH(E17,'Guts-2'!$J$1:$J$30,0)),TRUE) -> TRUE | AI17: =IF(AH17=FALSE,"",IFERROR(CHOOSE('Guts-2'!$D$27,AB17,AC17,AD17,AE17,AF17,AG17),"")) ->  | AK17: =IF(AH17=FALSE,"",IFERROR(CHOOSE('Guts-2'!$D$26,G17,J17,M17,P17,S17,V17,Y17,AR17),"")) -> 190.82 | AL17: =IFERROR(IF(Settings!$L$5="Mixed (Standard)",AK17,RANK(AK17,$AK$2:$AK$961,1)),"") -> 190.82 | AM17: =IFERROR(IF(Settings!$L$5="Mixed (Standard)",(RANK(AK17,$AK$2:$AK$961,1)/('Guts-2'!$N$1+1))+1,(RANK(AL17,$AL$2:$AL$961,1)/('Guts-2'!$N$1+1))+1),"") -> 17.15384615 | AN17: =IFERROR(CHOOSE('Guts-2'!$D$26,H17,K17,N17,Q17,T17,W17,Z17,AS17),"") -> 65 | AO17: =IFERROR(CHOOSE('Guts-2'!$D$26,I17,L17,O17,R17,U17,X17,AA17,AT17),"") -> 268 | AP17: 65 | AQ17: 268 | AR17: =INDEX('Import (ADP)'!$C$2:$C$999,MATCH(A17, 'Import (ADP)'!$B$2:$B$999,0)) ->  | AU17: =IF(VLOOKUP(A18,'Name-Sort'!$D$2:$E$961,2,FALSE)="",A18,"") -> Yonder Alonso | AV17: =IFERROR(INDEX($AU$1:$AU$961,SMALL(IF($AU$1:$AU$961<>"",ROW($AU$1:$AU$961)),ROW(AU17))),"") -> Yonder Alonso
A18: Yonder Alonso | B18: alonsyo01 | C18: 1B | E18: CWS | F18: 31 | G18: 303 | H18: 227.25 | I18: 402.99 | P18: 386 | Q18: 236 | R18: 513.38 | S18: 334 | T18: 236 | U18: 444.22 | V18: 317.11 | W18: 236 | X18: 390 | Y18: 335.0275 | Z18: 236 | AA18: 445.586575 | AB18: 273 | AC18: 251 | AD18: 233 | AE18: 218 | AF18: 277 | AH18: =IFERROR(INDEX('Guts-2'!$K$1:$K$30,MATCH(E18,'Guts-2'!$J$1:$J$30,0)),TRUE) -> TRUE | AI18: =IF(AH18=FALSE,"",IFERROR(CHOOSE('Guts-2'!$D$27,AB18,AC18,AD18,AE18,AF18,AG18),"")) -> 233 | AJ18: 233 | AK18: =IF(AH18=FALSE,"",IFERROR(CHOOSE('Guts-2'!$D$26,G18,J18,M18,P18,S18,V18,Y18,AR18),"")) ->  | AL18: =IFERROR(IF(Settings!$L$5="Mixed (Standard)",AK18,RANK(AK18,$AK$2:$AK$961,1)),"") ->  | AM18: =IFERROR(IF(Settings!$L$5="Mixed (Standard)",(RANK(AK18,$AK$2:$AK$961,1)/('Guts-2'!$N$1+1))+1,(RANK(AL18,$AL$2:$AL$961,1)/('Guts-2'!$N$1+1))+1),"") ->  | AN18: =IFERROR(CHOOSE('Guts-2'!$D$26,H18,K18,N18,Q18,T18,W18,Z18,AS18),"") ->  | AO18: =IFERROR(CHOOSE('Guts-2'!$D$26,I18,L18,O18,R18,U18,X18,AA18,AT18),"") ->  | AR18: =INDEX('Import (ADP)'!$C$2:$C$999,MATCH(A18, 'Import (ADP)'!$B$2:$B$999,0)) ->  | AU18: =IF(VLOOKUP(A19,'Name-Sort'!$D$2:$E$961,2,FALSE)="",A19,"") -> Aaron Altherr | AV18: =IFERROR(INDEX($AU$1:$AU$961,SMALL(IF($AU$1:$AU$961<>"",ROW($AU$1:$AU$961)),ROW(AU18))),"") -> Aaron Altherr
A19: Aaron Altherr | B19: altheaa01 | C19: OF | D19: LF,CF,RF | E19: PHI | F19: 28 | G19: 696 | H19: 405 | I19: 925.68 | P19: 730 | Q19: 405 | R19: 970.9 | S19: 652.3 | T19: 405 | U19: 867.559 | V19: 742.1 | W19: 405 | X19: 744 | Y19: 705.1 | Z19: 405 | AA19: 937.783 | AF19: 546 | AH19: =IFERROR(INDEX('Guts-2'!$K$1:$K$30,MATCH(E19,'Guts-2'!$J$1:$J$30,0)),TRUE) -> TRUE | AI19: =IF(AH19=FALSE,"",IFERROR(CHOOSE('Guts-2'!$D$27,AB19,AC19,AD19,AE19,AF19,AG19),"")) ->  | AK19: =IF(AH19=FALSE,"",IFERROR(CHOOSE('Guts-2'!$D$26,G19,J19,M19,P19,S19,V19,Y19,AR19),"")) ->  | AL19: =IFERROR(IF(Settings!$L$5="Mixed (Standard)",AK19,RANK(AK19,$AK$2:$AK$961,1)),"") ->  | AM19: =IFERROR(IF(Settings!$L$5="Mixed (Standard)",(RANK(AK19,$AK$2:$AK$961,1)/('Guts-2'!$N$1+1))+1,(RANK(AL19,$AL$2:$AL$961,1)/('Guts-2'!$N$1+1))+1),"") ->  | AN19: =IFERROR(CHOOSE('Guts-2'!$D$26,H19,K19,N19,Q19,T19,W19,Z19,AS19),"") ->  | AO19: =IFERROR(CHOOSE('Guts-2'!$D$26,I19,L19,O19,R19,U19,X19,AA19,AT19),"") ->  | AR19: =INDEX('Import (ADP)'!$C$2:$C$999,MATCH(A19, 'Import (ADP)'!$B$2:$B$999,0)) ->  | AU19: =IF(VLOOKUP(A20,'Name-Sort'!$D$2:$E$961,2,FALSE)="",A20,"") -> Jose Altuve | AV19: =IFERROR(INDEX($AU$1:$AU$961,SMALL(IF($AU$1:$AU$961<>"",ROW($AU$1:$AU$961)),ROW(AU19))),"") -> Jose Altuve
A20: Jose Altuve | B20: altuvjo01 | C20: 2B | E20: HOU | F20: 28 | G20: 17 | H20: 4 | I20: 27 | J20: 11 | K20: 4 | L20: 27 | M20: 14.45 | N20: 5 | O20: 26 | P20: 12 | Q20: 4 | R20: 27 | S20: 12.5 | T20: 4 | U20: 27 | V20: 14.26 | W20: 4 | X20: 27 | Y20: 13.535 | Z20: 4 | AA20: 27 | AB20: 9 | AC20: 11 | AD20: 11 | AE20: 11 | AF20: 14 | AH20: =IFERROR(INDEX('Guts-2'!$K$1:$K$30,MATCH(E20,'Guts-2'!$J$1:$J$30,0)),TRUE) -> TRUE | AI20: =IF(AH20=FALSE,"",IFERROR(CHOOSE('Guts-2'!$D$27,AB20,AC20,AD20,AE20,AF20,AG20),"")) -> 11 | AJ20: 11 | AK20: =IF(AH20=FALSE,"",IFERROR(CHOOSE('Guts-2'!$D$26,G20,J20,M20,P20,S20,V20,Y20,AR20),"")) -> 14.45 | AL20: =IFERROR(IF(Settings!$L$5="Mixed (Standard)",AK20,RANK(AK20,$AK$2:$AK$961,1)),"") -> 14.45 | AM20: =IFERROR(IF(Settings!$L$5="Mixed (Standard)",(RANK(AK20,$AK$2:$AK$961,1)/('Guts-2'!$N$1+1))+1,(RANK(AL20,$AL$2:$AL$961,1)/('Guts-2'!$N$1+1))+1),"") -> 2.153846154 | AN20: =IFERROR(CHOOSE('Guts-2'!$D$26,H20,K20,N20,Q20,T20,W20,Z20,AS20),"") -> 5 | AO20: =IFERROR(CHOOSE('Guts-2'!$D$26,I20,L20,O20,R20,U20,X20,AA20,AT20),"") -> 26 | AP20: 5 | AQ20: 26 | AR20: =INDEX('Import (ADP)'!$C$2:$C$999,MATCH(A20, 'Import (ADP)'!$B$2:$B$999,0)) -> 2.3 | AS20: 2 | AT20: 27 | AU20: =IF(VLOOKUP(A21,'Name-Sort'!$D$2:$E$961,2,FALSE)="",A21,"") -> Jose Alvarado | AV20: =IFERROR(INDEX($AU$1:$AU$961,SMALL(IF($AU$1:$AU$961<>"",ROW($AU$1:$AU$961)),ROW(AU20))),"") -> Jose Alvarado
A21: Jose Alvarado | B21: alvarjo03 | C21: RP | E21: TB | F21: 23 | G21: 206 | H21: 77 | I21: 284 | J21: 215 | K21: 77 | L21: 285.95 | M21: 191.74 | N21: 77 | O21: 273 | P21: 173 | Q21: 77 | R21: 284 | S21: 179 | T21: 77 | U21: 284 | V21: 167.57 | W21: 106 | X21: 284 | Y21: 188.7183333 | Z21: 77 | AA21: 284 | AB21: 144 | AC21: 213 | AD21: 107 | AE21: 156 | AF21: 194 | AH21: =IFERROR(INDEX('Guts-2'!$K$1:$K$30,MATCH(E21,'Guts-2'!$J$1:$J$30,0)),TRUE) -> TRUE | AI21: =IF(AH21=FALSE,"",IFERROR(CHOOSE('Guts-2'!$D$27,AB21,AC21,AD21,AE21,AF21,AG21),"")) -> 107 | AJ21: 107 | AK21: =IF(AH21=FALSE,"",IFERROR(CHOOSE('Guts-2'!$D$26,G21,J21,M21,P21,S21,V21,Y21,AR21),"")) -> 191.74 | AL21: =IFERROR(IF(Settings!$L$5="Mixed (Standard)",AK21,RANK(AK21,$AK$2:$AK$961,1)),"") -> 191.74 | AM21: =IFERROR(IF(Settings!$L$5="Mixed (Standard)",(RANK(AK21,$AK$2:$AK$961,1)/('Guts-2'!$N$1+1))+1,(RANK(AL21,$AL$2:$AL$961,1)/('Guts-2'!$N$1+1))+1),"") -> 17.38461538 | AN21: =IFERROR(CHOOSE('Guts-2'!$D$26,H21,K21,N21,Q21,T21,W21,Z21,AS21),"") -> 77 | AO21: =IFERROR(CHOOSE('Guts-2'!$D$26,I21,L21,O21,R21,U21,X21,AA21,AT21),"") -> 273 | AP21: 77 | AQ21: 273 | AR21: =INDEX('Import (ADP)'!$C$2:$C$999,MATCH(A21, 'Import (ADP)'!$B$2:$B$999,0)) ->  | AU21: =IF(VLOOKUP(A22,'Name-Sort'!$D$2:$E$961,2,FALSE)="",A22,"") -> Brett Anderson | AV21: =IFERROR(INDEX($AU$1:$AU$961,SMALL(IF($AU$1:$AU$961<>"",ROW($AU$1:$AU$961)),ROW(AU21))),"") -> Brett Anderson
A22: Brett Anderson | B22: anderbr04 | C22: SP | E22: OAK | F22: 31 | P22: 593 | Q22: 444.75 | R22: 788.69 | S22: 649.5 | T22: 476 | U22: 863.835 | V22: 725.05 | W22: 476 | X22: 744 | Y22: 655.85 | Z22: 476 | AA22: 872.2805 | AH22: =IFERROR(INDEX('Guts-2'!$K$1:$K$30,MATCH(E22,'Guts-2'!$J$1:$J$30,0)),TRUE) -> TRUE | AI22: =IF(AH22=FALSE,"",IFERROR(CHOOSE('Guts-2'!$D$27,AB22,AC22,AD22,AE22,AF22,AG22),"")) ->  | AK22: =IF(AH22=FALSE,"",IFERROR(CHOOSE('Guts-2'!$D$26,G22,J22,M22,P22,S22,V22,Y22,AR22),"")) ->  | AL22: =IFERROR(IF(Settings!$L$5="Mixed (Standard)",AK22,RANK(AK22,$AK$2:$AK$961,1)),"") ->  | AM22: =IFERROR(IF(Settings!$L$5="Mixed (Standard)",(RANK(AK22,$AK$2:$AK$961,1)/('Guts-2'!$N$1+1))+1,(RANK(AL22,$AL$2:$AL$961,1)/('Guts-2'!$N$1+1))+1),"") ->  | AN22: =IFERROR(CHOOSE('Guts-2'!$D$26,H22,K22,N22,Q22,T22,W22,Z22,AS22),"") ->  | AO22: =IFERROR(CHOOSE('Guts-2'!$D$26,I22,L22,O22,R22,U22,X22,AA22,AT22),"") ->  | AR22: =INDEX('Import (ADP)'!$C$2:$C$999,MATCH(A22, 'Import (ADP)'!$B$2:$B$999,0)) ->  | AU22: =IF(VLOOKUP(A23,'Name-Sort'!$D$2:$E$961,2,FALSE)="",A23,"") -> Brian Anderson | AV22: =IFERROR(INDEX($AU$1:$AU$961,SMALL(IF($AU$1:$AU$961<>"",ROW($AU$1:$AU$961)),ROW(AU22))),"") -> Brian Anderson
A23: Brian Anderson | B23: anderbr06 | C23: 3B | D23: RF | E23: MIA | F23: 25 | G23: 248 | H23: 128 | I23: 430 | J23: 368 | K23: 128 | L23: 489.44 | M23: 213.09 | N23: 128 | O23: 285 | P23: 209 | Q23: 128 | R23: 430 | S23: 303.3 | T23: 128 | U23: 430 | V23: 289.83 | W23: 193 | X23: 430 | Y23: 271.87 | Z23: 128 | AA23: 430 | AB23: 255 | AC23: 274 | AD23: 227 | AE23: 231 | AF23: 276 | AH23: =IFERROR(INDEX('Guts-2'!$K$1:$K$30,MATCH(E23,'Guts-2'!$J$1:$J$30,0)),TRUE) -> TRUE | AI23: =IF(AH23=FALSE,"",IFERROR(CHOOSE('Guts-2'!$D$27,AB23,AC23,AD23,AE23,AF23,AG23),"")) -> 227 | AJ23: 227 | AK23: =IF(AH23=FALSE,"",IFERROR(CHOOSE('Guts-2'!$D$26,G23,J23,M23,P23,S23,V23,Y23,AR23),"")) -> 213.09 | AL23: =IFERROR(IF(Settings!$L$5="Mixed (Standard)",AK23,RANK(AK23,$AK$2:$AK$961,1)),"") -> 213.09 | AM23: =IFERROR(IF(Settings!$L$5="Mixed (Standard)",(RANK(AK23,$AK$2:$AK$961,1)/('Guts-2'!$N$1+1))+1,(RANK(AL23,$AL$2:$AL$961,1)/('Guts-2'!$N$1+1))+1),"") -> 20.92307692 | AN23: =IFERROR(CHOOSE('Guts-2'!$D$26,H23,K23,N23,Q23,T23,W23,Z23,AS23),"") -> 128 | AO23: =IFERROR(CHOOSE('Guts-2'!$D$26,I23,L23,O23,R23,U23,X23,AA23,AT23),"") -> 285 | AP23: 128 | AQ23: 285 | AR23: =INDEX('Import (ADP)'!$C$2:$C$999,MATCH(A23, 'Import (ADP)'!$B$2:$B$999,0)) ->  | AU23: =IF(VLOOKUP(A24,'Name-Sort'!$D$2:$E$961,2,FALSE)="",A24,"") -> Chase Anderson | AV23: =IFERROR(INDEX($AU$1:$AU$961,SMALL(IF($AU$1:$AU$961<>"",ROW($AU$1:$AU$961)),ROW(AU23))),"") -> Chase Anderson
A24: Chase Anderson | B24: anderch01 | C24: SP | E24: MIL | F24: 31 | G24: 359 | H24: 132 | I24: 477.47 | M24: 190.04 | N24: 132 | O24: 262 | S24: 342 | T24: 132 | U24: 454.86 | V24: 458.76 | W24: 265 | X24: 453 | Y24: 337.45 | Z24: 132 | AA24: 453 | AF24: 359 | AH24: =IFERROR(INDEX('Guts-2'!$K$1:$K$30,MATCH(E24,'Guts-2'!$J$1:$J$30,0)),TRUE) -> TRUE | AI24: =IF(AH24=FALSE,"",IFERROR(CHOOSE('Guts-2'!$D$27,AB24,AC24,AD24,AE24,AF24,AG24),"")) ->  | AK24: =IF(AH24=FALSE,"",IFERROR(CHOOSE('Guts-2'!$D$26,G24,J24,M24,P24,S24,V24,Y24,AR24),"")) -> 190.04 | AL24: =IFERROR(IF(Settings!$L$5="Mixed (Standard)",AK24,RANK(AK24,$AK$2:$AK$961,1)),"") -> 190.04 | AM24: =IFERROR(IF(Settings!$L$5="Mixed (Standard)",(RANK(AK24,$AK$2:$AK$961,1)/('Guts-2'!$N$1+1))+1,(RANK(AL24,$AL$2:$AL$961,1)/('Guts-2'!$N$1+1))+1),"") -> 16.92307692 | AN24: =IFERROR(CHOOSE('Guts-2'!$D$26,H24,K24,N24,Q24,T24,W24,Z24,AS24),"") -> 132 | AO24: =IFERROR(CHOOSE('Guts-2'!$D$26,I24,L24,O24,R24,U24,X24,AA24,AT24),"") -> 262 | AP24: 132 | AQ24: 262 | AR24: =INDEX('Import (ADP)'!$C$2:$C$999,MATCH(A24, 'Import (ADP)'!$B$2:$B$999,0)) ->  | AU24: =IF(VLOOKUP(A25,'Name-Sort'!$D$2:$E$961,2,FALSE)="",A25,"") -> Ian Anderson | AV24: =IFERROR(INDEX($AU$1:$AU$961,SMALL(IF($AU$1:$AU$961<>"",ROW($AU$1:$AU$961)),ROW(AU24))),"") -> Ian Anderson
A25: Ian Anderson | B25: anderia01 | C25: SP | E25: ATL | F25: 20 | V25: 741.85 | W25: 348 | X25: 748 | Y25: 741.85 | Z25: 348 | AA25: 986.6605 | AH25: =IFERROR(INDEX('Guts-2'!$K$1:$K$30,MATCH(E25,'Guts-2'!$J$1:$J$30,0)),TRUE) -> TRUE | AI25: =IF(AH25=FALSE,"",IFERROR(CHOOSE('Guts-2'!$D$27,AB25,AC25,AD25,AE25,AF25,AG25),"")) ->  | AK25: =IF(AH25=FALSE,"",IFERROR(CHOOSE('Guts-2'!$D$26,G25,J25,M25,P25,S25,V25,Y25,AR25),"")) ->  | AL25: =IFERROR(IF(Settings!$L$5="Mixed (Standard)",AK25,RANK(AK25,$AK$2:$AK$961,1)),"") ->  | AM25: =IFERROR(IF(Settings!$L$5="Mixed (Standard)",(RANK(AK25,$AK$2:$AK$961,1)/('Guts-2'!$N$1+1))+1,(RANK(AL25,$AL$2:$AL$961,1)/('Guts-2'!$N$1+1))+1),"") ->  | AN25: =IFERROR(CHOOSE('Guts-2'!$D$26,H25,K25,N25,Q25,T25,W25,Z25,AS25),"") ->  | AO25: =IFERROR(CHOOSE('Guts-2'!$D$26,I25,L25,O25,R25,U25,X25,AA25,AT25),"") ->  | AR25: =INDEX('Import (ADP)'!$C$2:$C$999,MATCH(A25, 'Import (ADP)'!$B$2:$B$999,0)) ->  | AU25: =IF(VLOOKUP(A26,'Name-Sort'!$D$2:$E$961,2,FALSE)="",A26,"") -> Justin Anderson | AV25: =IFERROR(INDEX($AU$1:$AU$961,SMALL(IF($AU$1:$AU$961<>"",ROW($AU$1:$AU$961)),ROW(AU25))),"") -> Justin Anderson
A26: Justin Anderson | B26: anderju01 | C26: RP | E26: LAA | F26: 26 | G26: 732 | H26: 498 | I26: 973.56 | P26: 954 | Q26: 498 | R26: 1268.82 | S26: 856 | T26: 498 | U26: 1138.48 | V26: 748.53 | W26: 498 | X26: 745 | Y26: 822.6325 | Z26: 498 | AA26: 1094.101225 | AF26: 720 | AH26: =IFERROR(INDEX('Guts-2'!$K$1:$K$30,MATCH(E26,'Guts-2'!$J$1:$J$30,0)),TRUE) -> TRUE | AI26: =IF(AH26=FALSE,"",IFERROR(CHOOSE('Guts-2'!$D$27,AB26,AC26,AD26,AE26,AF26,AG26),"")) ->  | AK26: =IF(AH26=FALSE,"",IFERROR(CHOOSE('Guts-2'!$D$26,G26,J26,M26,P26,S26,V26,Y26,AR26),"")) ->  | AL26: =IFERROR(IF(Settings!$L$5="Mixed (Standard)",AK26,RANK(AK26,$AK$2:$AK$961,1)),"") ->  | AM26: =IFERROR(IF(Settings!$L$5="Mixed (Standard)",(RANK(AK26,$AK$2:$AK$961,1)/('Guts-2'!$N$1+1))+1,(RANK(AL26,$AL$2:$AL$961,1)/('Guts-2'!$N$1+1))+1),"") ->  | AN26: =IFERROR(CHOOSE('Guts-2'!$D$26,H26,K26,N26,Q26,T26,W26,Z26,AS26),"") ->  | AO26: =IFERROR(CHOOSE('Guts-2'!$D$26,I26,L26,O26,R26,U26,X26,AA26,AT26),"") ->  | AR26: =INDEX('Import (ADP)'!$C$2:$C$999,MATCH(A26, 'Import (ADP)'!$B$2:$B$999,0)) ->  | AU26: =IF(VLOOKUP(A27,'Name-Sort'!$D$2:$E$961,2,FALSE)="",A27,"") -> Tim Anderson | AV26: =IFERROR(INDEX($AU$1:$AU$961,SMALL(IF($AU$1:$AU$961<>"",ROW($AU$1:$AU$961)),ROW(AU26))),"") -> Tim Anderson
A27: Tim Anderson | B27: anderti01 | C27: SS | E27: CWS | F27: 25 | G27: 130 | H27: 89 | I27: 296 | J27: 135 | K27: 89 | L27: 296 | M27: 210.98 | N27: 96 | O27: 296 | P27: 144 | Q27: 89 | R27: 296 | S27: 137 | T27: 89 | U27: 296 | V27: 133.97 | W27: 89 | X27: 182 | Y27: 148.4916667 | Z27: 89 | AA27: 296 | AB27: 177 | AC27: 109 | AD27: 133 | AE27: 95 | AF27: 136 | AH27: =IFERROR(INDEX('Guts-2'!$K$1:$K$30,MATCH(E27,'Guts-2'!$J$1:$J$30,0)),TRUE) -> TRUE | AI27: =IF(AH27=FALSE,"",IFERROR(CHOOSE('Guts-2'!$D$27,AB27,AC27,AD27,AE27,AF27,AG27),"")) -> 133 | AJ27: 133 | AK27: =IF(AH27=FALSE,"",IFERROR(CHOOSE('Guts-2'!$D$26,G27,J27,M27,P27,S27,V27,Y27,AR27),"")) -> 210.98 | AL27: =IFERROR(IF(Settings!$L$5="Mixed (Standard)",AK27,RANK(AK27,$AK$2:$AK$961,1)),"") -> 210.98 | AM27: =IFERROR(IF(Settings!$L$5="Mixed (Standard)",(RANK(AK27,$AK$2:$AK$961,1)/('Guts-2'!$N$1+1))+1,(RANK(AL27,$AL$2:$AL$961,1)/('Guts-2'!$N$1+1))+1),"") -> 20.30769231 | AN27: =IFERROR(CHOOSE('Guts-2'!$D$26,H27,K27,N27,Q27,T27,W27,Z27,AS27),"") -> 96 | AO27: =IFERROR(CHOOSE('Guts-2'!$D$26,I27,L27,O27,R27,U27,X27,AA27,AT27),"") -> 296 | AP27: 96 | AQ27: 296 | AR27: =INDEX('Import (ADP)'!$C$2:$C$999,MATCH(A27, 'Import (ADP)'!$B$2:$B$999,0)) ->  | AU27: =IF(VLOOKUP(A28,'Name-Sort'!$D$2:$E$961,2,FALSE)="",A28,"") -> Tyler Anderson | AV27: =IFERROR(INDEX($AU$1:$AU$961,SMALL(IF($AU$1:$AU$961<>"",ROW($AU$1:$AU$961)),ROW(AU27))),"") -> Tyler Anderson
A28: Tyler Anderson | B28: anderty01 | C28: SP | E28: COL | F28: 29 | G28: 386 | H28: 271 | I28: 546 | S28: 402 | T28: 271 | U28: 546 | V28: 521.71 | W28: 271 | X28: 546 | Y28: 436.57 | Z28: 271 | AA28: 580.6381 | AB28: 265 | AF28: 372 | AH28: =IFERROR(INDEX('Guts-2'!$K$1:$K$30,MATCH(E28,'Guts-2'!$J$1:$J$30,0)),TRUE) -> TRUE | AI28: =IF(AH28=FALSE,"",IFERROR(CHOOSE('Guts-2'!$D$27,AB28,AC28,AD28,AE28,AF28,AG28),"")) ->  | AK28: =IF(AH28=FALSE,"",IFERROR(CHOOSE('Guts-2'!$D$26,G28,J28,M28,P28,S28,V28,Y28,AR28),"")) ->  | AL28: =IFERROR(IF(Settings!$L$5="Mixed (Standard)",AK28,RANK(AK28,$AK$2:$AK$961,1)),"") ->  | AM28: =IFERROR(IF(Settings!$L$5="Mixed (Standard)",(RANK(AK28,$AK$2:$AK$961,1)/('Guts-2'!$N$1+1))+1,(RANK(AL28,$AL$2:$AL$961,1)/('Guts-2'!$N$1+1))+1),"") ->  | AN28: =IFERROR(CHOOSE('Guts-2'!$D$26,H28,K28,N28,Q28,T28,W28,Z28,AS28),"") ->  | AO28: =IFERROR(CHOOSE('Guts-2'!$D$26,I28,L28,O28,R28,U28,X28,AA28,AT28),"") ->  | AR28: =INDEX('Import (ADP)'!$C$2:$C$999,MATCH(A28, 'Import (ADP)'!$B$2:$B$999,0)) ->  | AU28: =IF(VLOOKUP(A29,'Name-Sort'!$D$2:$E$961,2,FALSE)="",A29,"") -> Matt Andriese | AV28: =IFERROR(INDEX($AU$1:$AU$961,SMALL(IF($AU$1:$AU$961<>"",ROW($AU$1:$AU$961)),ROW(AU28))),"") -> Matt Andriese
A29: Matt Andriese | B29: andrima01 | C29: RP | E29: ARI | F29: 29 | G29: 894 | H29: 670.5 | I29: 1189.02 | S29: 629 | T29: 471.75 | U29: 836.57 | V29: 749.86 | W29: 674 | X29: 750 | Y29: 757.62 | Z29: 568.215 | AA29: 1007.6346 | AF29: 671 | AH29: =IFERROR(INDEX('Guts-2'!$K$1:$K$30,MATCH(E29,'Guts-2'!$J$1:$J$30,0)),TRUE) -> TRUE | AI29: =IF(AH29=FALSE,"",IFERROR(CHOOSE('Guts-2'!$D$27,AB29,AC29,AD29,AE29,AF29,AG29),"")) ->  | AK29: =IF(AH29=FALSE,"",IFERROR(CHOOSE('Guts-2'!$D$26,G29,J29,M29,P29,S29,V29,Y29,AR29),"")) ->  | AL29: =IFERROR(IF(Settings!$L$5="Mixed (Standard)",AK29,RANK(AK29,$AK$2:$AK$961,1)),"") ->  | AM29: =IFERROR(IF(Settings!$L$5="Mixed (Standard)",(RANK(AK29,$AK$2:$AK$961,1)/('Guts-2'!$N$1+1))+1,(RANK(AL29,$AL$2:$AL$961,1)/('Guts-2'!$N$1+1))+1),"") ->  | AN29: =IFERROR(CHOOSE('Guts-2'!$D$26,H29,K29,N29,Q29,T29,W29,Z29,AS29),"") ->  | AO29: =IFERROR(CHOOSE('Guts-2'!$D$26,I29,L29,O29,R29,U29,X29,AA29,AT29),"") ->  | AR29: =INDEX('Import (ADP)'!$C$2:$C$999,MATCH(A29, 'Import (ADP)'!$B$2:$B$999,0)) ->  | AU29: =IF(VLOOKUP(A30,'Name-Sort'!$D$2:$E$961,2,FALSE)="",A30,"") -> Elvis Andrus | AV29: =IFERROR(INDEX($AU$1:$AU$961,SMALL(IF($AU$1:$AU$961<>"",ROW($AU$1:$AU$961)),ROW(AU29))),"") -> Elvis Andrus
A30: Elvis Andrus | B30: andruel01 | C30: SS | E30: TEX | F30: 30 | G30: 169 | H30: 75 | I30: 296 | J30: 148 | K30: 75 | L30: 296 | M30: 192.73 | N30: 75 | O30: 296 | P30: 158 | Q30: 75 | R30: 296 | S30: 168 | T30: 75 | U30: 296 | V30: 186.65 | W30: 138 | X30: 274 | Y30: 170.3966667 | Z30: 75 | AA30: 296 | AB30: 224 | AC30: 147 | AD30: 118 | AE30: 106 | AF30: 140 | AH30: =IFERROR(INDEX('Guts-2'!$K$1:$K$30,MATCH(E30,'Guts-2'!$J$1:$J$30,0)),TRUE) -> TRUE | AI30: =IF(AH30=FALSE,"",IFERROR(CHOOSE('Guts-2'!$D$27,AB30,AC30,AD30,AE30,AF30,AG30),"")) -> 118 | AJ30: 118 | AK30: =IF(AH30=FALSE,"",IFERROR(CHOOSE('Guts-2'!$D$26,G30,J30,M30,P30,S30,V30,Y30,AR30),"")) -> 192.73 | AL30: =IFERROR(IF(Settings!$L$5="Mixed (Standard)",AK30,RANK(AK30,$AK$2:$AK$961,1)),"") -> 192.73 | AM30: =IFERROR(IF(Settings!$L$5="Mixed (Standard)",(RANK(AK30,$AK$2:$AK$961,1)/('Guts-2'!$N$1+1))+1,(RANK(AL30,$AL$2:$AL$961,1)/('Guts-2'!$N$1+1))+1),"") -> 17.69230769 | AN30: =IFERROR(CHOOSE('Guts-2'!$D$26,H30,K30,N30,Q30,T30,W30,Z30,AS30),"") -> 75 | AO30: =IFERROR(CHOOSE('Guts-2'!$D$26,I30,L30,O30,R30,U30,X30,AA30,AT30),"") -> 296 | AP30: 75 | AQ30: 296 | AR30: =INDEX('Import (ADP)'!$C$2:$C$999,MATCH(A30, 'Import (ADP)'!$B$2:$B$999,0)) ->  | AU30: =IF(VLOOKUP(A31,'Name-Sort'!$D$2:$E$961,2,FALSE)="",A31,"") -> Miguel Andujar | AV30: =IFERROR(INDEX($AU$1:$AU$961,SMALL(IF($AU$1:$AU$961<>"",ROW($AU$1:$AU$961)),ROW(AU30))),"") -> Miguel Andujar
A31: Miguel Andujar | B31: andujmi01 | C31: 3B | E31: NYY | F31: 24 | G31: 68 | H31: 46 | I31: 199 | J31: 86 | K31: 46 | L31: 199 | M31: 127.86 | N31: 69 | O31: 199 | P31: 78 | Q31: 46 | R31: 199 | S31: 79 | T31: 46 | U31: 199 | V31: 79.02 | W31: 46 | X31: 120 | Y31: 86.31333333 | Z31: 46 | AA31: 199 | AB31: 71 | AC31: 80 | AD31: 81 | AE31: 78 | AF31: 89 | AH31: =IFERROR(INDEX('Guts-2'!$K$1:$K$30,MATCH(E31,'Guts-2'!$J$1:$J$30,0)),TRUE) -> TRUE | AI31: =IF(AH31=FALSE,"",IFERROR(CHOOSE('Guts-2'!$D$27,AB31,AC31,AD31,AE31,AF31,AG31),"")) -> 81 | AJ31: 81 | AK31: =IF(AH31=FALSE,"",IFERROR(CHOOSE('Guts-2'!$D$26,G31,J31,M31,P31,S31,V31,Y31,AR31),"")) -> 127.86 | AL31: =IFERROR(IF(Settings!$L$5="Mixed (Standard)",AK31,RANK(AK31,$AK$2:$AK$961,1)),"") -> 127.86 | AM31: =IFERROR(IF(Settings!$L$5="Mixed (Standard)",(RANK(AK31,$AK$2:$AK$961,1)/('Guts-2'!$N$1+1))+1,(RANK(AL31,$AL$2:$AL$961,1)/('Guts-2'!$N$1+1))+1),"") -> 10.76923077 | AN31: =IFERROR(CHOOSE('Guts-2'!$D$26,H31,K31,N31,Q31,T31,W31,Z31,AS31),"") -> 69 | AO31: =IFERROR(CHOOSE('Guts-2'!$D$26,I31,L31,O31,R31,U31,X31,AA31,AT31),"") -> 199 | AP31: 69 | AQ31: 199 | AR31: =INDEX('Import (ADP)'!$C$2:$C$999,MATCH(A31, 'Import (ADP)'!$B$2:$B$999,0)) ->  | AU31: =IF(VLOOKUP(A32,'Name-Sort'!$D$2:$E$961,2,FALSE)="",A32,"") -> Victor Arano | AV31: =IFERROR(INDEX($AU$1:$AU$961,SMALL(IF($AU$1:$AU$961<>"",ROW($AU$1:$AU$961)),ROW(AU31))),"") -> Victor Arano
A32: Victor Arano | B32: aranovi01 | C32: RP | E32: PHI | F32: 24 | V32: 750.38 | W32: 658 | X32: 735 | Y32: 750.38 | Z32: 562.785 | AA32: 998.0054 | AH32: =IFERROR(INDEX('Guts-2'!$K$1:$K$30,MATCH(E32,'Guts-2'!$J$1:$J$30,0)),TRUE) -> TRUE | AI32: =IF(AH32=FALSE,"",IFERROR(CHOOSE('Guts-2'!$D$27,AB32,AC32,AD32,AE32,AF32,AG32),"")) ->  | AK32: =IF(AH32=FALSE,"",IFERROR(CHOOSE('Guts-2'!$D$26,G32,J32,M32,P32,S32,V32,Y32,AR32),"")) ->  | AL32: =IFERROR(IF(Settings!$L$5="Mixed (Standard)",AK32,RANK(AK32,$AK$2:$AK$961,1)),"") ->  | AM32: =IFERROR(IF(Settings!$L$5="Mixed (Standard)",(RANK(AK32,$AK$2:$AK$961,1)/('Guts-2'!$N$1+1))+1,(RANK(AL32,$AL$2:$AL$961,1)/('Guts-2'!$N$1+1))+1),"") ->  | AN32: =IFERROR(CHOOSE('Guts-2'!$D$26,H32,K32,N32,Q32,T32,W32,Z32,AS32),"") ->  | AO32: =IFERROR(CHOOSE('Guts-2'!$D$26,I32,L32,O32,R32,U32,X32,AA32,AT32),"") ->  | AR32: =INDEX('Import (ADP)'!$C$2:$C$999,MATCH(A32, 'Import (ADP)'!$B$2:$B$999,0)) ->  | AU32: =IF(VLOOKUP(A33,'Name-Sort'!$D$2:$E$961,2,FALSE)="",A33,"") -> Chris Archer | AV32: =IFERROR(INDEX($AU$1:$AU$961,SMALL(IF($AU$1:$AU$961<>"",ROW($AU$1:$AU$961)),ROW(AU32))),"") -> Chris Archer
A33: Chris Archer | B33: archech01 | C33: SP | E33: PIT | F33: 30 | G33: 126 | H33: 61 | I33: 185 | J33: 126 | K33: 61 | L33: 185 | M33: 101.38 | N33: 61 | O33: 147 | P33: 130 | Q33: 61 | R33: 185 | S33: 128 | T33: 61 | U33: 185 | V33: 134.32 | W33: 86 | X33: 185 | Y33: 124.2833333 | Z33: 61 | AA33: 185 | AB33: 151 | AC33: 123 | AD33: 210 | AE33: 181 | AF33: 124 | AH33: =IFERROR(INDEX('Guts-2'!$K$1:$K$30,MATCH(E33,'Guts-2'!$J$1:$J$30,0)),TRUE) -> TRUE | AI33: =IF(AH33=FALSE,"",IFERROR(CHOOSE('Guts-2'!$D$27,AB33,AC33,AD33,AE33,AF33,AG33),"")) -> 210 | AJ33: 210 | AK33: =IF(AH33=FALSE,"",IFERROR(CHOOSE('Guts-2'!$D$26,G33,J33,M33,P33,S33,V33,Y33,AR33),"")) -> 101.38 | AL33: =IFERROR(IF(Settings!$L$5="Mixed (Standard)",AK33,RANK(AK33,$AK$2:$AK$961,1)),"") -> 101.38 | AM33: =IFERROR(IF(Settings!$L$5="Mixed (Standard)",(RANK(AK33,$AK$2:$AK$961,1)/('Guts-2'!$N$1+1))+1,(RANK(AL33,$AL$2:$AL$961,1)/('Guts-2'!$N$1+1))+1),"") -> 8.846153846 | AN33: =IFERROR(CHOOSE('Guts-2'!$D$26,H33,K33,N33,Q33,T33,W33,Z33,AS33),"") -> 61 | AO33: =IFERROR(CHOOSE('Guts-2'!$D$26,I33,L33,O33,R33,U33,X33,AA33,AT33),"") -> 147 | AP33: 61 | AQ33: 147 | AR33: =INDEX('Import (ADP)'!$C$2:$C$999,MATCH(A33, 'Import (ADP)'!$B$2:$B$999,0)) ->  | AU33: =IF(VLOOKUP(A34,'Name-Sort'!$D$2:$E$961,2,FALSE)="",A34,"") -> Francisco Arcia | AV33: =IFERROR(INDEX($AU$1:$AU$961,SMALL(IF($AU$1:$AU$961<>"",ROW($AU$1:$AU$961)),ROW(AU33))),"") -> Francisco Arcia
A34: Francisco Arcia | B34: arciafr01 | C34: C | E34: CHC | F34: 29 | AH34: =IFERROR(INDEX('Guts-2'!$K$1:$K$30,MATCH(E34,'Guts-2'!$J$1:$J$30,0)),TRUE) -> TRUE | AI34: =IF(AH34=FALSE,"",IFERROR(CHOOSE('Guts-2'!$D$27,AB34,AC34,AD34,AE34,AF34,AG34),"")) ->  | AK34: =IF(AH34=FALSE,"",IFERROR(CHOOSE('Guts-2'!$D$26,G34,J34,M34,P34,S34,V34,Y34,AR34),"")) ->  | AL34: =IFERROR(IF(Settings!$L$5="Mixed (Standard)",AK34,RANK(AK34,$AK$2:$AK$961,1)),"") ->  | AM34: =IFERROR(IF(Settings!$L$5="Mixed (Standard)",(RANK(AK34,$AK$2:$AK$961,1)/('Guts-2'!$N$1+1))+1,(RANK(AL34,$AL$2:$AL$961,1)/('Guts-2'!$N$1+1))+1),"") ->  | AN34: =IFERROR(CHOOSE('Guts-2'!$D$26,H34,K34,N34,Q34,T34,W34,Z34,AS34),"") ->  | AO34: =IFERROR(CHOOSE('Guts-2'!$D$26,I34,L34,O34,R34,U34,X34,AA34,AT34),"") ->  | AR34: =INDEX('Import (ADP)'!$C$2:$C$999,MATCH(A34, 'Import (ADP)'!$B$2:$B$999,0)) ->  | AU34: =IF(VLOOKUP(A35,'Name-Sort'!$D$2:$E$961,2,FALSE)="",A35,"") -> Orlando Arcia | AV34: =IFERROR(INDEX($AU$1:$AU$961,SMALL(IF($AU$1:$AU$961<>"",ROW($AU$1:$AU$961)),ROW(AU34))),"") -> Orlando Arcia
A35: Orlando Arcia | B35: arciaor01 | C35: SS | E35: MIL | F35: 24 | V35: 520.05 | W35: 307 | X35: 455 | Y35: 520.05 | Z35: 307 | AA35: 691.6665 | AF35: 349 | AH35: =IFERROR(INDEX('Guts-2'!$K$1:$K$30,MATCH(E35,'Guts-2'!$J$1:$J$30,0)),TRUE) -> TRUE | AI35: =IF(AH35=FALSE,"",IFERROR(CHOOSE('Guts-2'!$D$27,AB35,AC35,AD35,AE35,AF35,AG35),"")) ->  | AK35: =IF(AH35=FALSE,"",IFERROR(CHOOSE('Guts-2'!$D$26,G35,J35,M35,P35,S35,V35,Y35,AR35),"")) ->  | AL35: =IFERROR(IF(Settings!$L$5="Mixed (Standard)",AK35,RANK(AK35,$AK$2:$AK$961,1)),"") ->  | AM35: =IFERROR(IF(Settings!$L$5="Mixed (Standard)",(RANK(AK35,$AK$2:$AK$961,1)/('Guts-2'!$N$1+1))+1,(RANK(AL35,$AL$2:$AL$961,1)/('Guts-2'!$N$1+1))+1),"") ->  | AN35: =IFERROR(CHOOSE('Guts-2'!$D$26,H35,K35,N35,Q35,T35,W35,Z35,AS35),"") ->  | AO35: =IFERROR(CHOOSE('Guts-2'!$D$26,I35,L35,O35,R35,U35,X35,AA35,AT35),"") ->  | AR35: =INDEX('Import (ADP)'!$C$2:$C$999,MATCH(A35, 'Import (ADP)'!$B$2:$B$999,0)) ->  | AU35: =IF(VLOOKUP(A36,'Name-Sort'!$D$2:$E$961,2,FALSE)="",A36,"") -> Nolan Arenado | AV35: =IFERROR(INDEX($AU$1:$AU$961,SMALL(IF($AU$1:$AU$961<>"",ROW($AU$1:$AU$961)),ROW(AU35))),"") -> Nolan Arenado
A36: Nolan Arenado | B36: arenano01 | C36: 3B | E36: COL | F36: 27 | G36: 7 | H36: 3 | I36: 25 | J36: 3 | K36: 2.25 | L36: 25 | M36: 9.91 | N36: 3 | O36: 25 | P36: 6 | Q36: 3 | R36: 25 | S36: 5.8 | T36: 3 | U36: 25 | V36: 7.39 | W36: 3 | X36: 14 | Y36: 6.516666667 | Z36: 3 | AA36: 25 | AB36: 5 | AC36: 3 | AD36: 6 | AE36: 5 | AF36: 4 | AH36: =IFERROR(INDEX('Guts-2'!$K$1:$K$30,MATCH(E36,'Guts-2'!$J$1:$J$30,0)),TRUE) -> TRUE | AI36: =IF(AH36=FALSE,"",IFERROR(CHOOSE('Guts-2'!$D$27,AB36,AC36,AD36,AE36,AF36,AG36),"")) -> 6 | AJ36: 6 | AK36: =IF(AH36=FALSE,"",IFERROR(CHOOSE('Guts-2'!$D$26,G36,J36,M36,P36,S36,V36,Y36,AR36),"")) -> 9.91 | AL36: =IFERROR(IF(Settings!$L$5="Mixed (Standard)",AK36,RANK(AK36,$AK$2:$AK$961,1)),"") -> 9.91 | AM36: =IFERROR(IF(Settings!$L$5="Mixed (Standard)",(RANK(AK36,$AK$2:$AK$961,1)/('Guts-2'!$N$1+1))+1,(RANK(AL36,$AL$2:$AL$961,1)/('Guts-2'!$N$1+1))+1),"") -> 1.384615385 | AN36: =IFERROR(CHOOSE('Guts-2'!$D$26,H36,K36,N36,Q36,T36,W36,Z36,AS36),"") -> 3 | AO36: =IFERROR(CHOOSE('Guts-2'!$D$26,I36,L36,O36,R36,U36,X36,AA36,AT36),"") -> 25 | AP36: 3 | AQ36: 25 | AR36: =INDEX('Import (ADP)'!$C$2:$C$999,MATCH(A36, 'Import (ADP)'!$B$2:$B$999,0)) -> 4.5 | AS36: 3 | AT36: 25 | AU36: =IF(VLOOKUP(A37,'Name-Sort'!$D$2:$E$961,2,FALSE)="",A37,"") -> Jake Arrieta | AV36: =IFERROR(INDEX($AU$1:$AU$961,SMALL(IF($AU$1:$AU$961<>"",ROW($AU$1:$AU$961)),ROW(AU36))),"") -> Jake Arrieta
A37: Jake Arrieta | B37: arrieja01 | C37: SP | E37: PHI | F37: 33 | G37: 209 | H37: 97 | I37: 293 | J37: 172 | K37: 97 | L37: 293 | M37: 146.83 | N37: 97 | O37: 223 | P37: 176 | Q37: 97 | R37: 293 | S37: 184.5 | T37: 97 | U37: 293 | V37: 210.81 | W37: 148 | X37: 293 | Y37: 183.19 | Z37: 97 | AA37: 293 | AB37: 197 | AC37: 183 | AE37: 213 | AF37: 190 | AH37: =IFERROR(INDEX('Guts-2'!$K$1:$K$30,MATCH(E37,'Guts-2'!$J$1:$J$30,0)),TRUE) -> TRUE | AI37: =IF(AH37=FALSE,"",IFERROR(CHOOSE('Guts-2'!$D$27,AB37,AC37,AD37,AE37,AF37,AG37),"")) ->  | AK37: =IF(AH37=FALSE,"",IFERROR(CHOOSE('Guts-2'!$D$26,G37,J37,M37,P37,S37,V37,Y37,AR37),"")) -> 146.83 | AL37: =IFERROR(IF(Settings!$L$5="Mixed (Standard)",AK37,RANK(AK37,$AK$2:$AK$961,1)),"") -> 146.83 | AM37: =IFERROR(IF(Settings!$L$5="Mixed (Standard)",(RANK(AK37,$AK$2:$AK$961,1)/('Guts-2'!$N$1+1))+1,(RANK(AL37,$AL$2:$AL$961,1)/('Guts-2'!$N$1+1))+1),"") -> 12.30769231 | AN37: =IFERROR(CHOOSE('Guts-2'!$D$26,H37,K37,N37,Q37,T37,W37,Z37,AS37),"") -> 97 | AO37: =IFERROR(CHOOSE('Guts-2'!$D$26,I37,L37,O37,R37,U37,X37,AA37,AT37),"") -> 223 | AP37: 97 | AQ37: 223 | AR37: =INDEX('Import (ADP)'!$C$2:$C$999,MATCH(A37, 'Import (ADP)'!$B$2:$B$999,0)) ->  | AU37: =IF(VLOOKUP(A38,'Name-Sort'!$D$2:$E$961,2,FALSE)="",A38,"") -> Christian Arroyo | AV37: =IFERROR(INDEX($AU$1:$AU$961,SMALL(IF($AU$1:$AU$961<>"",ROW($AU$1:$AU$961)),ROW(AU37))),"") -> Christian Arroyo
A38: Christian Arroyo | B38: arroych01 | C38: 3B | E38: TB | F38: 23 | V38: 747.05 | W38: 541 | X38: 729 | Y38: 747.05 | Z38: 541 | AA38: 993.5765 | AF38: 508 | AH38: =IFERROR(INDEX('Guts-2'!$K$1:$K$30,MATCH(E38,'Guts-2'!$J$1:$J$30,0)),TRUE) -> TRUE | AI38: =IF(AH38=FALSE,"",IFERROR(CHOOSE('Guts-2'!$D$27,AB38,AC38,AD38,AE38,AF38,AG38),"")) ->  | AK38: =IF(AH38=FALSE,"",IFERROR(CHOOSE('Guts-2'!$D$26,G38,J38,M38,P38,S38,V38,Y38,AR38),"")) ->  | AL38: =IFERROR(IF(Settings!$L$5="Mixed (Standard)",AK38,RANK(AK38,$AK$2:$AK$961,1)),"") ->  | AM38: =IFERROR(IF(Settings!$L$5="Mixed (Standard)",(RANK(AK38,$AK$2:$AK$961,1)/('Guts-2'!$N$1+1))+1,(RANK(AL38,$AL$2:$AL$961,1)/('Guts-2'!$N$1+1))+1),"") ->  | AN38: =IFERROR(CHOOSE('Guts-2'!$D$26,H38,K38,N38,Q38,T38,W38,Z38,AS38),"") ->  | AO38: =IFERROR(CHOOSE('Guts-2'!$D$26,I38,L38,O38,R38,U38,X38,AA38,AT38),"") ->  | AR38: =INDEX('Import (ADP)'!$C$2:$C$999,MATCH(A38, 'Import (ADP)'!$B$2:$B$999,0)) ->  | AU38: =IF(VLOOKUP(A39,'Name-Sort'!$D$2:$E$961,2,FALSE)="",A39,"") -> Willians Astudillo | AV38: =IFERROR(INDEX($AU$1:$AU$961,SMALL(IF($AU$1:$AU$961<>"",ROW($AU$1:$AU$961)),ROW(AU38))),"") -> Willians Astudillo
A39: Willians Astudillo | B39: astudwi01 | C39: C | E39: MIN | F39: 27 | G39: 276 | H39: 115 | I39: 375 | J39: 363 | K39: 115 | L39: 482.79 | M39: 194.69 | N39: 115 | O39: 275 | P39: 380 | Q39: 115 | R39: 505.4 | S39: 324 | T39: 115 | U39: 430.92 | V39: 253.5 | W39: 152 | X39: 375 | Y39: 298.5316667 | Z39: 115 | AA39: 397.0471167 | AE39: 271 | AF39: 351 | AH39: =IFERROR(INDEX('Guts-2'!$K$1:$K$30,MATCH(E39,'Guts-2'!$J$1:$J$30,0)),TRUE) -> TRUE | AI39: =IF(AH39=FALSE,"",IFERROR(CHOOSE('Guts-2'!$D$27,AB39,AC39,AD39,AE39,AF39,AG39),"")) ->  | AK39: =IF(AH39=FALSE,"",IFERROR(CHOOSE('Guts-2'!$D$26,G39,J39,M39,P39,S39,V39,Y39,AR39),"")) -> 194.69 | AL39: =IFERROR(IF(Settings!$L$5="Mixed (Standard)",AK39,RANK(AK39,$AK$2:$AK$961,1)),"") -> 194.69 | AM39: =IFERROR(IF(Settings!$L$5="Mixed (Standard)",(RANK(AK39,$AK$2:$AK$961,1)/('Guts-2'!$N$1+1))+1,(RANK(AL39,$AL$2:$AL$961,1)/('Guts-2'!$N$1+1))+1),"") -> 18.30769231 | AN39: =IFERROR(CHOOSE('Guts-2'!$D$26,H39,K39,N39,Q39,T39,W39,Z39,AS39),"") -> 115 | AO39: =IFERROR(CHOOSE('Guts-2'!$D$26,I39,L39,O39,R39,U39,X39,AA39,AT39),"") -> 275 | AP39: 115 | AQ39: 275 | AR39: =INDEX('Import (ADP)'!$C$2:$C$999,MATCH(A39, 'Import (ADP)'!$B$2:$B$999,0)) ->  | AU39: =IF(VLOOKUP(A40,'Name-Sort'!$D$2:$E$961,2,FALSE)="",A40,"") -> Carlos Asuaje | AV39: =IFERROR(INDEX($AU$1:$AU$961,SMALL(IF($AU$1:$AU$961<>"",ROW($AU$1:$AU$961)),ROW(AU39))),"") -> Carlos Asuaje
A40: Carlos Asuaje | B40: asuajca01 | C40: 2B | E40: FA | F40: 27 | P40: 957 | Q40: 717.75 | R40: 1272.81 | S40: 1027.5 | T40: 770.625 | U40: 1366.575 | Y40: 992.25 | Z40: 744.1875 | AA40: 1319.6925 | AH40: =IFERROR(INDEX('Guts-2'!$K$1:$K$30,MATCH(E40,'Guts-2'!$J$1:$J$30,0)),TRUE) -> TRUE | AI40: =IF(AH40=FALSE,"",IFERROR(CHOOSE('Guts-2'!$D$27,AB40,AC40,AD40,AE40,AF40,AG40),"")) ->  | AK40: =IF(AH40=FALSE,"",IFERROR(CHOOSE('Guts-2'!$D$26,G40,J40,M40,P40,S40,V40,Y40,AR40),"")) ->  | AL40: =IFERROR(IF(Settings!$L$5="Mixed (Standard)",AK40,RANK(AK40,$AK$2:$AK$961,1)),"") ->  | AM40: =IFERROR(IF(Settings!$L$5="Mixed (Standard)",(RANK(AK40,$AK$2:$AK$961,1)/('Guts-2'!$N$1+1))+1,(RANK(AL40,$AL$2:$AL$961,1)/('Guts-2'!$N$1+1))+1),"") ->  | AN40: =IFERROR(CHOOSE('Guts-2'!$D$26,H40,K40,N40,Q40,T40,W40,Z40,AS40),"") ->  | AO40: =IFERROR(CHOOSE('Guts-2'!$D$26,I40,L40,O40,R40,U40,X40,AA40,AT40),"") ->  | AR40: =INDEX('Import (ADP)'!$C$2:$C$999,MATCH(A40, 'Import (ADP)'!$B$2:$B$999,0)) ->  | AU40: =IF(VLOOKUP(A41,'Name-Sort'!$D$2:$E$961,2,FALSE)="",A41,"") -> Tyler Austin | AV40: =IFERROR(INDEX($AU$1:$AU$961,SMALL(IF($AU$1:$AU$961<>"",ROW($AU$1:$AU$961)),ROW(AU40))),"") -> Tyler Austin
A41: Tyler Austin | B41: austity01 | C41: 1B | E41: MIN | F41: 27 | V41: 685.26 | W41: 410 | X41: 705 | Y41: 685.26 | Z41: 410 | AA41: 911.3958 | AF41: 530 | AH41: =IFERROR(INDEX('Guts-2'!$K$1:$K$30,MATCH(E41,'Guts-2'!$J$1:$J$30,0)),TRUE) -> TRUE | AI41: =IF(AH41=FALSE,"",IFERROR(CHOOSE('Guts-2'!$D$27,AB41,AC41,AD41,AE41,AF41,AG41),"")) ->  | AK41: =IF(AH41=FALSE,"",IFERROR(CHOOSE('Guts-2'!$D$26,G41,J41,M41,P41,S41,V41,Y41,AR41),"")) ->  | AL41: =IFERROR(IF(Settings!$L$5="Mixed (Standard)",AK41,RANK(AK41,$AK$2:$AK$961,1)),"") ->  | AM41: =IFERROR(IF(Settings!$L$5="Mixed (Standard)",(RANK(AK41,$AK$2:$AK$961,1)/('Guts-2'!$N$1+1))+1,(RANK(AL41,$AL$2:$AL$961,1)/('Guts-2'!$N$1+1))+1),"") ->  | AN41: =IFERROR(CHOOSE('Guts-2'!$D$26,H41,K41,N41,Q41,T41,W41,Z41,AS41),"") ->  | AO41: =IFERROR(CHOOSE('Guts-2'!$D$26,I41,L41,O41,R41,U41,X41,AA41,AT41),"") ->  | AR41: =INDEX('Import (ADP)'!$C$2:$C$999,MATCH(A41, 'Import (ADP)'!$B$2:$B$999,0)) ->  | AU41: =IF(VLOOKUP(A42,'Name-Sort'!$D$2:$E$961,2,FALSE)="",A42,"") -> Alex Avila | AV41: =IFERROR(INDEX($AU$1:$AU$961,SMALL(IF($AU$1:$AU$961<>"",ROW($AU$1:$AU$961)),ROW(AU41))),"") -> Alex Avila
A42: Alex Avila | B42: avilaal01 | C42: C | E42: ARI | F42: 32 | V42: 724.89 | W42: 461 | X42: 748 | Y42: 724.89 | Z42: 461 | AA42: 964.1037 | AF42: 699 | AH42: =IFERROR(INDEX('Guts-2'!$K$1:$K$30,MATCH(E42,'Guts-2'!$J$1:$J$30,0)),TRUE) -> TRUE | AI42: =IF(AH42=FALSE,"",IFERROR(CHOOSE('Guts-2'!$D$27,AB42,AC42,AD42,AE42,AF42,AG42),"")) ->  | AK42: =IF(AH42=FALSE,"",IFERROR(CHOOSE('Guts-2'!$D$26,G42,J42,M42,P42,S42,V42,Y42,AR42),"")) ->  | AL42: =IFERROR(IF(Settings!$L$5="Mixed (Standard)",AK42,RANK(AK42,$AK$2:$AK$961,1)),"") ->  | AM42: =IFERROR(IF(Settings!$L$5="Mixed (Standard)",(RANK(AK42,$AK$2:$AK$961,1)/('Guts-2'!$N$1+1))+1,(RANK(AL42,$AL$2:$AL$961,1)/('Guts-2'!$N$1+1))+1),"") ->  | AN42: =IFERROR(CHOOSE('Guts-2'!$D$26,H42,K42,N42,Q42,T42,W42,Z42,AS42),"") ->  | AO42: =IFERROR(CHOOSE('Guts-2'!$D$26,I42,L42,O42,R42,U42,X42,AA42,AT42),"") ->  | AR42: =INDEX('Import (ADP)'!$C$2:$C$999,MATCH(A42, 'Import (ADP)'!$B$2:$B$999,0)) ->  | AU42: =IF(VLOOKUP(A43,'Name-Sort'!$D$2:$E$961,2,FALSE)="",A43,"") -> Harrison Bader | AV42: =IFERROR(INDEX($AU$1:$AU$961,SMALL(IF($AU$1:$AU$961<>"",ROW($AU$1:$AU$961)),ROW(AU42))),"") -> Harrison Bader
A43: Harrison Bader | B43: baderha01 | C43: OF | D43: LF,CF,RF | E43: STL | F43: 24 | G43: 155 | H43: 116.25 | I43: 285 | J43: 192 | K43: 140 | L43: 285 | P43: 181 | Q43: 135.75 | R43: 285 | S43: 181.3 | T43: 135.975 | U43: 285 | V43: 187.32 | W43: 140 | X43: 285 | Y43: 179.324 | Z43: 134.493 | AA43: 285 | AB43: 161 | AC43: 174 | AD43: 220 | AE43: 153 | AF43: 180 | AH43: =IFERROR(INDEX('Guts-2'!$K$1:$K$30,MATCH(E43,'Guts-2'!$J$1:$J$30,0)),TRUE) -> TRUE | AI43: =IF(AH43=FALSE,"",IFERROR(CHOOSE('Guts-2'!$D$27,AB43,AC43,AD43,AE43,AF43,AG43),"")) -> 220 | AJ43: 220 | AK43: =IF(AH43=FALSE,"",IFERROR(CHOOSE('Guts-2'!$D$26,G43,J43,M43,P43,S43,V43,Y43,AR43),"")) ->  | AL43: =IFERROR(IF(Settings!$L$5="Mixed (Standard)",AK43,RANK(AK43,$AK$2:$AK$961,1)),"") ->  | AM43: =IFERROR(IF(Settings!$L$5="Mixed (Standard)",(RANK(AK43,$AK$2:$AK$961,1)/('Guts-2'!$N$1+1))+1,(RANK(AL43,$AL$2:$AL$961,1)/('Guts-2'!$N$1+1))+1),"") ->  | AN43: =IFERROR(CHOOSE('Guts-2'!$D$26,H43,K43,N43,Q43,T43,W43,Z43,AS43),"") ->  | AO43: =IFERROR(CHOOSE('Guts-2'!$D$26,I43,L43,O43,R43,U43,X43,AA43,AT43),"") ->  | AR43: =INDEX('Import (ADP)'!$C$2:$C$999,MATCH(A43, 'Import (ADP)'!$B$2:$B$999,0)) ->  | AU43: =IF(VLOOKUP(A44,'Name-Sort'!$D$2:$E$961,2,FALSE)="",A44,"") -> Javier Baez | AV43: =IFERROR(INDEX($AU$1:$AU$961,SMALL(IF($AU$1:$AU$961<>"",ROW($AU$1:$AU$961)),ROW(AU43))),"") -> Javier Baez
A44: Javier Baez | B44: baezja01 | C44: SS | E44: CHC | F44: 26 | G44: 18 | H44: 2 | I44: 48 | J44: 21 | K44: 2 | L44: 48 | M44: 30.45 | N44: 13 | O44: 48 | P44: 19 | Q44: 2 | R44: 48 | S44: 17 | T44: 2 | U44: 48 | V44: 15.04 | W44: 2 | X44: 28 | Y44: 20.08166667 | Z44: 2 | AA44: 48 | AB44: 21 | AC44: 17 | AD44: 17 | AE44: 14 | AF44: 24 | AH44: =IFERROR(INDEX('Guts-2'!$K$1:$K$30,MATCH(E44,'Guts-2'!$J$1:$J$30,0)),TRUE) -> TRUE | AI44: =IF(AH44=FALSE,"",IFERROR(CHOOSE('Guts-2'!$D$27,AB44,AC44,AD44,AE44,AF44,AG44),"")) -> 17 | AJ44: 17 | AK44: =IF(AH44=FALSE,"",IFERROR(CHOOSE('Guts-2'!$D$26,G44,J44,M44,P44,S44,V44,Y44,AR44),"")) -> 30.45 | AL44: =IFERROR(IF(Settings!$L$5="Mixed (Standard)",AK44,RANK(AK44,$AK$2:$AK$961,1)),"") -> 30.45 | AM44: =IFERROR(IF(Settings!$L$5="Mixed (Standard)",(RANK(AK44,$AK$2:$AK$961,1)/('Guts-2'!$N$1+1))+1,(RANK(AL44,$AL$2:$AL$961,1)/('Guts-2'!$N$1+1))+1),"") -> 3.076923077 | AN44: =IFERROR(CHOOSE('Guts-2'!$D$26,H44,K44,N44,Q44,T44,W44,Z44,AS44),"") -> 13 | AO44: =IFERROR(CHOOSE('Guts-2'!$D$26,I44,L44,O44,R44,U44,X44,AA44,AT44),"") -> 48 | AP44: 13 | AQ44: 48 | AR44: =INDEX('Import (ADP)'!$C$2:$C$999,MATCH(A44, 'Import (ADP)'!$B$2:$B$999,0)) ->  | AU44: =IF(VLOOKUP(A45,'Name-Sort'!$D$2:$E$961,2,FALSE)="",A45,"") -> Pedro Baez | AV44: =IFERROR(INDEX($AU$1:$AU$961,SMALL(IF($AU$1:$AU$961<>"",ROW($AU$1:$AU$961)),ROW(AU44))),"") -> Pedro Baez
A45: Pedro Baez | B45: baezpe01 | C45: RP | E45: LAD | F45: 31 | G45: 725 | H45: 519 | I45: 964.25 | P45: 878 | Q45: 519 | R45: 1167.74 | S45: 800.5 | T45: 519 | U45: 1064.665 | V45: 742.31 | W45: 519 | X45: 748 | Y45: 786.4525 | Z45: 519 | AA45: 1045.981825 | AF45: 647 | AH45: =IFERROR(INDEX('Guts-2'!$K$1:$K$30,MATCH(E45,'Guts-2'!$J$1:$J$30,0)),TRUE) -> TRUE | AI45: =IF(AH45=FALSE,"",IFERROR(CHOOSE('Guts-2'!$D$27,AB45,AC45,AD45,AE45,AF45,AG45),"")) ->  | AK45: =IF(AH45=FALSE,"",IFERROR(CHOOSE('Guts-2'!$D$26,G45,J45,M45,P45,S45,V45,Y45,AR45),"")) ->  | AL45: =IFERROR(IF(Settings!$L$5="Mixed (Standard)",AK45,RANK(AK45,$AK$2:$AK$961,1)),"") ->  | AM45: =IFERROR(IF(Settings!$L$5="Mixed (Standard)",(RANK(AK45,$AK$2:$AK$961,1)/('Guts-2'!$N$1+1))+1,(RANK(AL45,$AL$2:$AL$961,1)/('Guts-2'!$N$1+1))+1),"") ->  | AN45: =IFERROR(CHOOSE('Guts-2'!$D$26,H45,K45,N45,Q45,T45,W45,Z45,AS45),"") ->  | AO45: =IFERROR(CHOOSE('Guts-2'!$D$26,I45,L45,O45,R45,U45,X45,AA45,AT45),"") ->  | AR45: =INDEX('Import (ADP)'!$C$2:$C$999,MATCH(A45, 'Import (ADP)'!$B$2:$B$999,0)) ->  | AU45: =IF(VLOOKUP(A46,'Name-Sort'!$D$2:$E$961,2,FALSE)="",A46,"") -> Austin Barnes | AV45: =IFERROR(INDEX($AU$1:$AU$961,SMALL(IF($AU$1:$AU$961<>"",ROW($AU$1:$AU$961)),ROW(AU45))),"") -> Austin Barnes
A46: Austin Barnes | B46: barneau01 | C46: C | E46: LAD | F46: 29 | G46: 385 | H46: 193 | I46: 512.05 | J46: 284 | K46: 193 | L46: 440 | P46: 366 | Q46: 193 | R46: 486.78 | S46: 325 | T46: 193 | U46: 440 | V46: 337.25 | W46: 193 | X46: 440 | Y46: 339.45 | Z46: 193 | AA46: 451.4685 | AF46: 426 | AH46: =IFERROR(INDEX('Guts-2'!$K$1:$K$30,MATCH(E46,'Guts-2'!$J$1:$J$30,0)),TRUE) -> TRUE | AI46: =IF(AH46=FALSE,"",IFERROR(CHOOSE('Guts-2'!$D$27,AB46,AC46,AD46,AE46,AF46,AG46),"")) ->  | AK46: =IF(AH46=FALSE,"",IFERROR(CHOOSE('Guts-2'!$D$26,G46,J46,M46,P46,S46,V46,Y46,AR46),"")) ->  | AL46: =IFERROR(IF(Settings!$L$5="Mixed (Standard)",AK46,RANK(AK46,$AK$2:$AK$961,1)),"") ->  | AM46: =IFERROR(IF(Settings!$L$5="Mixed (Standard)",(RANK(AK46,$AK$2:$AK$961,1)/('Guts-2'!$N$1+1))+1,(RANK(AL46,$AL$2:$AL$961,1)/('Guts-2'!$N$1+1))+1),"") ->  | AN46: =IFERROR(CHOOSE('Guts-2'!$D$26,H46,K46,N46,Q46,T46,W46,Z46,AS46),"") ->  | AO46: =IFERROR(CHOOSE('Guts-2'!$D$26,I46,L46,O46,R46,U46,X46,AA46,AT46),"") ->  | AR46: =INDEX('Import (ADP)'!$C$2:$C$999,MATCH(A46, 'Import (ADP)'!$B$2:$B$999,0)) ->  | AU46: =IF(VLOOKUP(A47,'Name-Sort'!$D$2:$E$961,2,FALSE)="",A47,"") -> Matt Barnes | AV46: =IFERROR(INDEX($AU$1:$AU$961,SMALL(IF($AU$1:$AU$961<>"",ROW($AU$1:$AU$961)),ROW(AU46))),"") -> Matt Barnes
A47: Matt Barnes | B47: barnema01 | C47: RP | E47: BOS | F47: 28 | G47: 406 | H47: 78 | I47: 539.98 | J47: 226 | K47: 78 | L47: 382 | M47: 209.75 | N47: 78 | O47: 349 | P47: 225 | Q47: 78 | R47: 382 | S47: 244.5 | T47: 78 | U47: 382 | V47: 260.09 | W47: 156 | X47: 382 | Y47: 261.89 | Z47: 78 | AA47: 382 | AB47: 275 | AC47: 234 | AD47: 192 | AF47: 286 | AH47: =IFERROR(INDEX('Guts-2'!$K$1:$K$30,MATCH(E47,'Guts-2'!$J$1:$J$30,0)),TRUE) -> TRUE | AI47: =IF(AH47=FALSE,"",IFERROR(CHOOSE('Guts-2'!$D$27,AB47,AC47,AD47,AE47,AF47,AG47),"")) -> 192 | AJ47: 192 | AK47: =IF(AH47=FALSE,"",IFERROR(CHOOSE('Guts-2'!$D$26,G47,J47,M47,P47,S47,V47,Y47,AR47),"")) -> 209.75 | AL47: =IFERROR(IF(Settings!$L$5="Mixed (Standard)",AK47,RANK(AK47,$AK$2:$AK$961,1)),"") -> 209.75 | AM47: =IFERROR(IF(Settings!$L$5="Mixed (Standard)",(RANK(AK47,$AK$2:$AK$961,1)/('Guts-2'!$N$1+1))+1,(RANK(AL47,$AL$2:$AL$961,1)/('Guts-2'!$N$1+1))+1),"") -> 19.92307692 | AN47: =IFERROR(CHOOSE('Guts-2'!$D$26,H47,K47,N47,Q47,T47,W47,Z47,AS47),"") -> 78 | AO47: =IFERROR(CHOOSE('Guts-2'!$D$26,I47,L47,O47,R47,U47,X47,AA47,AT47),"") -> 349 | AP47: 78 | AQ47: 349 | AR47: =INDEX('Import (ADP)'!$C$2:$C$999,MATCH(A47, 'Import (ADP)'!$B$2:$B$999,0)) ->  | AU47: =IF(VLOOKUP(A48,'Name-Sort'!$D$2:$E$961,2,FALSE)="",A48,"") -> Tucker Barnhart | AV47: =IFERROR(INDEX($AU$1:$AU$961,SMALL(IF($AU$1:$AU$961<>"",ROW($AU$1:$AU$961)),ROW(AU47))),"") -> Tucker Barnhart
A48: Tucker Barnhart | B48: barnhtu01 | C48: C | E48: CIN | F48: 28 | G48: 317 | H48: 140 | I48: 421.61 | J48: 314 | K48: 140 | L48: 417.62 | M48: 232.58 | N48: 140 | O48: 318 | P48: 267 | Q48: 140 | R48: 355.11 | S48: 279.8 | T48: 140 | U48: 372.134 | V48: 265.41 | W48: 184 | X48: 351 | Y48: 279.2983333 | Z48: 140 | AA48: 371.4667833 | AB48: 251 | AC48: 303 | AF48: 323 | AH48: =IFERROR(INDEX('Guts-2'!$K$1:$K$30,MATCH(E48,'Guts-2'!$J$1:$J$30,0)),TRUE) -> TRUE | AI48: =IF(AH48=FALSE,"",IFERROR(CHOOSE('Guts-2'!$D$27,AB48,AC48,AD48,AE48,AF48,AG48),"")) ->  | AK48: =IF(AH48=FALSE,"",IFERROR(CHOOSE('Guts-2'!$D$26,G48,J48,M48,P48,S48,V48,Y48,AR48),"")) -> 232.58 | AL48: =IFERROR(IF(Settings!$L$5="Mixed (Standard)",AK48,RANK(AK48,$AK$2:$AK$961,1)),"") -> 232.58 | AM48: =IFERROR(IF(Settings!$L$5="Mixed (Standard)",(RANK(AK48,$AK$2:$AK$961,1)/('Guts-2'!$N$1+1))+1,(RANK(AL48,$AL$2:$AL$961,1)/('Guts-2'!$N$1+1))+1),"") -> 23.92307692 | AN48: =IFERROR(CHOOSE('Guts-2'!$D$26,H48,K48,N48,Q48,T48,W48,Z48,AS48),"") -> 140 | AO48: =IFERROR(CHOOSE('Guts-2'!$D$26,I48,L48,O48,R48,U48,X48,AA48,AT48),"") -> 318 | AP48: 140 | AQ48: 318 | AR48: =INDEX('Import (ADP)'!$C$2:$C$999,MATCH(A48, 'Import (ADP)'!$B$2:$B$999,0)) ->  | AU48: =IF(VLOOKUP(A49,'Name-Sort'!$D$2:$E$961,2,FALSE)="",A49,"") -> Kyle Barraclough | AV48: =IFERROR(INDEX($AU$1:$AU$961,SMALL(IF($AU$1:$AU$961<>"",ROW($AU$1:$AU$961)),ROW(AU48))),"") -> Kyle Barraclough
A49: Kyle Barraclough | B49: barraky01 | C49: RP | E49: WAS | F49: 28 | V49: 706.94 | W49: 459 | X49: 746 | Y49: 706.94 | Z49: 459 | AA49: 940.2302 | AF49: 729 | AH49: =IFERROR(INDEX('Guts-2'!$K$1:$K$30,MATCH(E49,'Guts-2'!$J$1:$J$30,0)),TRUE) -> TRUE | AI49: =IF(AH49=FALSE,"",IFERROR(CHOOSE('Guts-2'!$D$27,AB49,AC49,AD49,AE49,AF49,AG49),"")) ->  | AK49: =IF(AH49=FALSE,"",IFERROR(CHOOSE('Guts-2'!$D$26,G49,J49,M49,P49,S49,V49,Y49,AR49),"")) ->  | AL49: =IFERROR(IF(Settings!$L$5="Mixed (Standard)",AK49,RANK(AK49,$AK$2:$AK$961,1)),"") ->  | AM49: =IFERROR(IF(Settings!$L$5="Mixed (Standard)",(RANK(AK49,$AK$2:$AK$961,1)/('Guts-2'!$N$1+1))+1,(RANK(AL49,$AL$2:$AL$961,1)/('Guts-2'!$N$1+1))+1),"") ->  | AN49: =IFERROR(CHOOSE('Guts-2'!$D$26,H49,K49,N49,Q49,T49,W49,Z49,AS49),"") ->  | AO49: =IFERROR(CHOOSE('Guts-2'!$D$26,I49,L49,O49,R49,U49,X49,AA49,AT49),"") ->  | AR49: =INDEX('Import (ADP)'!$C$2:$C$999,MATCH(A49, 'Import (ADP)'!$B$2:$B$999,0)) ->  | AU49: =IF(VLOOKUP(A50,'Name-Sort'!$D$2:$E$961,2,FALSE)="",A50,"") -> Franklin Barreto | AV49: =IFERROR(INDEX($AU$1:$AU$961,SMALL(IF($AU$1:$AU$961<>"",ROW($AU$1:$AU$961)),ROW(AU49))),"") -> Franklin Barreto
A50: Franklin Barreto | B50: barrefr01 | C50: SS | E50: OAK | F50: 23 | G50: 423 | H50: 317.25 | I50: 578 | S50: 392 | T50: 294 | U50: 578 | V50: 632.73 | W50: 336 | X50: 578 | Y50: 482.5766667 | Z50: 336 | AA50: 641.8269667 | AF50: 431 | AH50: =IFERROR(INDEX('Guts-2'!$K$1:$K$30,MATCH(E50,'Guts-2'!$J$1:$J$30,0)),TRUE) -> TRUE | AI50: =IF(AH50=FALSE,"",IFERROR(CHOOSE('Guts-2'!$D$27,AB50,AC50,AD50,AE50,AF50,AG50),"")) ->  | AK50: =IF(AH50=FALSE,"",IFERROR(CHOOSE('Guts-2'!$D$26,G50,J50,M50,P50,S50,V50,Y50,AR50),"")) ->  | AL50: =IFERROR(IF(Settings!$L$5="Mixed (Standard)",AK50,RANK(AK50,$AK$2:$AK$961,1)),"") ->  | AM50: =IFERROR(IF(Settings!$L$5="Mixed (Standard)",(RANK(AK50,$AK$2:$AK$961,1)/('Guts-2'!$N$1+1))+1,(RANK(AL50,$AL$2:$AL$961,1)/('Guts-2'!$N$1+1))+1),"") ->  | AN50: =IFERROR(CHOOSE('Guts-2'!$D$26,H50,K50,N50,Q50,T50,W50,Z50,AS50),"") ->  | AO50: =IFERROR(CHOOSE('Guts-2'!$D$26,I50,L50,O50,R50,U50,X50,AA50,AT50),"") ->  | AR50: =INDEX('Import (ADP)'!$C$2:$C$999,MATCH(A50, 'Import (ADP)'!$B$2:$B$999,0)) ->  | AU50: =IF(VLOOKUP(A51,'Name-Sort'!$D$2:$E$961,2,FALSE)="",A51,"") -> Jaime Barria | AV50: =IFERROR(INDEX($AU$1:$AU$961,SMALL(IF($AU$1:$AU$961<>"",ROW($AU$1:$AU$961)),ROW(AU50))),"") -> Jaime Barria
A51: Jaime Barria | B51: barrija01 | C51: SP | E51: LAA | F51: 22 | G51: 375 | H51: 269 | I51: 508 | S51: 430 | T51: 269 | U51: 571.9 | V51: 541.73 | W51: 269 | X51: 508 | Y51: 448.91 | Z51: 269 | AA51: 597.0503 | AF51: 526 | AH51: =IFERROR(INDEX('Guts-2'!$K$1:$K$30,MATCH(E51,'Guts-2'!$J$1:$J$30,0)),TRUE) -> TRUE | AI51: =IF(AH51=FALSE,"",IFERROR(CHOOSE('Guts-2'!$D$27,AB51,AC51,AD51,AE51,AF51,AG51),"")) ->  | AK51: =IF(AH51=FALSE,"",IFERROR(CHOOSE('Guts-2'!$D$26,G51,J51,M51,P51,S51,V51,Y51,AR51),"")) ->  | AL51: =IFERROR(IF(Settings!$L$5="Mixed (Standard)",AK51,RANK(AK51,$AK$2:$AK$961,1)),"") ->  | AM51: =IFERROR(IF(Settings!$L$5="Mixed (Standard)",(RANK(AK51,$AK$2:$AK$961,1)/('Guts-2'!$N$1+1))+1,(RANK(AL51,$AL$2:$AL$961,1)/('Guts-2'!$N$1+1))+1),"") ->  | AN51: =IFERROR(CHOOSE('Guts-2'!$D$26,H51,K51,N51,Q51,T51,W51,Z51,AS51),"") ->  | AO51: =IFERROR(CHOOSE('Guts-2'!$D$26,I51,L51,O51,R51,U51,X51,AA51,AT51),"") ->  | AR51: =INDEX('Import (ADP)'!$C$2:$C$999,MATCH(A51, 'Import (ADP)'!$B$2:$B$999,0)) ->  | AU51: =IF(VLOOKUP(A52,'Name-Sort'!$D$2:$E$961,2,FALSE)="",A52,"") -> Chris Bassitt | AV51: =IFERROR(INDEX($AU$1:$AU$961,SMALL(IF($AU$1:$AU$961<>"",ROW($AU$1:$AU$961)),ROW(AU51))),"") -> Chris Bassitt
A52: Chris Bassitt | B52: bassich01 | C52: SP | E52: OAK | F52: 30 | V52: 741.1 | W52: 533 | X52: 738 | Y52: 741.1 | Z52: 533 | AA52: 985.663 | AH52: =IFERROR(INDEX('Guts-2'!$K$1:$K$30,MATCH(E52,'Guts-2'!$J$1:$J$30,0)),TRUE) -> TRUE | AI52: =IF(AH52=FALSE,"",IFERROR(CHOOSE('Guts-2'!$D$27,AB52,AC52,AD52,AE52,AF52,AG52),"")) ->  | AK52: =IF(AH52=FALSE,"",IFERROR(CHOOSE('Guts-2'!$D$26,G52,J52,M52,P52,S52,V52,Y52,AR52),"")) ->  | AL52: =IFERROR(IF(Settings!$L$5="Mixed (Standard)",AK52,RANK(AK52,$AK$2:$AK$961,1)),"") ->  | AM52: =IFERROR(IF(Settings!$L$5="Mixed (Standard)",(RANK(AK52,$AK$2:$AK$961,1)/('Guts-2'!$N$1+1))+1,(RANK(AL52,$AL$2:$AL$961,1)/('Guts-2'!$N$1+1))+1),"") ->  | AN52: =IFERROR(CHOOSE('Guts-2'!$D$26,H52,K52,N52,Q52,T52,W52,Z52,AS52),"") ->  | AO52: =IFERROR(CHOOSE('Guts-2'!$D$26,I52,L52,O52,R52,U52,X52,AA52,AT52),"") ->  | AR52: =INDEX('Import (ADP)'!$C$2:$C$999,MATCH(A52, 'Import (ADP)'!$B$2:$B$999,0)) ->  | AU52: =IF(VLOOKUP(A53,'Name-Sort'!$D$2:$E$961,2,FALSE)="",A53,"") -> Jake Bauers | AV52: =IFERROR(INDEX($AU$1:$AU$961,SMALL(IF($AU$1:$AU$961<>"",ROW($AU$1:$AU$961)),ROW(AU52))),"") -> Jake Bauers
A53: Jake Bauers | B53: bauerja01 | C53: 1B | D53: LF | E53: CLE | F53: 23 | G53: 256 | H53: 119 | I53: 340.48 | J53: 298 | K53: 119 | L53: 396.34 | M53: 226.86 | N53: 119 | O53: 304 | P53: 217 | Q53: 119 | R53: 321 | S53: 254.3 | T53: 119 | U53: 338.219 | V53: 230.33 | W53: 169 | X53: 321 | Y53: 247.0816667 | Z53: 119 | AA53: 328.6186167 | AC53: 219 | AD53: 172 | AE53: 178 | AF53: 206 | AH53: =IFERROR(INDEX('Guts-2'!$K$1:$K$30,MATCH(E53,'Guts-2'!$J$1:$J$30,0)),TRUE) -> TRUE | AI53: =IF(AH53=FALSE,"",IFERROR(CHOOSE('Guts-2'!$D$27,AB53,AC53,AD53,AE53,AF53,AG53),"")) -> 172 | AJ53: 172 | AK53: =IF(AH53=FALSE,"",IFERROR(CHOOSE('Guts-2'!$D$26,G53,J53,M53,P53,S53,V53,Y53,AR53),"")) -> 226.86 | AL53: =IFERROR(IF(Settings!$L$5="Mixed (Standard)",AK53,RANK(AK53,$AK$2:$AK$961,1)),"") -> 226.86 | AM53: =IFERROR(IF(Settings!$L$5="Mixed (Standard)",(RANK(AK53,$AK$2:$AK$961,1)/('Guts-2'!$N$1+1))+1,(RANK(AL53,$AL$2:$AL$961,1)/('Guts-2'!$N$1+1))+1),"") -> 23.30769231 | AN53: =IFERROR(CHOOSE('Guts-2'!$D$26,H53,K53,N53,Q53,T53,W53,Z53,AS53),"") -> 119 | AO53: =IFERROR(CHOOSE('Guts-2'!$D$26,I53,L53,O53,R53,U53,X53,AA53,AT53),"") -> 304 | AP53: 119 | AQ53: 304 | AR53: =INDEX('Import (ADP)'!$C$2:$C$999,MATCH(A53, 'Import (ADP)'!$B$2:$B$999,0)) ->  | AU53: =IF(VLOOKUP(A54,'Name-Sort'!$D$2:$E$961,2,FALSE)="",A54,"") -> Trevor Bauer | AV53: =IFERROR(INDEX($AU$1:$AU$961,SMALL(IF($AU$1:$AU$961<>"",ROW($AU$1:$AU$961)),ROW(AU53))),"") -> Trevor Bauer
A54: Trevor Bauer | B54: bauertr01 | C54: SP | E54: CLE | F54: 28 | G54: 35 | H54: 10 | I54: 48 | J54: 49 | K54: 10 | L54: 65.17 | M54: 21.69 | N54: 10 | O54: 41 | P54: 32 | Q54: 10 | R54: 48 | S54: 36.5 | T54: 10 | U54: 48.545 | V54: 32.49 | W54: 20 | X54: 48 | Y54: 34.44666667 | Z54: 10 | AA54: 48 | AB54: 61 | AC54: 46 | AD54: 98 | AE54: 43 | AF54: 35 | AH54: =IFERROR(INDEX('Guts-2'!$K$1:$K$30,MATCH(E54,'Guts-2'!$J$1:$J$30,0)),TRUE) -> TRUE | AI54: =IF(AH54=FALSE,"",IFERROR(CHOOSE('Guts-2'!$D$27,AB54,AC54,AD54,AE54,AF54,AG54),"")) -> 98 | AJ54: 98 | AK54: =IF(AH54=FALSE,"",IFERROR(CHOOSE('Guts-2'!$D$26,G54,J54,M54,P54,S54,V54,Y54,AR54),"")) -> 21.69 | AL54: =IFERROR(IF(Settings!$L$5="Mixed (Standard)",AK54,RANK(AK54,$AK$2:$AK$961,1)),"") -> 21.69 | AM54: =IFERROR(IF(Settings!$L$5="Mixed (Standard)",(RANK(AK54,$AK$2:$AK$961,1)/('Guts-2'!$N$1+1))+1,(RANK(AL54,$AL$2:$AL$961,1)/('Guts-2'!$N$1+1))+1),"") -> 2.538461538 | AN54: =IFERROR(CHOOSE('Guts-2'!$D$26,H54,K54,N54,Q54,T54,W54,Z54,AS54),"") -> 10 | AO54: =IFERROR(CHOOSE('Guts-2'!$D$26,I54,L54,O54,R54,U54,X54,AA54,AT54),"") -> 41 | AP54: 10 | AQ54: 41 | AR54: =INDEX('Import (ADP)'!$C$2:$C$999,MATCH(A54, 'Import (ADP)'!$B$2:$B$999,0)) ->  | AU54: =IF(VLOOKUP(A55,'Name-Sort'!$D$2:$E$961,2,FALSE)="",A55,"") -> Jose Bautista | AV54: =IFERROR(INDEX($AU$1:$AU$961,SMALL(IF($AU$1:$AU$961<>"",ROW($AU$1:$AU$961)),ROW(AU54))),"") -> Jose Bautista
A55: Jose Bautista | B55: bautijo02 | C55: 3B | D55: LF,RF | E55: FA | F55: 38 | P55: 393 | Q55: 294.75 | R55: 733 | S55: 635.5 | T55: 476.625 | U55: 845.215 | V55: 749.71 | W55: 616 | X55: 733 | Y55: 592.7366667 | Z55: 444.5525 | AA55: 788.3397667 | AH55: =IFERROR(INDEX('Guts-2'!$K$1:$K$30,MATCH(E55,'Guts-2'!$J$1:$J$30,0)),TRUE) -> TRUE | AI55: =IF(AH55=FALSE,"",IFERROR(CHOOSE('Guts-2'!$D$27,AB55,AC55,AD55,AE55,AF55,AG55),"")) ->  | AK55: =IF(AH55=FALSE,"",IFERROR(CHOOSE('Guts-2'!$D$26,G55,J55,M55,P55,S55,V55,Y55,AR55),"")) ->  | AL55: =IFERROR(IF(Settings!$L$5="Mixed (Standard)",AK55,RANK(AK55,$AK$2:$AK$961,1)),"") ->  | AM55: =IFERROR(IF(Settings!$L$5="Mixed (Standard)",(RANK(AK55,$AK$2:$AK$961,1)/('Guts-2'!$N$1+1))+1,(RANK(AL55,$AL$2:$AL$961,1)/('Guts-2'!$N$1+1))+1),"") ->  | AN55: =IFERROR(CHOOSE('Guts-2'!$D$26,H55,K55,N55,Q55,T55,W55,Z55,AS55),"") ->  | AO55: =IFERROR(CHOOSE('Guts-2'!$D$26,I55,L55,O55,R55,U55,X55,AA55,AT55),"") ->  | AR55: =INDEX('Import (ADP)'!$C$2:$C$999,MATCH(A55, 'Import (ADP)'!$B$2:$B$999,0)) ->  | AU55: =IF(VLOOKUP(A56,'Name-Sort'!$D$2:$E$961,2,FALSE)="",A56,"") -> Tim Beckham | AV55: =IFERROR(INDEX($AU$1:$AU$961,SMALL(IF($AU$1:$AU$961<>"",ROW($AU$1:$AU$961)),ROW(AU55))),"") -> Tim Beckham
A56: Tim Beckham | B56: beckhti01 | C56: SS | E56: SEA | F56: 29 | G56: 451 | H56: 338.25 | I56: 599.83 | P56: 472 | Q56: 347 | R56: 627.76 | S56: 471.5 | T56: 347 | U56: 627.095 | V56: 627.51 | W56: 347 | X56: 581 | Y56: 505.5025 | Z56: 347 | AA56: 672.318325 | AF56: 458 | AH56: =IFERROR(INDEX('Guts-2'!$K$1:$K$30,MATCH(E56,'Guts-2'!$J$1:$J$30,0)),TRUE) -> TRUE | AI56: =IF(AH56=FALSE,"",IFERROR(CHOOSE('Guts-2'!$D$27,AB56,AC56,AD56,AE56,AF56,AG56),"")) ->  | AK56: =IF(AH56=FALSE,"",IFERROR(CHOOSE('Guts-2'!$D$26,G56,J56,M56,P56,S56,V56,Y56,AR56),"")) ->  | AL56: =IFERROR(IF(Settings!$L$5="Mixed (Standard)",AK56,RANK(AK56,$AK$2:$AK$961,1)),"") ->  | AM56: =IFERROR(IF(Settings!$L$5="Mixed (Standard)",(RANK(AK56,$AK$2:$AK$961,1)/('Guts-2'!$N$1+1))+1,(RANK(AL56,$AL$2:$AL$961,1)/('Guts-2'!$N$1+1))+1),"") ->  | AN56: =IFERROR(CHOOSE('Guts-2'!$D$26,H56,K56,N56,Q56,T56,W56,Z56,AS56),"") ->  | AO56: =IFERROR(CHOOSE('Guts-2'!$D$26,I56,L56,O56,R56,U56,X56,AA56,AT56),"") ->  | AR56: =INDEX('Import (ADP)'!$C$2:$C$999,MATCH(A56, 'Import (ADP)'!$B$2:$B$999,0)) ->  | AU56: =IF(VLOOKUP(A57,'Name-Sort'!$D$2:$E$961,2,FALSE)="",A57,"") -> Cam Bedrosian | AV56: =IFERROR(INDEX($AU$1:$AU$961,SMALL(IF($AU$1:$AU$961<>"",ROW($AU$1:$AU$961)),ROW(AU56))),"") -> Cam Bedrosian
A57: Cam Bedrosian | B57: bedroca01 | C57: RP | E57: LAA | F57: 27 | V57: 742.29 | W57: 463 | X57: 743 | Y57: 742.29 | Z57: 463 | AA57: 987.2457 | AF57: 528 | AH57: =IFERROR(INDEX('Guts-2'!$K$1:$K$30,MATCH(E57,'Guts-2'!$J$1:$J$30,0)),TRUE) -> TRUE | AI57: =IF(AH57=FALSE,"",IFERROR(CHOOSE('Guts-2'!$D$27,AB57,AC57,AD57,AE57,AF57,AG57),"")) ->  | AK57: =IF(AH57=FALSE,"",IFERROR(CHOOSE('Guts-2'!$D$26,G57,J57,M57,P57,S57,V57,Y57,AR57),"")) ->  | AL57: =IFERROR(IF(Settings!$L$5="Mixed (Standard)",AK57,RANK(AK57,$AK$2:$AK$961,1)),"") ->  | AM57: =IFERROR(IF(Settings!$L$5="Mixed (Standard)",(RANK(AK57,$AK$2:$AK$961,1)/('Guts-2'!$N$1+1))+1,(RANK(AL57,$AL$2:$AL$961,1)/('Guts-2'!$N$1+1))+1),"") ->  | AN57: =IFERROR(CHOOSE('Guts-2'!$D$26,H57,K57,N57,Q57,T57,W57,Z57,AS57),"") ->  | AO57: =IFERROR(CHOOSE('Guts-2'!$D$26,I57,L57,O57,R57,U57,X57,AA57,AT57),"") ->  | AR57: =INDEX('Import (ADP)'!$C$2:$C$999,MATCH(A57, 'Import (ADP)'!$B$2:$B$999,0)) ->  | AU57: =IF(VLOOKUP(A58,'Name-Sort'!$D$2:$E$961,2,FALSE)="",A58,"") -> Jalen Beeks | AV57: =IFERROR(INDEX($AU$1:$AU$961,SMALL(IF($AU$1:$AU$961<>"",ROW($AU$1:$AU$961)),ROW(AU57))),"") -> Jalen Beeks
A58: Jalen Beeks | B58: beeksja02 | C58: SP | E58: TB | F58: 25 | V58: 732.64 | W58: 555 | X58: 750 | Y58: 732.64 | Z58: 549.48 | AA58: 974.4112 | AF58: 491 | AH58: =IFERROR(INDEX('Guts-2'!$K$1:$K$30,MATCH(E58,'Guts-2'!$J$1:$J$30,0)),TRUE) -> TRUE | AI58: =IF(AH58=FALSE,"",IFERROR(CHOOSE('Guts-2'!$D$27,AB58,AC58,AD58,AE58,AF58,AG58),"")) ->  | AK58: =IF(AH58=FALSE,"",IFERROR(CHOOSE('Guts-2'!$D$26,G58,J58,M58,P58,S58,V58,Y58,AR58),"")) ->  | AL58: =IFERROR(IF(Settings!$L$5="Mixed (Standard)",AK58,RANK(AK58,$AK$2:$AK$961,1)),"") ->  | AM58: =IFERROR(IF(Settings!$L$5="Mixed (Standard)",(RANK(AK58,$AK$2:$AK$961,1)/('Guts-2'!$N$1+1))+1,(RANK(AL58,$AL$2:$AL$961,1)/('Guts-2'!$N$1+1))+1),"") ->  | AN58: =IFERROR(CHOOSE('Guts-2'!$D$26,H58,K58,N58,Q58,T58,W58,Z58,AS58),"") ->  | AO58: =IFERROR(CHOOSE('Guts-2'!$D$26,I58,L58,O58,R58,U58,X58,AA58,AT58),"") ->  | AR58: =INDEX('Import (ADP)'!$C$2:$C$999,MATCH(A58, 'Import (ADP)'!$B$2:$B$999,0)) ->  | AU58: =IF(VLOOKUP(A59,'Name-Sort'!$D$2:$E$961,2,FALSE)="",A59,"") -> Cody Bellinger | AV58: =IFERROR(INDEX($AU$1:$AU$961,SMALL(IF($AU$1:$AU$961<>"",ROW($AU$1:$AU$961)),ROW(AU58))),"") -> Cody Bellinger
A59: Cody Bellinger | B59: bellico01 | C59: 1B | D59: LF,CF | E59: LAD | F59: 23 | G59: 40 | H59: 29 | I59: 106 | J59: 43 | K59: 29 | L59: 106 | M59: 62.67 | N59: 35 | O59: 106 | P59: 37 | Q59: 27.75 | R59: 106 | S59: 42.3 | T59: 29 | U59: 106 | V59: 43.79 | W59: 29 | X59: 62 | Y59: 44.79333333 | Z59: 29 | AA59: 106 | AB59: 59 | AC59: 43 | AD59: 31 | AE59: 44 | AF59: 42 | AH59: =IFERROR(INDEX('Guts-2'!$K$1:$K$30,MATCH(E59,'Guts-2'!$J$1:$J$30,0)),TRUE) -> TRUE | AI59: =IF(AH59=FALSE,"",IFERROR(CHOOSE('Guts-2'!$D$27,AB59,AC59,AD59,AE59,AF59,AG59),"")) -> 31 | AJ59: 31 | AK59: =IF(AH59=FALSE,"",IFERROR(CHOOSE('Guts-2'!$D$26,G59,J59,M59,P59,S59,V59,Y59,AR59),"")) -> 62.67 | AL59: =IFERROR(IF(Settings!$L$5="Mixed (Standard)",AK59,RANK(AK59,$AK$2:$AK$961,1)),"") -> 62.67 | AM59: =IFERROR(IF(Settings!$L$5="Mixed (Standard)",(RANK(AK59,$AK$2:$AK$961,1)/('Guts-2'!$N$1+1))+1,(RANK(AL59,$AL$2:$AL$961,1)/('Guts-2'!$N$1+1))+1),"") -> 5.384615385 | AN59: =IFERROR(CHOOSE('Guts-2'!$D$26,H59,K59,N59,Q59,T59,W59,Z59,AS59),"") -> 35 | AO59: =IFERROR(CHOOSE('Guts-2'!$D$26,I59,L59,O59,R59,U59,X59,AA59,AT59),"") -> 106 | AP59: 35 | AQ59: 106 | AR59: =INDEX('Import (ADP)'!$C$2:$C$999,MATCH(A59, 'Import (ADP)'!$B$2:$B$999,0)) ->  | AU59: =IF(VLOOKUP(A60,'Name-Sort'!$D$2:$E$961,2,FALSE)="",A60,"") -> Josh Bell | AV59: =IFERROR(INDEX($AU$1:$AU$961,SMALL(IF($AU$1:$AU$961<>"",ROW($AU$1:$AU$961)),ROW(AU59))),"") -> Josh Bell
A60: Josh Bell | B60: belljo02 | C60: 1B | E60: PIT | F60: 26 | G60: 235 | H60: 129 | I60: 328 | J60: 251 | K60: 129 | L60: 333.83 | M60: 212.11 | N60: 129 | O60: 288 | P60: 215 | Q60: 129 | R60: 328 | S60: 242 | T60: 129 | U60: 328 | V60: 258.7 | W60: 182 | X60: 328 | Y60: 235.635 | Z60: 129 | AA60: 328 | AB60: 290 | AC60: 199 | AD60: 191 | AE60: 184 | AF60: 211 | AH60: =IFERROR(INDEX('Guts-2'!$K$1:$K$30,MATCH(E60,'Guts-2'!$J$1:$J$30,0)),TRUE) -> TRUE | AI60: =IF(AH60=FALSE,"",IFERROR(CHOOSE('Guts-2'!$D$27,AB60,AC60,AD60,AE60,AF60,AG60),"")) -> 191 | AJ60: 191 | AK60: =IF(AH60=FALSE,"",IFERROR(CHOOSE('Guts-2'!$D$26,G60,J60,M60,P60,S60,V60,Y60,AR60),"")) -> 212.11 | AL60: =IFERROR(IF(Settings!$L$5="Mixed (Standard)",AK60,RANK(AK60,$AK$2:$AK$961,1)),"") -> 212.11 | AM60: =IFERROR(IF(Settings!$L$5="Mixed (Standard)",(RANK(AK60,$AK$2:$AK$961,1)/('Guts-2'!$N$1+1))+1,(RANK(AL60,$AL$2:$AL$961,1)/('Guts-2'!$N$1+1))+1),"") -> 20.53846154 | AN60: =IFERROR(CHOOSE('Guts-2'!$D$26,H60,K60,N60,Q60,T60,W60,Z60,AS60),"") -> 129 | AO60: =IFERROR(CHOOSE('Guts-2'!$D$26,I60,L60,O60,R60,U60,X60,AA60,AT60),"") -> 288 | AP60: 129 | AQ60: 288 | AR60: =INDEX('Import (ADP)'!$C$2:$C$999,MATCH(A60, 'Import (ADP)'!$B$2:$B$999,0)) ->  | AU60: =IF(VLOOKUP(A61,'Name-Sort'!$D$2:$E$961,2,FALSE)="",A61,"") -> Brandon Belt | AV60: =IFERROR(INDEX($AU$1:$AU$961,SMALL(IF($AU$1:$AU$961<>"",ROW($AU$1:$AU$961)),ROW(AU60))),"") -> Brandon Belt
A61: Brandon Belt | B61: beltbr01 | C61: 1B | D61: LF | E61: SF | F61: 30 | G61: 333 | H61: 225 | I61: 442.89 | P61: 342 | Q61: 225 | R61: 454.86 | S61: 342 | T61: 225 | U61: 454.86 | V61: 426.34 | W61: 225 | X61: 412 | Y61: 360.835 | Z61: 225 | AA61: 479.91055 | AC61: 271 | AD61: 284 | AE61: 276 | AF61: 260 | AH61: =IFERROR(INDEX('Guts-2'!$K$1:$K$30,MATCH(E61,'Guts-2'!$J$1:$J$30,0)),TRUE) -> TRUE | AI61: =IF(AH61=FALSE,"",IFERROR(CHOOSE('Guts-2'!$D$27,AB61,AC61,AD61,AE61,AF61,AG61),"")) -> 284 | AJ61: 284 | AK61: =IF(AH61=FALSE,"",IFERROR(CHOOSE('Guts-2'!$D$26,G61,J61,M61,P61,S61,V61,Y61,AR61),"")) ->  | AL61: =IFERROR(IF(Settings!$L$5="Mixed (Standard)",AK61,RANK(AK61,$AK$2:$AK$961,1)),"") ->  | AM61: =IFERROR(IF(Settings!$L$5="Mixed (Standard)",(RANK(AK61,$AK$2:$AK$961,1)/('Guts-2'!$N$1+1))+1,(RANK(AL61,$AL$2:$AL$961,1)/('Guts-2'!$N$1+1))+1),"") ->  | AN61: =IFERROR(CHOOSE('Guts-2'!$D$26,H61,K61,N61,Q61,T61,W61,Z61,AS61),"") ->  | AO61: =IFERROR(CHOOSE('Guts-2'!$D$26,I61,L61,O61,R61,U61,X61,AA61,AT61),"") ->  | AR61: =INDEX('Import (ADP)'!$C$2:$C$999,MATCH(A61, 'Import (ADP)'!$B$2:$B$999,0)) ->  | AU61: =IF(VLOOKUP(A62,'Name-Sort'!$D$2:$E$961,2,FALSE)="",A62,"") -> Andrew Benintendi | AV61: =IFERROR(INDEX($AU$1:$AU$961,SMALL(IF($AU$1:$AU$961<>"",ROW($AU$1:$AU$961)),ROW(AU61))),"") -> Andrew Benintendi
A62: Andrew Benintendi | B62: beninan01 | C62: OF | D62: LF,CF | E62: BOS | F62: 24 | G62: 29 | H62: 15 | I62: 45 | J62: 27 | K62: 15 | L62: 45 | M62: 29.39 | N62: 15 | O62: 45 | P62: 35 | Q62: 15 | R62: 46.55 | S62: 30 | T62: 15 | U62: 45 | V62: 29.09 | W62: 16 | X62: 38 | Y62: 29.91333333 | Z62: 15 | AA62: 45 | AB62: 30 | AC62: 29 | AD62: 25 | AE62: 19 | AF62: 27 | AH62: =IFERROR(INDEX('Guts-2'!$K$1:$K$30,MATCH(E62,'Guts-2'!$J$1:$J$30,0)),TRUE) -> TRUE | AI62: =IF(AH62=FALSE,"",IFERROR(CHOOSE('Guts-2'!$D$27,AB62,AC62,AD62,AE62,AF62,AG62),"")) -> 25 | AJ62: 25 | AK62: =IF(AH62=FALSE,"",IFERROR(CHOOSE('Guts-2'!$D$26,G62,J62,M62,P62,S62,V62,Y62,AR62),"")) -> 29.39 | AL62: =IFERROR(IF(Settings!$L$5="Mixed (Standard)",AK62,RANK(AK62,$AK$2:$AK$961,1)),"") -> 29.39 | AM62: =IFERROR(IF(Settings!$L$5="Mixed (Standard)",(RANK(AK62,$AK$2:$AK$961,1)/('Guts-2'!$N$1+1))+1,(RANK(AL62,$AL$2:$AL$961,1)/('Guts-2'!$N$1+1))+1),"") -> 3 | AN62: =IFERROR(CHOOSE('Guts-2'!$D$26,H62,K62,N62,Q62,T62,W62,Z62,AS62),"") -> 15 | AO62: =IFERROR(CHOOSE('Guts-2'!$D$26,I62,L62,O62,R62,U62,X62,AA62,AT62),"") -> 45 | AP62: 15 | AQ62: 45 | AR62: =INDEX('Import (ADP)'!$C$2:$C$999,MATCH(A62, 'Import (ADP)'!$B$2:$B$999,0)) ->  | AU62: =IF(VLOOKUP(A63,'Name-Sort'!$D$2:$E$961,2,FALSE)="",A63,"") -> Jose Berrios | AV62: =IFERROR(INDEX($AU$1:$AU$961,SMALL(IF($AU$1:$AU$961<>"",ROW($AU$1:$AU$961)),ROW(AU62))),"") -> Jose Berrios
A63: Jose Berrios | B63: berrijo01 | C63: SP | E63: MIN | F63: 24 | G63: 72 | H63: 36 | I63: 101 | J63: 73 | K63: 36 | L63: 101 | M63: 61.65 | N63: 36 | O63: 92 | P63: 82 | Q63: 36 | R63: 109.06 | S63: 72.8 | T63: 36 | U63: 101 | V63: 71.23 | W63: 42 | X63: 101 | Y63: 72.11333333 | Z63: 36 | AA63: 101 | AB63: 132 | AC63: 63 | AD63: 169 | AE63: 115 | AF63: 80 | AH63: =IFERROR(INDEX('Guts-2'!$K$1:$K$30,MATCH(E63,'Guts-2'!$J$1:$J$30,0)),TRUE) -> TRUE | AI63: =IF(AH63=FALSE,"",IFERROR(CHOOSE('Guts-2'!$D$27,AB63,AC63,AD63,AE63,AF63,AG63),"")) -> 169 | AJ63: 169 | AK63: =IF(AH63=FALSE,"",IFERROR(CHOOSE('Guts-2'!$D$26,G63,J63,M63,P63,S63,V63,Y63,AR63),"")) -> 61.65 | AL63: =IFERROR(IF(Settings!$L$5="Mixed (Standard)",AK63,RANK(AK63,$AK$2:$AK$961,1)),"") -> 61.65 | AM63: =IFERROR(IF(Settings!$L$5="Mixed (Standard)",(RANK(AK63,$AK$2:$AK$961,1)/('Guts-2'!$N$1+1))+1,(RANK(AL63,$AL$2:$AL$961,1)/('Guts-2'!$N$1+1))+1),"") -> 5.307692308 | AN63: =IFERROR(CHOOSE('Guts-2'!$D$26,H63,K63,N63,Q63,T63,W63,Z63,AS63),"") -> 36 | AO63: =IFERROR(CHOOSE('Guts-2'!$D$26,I63,L63,O63,R63,U63,X63,AA63,AT63),"") -> 92 | AP63: 36 | AQ63: 92 | AR63: =INDEX('Import (ADP)'!$C$2:$C$999,MATCH(A63, 'Import (ADP)'!$B$2:$B$999,0)) ->  | AU63: =IF(VLOOKUP(A64,'Name-Sort'!$D$2:$E$961,2,FALSE)="",A64,"") -> Dellin Betances | AV63: =IFERROR(INDEX($AU$1:$AU$961,SMALL(IF($AU$1:$AU$961<>"",ROW($AU$1:$AU$961)),ROW(AU63))),"") -> Dellin Betances
A64: Dellin Betances | B64: betande01 | C64: RP | E64: NYY | F64: 31 | G64: 263 | H64: 184 | I64: 417 | J64: 184 | K64: 138 | L64: 417 | P64: 232 | Q64: 174 | R64: 417 | S64: 235.5 | T64: 176.625 | U64: 417 | V64: 305.32 | W64: 184 | X64: 417 | Y64: 243.964 | Z64: 182.973 | AA64: 417 | AB64: 216 | AC64: 207 | AE64: 174 | AF64: 207 | AH64: =IFERROR(INDEX('Guts-2'!$K$1:$K$30,MATCH(E64,'Guts-2'!$J$1:$J$30,0)),TRUE) -> TRUE | AI64: =IF(AH64=FALSE,"",IFERROR(CHOOSE('Guts-2'!$D$27,AB64,AC64,AD64,AE64,AF64,AG64),"")) ->  | AK64: =IF(AH64=FALSE,"",IFERROR(CHOOSE('Guts-2'!$D$26,G64,J64,M64,P64,S64,V64,Y64,AR64),"")) ->  | AL64: =IFERROR(IF(Settings!$L$5="Mixed (Standard)",AK64,RANK(AK64,$AK$2:$AK$961,1)),"") ->  | AM64: =IFERROR(IF(Settings!$L$5="Mixed (Standard)",(RANK(AK64,$AK$2:$AK$961,1)/('Guts-2'!$N$1+1))+1,(RANK(AL64,$AL$2:$AL$961,1)/('Guts-2'!$N$1+1))+1),"") ->  | AN64: =IFERROR(CHOOSE('Guts-2'!$D$26,H64,K64,N64,Q64,T64,W64,Z64,AS64),"") ->  | AO64: =IFERROR(CHOOSE('Guts-2'!$D$26,I64,L64,O64,R64,U64,X64,AA64,AT64),"") ->  | AR64: =INDEX('Import (ADP)'!$C$2:$C$999,MATCH(A64, 'Import (ADP)'!$B$2:$B$999,0)) ->  | AU64: =IF(VLOOKUP(A65,'Name-Sort'!$D$2:$E$961,2,FALSE)="",A65,"") -> Mookie Betts | AV64: =IFERROR(INDEX($AU$1:$AU$961,SMALL(IF($AU$1:$AU$961<>"",ROW($AU$1:$AU$961)),ROW(AU64))),"") -> Mookie Betts
A65: Mookie Betts | B65: bettsmo01 | C65: OF | D65: CF,RF | E65: BOS | F65: 26 | G65: 2 | H65: 1 | I65: 5 | J65: 2 | K65: 1 | L65: 5 | M65: 2.57 | N65: 1 | O65: 5 | P65: 2 | Q65: 1 | R65: 5 | S65: 2 | T65: 1 | U65: 5 | V65: 1.88 | W65: 1 | X65: 3 | Y65: 2.075 | Z65: 1 | AA65: 5 | AB65: 2 | AC65: 2 | AD65: 1 | AE65: 2 | AF65: 2 | AH65: =IFERROR(INDEX('Guts-2'!$K$1:$K$30,MATCH(E65,'Guts-2'!$J$1:$J$30,0)),TRUE) -> TRUE | AI65: =IF(AH65=FALSE,"",IFERROR(CHOOSE('Guts-2'!$D$27,AB65,AC65,AD65,AE65,AF65,AG65),"")) -> 1 | AJ65: 1 | AK65: =IF(AH65=FALSE,"",IFERROR(CHOOSE('Guts-2'!$D$26,G65,J65,M65,P65,S65,V65,Y65,AR65),"")) -> 2.57 | AL65: =IFERROR(IF(Settings!$L$5="Mixed (Standard)",AK65,RANK(AK65,$AK$2:$AK$961,1)),"") -> 2.57 | AM65: =IFERROR(IF(Settings!$L$5="Mixed (Standard)",(RANK(AK65,$AK$2:$AK$961,1)/('Guts-2'!$N$1+1))+1,(RANK(AL65,$AL$2:$AL$961,1)/('Guts-2'!$N$1+1))+1),"") -> 1.153846154 | AN65: =IFERROR(CHOOSE('Guts-2'!$D$26,H65,K65,N65,Q65,T65,W65,Z65,AS65),"") -> 1 | AO65: =IFERROR(CHOOSE('Guts-2'!$D$26,I65,L65,O65,R65,U65,X65,AA65,AT65),"") -> 5 | AP65: 1 | AQ65: 5 | AR65: =INDEX('Import (ADP)'!$C$2:$C$999,MATCH(A65, 'Import (ADP)'!$B$2:$B$999,0)) -> 8.8 | AS65: 1 | AT65: 11 | AU65: =IF(VLOOKUP(A66,'Name-Sort'!$D$2:$E$961,2,FALSE)="",A66,"") -> Bo Bichette | AV65: =IFERROR(INDEX($AU$1:$AU$961,SMALL(IF($AU$1:$AU$961<>"",ROW($AU$1:$AU$961)),ROW(AU65))),"") -> Bo Bichette
A66: Bo Bichette | B66: bichebo01 | C66: 2B | E66: TOR | F66: 21 | G66: 419 | H66: 182 | I66: 608 | J66: 285 | K66: 182 | L66: 608 | P66: 377 | Q66: 182 | R66: 608 | S66: 378.3 | T66: 182 | U66: 608 | V66: 594.54 | W66: 182 | X66: 608 | Y66: 410.768 | Z66: 182 | AA66: 608 | AF66: 457 | AH66: =IFERROR(INDEX('Guts-2'!$K$1:$K$30,MATCH(E66,'Guts-2'!$J$1:$J$30,0)),TRUE) -> TRUE | AI66: =IF(AH66=FALSE,"",IFERROR(CHOOSE('Guts-2'!$D$27,AB66,AC66,AD66,AE66,AF66,AG66),"")) ->  | AJ66: =IFERROR(RANK(AI66,$AI$2:$AI$961,1),"") ->  | AK66: =IF(AH66=FALSE,"",IFERROR(CHOOSE('Guts-2'!$D$26,G66,J66,M66,P66,S66,V66,Y66,AR66),"")) ->  | AL66: =IFERROR(IF(Settings!$L$5="Mixed (Standard)",AK66,RANK(AK66,$AK$2:$AK$961,1)),"") ->  | AM66: =IFERROR(IF(Settings!$L$5="Mixed (Standard)",(RANK(AK66,$AK$2:$AK$961,1)/('Guts-2'!$N$1+1))+1,(RANK(AL66,$AL$2:$AL$961,1)/('Guts-2'!$N$1+1))+1),"") ->  | AN66: =IFERROR(CHOOSE('Guts-2'!$D$26,H66,K66,N66,Q66,T66,W66,Z66,AS66),"") ->  | AO66: =IFERROR(CHOOSE('Guts-2'!$D$26,I66,L66,O66,R66,U66,X66,AA66,AT66),"") ->  | AP66: =IFERROR(IF(AH66=TRUE,IF((AN66-COUNTIFS($AN$2:$AN$961,"<"&AN66,$AH$2:$AH$961,FALSE))<1,1,AN66-COUNTIFS($AN$2:$AN$961,"<"&AN66,$AH$2:$AH$961,FALSE)),""),"") ->  | AQ66: =IFERROR(IF(AH66=FALSE,"",IF((AO66-COUNTIFS($AO$2:$AO$961,"<"&AO66,$AH$2:$AH$961,FALSE))<1,1,AO66-COUNTIFS($AO$2:$AO$961,"<"&AO66,$AH$2:$AH$961,FALSE))),"") ->  | AR66: =INDEX('Import (ADP)'!$C$2:$C$999,MATCH(A66, 'Import (ADP)'!$B$2:$B$999,0)) ->  | AS66: =IFERROR(MIN(N66,W66,ROUND(AR66*0.75,0)),ROUND(AR66*0.75,0)) ->  | AT66: =IFERROR(MAX(O66,X66,ROUND(AR66*1.25,0)),ROUND(AS66*1.25,0)) ->  | AU66: =IF(VLOOKUP(A67,'Name-Sort'!$D$2:$E$961,2,FALSE)="",A67,"") -> Shane Bieber | AV66: =IFERROR(INDEX($AU$1:$AU$961,SMALL(IF($AU$1:$AU$961<>"",ROW($AU$1:$AU$961)),ROW(AU66))),"") -> Shane Bieber
A67: Shane Bieber | B67: biebesh01 | C67: SP | E67: CLE | F67: 23 | G67: 154 | H67: 80 | I67: 204.82 | J67: 159 | K67: 80 | L67: 211.47 | M67: 118.41 | N67: 80 | O67: 170 | P67: 165 | Q67: 80 | R67: 219.45 | S67: 158 | T67: 80 | U67: 210.14 | V67: 144.45 | W67: 84 | X67: 176 | Y67: 149.81 | Z67: 80 | AA67: 199.2473 | AB67: 143 | AC67: 140 | AD67: 235 | AE67: 132 | AF67: 146 | AH67: =IFERROR(INDEX('Guts-2'!$K$1:$K$30,MATCH(E67,'Guts-2'!$J$1:$J$30,0)),TRUE) -> TRUE | AI67: =IF(AH67=FALSE,"",IFERROR(CHOOSE('Guts-2'!$D$27,AB67,AC67,AD67,AE67,AF67,AG67),"")) -> 235 | AJ67: 235 | AK67: =IF(AH67=FALSE,"",IFERROR(CHOOSE('Guts-2'!$D$26,G67,J67,M67,P67,S67,V67,Y67,AR67),"")) -> 118.41 | AL67: =IFERROR(IF(Settings!$L$5="Mixed (Standard)",AK67,RANK(AK67,$AK$2:$AK$961,1)),"") -> 118.41 | AM67: =IFERROR(IF(Settings!$L$5="Mixed (Standard)",(RANK(AK67,$AK$2:$AK$961,1)/('Guts-2'!$N$1+1))+1,(RANK(AL67,$AL$2:$AL$961,1)/('Guts-2'!$N$1+1))+1),"") -> 10 | AN67: =IFERROR(CHOOSE('Guts-2'!$D$26,H67,K67,N67,Q67,T67,W67,Z67,AS67),"") -> 80 | AO67: =IFERROR(CHOOSE('Guts-2'!$D$26,I67,L67,O67,R67,U67,X67,AA67,AT67),"") -> 170 | AP67: 80 | AQ67: 170 | AR67: =INDEX('Import (ADP)'!$C$2:$C$999,MATCH(A67, 'Import (ADP)'!$B$2:$B$999,0)) ->  | AU67: =IF(VLOOKUP(A68,'Name-Sort'!$D$2:$E$961,2,FALSE)="",A68,"") -> Greg Bird | AV67: =IFERROR(INDEX($AU$1:$AU$961,SMALL(IF($AU$1:$AU$961<>"",ROW($AU$1:$AU$961)),ROW(AU67))),"") -> Greg Bird
A68: Greg Bird | B68: birdgr01 | C68: 1B | E68: NYY | F68: 26 | G68: 503 | H68: 235 | I68: 668.99 | J68: 289 | K68: 216.75 | L68: 552 | P68: 356 | Q68: 235 | R68: 552 | S68: 365 | T68: 235 | U68: 552 | V68: 557.05 | W68: 235 | X68: 552 | Y68: 414.01 | Z68: 235 | AA68: 552 | AF68: 454 | AH68: =IFERROR(INDEX('Guts-2'!$K$1:$K$30,MATCH(E68,'Guts-2'!$J$1:$J$30,0)),TRUE) -> TRUE | AI68: =IF(AH68=FALSE,"",IFERROR(CHOOSE('Guts-2'!$D$27,AB68,AC68,AD68,AE68,AF68,AG68),"")) ->  | AK68: =IF(AH68=FALSE,"",IFERROR(CHOOSE('Guts-2'!$D$26,G68,J68,M68,P68,S68,V68,Y68,AR68),"")) ->  | AL68: =IFERROR(IF(Settings!$L$5="Mixed (Standard)",AK68,RANK(AK68,$AK$2:$AK$961,1)),"") ->  | AM68: =IFERROR(IF(Settings!$L$5="Mixed (Standard)",(RANK(AK68,$AK$2:$AK$961,1)/('Guts-2'!$N$1+1))+1,(RANK(AL68,$AL$2:$AL$961,1)/('Guts-2'!$N$1+1))+1),"") ->  | AN68: =IFERROR(CHOOSE('Guts-2'!$D$26,H68,K68,N68,Q68,T68,W68,Z68,AS68),"") ->  | AO68: =IFERROR(CHOOSE('Guts-2'!$D$26,I68,L68,O68,R68,U68,X68,AA68,AT68),"") ->  | AR68: =INDEX('Import (ADP)'!$C$2:$C$999,MATCH(A68, 'Import (ADP)'!$B$2:$B$999,0)) ->  | AU68: =IF(VLOOKUP(A69,'Name-Sort'!$D$2:$E$961,2,FALSE)="",A69,"") -> Ty Blach | AV68: =IFERROR(INDEX($AU$1:$AU$961,SMALL(IF($AU$1:$AU$961<>"",ROW($AU$1:$AU$961)),ROW(AU68))),"") -> Ty Blach
A69: Ty Blach | B69: blachty01 | C69: SP | E69: SF | F69: 28 | V69: 750.86 | W69: 719 | X69: 719 | Y69: 750.86 | Z69: 563.145 | AA69: 998.6438 | AF69: 773 | AH69: =IFERROR(INDEX('Guts-2'!$K$1:$K$30,MATCH(E69,'Guts-2'!$J$1:$J$30,0)),TRUE) -> TRUE | AI69: =IF(AH69=FALSE,"",IFERROR(CHOOSE('Guts-2'!$D$27,AB69,AC69,AD69,AE69,AF69,AG69),"")) ->  | AK69: =IF(AH69=FALSE,"",IFERROR(CHOOSE('Guts-2'!$D$26,G69,J69,M69,P69,S69,V69,Y69,AR69),"")) ->  | AL69: =IFERROR(IF(Settings!$L$5="Mixed (Standard)",AK69,RANK(AK69,$AK$2:$AK$961,1)),"") ->  | AM69: =IFERROR(IF(Settings!$L$5="Mixed (Standard)",(RANK(AK69,$AK$2:$AK$961,1)/('Guts-2'!$N$1+1))+1,(RANK(AL69,$AL$2:$AL$961,1)/('Guts-2'!$N$1+1))+1),"") ->  | AN69: =IFERROR(CHOOSE('Guts-2'!$D$26,H69,K69,N69,Q69,T69,W69,Z69,AS69),"") ->  | AO69: =IFERROR(CHOOSE('Guts-2'!$D$26,I69,L69,O69,R69,U69,X69,AA69,AT69),"") ->  | AR69: =INDEX('Import (ADP)'!$C$2:$C$999,MATCH(A69, 'Import (ADP)'!$B$2:$B$999,0)) ->  | AU69: =IF(VLOOKUP(A70,'Name-Sort'!$D$2:$E$961,2,FALSE)="",A70,"") -> Charlie Blackmon | AV69: =IFERROR(INDEX($AU$1:$AU$961,SMALL(IF($AU$1:$AU$961<>"",ROW($AU$1:$AU$961)),ROW(AU69))),"") -> Charlie Blackmon
A70: Charlie Blackmon | B70: blackch02 | C70: OF | D70: CF | E70: COL | F70: 32 | G70: 26 | H70: 11 | I70: 50 | J70: 25 | K70: 11 | L70: 50 | M70: 32.14 | N70: 19 | O70: 50 | P70: 25 | Q70: 11 | R70: 50 | S70: 26.3 | T70: 11 | U70: 50 | V70: 27.12 | W70: 11 | X70: 42 | Y70: 26.92666667 | Z70: 11 | AA70: 50 | AB70: 7 | AC70: 26 | AD70: 14 | AE70: 31 | AF70: 23 | AH70: =IFERROR(INDEX('Guts-2'!$K$1:$K$30,MATCH(E70,'Guts-2'!$J$1:$J$30,0)),TRUE) -> TRUE | AI70: =IF(AH70=FALSE,"",IFERROR(CHOOSE('Guts-2'!$D$27,AB70,AC70,AD70,AE70,AF70,AG70),"")) -> 14 | AJ70: 14 | AK70: =IF(AH70=FALSE,"",IFERROR(CHOOSE('Guts-2'!$D$26,G70,J70,M70,P70,S70,V70,Y70,AR70),"")) -> 32.14 | AL70: =IFERROR(IF(Settings!$L$5="Mixed (Standard)",AK70,RANK(AK70,$AK$2:$AK$961,1)),"") -> 32.14 | AM70: =IFERROR(IF(Settings!$L$5="Mixed (Standard)",(RANK(AK70,$AK$2:$AK$961,1)/('Guts-2'!$N$1+1))+1,(RANK(AL70,$AL$2:$AL$961,1)/('Guts-2'!$N$1+1))+1),"") -> 3.384615385 | AN70: =IFERROR(CHOOSE('Guts-2'!$D$26,H70,K70,N70,Q70,T70,W70,Z70,AS70),"") -> 19 | AO70: =IFERROR(CHOOSE('Guts-2'!$D$26,I70,L70,O70,R70,U70,X70,AA70,AT70),"") -> 50 | AP70: 19 | AQ70: 50 | AR70: =INDEX('Import (ADP)'!$C$2:$C$999,MATCH(A70, 'Import (ADP)'!$B$2:$B$999,0)) -> 9.5 | AS70: 7 | AT70: 50 | AU70: =IF(VLOOKUP(A71,'Name-Sort'!$D$2:$E$961,2,FALSE)="",A71,"") -> Xander Bogaerts | AV70: =IFERROR(INDEX($AU$1:$AU$961,SMALL(IF($AU$1:$AU$961<>"",ROW($AU$1:$AU$961)),ROW(AU70))),"") -> Xander Bogaerts
A71: Xander Bogaerts | B71: bogaexa01 | C71: SS | E71: BOS | F71: 26 | G71: 50 | H71: 27 | I71: 71 | J71: 45 | K71: 27 | L71: 71 | M71: 47.97 | N71: 27 | O71: 71 | P71: 41 | Q71: 27 | R71: 71 | S71: 47.8 | T71: 27 | U71: 71 | V71: 48.47 | W71: 32 | X71: 65 | Y71: 46.70666667 | Z71: 27 | AA71: 71 | AB71: 34 | AC71: 39 | AD71: 42 | AE71: 46 | AF71: 43 | AH71: =IFERROR(INDEX('Guts-2'!$K$1:$K$30,MATCH(E71,'Guts-2'!$J$1:$J$30,0)),TRUE) -> TRUE | AI71: =IF(AH71=FALSE,"",IFERROR(CHOOSE('Guts-2'!$D$27,AB71,AC71,AD71,AE71,AF71,AG71),"")) -> 42 | AJ71: 42 | AK71: =IF(AH71=FALSE,"",IFERROR(CHOOSE('Guts-2'!$D$26,G71,J71,M71,P71,S71,V71,Y71,AR71),"")) -> 47.97 | AL71: =IFERROR(IF(Settings!$L$5="Mixed (Standard)",AK71,RANK(AK71,$AK$2:$AK$961,1)),"") -> 47.97 | AM71: =IFERROR(IF(Settings!$L$5="Mixed (Standard)",(RANK(AK71,$AK$2:$AK$961,1)/('Guts-2'!$N$1+1))+1,(RANK(AL71,$AL$2:$AL$961,1)/('Guts-2'!$N$1+1))+1),"") -> 4.615384615 | AN71: =IFERROR(CHOOSE('Guts-2'!$D$26,H71,K71,N71,Q71,T71,W71,Z71,AS71),"") -> 27 | AO71: =IFERROR(CHOOSE('Guts-2'!$D$26,I71,L71,O71,R71,U71,X71,AA71,AT71),"") -> 71 | AP71: 27 | AQ71: 71 | AR71: =INDEX('Import (ADP)'!$C$2:$C$999,MATCH(A71, 'Import (ADP)'!$B$2:$B$999,0)) ->  | AU71: =IF(VLOOKUP(A72,'Name-Sort'!$D$2:$E$961,2,FALSE)="",A72,"") -> Jorge Bonifacio | AV71: =IFERROR(INDEX($AU$1:$AU$961,SMALL(IF($AU$1:$AU$961<>"",ROW($AU$1:$AU$961)),ROW(AU71))),"") -> Jorge Bonifacio
A72: Jorge Bonifacio | B72: bonifjo01 | C72: OF | D72: LF,RF | E72: KC | F72: 25 | V72: 732.45 | W72: 504 | X72: 743 | Y72: 732.45 | Z72: 504 | AA72: 974.1585 | AF72: 580 | AH72: =IFERROR(INDEX('Guts-2'!$K$1:$K$30,MATCH(E72,'Guts-2'!$J$1:$J$30,0)),TRUE) -> TRUE | AI72: =IF(AH72=FALSE,"",IFERROR(CHOOSE('Guts-2'!$D$27,AB72,AC72,AD72,AE72,AF72,AG72),"")) ->  | AK72: =IF(AH72=FALSE,"",IFERROR(CHOOSE('Guts-2'!$D$26,G72,J72,M72,P72,S72,V72,Y72,AR72),"")) ->  | AL72: =IFERROR(IF(Settings!$L$5="Mixed (Standard)",AK72,RANK(AK72,$AK$2:$AK$961,1)),"") ->  | AM72: =IFERROR(IF(Settings!$L$5="Mixed (Standard)",(RANK(AK72,$AK$2:$AK$961,1)/('Guts-2'!$N$1+1))+1,(RANK(AL72,$AL$2:$AL$961,1)/('Guts-2'!$N$1+1))+1),"") ->  | AN72: =IFERROR(CHOOSE('Guts-2'!$D$26,H72,K72,N72,Q72,T72,W72,Z72,AS72),"") ->  | AO72: =IFERROR(CHOOSE('Guts-2'!$D$26,I72,L72,O72,R72,U72,X72,AA72,AT72),"") ->  | AR72: =INDEX('Import (ADP)'!$C$2:$C$999,MATCH(A72, 'Import (ADP)'!$B$2:$B$999,0)) ->  | AU72: =IF(VLOOKUP(A73,'Name-Sort'!$D$2:$E$961,2,FALSE)="",A73,"") -> Ryan Borucki | AV72: =IFERROR(INDEX($AU$1:$AU$961,SMALL(IF($AU$1:$AU$961<>"",ROW($AU$1:$AU$961)),ROW(AU72))),"") -> Ryan Borucki
A73: Ryan Borucki | B73: borucry01 | C73: SP | E73: TOR | F73: 24 | V73: 685.48 | W73: 349 | X73: 665 | Y73: 685.48 | Z73: 349 | AA73: 911.6884 | AF73: 675 | AH73: =IFERROR(INDEX('Guts-2'!$K$1:$K$30,MATCH(E73,'Guts-2'!$J$1:$J$30,0)),TRUE) -> TRUE | AI73: =IF(AH73=FALSE,"",IFERROR(CHOOSE('Guts-2'!$D$27,AB73,AC73,AD73,AE73,AF73,AG73),"")) ->  | AK73: =IF(AH73=FALSE,"",IFERROR(CHOOSE('Guts-2'!$D$26,G73,J73,M73,P73,S73,V73,Y73,AR73),"")) ->  | AL73: =IFERROR(IF(Settings!$L$5="Mixed (Standard)",AK73,RANK(AK73,$AK$2:$AK$961,1)),"") ->  | AM73: =IFERROR(IF(Settings!$L$5="Mixed (Standard)",(RANK(AK73,$AK$2:$AK$961,1)/('Guts-2'!$N$1+1))+1,(RANK(AL73,$AL$2:$AL$961,1)/('Guts-2'!$N$1+1))+1),"") ->  | AN73: =IFERROR(CHOOSE('Guts-2'!$D$26,H73,K73,N73,Q73,T73,W73,Z73,AS73),"") ->  | AO73: =IFERROR(CHOOSE('Guts-2'!$D$26,I73,L73,O73,R73,U73,X73,AA73,AT73),"") ->  | AR73: =INDEX('Import (ADP)'!$C$2:$C$999,MATCH(A73, 'Import (ADP)'!$B$2:$B$999,0)) ->  | AU73: =IF(VLOOKUP(A74,'Name-Sort'!$D$2:$E$961,2,FALSE)="",A74,"") -> Justin Bour | AV73: =IFERROR(INDEX($AU$1:$AU$961,SMALL(IF($AU$1:$AU$961<>"",ROW($AU$1:$AU$961)),ROW(AU73))),"") -> Justin Bour
A74: Justin Bour | B74: bourju01 | C74: 1B | E74: LAA | F74: 30 | G74: 403 | H74: 211 | I74: 535.99 | J74: 369 | K74: 211 | L74: 490.77 | P74: 345 | Q74: 211 | R74: 463 | S74: 367.5 | T74: 211 | U74: 488.775 | V74: 439.94 | W74: 211 | X74: 463 | Y74: 384.888 | Z74: 211 | AA74: 511.90104 | AD74: 175 | AE74: 298 | AF74: 332 | AH74: =IFERROR(INDEX('Guts-2'!$K$1:$K$30,MATCH(E74,'Guts-2'!$J$1:$J$30,0)),TRUE) -> TRUE | AI74: =IF(AH74=FALSE,"",IFERROR(CHOOSE('Guts-2'!$D$27,AB74,AC74,AD74,AE74,AF74,AG74),"")) -> 175 | AJ74: 175 | AK74: =IF(AH74=FALSE,"",IFERROR(CHOOSE('Guts-2'!$D$26,G74,J74,M74,P74,S74,V74,Y74,AR74),"")) ->  | AL74: =IFERROR(IF(Settings!$L$5="Mixed (Standard)",AK74,RANK(AK74,$AK$2:$AK$961,1)),"") ->  | AM74: =IFERROR(IF(Settings!$L$5="Mixed (Standard)",(RANK(AK74,$AK$2:$AK$961,1)/('Guts-2'!$N$1+1))+1,(RANK(AL74,$AL$2:$AL$961,1)/('Guts-2'!$N$1+1))+1),"") ->  | AN74: =IFERROR(CHOOSE('Guts-2'!$D$26,H74,K74,N74,Q74,T74,W74,Z74,AS74),"") ->  | AO74: =IFERROR(CHOOSE('Guts-2'!$D$26,I74,L74,O74,R74,U74,X74,AA74,AT74),"") ->  | AR74: =INDEX('Import (ADP)'!$C$2:$C$999,MATCH(A74, 'Import (ADP)'!$B$2:$B$999,0)) ->  | AU74: =IF(VLOOKUP(A75,'Name-Sort'!$D$2:$E$961,2,FALSE)="",A75,"") -> Brad Boxberger | AV74: =IFERROR(INDEX($AU$1:$AU$961,SMALL(IF($AU$1:$AU$961<>"",ROW($AU$1:$AU$961)),ROW(AU74))),"") -> Brad Boxberger
A75: Brad Boxberger | B75: boxbebr01 | C75: RP | E75: KC | F75: 30 | G75: 458 | H75: 100 | I75: 609.14 | J75: 266 | K75: 100 | L75: 433 | M75: 226.43 | N75: 100 | O75: 386 | P75: 307 | Q75: 100 | R75: 433 | S75: 309.3 | T75: 100 | U75: 433 | V75: 337.94 | W75: 147 | X75: 433 | Y75: 317.445 | Z75: 100 | AA75: 433 | AB75: 298 | AF75: 341 | AH75: =IFERROR(INDEX('Guts-2'!$K$1:$K$30,MATCH(E75,'Guts-2'!$J$1:$J$30,0)),TRUE) -> TRUE | AI75: =IF(AH75=FALSE,"",IFERROR(CHOOSE('Guts-2'!$D$27,AB75,AC75,AD75,AE75,AF75,AG75),"")) ->  | AK75: =IF(AH75=FALSE,"",IFERROR(CHOOSE('Guts-2'!$D$26,G75,J75,M75,P75,S75,V75,Y75,AR75),"")) -> 226.43 | AL75: =IFERROR(IF(Settings!$L$5="Mixed (Standard)",AK75,RANK(AK75,$AK$2:$AK$961,1)),"") -> 226.43 | AM75: =IFERROR(IF(Settings!$L$5="Mixed (Standard)",(RANK(AK75,$AK$2:$AK$961,1)/('Guts-2'!$N$1+1))+1,(RANK(AL75,$AL$2:$AL$961,1)/('Guts-2'!$N$1+1))+1),"") -> 23.23076923 | AN75: =IFERROR(CHOOSE('Guts-2'!$D$26,H75,K75,N75,Q75,T75,W75,Z75,AS75),"") -> 100 | AO75: =IFERROR(CHOOSE('Guts-2'!$D$26,I75,L75,O75,R75,U75,X75,AA75,AT75),"") -> 386 | AP75: 100 | AQ75: 386 | AR75: =INDEX('Import (ADP)'!$C$2:$C$999,MATCH(A75, 'Import (ADP)'!$B$2:$B$999,0)) ->  | AU75: =IF(VLOOKUP(A76,'Name-Sort'!$D$2:$E$961,2,FALSE)="",A76,"") -> Matt Boyd | AV75: =IFERROR(INDEX($AU$1:$AU$961,SMALL(IF($AU$1:$AU$961<>"",ROW($AU$1:$AU$961)),ROW(AU75))),"") -> Matt Boyd
A76: Matt Boyd | B76: boydma01 | C76: SP | E76: DET | F76: 28 | G76: 280 | H76: 210 | I76: 431 | P76: 308 | Q76: 231 | R76: 431 | S76: 320.3 | T76: 237 | U76: 431 | V76: 330.18 | W76: 237 | X76: 431 | Y76: 309.62 | Z76: 232.215 | AA76: 431 | AB76: 281 | AC76: 268 | AD76: 286 | AF76: 311 | AH76: =IFERROR(INDEX('Guts-2'!$K$1:$K$30,MATCH(E76,'Guts-2'!$J$1:$J$30,0)),TRUE) -> TRUE | AI76: =IF(AH76=FALSE,"",IFERROR(CHOOSE('Guts-2'!$D$27,AB76,AC76,AD76,AE76,AF76,AG76),"")) -> 286 | AJ76: 286 | AK76: =IF(AH76=FALSE,"",IFERROR(CHOOSE('Guts-2'!$D$26,G76,J76,M76,P76,S76,V76,Y76,AR76),"")) ->  | AL76: =IFERROR(IF(Settings!$L$5="Mixed (Standard)",AK76,RANK(AK76,$AK$2:$AK$961,1)),"") ->  | AM76: =IFERROR(IF(Settings!$L$5="Mixed (Standard)",(RANK(AK76,$AK$2:$AK$961,1)/('Guts-2'!$N$1+1))+1,(RANK(AL76,$AL$2:$AL$961,1)/('Guts-2'!$N$1+1))+1),"") ->  | AN76: =IFERROR(CHOOSE('Guts-2'!$D$26,H76,K76,N76,Q76,T76,W76,Z76,AS76),"") ->  | AO76: =IFERROR(CHOOSE('Guts-2'!$D$26,I76,L76,O76,R76,U76,X76,AA76,AT76),"") ->  | AR76: =INDEX('Import (ADP)'!$C$2:$C$999,MATCH(A76, 'Import (ADP)'!$B$2:$B$999,0)) ->  | AU76: =IF(VLOOKUP(A77,'Name-Sort'!$D$2:$E$961,2,FALSE)="",A77,"") -> Brad Brach | AV76: =IFERROR(INDEX($AU$1:$AU$961,SMALL(IF($AU$1:$AU$961<>"",ROW($AU$1:$AU$961)),ROW(AU76))),"") -> Brad Brach
A77: Brad Brach | B77: brachbr01 | C77: RP | E77: CHC | F77: 32 | V77: 711.65 | W77: 380 | X77: 744 | Y77: 711.65 | Z77: 380 | AA77: 946.4945 | AF77: 500 | AH77: =IFERROR(INDEX('Guts-2'!$K$1:$K$30,MATCH(E77,'Guts-2'!$J$1:$J$30,0)),TRUE) -> TRUE | AI77: =IF(AH77=FALSE,"",IFERROR(CHOOSE('Guts-2'!$D$27,AB77,AC77,AD77,AE77,AF77,AG77),"")) ->  | AK77: =IF(AH77=FALSE,"",IFERROR(CHOOSE('Guts-2'!$D$26,G77,J77,M77,P77,S77,V77,Y77,AR77),"")) ->  | AL77: =IFERROR(IF(Settings!$L$5="Mixed (Standard)",AK77,RANK(AK77,$AK$2:$AK$961,1)),"") ->  | AM77: =IFERROR(IF(Settings!$L$5="Mixed (Standard)",(RANK(AK77,$AK$2:$AK$961,1)/('Guts-2'!$N$1+1))+1,(RANK(AL77,$AL$2:$AL$961,1)/('Guts-2'!$N$1+1))+1),"") ->  | AN77: =IFERROR(CHOOSE('Guts-2'!$D$26,H77,K77,N77,Q77,T77,W77,Z77,AS77),"") ->  | AO77: =IFERROR(CHOOSE('Guts-2'!$D$26,I77,L77,O77,R77,U77,X77,AA77,AT77),"") ->  | AR77: =INDEX('Import (ADP)'!$C$2:$C$999,MATCH(A77, 'Import (ADP)'!$B$2:$B$999,0)) ->  | AU77: =IF(VLOOKUP(A78,'Name-Sort'!$D$2:$E$961,2,FALSE)="",A78,"") -> Archie Bradley | AV77: =IFERROR(INDEX($AU$1:$AU$961,SMALL(IF($AU$1:$AU$961<>"",ROW($AU$1:$AU$961)),ROW(AU77))),"") -> Archie Bradley
A78: Archie Bradley | B78: bradlar01 | C78: RP | E78: ARI | F78: 26 | G78: 243 | H78: 102 | I78: 358 | J78: 178 | K78: 102 | L78: 358 | M78: 214.39 | N78: 102 | O78: 293 | P78: 226 | Q78: 102 | R78: 358 | S78: 199.3 | T78: 102 | U78: 358 | V78: 209.47 | W78: 120 | X78: 358 | Y78: 211.6933333 | Z78: 102 | AA78: 358 | AB78: 201 | AC78: 191 | AD78: 144 | AE78: 167 | AF78: 201 | AH78: =IFERROR(INDEX('Guts-2'!$K$1:$K$30,MATCH(E78,'Guts-2'!$J$1:$J$30,0)),TRUE) -> TRUE | AI78: =IF(AH78=FALSE,"",IFERROR(CHOOSE('Guts-2'!$D$27,AB78,AC78,AD78,AE78,AF78,AG78),"")) -> 144 | AJ78: 144 | AK78: =IF(AH78=FALSE,"",IFERROR(CHOOSE('Guts-2'!$D$26,G78,J78,M78,P78,S78,V78,Y78,AR78),"")) -> 214.39 | AL78: =IFERROR(IF(Settings!$L$5="Mixed (Standard)",AK78,RANK(AK78,$AK$2:$AK$961,1)),"") -> 214.39 | AM78: =IFERROR(IF(Settings!$L$5="Mixed (Standard)",(RANK(AK78,$AK$2:$AK$961,1)/('Guts-2'!$N$1+1))+1,(RANK(AL78,$AL$2:$AL$961,1)/('Guts-2'!$N$1+1))+1),"") -> 21.15384615 | AN78: =IFERROR(CHOOSE('Guts-2'!$D$26,H78,K78,N78,Q78,T78,W78,Z78,AS78),"") -> 102 | AO78: =IFERROR(CHOOSE('Guts-2'!$D$26,I78,L78,O78,R78,U78,X78,AA78,AT78),"") -> 293 | AP78: 102 | AQ78: 293 | AR78: =INDEX('Import (ADP)'!$C$2:$C$999,MATCH(A78, 'Import (ADP)'!$B$2:$B$999,0)) ->  | AU78: =IF(VLOOKUP(A79,'Name-Sort'!$D$2:$E$961,2,FALSE)="",A79,"") -> Jackie Bradley Jr. | AV78: =IFERROR(INDEX($AU$1:$AU$961,SMALL(IF($AU$1:$AU$961<>"",ROW($AU$1:$AU$961)),ROW(AU78))),"") -> Jackie Bradley Jr.
A79: Jackie Bradley Jr. | B79: bradlja02 | C79: OF | D79: CF,RF | E79: BOS | F79: 28 | G79: 244 | H79: 126 | I79: 324.52 | J79: 276 | K79: 126 | L79: 367.08 | M79: 209.03 | N79: 126 | O79: 292 | P79: 189 | Q79: 126 | R79: 292 | S79: 241.8 | T79: 126 | U79: 321.594 | V79: 222.21 | W79: 158 | X79: 290 | Y79: 230.34 | Z79: 126 | AA79: 306.3522 | AB79: 257 | AC79: 203 | AD79: 166 | AE79: 214 | AF79: 218 | AH79: =IFERROR(INDEX('Guts-2'!$K$1:$K$30,MATCH(E79,'Guts-2'!$J$1:$J$30,0)),TRUE) -> TRUE | AI79: =IF(AH79=FALSE,"",IFERROR(CHOOSE('Guts-2'!$D$27,AB79,AC79,AD79,AE79,AF79,AG79),"")) -> 166 | AJ79: 166 | AK79: =IF(AH79=FALSE,"",IFERROR(CHOOSE('Guts-2'!$D$26,G79,J79,M79,P79,S79,V79,Y79,AR79),"")) -> 209.03 | AL79: =IFERROR(IF(Settings!$L$5="Mixed (Standard)",AK79,RANK(AK79,$AK$2:$AK$961,1)),"") -> 209.03 | AM79: =IFERROR(IF(Settings!$L$5="Mixed (Standard)",(RANK(AK79,$AK$2:$AK$961,1)/('Guts-2'!$N$1+1))+1,(RANK(AL79,$AL$2:$AL$961,1)/('Guts-2'!$N$1+1))+1),"") -> 19.76923077 | AN79: =IFERROR(CHOOSE('Guts-2'!$D$26,H79,K79,N79,Q79,T79,W79,Z79,AS79),"") -> 126 | AO79: =IFERROR(CHOOSE('Guts-2'!$D$26,I79,L79,O79,R79,U79,X79,AA79,AT79),"") -> 292 | AP79: 126 | AQ79: 292 | AR79: =INDEX('Import (ADP)'!$C$2:$C$999,MATCH(A79, 'Import (ADP)'!$B$2:$B$999,0)) ->  | AU79: =IF(VLOOKUP(A80,'Name-Sort'!$D$2:$E$961,2,FALSE)="",A80,"") -> Michael Brantley | AV79: =IFERROR(INDEX($AU$1:$AU$961,SMALL(IF($AU$1:$AU$961<>"",ROW($AU$1:$AU$961)),ROW(AU79))),"") -> Michael Brantley
A80: Michael Brantley | B80: brantmi02 | C80: OF | D80: LF | E80: HOU | F80: 31 | G80: 107 | H80: 29 | I80: 156 | J80: 115 | K80: 29 | L80: 156 | M80: 65.2 | N80: 29 | O80: 108 | P80: 112 | Q80: 29 | R80: 156 | S80: 118 | T80: 29 | U80: 156.94 | V80: 115.22 | W80: 83 | X80: 156 | Y80: 105.4033333 | Z80: 29 | AA80: 156 | AB80: 48 | AC80: 115 | AD80: 87 | AE80: 83 | AF80: 107 | AH80: =IFERROR(INDEX('Guts-2'!$K$1:$K$30,MATCH(E80,'Guts-2'!$J$1:$J$30,0)),TRUE) -> TRUE | AI80: =IF(AH80=FALSE,"",IFERROR(CHOOSE('Guts-2'!$D$27,AB80,AC80,AD80,AE80,AF80,AG80),"")) -> 87 | AJ80: 87 | AK80: =IF(AH80=FALSE,"",IFERROR(CHOOSE('Guts-2'!$D$26,G80,J80,M80,P80,S80,V80,Y80,AR80),"")) -> 65.2 | AL80: =IFERROR(IF(Settings!$L$5="Mixed (Standard)",AK80,RANK(AK80,$AK$2:$AK$961,1)),"") -> 65.2 | AM80: =IFERROR(IF(Settings!$L$5="Mixed (Standard)",(RANK(AK80,$AK$2:$AK$961,1)/('Guts-2'!$N$1+1))+1,(RANK(AL80,$AL$2:$AL$961,1)/('Guts-2'!$N$1+1))+1),"") -> 5.461538462 | AN80: =IFERROR(CHOOSE('Guts-2'!$D$26,H80,K80,N80,Q80,T80,W80,Z80,AS80),"") -> 29 | AO80: =IFERROR(CHOOSE('Guts-2'!$D$26,I80,L80,O80,R80,U80,X80,AA80,AT80),"") -> 108 | AP80: 29 | AQ80: 108 | AR80: =INDEX('Import (ADP)'!$C$2:$C$999,MATCH(A80, 'Import (ADP)'!$B$2:$B$999,0)) ->  | AU80: =IF(VLOOKUP(A81,'Name-Sort'!$D$2:$E$961,2,FALSE)="",A81,"") -> Ryan Brasier | AV80: =IFERROR(INDEX($AU$1:$AU$961,SMALL(IF($AU$1:$AU$961<>"",ROW($AU$1:$AU$961)),ROW(AU80))),"") -> Ryan Brasier
A81: Ryan Brasier | B81: brasiry01 | C81: RP | E81: BOS | F81: 31 | G81: 468 | H81: 21 | I81: 622.44 | J81: 230 | K81: 21 | L81: 490 | M81: 230.74 | N81: 21 | O81: 353 | P81: 361 | Q81: 21 | R81: 490 | S81: 320.8 | T81: 21 | U81: 490 | V81: 386.41 | W81: 226 | X81: 490 | Y81: 332.825 | Z81: 21 | AA81: 490 | AB81: 278 | AF81: 352 | AH81: =IFERROR(INDEX('Guts-2'!$K$1:$K$30,MATCH(E81,'Guts-2'!$J$1:$J$30,0)),TRUE) -> TRUE | AI81: =IF(AH81=FALSE,"",IFERROR(CHOOSE('Guts-2'!$D$27,AB81,AC81,AD81,AE81,AF81,AG81),"")) ->  | AK81: =IF(AH81=FALSE,"",IFERROR(CHOOSE('Guts-2'!$D$26,G81,J81,M81,P81,S81,V81,Y81,AR81),"")) -> 230.74 | AL81: =IFERROR(IF(Settings!$L$5="Mixed (Standard)",AK81,RANK(AK81,$AK$2:$AK$961,1)),"") -> 230.74 | AM81: =IFERROR(IF(Settings!$L$5="Mixed (Standard)",(RANK(AK81,$AK$2:$AK$961,1)/('Guts-2'!$N$1+1))+1,(RANK(AL81,$AL$2:$AL$961,1)/('Guts-2'!$N$1+1))+1),"") -> 23.76923077 | AN81: =IFERROR(CHOOSE('Guts-2'!$D$26,H81,K81,N81,Q81,T81,W81,Z81,AS81),"") -> 21 | AO81: =IFERROR(CHOOSE('Guts-2'!$D$26,I81,L81,O81,R81,U81,X81,AA81,AT81),"") -> 353 | AP81: 21 | AQ81: 353 | AR81: =INDEX('Import (ADP)'!$C$2:$C$999,MATCH(A81, 'Import (ADP)'!$B$2:$B$999,0)) ->  | AU81: =IF(VLOOKUP(A82,'Name-Sort'!$D$2:$E$961,2,FALSE)="",A82,"") -> Ryan Braun | AV81: =IFERROR(INDEX($AU$1:$AU$961,SMALL(IF($AU$1:$AU$961<>"",ROW($AU$1:$AU$961)),ROW(AU81))),"") -> Ryan Braun
A82: Ryan Braun | B82: braunry02 | C82: OF | D82: LF | E82: MIL | F82: 35 | G82: 912 | H82: 91 | I82: 1212.96 | J82: 182 | K82: 91 | L82: 266 | M82: 180.53 | N82: 91 | O82: 254 | P82: 184 | Q82: 91 | R82: 266 | S82: 187.8 | T82: 91 | U82: 266 | V82: 198.48 | W82: 139 | X82: 266 | Y82: 307.4683333 | Z82: 91 | AA82: 408.9328833 | AB82: 148 | AC82: 171 | AD82: 208 | AE82: 162 | AF82: 148 | AH82: =IFERROR(INDEX('Guts-2'!$K$1:$K$30,MATCH(E82,'Guts-2'!$J$1:$J$30,0)),TRUE) -> TRUE | AI82: =IF(AH82=FALSE,"",IFERROR(CHOOSE('Guts-2'!$D$27,AB82,AC82,AD82,AE82,AF82,AG82),"")) -> 208 | AJ82: 208 | AK82: =IF(AH82=FALSE,"",IFERROR(CHOOSE('Guts-2'!$D$26,G82,J82,M82,P82,S82,V82,Y82,AR82),"")) -> 180.53 | AL82: =IFERROR(IF(Settings!$L$5="Mixed (Standard)",AK82,RANK(AK82,$AK$2:$AK$961,1)),"") -> 180.53 | AM82: =IFERROR(IF(Settings!$L$5="Mixed (Standard)",(RANK(AK82,$AK$2:$AK$961,1)/('Guts-2'!$N$1+1))+1,(RANK(AL82,$AL$2:$AL$961,1)/('Guts-2'!$N$1+1))+1),"") -> 15.84615385 | AN82: =IFERROR(CHOOSE('Guts-2'!$D$26,H82,K82,N82,Q82,T82,W82,Z82,AS82),"") -> 91 | AO82: =IFERROR(CHOOSE('Guts-2'!$D$26,I82,L82,O82,R82,U82,X82,AA82,AT82),"") -> 254 | AP82: 91 | AQ82: 254 | AR82: =INDEX('Import (ADP)'!$C$2:$C$999,MATCH(A82, 'Import (ADP)'!$B$2:$B$999,0)) ->  | AU82: =IF(VLOOKUP(A83,'Name-Sort'!$D$2:$E$961,2,FALSE)="",A83,"") -> John Brebbia | AV82: =IFERROR(INDEX($AU$1:$AU$961,SMALL(IF($AU$1:$AU$961<>"",ROW($AU$1:$AU$961)),ROW(AU82))),"") -> John Brebbia
A83: John Brebbia | B83: brebbjo01 | C83: RP | E83: STL | F83: 28 | P83: 712 | Q83: 511 | R83: 946.96 | S83: 777.5 | T83: 511 | U83: 1034.075 | V83: 747.75 | W83: 511 | X83: 738 | Y83: 745.75 | Z83: 511 | AA83: 991.8475 | AF83: 638 | AH83: =IFERROR(INDEX('Guts-2'!$K$1:$K$30,MATCH(E83,'Guts-2'!$J$1:$J$30,0)),TRUE) -> TRUE | AI83: =IF(AH83=FALSE,"",IFERROR(CHOOSE('Guts-2'!$D$27,AB83,AC83,AD83,AE83,AF83,AG83),"")) ->  | AK83: =IF(AH83=FALSE,"",IFERROR(CHOOSE('Guts-2'!$D$26,G83,J83,M83,P83,S83,V83,Y83,AR83),"")) ->  | AL83: =IFERROR(IF(Settings!$L$5="Mixed (Standard)",AK83,RANK(AK83,$AK$2:$AK$961,1)),"") ->  | AM83: =IFERROR(IF(Settings!$L$5="Mixed (Standard)",(RANK(AK83,$AK$2:$AK$961,1)/('Guts-2'!$N$1+1))+1,(RANK(AL83,$AL$2:$AL$961,1)/('Guts-2'!$N$1+1))+1),"") ->  | AN83: =IFERROR(CHOOSE('Guts-2'!$D$26,H83,K83,N83,Q83,T83,W83,Z83,AS83),"") ->  | AO83: =IFERROR(CHOOSE('Guts-2'!$D$26,I83,L83,O83,R83,U83,X83,AA83,AT83),"") ->  | AR83: =INDEX('Import (ADP)'!$C$2:$C$999,MATCH(A83, 'Import (ADP)'!$B$2:$B$999,0)) ->  | AU83: =IF(VLOOKUP(A84,'Name-Sort'!$D$2:$E$961,2,FALSE)="",A84,"") -> Alex Bregman | AV83: =IFERROR(INDEX($AU$1:$AU$961,SMALL(IF($AU$1:$AU$961<>"",ROW($AU$1:$AU$961)),ROW(AU83))),"") -> Alex Bregman
A84: Alex Bregman | B84: bregmal01 | C84: 3B | E84: HOU | F84: 24 | G84: 11 | H84: 5 | I84: 27 | J84: 15 | K84: 5 | L84: 27 | M84: 13.4 | N84: 5 | O84: 27 | P84: 14 | Q84: 5 | R84: 27 | S84: 14.5 | T84: 5 | U84: 27 | V84: 13.89 | W84: 5 | X84: 23 | Y84: 13.63166667 | Z84: 5 | AA84: 27 | AB84: 24 | AC84: 15 | AD84: 19 | AE84: 6 | AF84: 15 | AH84: =IFERROR(INDEX('Guts-2'!$K$1:$K$30,MATCH(E84,'Guts-2'!$J$1:$J$30,0)),TRUE) -> TRUE | AI84: =IF(AH84=FALSE,"",IFERROR(CHOOSE('Guts-2'!$D$27,AB84,AC84,AD84,AE84,AF84,AG84),"")) -> 19 | AJ84: 19 | AK84: =IF(AH84=FALSE,"",IFERROR(CHOOSE('Guts-2'!$D$26,G84,J84,M84,P84,S84,V84,Y84,AR84),"")) -> 13.4 | AL84: =IFERROR(IF(Settings!$L$5="Mixed (Standard)",AK84,RANK(AK84,$AK$2:$AK$961,1)),"") -> 13.4 | AM84: =IFERROR(IF(Settings!$L$5="Mixed (Standard)",(RANK(AK84,$AK$2:$AK$961,1)/('Guts-2'!$N$1+1))+1,(RANK(AL84,$AL$2:$AL$961,1)/('Guts-2'!$N$1+1))+1),"") -> 2 | AN84: =IFERROR(CHOOSE('Guts-2'!$D$26,H84,K84,N84,Q84,T84,W84,Z84,AS84),"") -> 5 | AO84: =IFERROR(CHOOSE('Guts-2'!$D$26,I84,L84,O84,R84,U84,X84,AA84,AT84),"") -> 27 | AP84: 5 | AQ84: 27 | AR84: =INDEX('Import (ADP)'!$C$2:$C$999,MATCH(A84, 'Import (ADP)'!$B$2:$B$999,0)) ->  | AU84: =IF(VLOOKUP(A85,'Name-Sort'!$D$2:$E$961,2,FALSE)="",A85,"") -> Lewis Brinson | AV84: =IFERROR(INDEX($AU$1:$AU$961,SMALL(IF($AU$1:$AU$961<>"",ROW($AU$1:$AU$961)),ROW(AU84))),"") -> Lewis Brinson
A85: Lewis Brinson | B85: brinsle01 | C85: OF | D85: LF,CF | E85: MIA | F85: 24 | G85: 369 | H85: 182 | I85: 519 | P85: 365 | Q85: 182 | R85: 519 | S85: 367.3 | T85: 182 | U85: 519 | V85: 452.36 | W85: 182 | X85: 519 | Y85: 388.415 | Z85: 182 | AA85: 519 | AF85: 345 | AH85: =IFERROR(INDEX('Guts-2'!$K$1:$K$30,MATCH(E85,'Guts-2'!$J$1:$J$30,0)),TRUE) -> TRUE | AI85: =IF(AH85=FALSE,"",IFERROR(CHOOSE('Guts-2'!$D$27,AB85,AC85,AD85,AE85,AF85,AG85),"")) ->  | AK85: =IF(AH85=FALSE,"",IFERROR(CHOOSE('Guts-2'!$D$26,G85,J85,M85,P85,S85,V85,Y85,AR85),"")) ->  | AL85: =IFERROR(IF(Settings!$L$5="Mixed (Standard)",AK85,RANK(AK85,$AK$2:$AK$961,1)),"") ->  | AM85: =IFERROR(IF(Settings!$L$5="Mixed (Standard)",(RANK(AK85,$AK$2:$AK$961,1)/('Guts-2'!$N$1+1))+1,(RANK(AL85,$AL$2:$AL$961,1)/('Guts-2'!$N$1+1))+1),"") ->  | AN85: =IFERROR(CHOOSE('Guts-2'!$D$26,H85,K85,N85,Q85,T85,W85,Z85,AS85),"") ->  | AO85: =IFERROR(CHOOSE('Guts-2'!$D$26,I85,L85,O85,R85,U85,X85,AA85,AT85),"") ->  | AR85: =INDEX('Import (ADP)'!$C$2:$C$999,MATCH(A85, 'Import (ADP)'!$B$2:$B$999,0)) ->  | AU85: =IF(VLOOKUP(A86,'Name-Sort'!$D$2:$E$961,2,FALSE)="",A86,"") -> Socrates Brito | AV85: =IFERROR(INDEX($AU$1:$AU$961,SMALL(IF($AU$1:$AU$961<>"",ROW($AU$1:$AU$961)),ROW(AU85))),"") -> Socrates Brito
A86: Socrates Brito | B86: britoso01 | C86: OF | D86: CF,RF | E86: ARI | F86: 26 | G86: 877 | H86: 657.75 | I86: 1166.41 | P86: 531 | Q86: 398.25 | R86: 749 | S86: 681.5 | T86: 511.125 | U86: 906.395 | V86: 750.85 | W86: 723 | X86: 749 | Y86: 710.0875 | Z86: 532.565625 | AA86: 944.416375 | AH86: =IFERROR(INDEX('Guts-2'!$K$1:$K$30,MATCH(E86,'Guts-2'!$J$1:$J$30,0)),TRUE) -> TRUE | AI86: =IF(AH86=FALSE,"",IFERROR(CHOOSE('Guts-2'!$D$27,AB86,AC86,AD86,AE86,AF86,AG86),"")) ->  | AK86: =IF(AH86=FALSE,"",IFERROR(CHOOSE('Guts-2'!$D$26,G86,J86,M86,P86,S86,V86,Y86,AR86),"")) ->  | AL86: =IFERROR(IF(Settings!$L$5="Mixed (Standard)",AK86,RANK(AK86,$AK$2:$AK$961,1)),"") ->  | AM86: =IFERROR(IF(Settings!$L$5="Mixed (Standard)",(RANK(AK86,$AK$2:$AK$961,1)/('Guts-2'!$N$1+1))+1,(RANK(AL86,$AL$2:$AL$961,1)/('Guts-2'!$N$1+1))+1),"") ->  | AN86: =IFERROR(CHOOSE('Guts-2'!$D$26,H86,K86,N86,Q86,T86,W86,Z86,AS86),"") ->  | AO86: =IFERROR(CHOOSE('Guts-2'!$D$26,I86,L86,O86,R86,U86,X86,AA86,AT86),"") ->  | AR86: =INDEX('Import (ADP)'!$C$2:$C$999,MATCH(A86, 'Import (ADP)'!$B$2:$B$999,0)) ->  | AU86: =IF(VLOOKUP(A87,'Name-Sort'!$D$2:$E$961,2,FALSE)="",A87,"") -> Zach Britton | AV86: =IFERROR(INDEX($AU$1:$AU$961,SMALL(IF($AU$1:$AU$961<>"",ROW($AU$1:$AU$961)),ROW(AU86))),"") -> Zach Britton
A87: Zach Britton | B87: brittza01 | C87: RP | E87: NYY | F87: 31 | G87: 320 | H87: 240 | I87: 563 | J87: 244 | K87: 183 | L87: 563 | P87: 303 | Q87: 227.25 | R87: 563 | S87: 303 | T87: 227.25 | U87: 563 | V87: 536.16 | W87: 244 | X87: 563 | Y87: 341.232 | Z87: 244 | AA87: 563 | AE87: 258 | AF87: 368 | AH87: =IFERROR(INDEX('Guts-2'!$K$1:$K$30,MATCH(E87,'Guts-2'!$J$1:$J$30,0)),TRUE) -> TRUE | AI87: =IF(AH87=FALSE,"",IFERROR(CHOOSE('Guts-2'!$D$27,AB87,AC87,AD87,AE87,AF87,AG87),"")) ->  | AK87: =IF(AH87=FALSE,"",IFERROR(CHOOSE('Guts-2'!$D$26,G87,J87,M87,P87,S87,V87,Y87,AR87),"")) ->  | AL87: =IFERROR(IF(Settings!$L$5="Mixed (Standard)",AK87,RANK(AK87,$AK$2:$AK$961,1)),"") ->  | AM87: =IFERROR(IF(Settings!$L$5="Mixed (Standard)",(RANK(AK87,$AK$2:$AK$961,1)/('Guts-2'!$N$1+1))+1,(RANK(AL87,$AL$2:$AL$961,1)/('Guts-2'!$N$1+1))+1),"") ->  | AN87: =IFERROR(CHOOSE('Guts-2'!$D$26,H87,K87,N87,Q87,T87,W87,Z87,AS87),"") ->  | AO87: =IFERROR(CHOOSE('Guts-2'!$D$26,I87,L87,O87,R87,U87,X87,AA87,AT87),"") ->  | AR87: =INDEX('Import (ADP)'!$C$2:$C$999,MATCH(A87, 'Import (ADP)'!$B$2:$B$999,0)) ->  | AU87: =IF(VLOOKUP(A88,'Name-Sort'!$D$2:$E$961,2,FALSE)="",A88,"") -> Keon Broxton | AV87: =IFERROR(INDEX($AU$1:$AU$961,SMALL(IF($AU$1:$AU$961<>"",ROW($AU$1:$AU$961)),ROW(AU87))),"") -> Keon Broxton
A88: Keon Broxton | B88: broxtke01 | C88: OF | D88: CF | E88: NYM | F88: 28 | V88: 628.5 | W88: 327 | X88: 556 | Y88: 628.5 | Z88: 327 | AA88: 835.905 | AD88: 266 | AF88: 467 | AH88: =IFERROR(INDEX('Guts-2'!$K$1:$K$30,MATCH(E88,'Guts-2'!$J$1:$J$30,0)),TRUE) -> TRUE | AI88: =IF(AH88=FALSE,"",IFERROR(CHOOSE('Guts-2'!$D$27,AB88,AC88,AD88,AE88,AF88,AG88),"")) -> 266 | AJ88: 266 | AK88: =IF(AH88=FALSE,"",IFERROR(CHOOSE('Guts-2'!$D$26,G88,J88,M88,P88,S88,V88,Y88,AR88),"")) ->  | AL88: =IFERROR(IF(Settings!$L$5="Mixed (Standard)",AK88,RANK(AK88,$AK$2:$AK$961,1)),"") ->  | AM88: =IFERROR(IF(Settings!$L$5="Mixed (Standard)",(RANK(AK88,$AK$2:$AK$961,1)/('Guts-2'!$N$1+1))+1,(RANK(AL88,$AL$2:$AL$961,1)/('Guts-2'!$N$1+1))+1),"") ->  | AN88: =IFERROR(CHOOSE('Guts-2'!$D$26,H88,K88,N88,Q88,T88,W88,Z88,AS88),"") ->  | AO88: =IFERROR(CHOOSE('Guts-2'!$D$26,I88,L88,O88,R88,U88,X88,AA88,AT88),"") ->  | AR88: =INDEX('Import (ADP)'!$C$2:$C$999,MATCH(A88, 'Import (ADP)'!$B$2:$B$999,0)) ->  | AU88: =IF(VLOOKUP(A89,'Name-Sort'!$D$2:$E$961,2,FALSE)="",A89,"") -> Jay Bruce | AV88: =IFERROR(INDEX($AU$1:$AU$961,SMALL(IF($AU$1:$AU$961<>"",ROW($AU$1:$AU$961)),ROW(AU88))),"") -> Jay Bruce
A89: Jay Bruce | B89: bruceja01 | C89: OF | D89: RF | E89: SEA | F89: 31 | G89: 307 | H89: 197 | I89: 408.31 | J89: 358 | K89: 197 | L89: 476.14 | P89: 237 | Q89: 177.75 | R89: 355 | S89: 303.8 | T89: 197 | U89: 404.054 | V89: 280.29 | W89: 197 | X89: 355 | Y89: 297.218 | Z89: 197 | AA89: 395.29994 | AD89: 164 | AE89: 274 | AF89: 316 | AH89: =IFERROR(INDEX('Guts-2'!$K$1:$K$30,MATCH(E89,'Guts-2'!$J$1:$J$30,0)),TRUE) -> TRUE | AI89: =IF(AH89=FALSE,"",IFERROR(CHOOSE('Guts-2'!$D$27,AB89,AC89,AD89,AE89,AF89,AG89),"")) -> 164 | AJ89: 164 | AK89: =IF(AH89=FALSE,"",IFERROR(CHOOSE('Guts-2'!$D$26,G89,J89,M89,P89,S89,V89,Y89,AR89),"")) ->  | AL89: =IFERROR(IF(Settings!$L$5="Mixed (Standard)",AK89,RANK(AK89,$AK$2:$AK$961,1)),"") ->  | AM89: =IFERROR(IF(Settings!$L$5="Mixed (Standard)",(RANK(AK89,$AK$2:$AK$961,1)/('Guts-2'!$N$1+1))+1,(RANK(AL89,$AL$2:$AL$961,1)/('Guts-2'!$N$1+1))+1),"") ->  | AN89: =IFERROR(CHOOSE('Guts-2'!$D$26,H89,K89,N89,Q89,T89,W89,Z89,AS89),"") ->  | AO89: =IFERROR(CHOOSE('Guts-2'!$D$26,I89,L89,O89,R89,U89,X89,AA89,AT89),"") ->  | AR89: =INDEX('Import (ADP)'!$C$2:$C$999,MATCH(A89, 'Import (ADP)'!$B$2:$B$999,0)) ->  | AU89: =IF(VLOOKUP(A90,'Name-Sort'!$D$2:$E$961,2,FALSE)="",A90,"") -> Kris Bryant | AV89: =IFERROR(INDEX($AU$1:$AU$961,SMALL(IF($AU$1:$AU$961<>"",ROW($AU$1:$AU$961)),ROW(AU89))),"") -> Kris Bryant
A90: Kris Bryant | B90: bryankr01 | C90: 3B | D90: RF | E90: CHC | F90: 27 | G90: 31 | H90: 15 | I90: 52 | J90: 26 | K90: 15 | L90: 52 | M90: 37.05 | N90: 20 | O90: 52 | P90: 28 | Q90: 15 | R90: 52 | S90: 30 | T90: 15 | U90: 52 | V90: 32.33 | W90: 15 | X90: 45 | Y90: 30.73 | Z90: 15 | AA90: 52 | AB90: 35 | AC90: 24 | AD90: 50 | AE90: 21 | AF90: 28 | AH90: =IFERROR(INDEX('Guts-2'!$K$1:$K$30,MATCH(E90,'Guts-2'!$J$1:$J$30,0)),TRUE) -> TRUE | AI90: =IF(AH90=FALSE,"",IFERROR(CHOOSE('Guts-2'!$D$27,AB90,AC90,AD90,AE90,AF90,AG90),"")) -> 50 | AJ90: 50 | AK90: =IF(AH90=FALSE,"",IFERROR(CHOOSE('Guts-2'!$D$26,G90,J90,M90,P90,S90,V90,Y90,AR90),"")) -> 37.05 | AL90: =IFERROR(IF(Settings!$L$5="Mixed (Standard)",AK90,RANK(AK90,$AK$2:$AK$961,1)),"") -> 37.05 | AM90: =IFERROR(IF(Settings!$L$5="Mixed (Standard)",(RANK(AK90,$AK$2:$AK$961,1)/('Guts-2'!$N$1+1))+1,(RANK(AL90,$AL$2:$AL$961,1)/('Guts-2'!$N$1+1))+1),"") -> 3.769230769 | AN90: =IFERROR(CHOOSE('Guts-2'!$D$26,H90,K90,N90,Q90,T90,W90,Z90,AS90),"") -> 20 | AO90: =IFERROR(CHOOSE('Guts-2'!$D$26,I90,L90,O90,R90,U90,X90,AA90,AT90),"") -> 52 | AP90: 20 | AQ90: 52 | AR90: =INDEX('Import (ADP)'!$C$2:$C$999,MATCH(A90, 'Import (ADP)'!$B$2:$B$999,0)) -> 13 | AS90: 10 | AT90: 52 | AU90: =IF(VLOOKUP(A91,'Name-Sort'!$D$2:$E$961,2,FALSE)="",A91,"") -> Clay Buchholz | AV90: =IFERROR(INDEX($AU$1:$AU$961,SMALL(IF($AU$1:$AU$961<>"",ROW($AU$1:$AU$961)),ROW(AU90))),"") -> Clay Buchholz
A91: Clay Buchholz | B91: buchhcl01 | C91: SP | E91: TOR | F91: 34 | G91: 418 | H91: 102 | I91: 599 | J91: 293 | K91: 102 | L91: 599 | M91: 177.14 | N91: 102 | O91: 273 | P91: 406 | Q91: 102 | R91: 599 | S91: 384 | T91: 102 | U91: 599 | V91: 596.98 | W91: 316 | X91: 599 | Y91: 379.1866667 | Z91: 102 | AA91: 599 | AB91: 261 | AF91: 555 | AH91: =IFERROR(INDEX('Guts-2'!$K$1:$K$30,MATCH(E91,'Guts-2'!$J$1:$J$30,0)),TRUE) -> TRUE | AI91: =IF(AH91=FALSE,"",IFERROR(CHOOSE('Guts-2'!$D$27,AB91,AC91,AD91,AE91,AF91,AG91),"")) ->  | AK91: =IF(AH91=FALSE,"",IFERROR(CHOOSE('Guts-2'!$D$26,G91,J91,M91,P91,S91,V91,Y91,AR91),"")) -> 177.14 | AL91: =IFERROR(IF(Settings!$L$5="Mixed (Standard)",AK91,RANK(AK91,$AK$2:$AK$961,1)),"") -> 177.14 | AM91: =IFERROR(IF(Settings!$L$5="Mixed (Standard)",(RANK(AK91,$AK$2:$AK$961,1)/('Guts-2'!$N$1+1))+1,(RANK(AL91,$AL$2:$AL$961,1)/('Guts-2'!$N$1+1))+1),"") -> 15.53846154 | AN91: =IFERROR(CHOOSE('Guts-2'!$D$26,H91,K91,N91,Q91,T91,W91,Z91,AS91),"") -> 102 | AO91: =IFERROR(CHOOSE('Guts-2'!$D$26,I91,L91,O91,R91,U91,X91,AA91,AT91),"") -> 273 | AP91: 102 | AQ91: 273 | AR91: =INDEX('Import (ADP)'!$C$2:$C$999,MATCH(A91, 'Import (ADP)'!$B$2:$B$999,0)) ->  | AU91: =IF(VLOOKUP(A92,'Name-Sort'!$D$2:$E$961,2,FALSE)="",A92,"") -> Walker Buehler | AV91: =IFERROR(INDEX($AU$1:$AU$961,SMALL(IF($AU$1:$AU$961<>"",ROW($AU$1:$AU$961)),ROW(AU91))),"") -> Walker Buehler
A92: Walker Buehler | B92: buehlwa01 | C92: SP | E92: LAD | F92: 24 | G92: 43 | H92: 14 | I92: 80 | J92: 38 | K92: 14 | L92: 80 | M92: 39.7 | N92: 21 | O92: 80 | P92: 42 | Q92: 14 | R92: 80 | S92: 38.3 | T92: 14 | U92: 80 | V92: 39.08 | W92: 14 | X92: 56 | Y92: 40.01333333 | Z92: 14 | AA92: 80 | AB92: 75 | AC92: 44 | AD92: 106 | AE92: 50 | AF92: 44 | AH92: =IFERROR(INDEX('Guts-2'!$K$1:$K$30,MATCH(E92,'Guts-2'!$J$1:$J$30,0)),TRUE) -> TRUE | AI92: =IF(AH92=FALSE,"",IFERROR(CHOOSE('Guts-2'!$D$27,AB92,AC92,AD92,AE92,AF92,AG92),"")) -> 106 | AJ92: 106 | AK92: =IF(AH92=FALSE,"",IFERROR(CHOOSE('Guts-2'!$D$26,G92,J92,M92,P92,S92,V92,Y92,AR92),"")) -> 39.7 | AL92: =IFERROR(IF(Settings!$L$5="Mixed (Standard)",AK92,RANK(AK92,$AK$2:$AK$961,1)),"") -> 39.7 | AM92: =IFERROR(IF(Settings!$L$5="Mixed (Standard)",(RANK(AK92,$AK$2:$AK$961,1)/('Guts-2'!$N$1+1))+1,(RANK(AL92,$AL$2:$AL$961,1)/('Guts-2'!$N$1+1))+1),"") -> 4.076923077 | AN92: =IFERROR(CHOOSE('Guts-2'!$D$26,H92,K92,N92,Q92,T92,W92,Z92,AS92),"") -> 21 | AO92: =IFERROR(CHOOSE('Guts-2'!$D$26,I92,L92,O92,R92,U92,X92,AA92,AT92),"") -> 80 | AP92: 21 | AQ92: 80 | AR92: =INDEX('Import (ADP)'!$C$2:$C$999,MATCH(A92, 'Import (ADP)'!$B$2:$B$999,0)) ->  | AU92: =IF(VLOOKUP(A93,'Name-Sort'!$D$2:$E$961,2,FALSE)="",A93,"") -> Madison Bumgarner | AV92: =IFERROR(INDEX($AU$1:$AU$961,SMALL(IF($AU$1:$AU$961<>"",ROW($AU$1:$AU$961)),ROW(AU92))),"") -> Madison Bumgarner
A93: Madison Bumgarner | B93: bumgama01 | C93: SP | E93: SF | F93: 29 | G93: 67 | H93: 43 | I93: 154 | J93: 99 | K93: 43 | L93: 154 | M93: 88.07 | N93: 43 | O93: 154 | P93: 95 | Q93: 43 | R93: 154 | S93: 86.5 | T93: 43 | U93: 154 | V93: 86.14 | W93: 45 | X93: 128 | Y93: 86.95166667 | Z93: 43 | AA93: 154 | AB93: 170 | AC93: 110 | AD93: 218 | AE93: 69 | AF93: 113 | AH93: =IFERROR(INDEX('Guts-2'!$K$1:$K$30,MATCH(E93,'Guts-2'!$J$1:$J$30,0)),TRUE) -> TRUE | AI93: =IF(AH93=FALSE,"",IFERROR(CHOOSE('Guts-2'!$D$27,AB93,AC93,AD93,AE93,AF93,AG93),"")) -> 218 | AJ93: 218 | AK93: =IF(AH93=FALSE,"",IFERROR(CHOOSE('Guts-2'!$D$26,G93,J93,M93,P93,S93,V93,Y93,AR93),"")) -> 88.07 | AL93: =IFERROR(IF(Settings!$L$5="Mixed (Standard)",AK93,RANK(AK93,$AK$2:$AK$961,1)),"") -> 88.07 | AM93: =IFERROR(IF(Settings!$L$5="Mixed (Standard)",(RANK(AK93,$AK$2:$AK$961,1)/('Guts-2'!$N$1+1))+1,(RANK(AL93,$AL$2:$AL$961,1)/('Guts-2'!$N$1+1))+1),"") -> 7.153846154 | AN93: =IFERROR(CHOOSE('Guts-2'!$D$26,H93,K93,N93,Q93,T93,W93,Z93,AS93),"") -> 43 | AO93: =IFERROR(CHOOSE('Guts-2'!$D$26,I93,L93,O93,R93,U93,X93,AA93,AT93),"") -> 154 | AP93: 43 | AQ93: 154 | AR93: =INDEX('Import (ADP)'!$C$2:$C$999,MATCH(A93, 'Import (ADP)'!$B$2:$B$999,0)) ->  | AU93: =IF(VLOOKUP(A94,'Name-Sort'!$D$2:$E$961,2,FALSE)="",A94,"") -> Dylan Bundy | AV93: =IFERROR(INDEX($AU$1:$AU$961,SMALL(IF($AU$1:$AU$961<>"",ROW($AU$1:$AU$961)),ROW(AU93))),"") -> Dylan Bundy
A94: Dylan Bundy | B94: bundydy01 | C94: SP | E94: BAL | F94: 26 | G94: 294 | H94: 113 | I94: 411 | J94: 295 | K94: 113 | L94: 411 | M94: 205.63 | N94: 113 | O94: 287 | P94: 252 | Q94: 113 | R94: 411 | S94: 291.3 | T94: 113 | U94: 411 | V94: 308.34 | W94: 192 | X94: 411 | Y94: 274.3783333 | Z94: 113 | AA94: 411 | AF94: 281 | AH94: =IFERROR(INDEX('Guts-2'!$K$1:$K$30,MATCH(E94,'Guts-2'!$J$1:$J$30,0)),TRUE) -> TRUE | AI94: =IF(AH94=FALSE,"",IFERROR(CHOOSE('Guts-2'!$D$27,AB94,AC94,AD94,AE94,AF94,AG94),"")) ->  | AK94: =IF(AH94=FALSE,"",IFERROR(CHOOSE('Guts-2'!$D$26,G94,J94,M94,P94,S94,V94,Y94,AR94),"")) -> 205.63 | AL94: =IFERROR(IF(Settings!$L$5="Mixed (Standard)",AK94,RANK(AK94,$AK$2:$AK$961,1)),"") -> 205.63 | AM94: =IFERROR(IF(Settings!$L$5="Mixed (Standard)",(RANK(AK94,$AK$2:$AK$961,1)/('Guts-2'!$N$1+1))+1,(RANK(AL94,$AL$2:$AL$961,1)/('Guts-2'!$N$1+1))+1),"") -> 19.23076923 | AN94: =IFERROR(CHOOSE('Guts-2'!$D$26,H94,K94,N94,Q94,T94,W94,Z94,AS94),"") -> 113 | AO94: =IFERROR(CHOOSE('Guts-2'!$D$26,I94,L94,O94,R94,U94,X94,AA94,AT94),"") -> 287 | AP94: 113 | AQ94: 287 | AR94: =INDEX('Import (ADP)'!$C$2:$C$999,MATCH(A94, 'Import (ADP)'!$B$2:$B$999,0)) ->  | AU94: =IF(VLOOKUP(A95,'Name-Sort'!$D$2:$E$961,2,FALSE)="",A95,"") -> Corbin Burnes | AV94: =IFERROR(INDEX($AU$1:$AU$961,SMALL(IF($AU$1:$AU$961<>"",ROW($AU$1:$AU$961)),ROW(AU94))),"") -> Corbin Burnes
A95: Corbin Burnes | B95: burneco01 | C95: SP | E95: MIL | F95: 24 | G95: 313 | H95: 95 | I95: 430 | J95: 327 | K95: 95 | L95: 434.91 | M95: 221.5 | N95: 95 | O95: 340 | P95: 397 | Q95: 95 | R95: 528.01 | S95: 339.8 | T95: 95 | U95: 451.934 | V95: 303.38 | W95: 206 | X95: 430 | Y95: 316.9466667 | Z95: 95 | AA95: 430 | AE95: 281 | AF95: 350 | AH95: =IFERROR(INDEX('Guts-2'!$K$1:$K$30,MATCH(E95,'Guts-2'!$J$1:$J$30,0)),TRUE) -> TRUE | AI95: =IF(AH95=FALSE,"",IFERROR(CHOOSE('Guts-2'!$D$27,AB95,AC95,AD95,AE95,AF95,AG95),"")) ->  | AK95: =IF(AH95=FALSE,"",IFERROR(CHOOSE('Guts-2'!$D$26,G95,J95,M95,P95,S95,V95,Y95,AR95),"")) -> 221.5 | AL95: =IFERROR(IF(Settings!$L$5="Mixed (Standard)",AK95,RANK(AK95,$AK$2:$AK$961,1)),"") -> 221.5 | AM95: =IFERROR(IF(Settings!$L$5="Mixed (Standard)",(RANK(AK95,$AK$2:$AK$961,1)/('Guts-2'!$N$1+1))+1,(RANK(AL95,$AL$2:$AL$961,1)/('Guts-2'!$N$1+1))+1),"") -> 22.46153846 | AN95: =IFERROR(CHOOSE('Guts-2'!$D$26,H95,K95,N95,Q95,T95,W95,Z95,AS95),"") -> 95 | AO95: =IFERROR(CHOOSE('Guts-2'!$D$26,I95,L95,O95,R95,U95,X95,AA95,AT95),"") -> 340 | AP95: 95 | AQ95: 340 | AR95: =INDEX('Import (ADP)'!$C$2:$C$999,MATCH(A95, 'Import (ADP)'!$B$2:$B$999,0)) ->  | AU95: =IF(VLOOKUP(A96,'Name-Sort'!$D$2:$E$961,2,FALSE)="",A96,"") -> Ty Buttrey | AV95: =IFERROR(INDEX($AU$1:$AU$961,SMALL(IF($AU$1:$AU$961<>"",ROW($AU$1:$AU$961)),ROW(AU95))),"") -> Ty Buttrey
A96: Ty Buttrey | B96: buttrty01 | C96: SP | E96: LAA | F96: 25 | G96: 346 | H96: 259.5 | I96: 531 | S96: 346.5 | T96: 259.875 | U96: 531 | V96: 583.86 | W96: 301 | X96: 531 | Y96: 425.4533333 | Z96: 301 | AA96: 565.8529333 | AE96: 293 | AF96: 455 | AH96: =IFERROR(INDEX('Guts-2'!$K$1:$K$30,MATCH(E96,'Guts-2'!$J$1:$J$30,0)),TRUE) -> TRUE | AI96: =IF(AH96=FALSE,"",IFERROR(CHOOSE('Guts-2'!$D$27,AB96,AC96,AD96,AE96,AF96,AG96),"")) ->  | AK96: =IF(AH96=FALSE,"",IFERROR(CHOOSE('Guts-2'!$D$26,G96,J96,M96,P96,S96,V96,Y96,AR96),"")) ->  | AL96: =IFERROR(IF(Settings!$L$5="Mixed (Standard)",AK96,RANK(AK96,$AK$2:$AK$961,1)),"") ->  | AM96: =IFERROR(IF(Settings!$L$5="Mixed (Standard)",(RANK(AK96,$AK$2:$AK$961,1)/('Guts-2'!$N$1+1))+1,(RANK(AL96,$AL$2:$AL$961,1)/('Guts-2'!$N$1+1))+1),"") ->  | AN96: =IFERROR(CHOOSE('Guts-2'!$D$26,H96,K96,N96,Q96,T96,W96,Z96,AS96),"") ->  | AO96: =IFERROR(CHOOSE('Guts-2'!$D$26,I96,L96,O96,R96,U96,X96,AA96,AT96),"") ->  | AR96: =INDEX('Import (ADP)'!$C$2:$C$999,MATCH(A96, 'Import (ADP)'!$B$2:$B$999,0)) ->  | AU96: =IF(VLOOKUP(A97,'Name-Sort'!$D$2:$E$961,2,FALSE)="",A97,"") -> Byron Buxton | AV96: =IFERROR(INDEX($AU$1:$AU$961,SMALL(IF($AU$1:$AU$961<>"",ROW($AU$1:$AU$961)),ROW(AU96))),"") -> Byron Buxton
A97: Byron Buxton | B97: buxtoby01 | C97: OF | D97: CF | E97: MIN | F97: 25 | G97: 176 | H97: 77 | I97: 266 | J97: 200 | K97: 77 | L97: 266 | M97: 197.54 | N97: 132 | O97: 266 | P97: 179 | Q97: 77 | R97: 266 | S97: 184 | T97: 77 | U97: 266 | V97: 157.79 | W97: 77 | X97: 240 | Y97: 182.3883333 | Z97: 77 | AA97: 266 | AC97: 180 | AD97: 243 | AE97: 142 | AF97: 179 | AH97: =IFERROR(INDEX('Guts-2'!$K$1:$K$30,MATCH(E97,'Guts-2'!$J$1:$J$30,0)),TRUE) -> TRUE | AI97: =IF(AH97=FALSE,"",IFERROR(CHOOSE('Guts-2'!$D$27,AB97,AC97,AD97,AE97,AF97,AG97),"")) -> 243 | AJ97: 243 | AK97: =IF(AH97=FALSE,"",IFERROR(CHOOSE('Guts-2'!$D$26,G97,J97,M97,P97,S97,V97,Y97,AR97),"")) -> 197.54 | AL97: =IFERROR(IF(Settings!$L$5="Mixed (Standard)",AK97,RANK(AK97,$AK$2:$AK$961,1)),"") -> 197.54 | AM97: =IFERROR(IF(Settings!$L$5="Mixed (Standard)",(RANK(AK97,$AK$2:$AK$961,1)/('Guts-2'!$N$1+1))+1,(RANK(AL97,$AL$2:$AL$961,1)/('Guts-2'!$N$1+1))+1),"") -> 18.61538462 | AN97: =IFERROR(CHOOSE('Guts-2'!$D$26,H97,K97,N97,Q97,T97,W97,Z97,AS97),"") -> 132 | AO97: =IFERROR(CHOOSE('Guts-2'!$D$26,I97,L97,O97,R97,U97,X97,AA97,AT97),"") -> 266 | AP97: 132 | AQ97: 266 | AR97: =INDEX('Import (ADP)'!$C$2:$C$999,MATCH(A97, 'Import (ADP)'!$B$2:$B$999,0)) ->  | AU97: =IF(VLOOKUP(A98,'Name-Sort'!$D$2:$E$961,2,FALSE)="",A98,"") -> Asdrubal Cabrera | AV97: =IFERROR(INDEX($AU$1:$AU$961,SMALL(IF($AU$1:$AU$961<>"",ROW($AU$1:$AU$961)),ROW(AU97))),"") -> Asdrubal Cabrera
A98: Asdrubal Cabrera | B98: cabreas01 | C98: SS | E98: TEX | F98: 33 | G98: 290 | H98: 60 | I98: 385.7 | J98: 338 | K98: 60 | L98: 449.54 | M98: 116.71 | N98: 60 | O98: 191 | P98: 185 | Q98: 60 | R98: 281 | S98: 240.3 | T98: 60 | U98: 319.599 | V98: 215.59 | W98: 142 | X98: 281 | Y98: 230.9333333 | Z98: 60 | AA98: 307.1413333 | AB98: 212 | AC98: 208 | AD98: 130 | AE98: 161 | AF98: 257 | AH98: =IFERROR(INDEX('Guts-2'!$K$1:$K$30,MATCH(E98,'Guts-2'!$J$1:$J$30,0)),TRUE) -> TRUE | AI98: =IF(AH98=FALSE,"",IFERROR(CHOOSE('Guts-2'!$D$27,AB98,AC98,AD98,AE98,AF98,AG98),"")) -> 130 | AJ98: 130 | AK98: =IF(AH98=FALSE,"",IFERROR(CHOOSE('Guts-2'!$D$26,G98,J98,M98,P98,S98,V98,Y98,AR98),"")) -> 116.71 | AL98: =IFERROR(IF(Settings!$L$5="Mixed (Standard)",AK98,RANK(AK98,$AK$2:$AK$961,1)),"") -> 116.71 | AM98: =IFERROR(IF(Settings!$L$5="Mixed (Standard)",(RANK(AK98,$AK$2:$AK$961,1)/('Guts-2'!$N$1+1))+1,(RANK(AL98,$AL$2:$AL$961,1)/('Guts-2'!$N$1+1))+1),"") -> 9.923076923 | AN98: =IFERROR(CHOOSE('Guts-2'!$D$26,H98,K98,N98,Q98,T98,W98,Z98,AS98),"") -> 60 | AO98: =IFERROR(CHOOSE('Guts-2'!$D$26,I98,L98,O98,R98,U98,X98,AA98,AT98),"") -> 191 | AP98: 60 | AQ98: 191 | AR98: =INDEX('Import (ADP)'!$C$2:$C$999,MATCH(A98, 'Import (ADP)'!$B$2:$B$999,0)) ->  | AU98: =IF(VLOOKUP(A99,'Name-Sort'!$D$2:$E$961,2,FALSE)="",A99,"") -> Melky Cabrera | AV98: =IFERROR(INDEX($AU$1:$AU$961,SMALL(IF($AU$1:$AU$961<>"",ROW($AU$1:$AU$961)),ROW(AU98))),"") -> Melky Cabrera
A99: Melky Cabrera | B99: cabreme01 | C99: OF | D99: LF,RF | E99: PIT | F99: 34 | G99: 667 | H99: 500.25 | I99: 887.11 | P99: 437 | Q99: 327.75 | R99: 750 | S99: 553.5 | T99: 415.125 | U99: 750 | V99: 726.22 | W99: 532 | X99: 750 | Y99: 595.93 | Z99: 446.9475 | AA99: 792.5869 | AF99: 677 | AH99: =IFERROR(INDEX('Guts-2'!$K$1:$K$30,MATCH(E99,'Guts-2'!$J$1:$J$30,0)),TRUE) -> TRUE | AI99: =IF(AH99=FALSE,"",IFERROR(CHOOSE('Guts-2'!$D$27,AB99,AC99,AD99,AE99,AF99,AG99),"")) ->  | AK99: =IF(AH99=FALSE,"",IFERROR(CHOOSE('Guts-2'!$D$26,G99,J99,M99,P99,S99,V99,Y99,AR99),"")) ->  | AL99: =IFERROR(IF(Settings!$L$5="Mixed (Standard)",AK99,RANK(AK99,$AK$2:$AK$961,1)),"") ->  | AM99: =IFERROR(IF(Settings!$L$5="Mixed (Standard)",(RANK(AK99,$AK$2:$AK$961,1)/('Guts-2'!$N$1+1))+1,(RANK(AL99,$AL$2:$AL$961,1)/('Guts-2'!$N$1+1))+1),"") ->  | AN99: =IFERROR(CHOOSE('Guts-2'!$D$26,H99,K99,N99,Q99,T99,W99,Z99,AS99),"") ->  | AO99: =IFERROR(CHOOSE('Guts-2'!$D$26,I99,L99,O99,R99,U99,X99,AA99,AT99),"") ->  | AR99: =INDEX('Import (ADP)'!$C$2:$C$999,MATCH(A99, 'Import (ADP)'!$B$2:$B$999,0)) ->  | AU99: =IF(VLOOKUP(A100,'Name-Sort'!$D$2:$E$961,2,FALSE)="",A100,"") -> Miguel Cabrera | AV99: =IFERROR(INDEX($AU$1:$AU$961,SMALL(IF($AU$1:$AU$961<>"",ROW($AU$1:$AU$961)),ROW(AU99))),"") -> Miguel Cabrera
A100: Miguel Cabrera | B100: cabremi01 | C100: 1B | E100: DET | F100: 35 | G100: 172 | H100: 96 | I100: 249 | J100: 154 | K100: 96 | L100: 249 | M100: 167.96 | N100: 96 | O100: 249 | P100: 159 | Q100: 96 | R100: 249 | S100: 160 | T100: 96 | U100: 249 | V100: 162.35 | W100: 112 | X100: 217 | Y100: 162.5516667 | Z100: 96 | AA100: 249 | AB100: 147 | AC100: 143 | AD100: 176 | AE100: 135 | AF100: 141 | AH100: =IFERROR(INDEX('Guts-2'!$K$1:$K$30,MATCH(E100,'Guts-2'!$J$1:$J$30,0)),TRUE) -> TRUE | AI100: =IF(AH100=FALSE,"",IFERROR(CHOOSE('Guts-2'!$D$27,AB100,AC100,AD100,AE100,AF100,AG100),"")) -> 176 | AJ100: 176 | AK100: =IF(AH100=FALSE,"",IFERROR(CHOOSE('Guts-2'!$D$26,G100,J100,M100,P100,S100,V100,Y100,AR100),"")) -> 167.96 | AL100: =IFERROR(IF(Settings!$L$5="Mixed (Standard)",AK100,RANK(AK100,$AK$2:$AK$961,1)),"") -> 167.96 | AM100: =IFERROR(IF(Settings!$L$5="Mixed (Standard)",(RANK(AK100,$AK$2:$AK$961,1)/('Guts-2'!$N$1+1))+1,(RANK(AL100,$AL$2:$AL$961,1)/('Guts-2'!$N$1+1))+1),"") -> 14.23076923 | AN100: =IFERROR(CHOOSE('Guts-2'!$D$26,H100,K100,N100,Q100,T100,W100,Z100,AS100),"") -> 96 | AO100: =IFERROR(CHOOSE('Guts-2'!$D$26,I100,L100,O100,R100,U100,X100,AA100,AT100),"") -> 249 | AP100: 96 | AQ100: 249 | AR100: =INDEX('Import (ADP)'!$C$2:$C$999,MATCH(A100, 'Import (ADP)'!$B$2:$B$999,0)) ->  | AU100: =IF(VLOOKUP(A101,'Name-Sort'!$D$2:$E$961,2,FALSE)="",A101,"") -> Trevor Cahill | AV100: =IFERROR(INDEX($AU$1:$AU$961,SMALL(IF($AU$1:$AU$961<>"",ROW($AU$1:$AU$961)),ROW(AU100))),"") -> Trevor Cahill
A101: Trevor Cahill | B101: cahiltr01 | C101: SP | E101: LAA | F101: 31 | V101: 439.36 | W101: 281 | X101: 463 | Y101: 439.36 | Z101: 281 | AA101: 584.3488 | AF101: 389 | AH101: =IFERROR(INDEX('Guts-2'!$K$1:$K$30,MATCH(E101,'Guts-2'!$J$1:$J$30,0)),TRUE) -> TRUE | AI101: =IF(AH101=FALSE,"",IFERROR(CHOOSE('Guts-2'!$D$27,AB101,AC101,AD101,AE101,AF101,AG101),"")) ->  | AK101: =IF(AH101=FALSE,"",IFERROR(CHOOSE('Guts-2'!$D$26,G101,J101,M101,P101,S101,V101,Y101,AR101),"")) ->  | AL101: =IFERROR(IF(Settings!$L$5="Mixed (Standard)",AK101,RANK(AK101,$AK$2:$AK$961,1)),"") ->  | AM101: =IFERROR(IF(Settings!$L$5="Mixed (Standard)",(RANK(AK101,$AK$2:$AK$961,1)/('Guts-2'!$N$1+1))+1,(RANK(AL101,$AL$2:$AL$961,1)/('Guts-2'!$N$1+1))+1),"") ->  | AN101: =IFERROR(CHOOSE('Guts-2'!$D$26,H101,K101,N101,Q101,T101,W101,Z101,AS101),"") ->  | AO101: =IFERROR(CHOOSE('Guts-2'!$D$26,I101,L101,O101,R101,U101,X101,AA101,AT101),"") ->  | AR101: =INDEX('Import (ADP)'!$C$2:$C$999,MATCH(A101, 'Import (ADP)'!$B$2:$B$999,0)) ->  | AU101: =IF(VLOOKUP(A102,'Name-Sort'!$D$2:$E$961,2,FALSE)="",A102,"") -> Lorenzo Cain | AV101: =IFERROR(INDEX($AU$1:$AU$961,SMALL(IF($AU$1:$AU$961<>"",ROW($AU$1:$AU$961)),ROW(AU101))),"") -> Lorenzo Cain
A102: Lorenzo Cain | B102: cainlo01 | C102: OF | D102: CF | E102: MIL | F102: 32 | G102: 65 | H102: 44 | I102: 133 | J102: 51 | K102: 38.25 | L102: 133 | M102: 91.01 | N102: 51 | O102: 133 | P102: 56 | Q102: 42 | R102: 133 | S102: 59.3 | T102: 44 | U102: 133 | V102: 66.11 | W102: 44 | X102: 100 | Y102: 64.73666667 | Z102: 44 | AA102: 133 | AB102: 51 | AC102: 45 | AD102: 46 | AE102: 65 | AF102: 50 | AH102: =IFERROR(INDEX('Guts-2'!$K$1:$K$30,MATCH(E102,'Guts-2'!$J$1:$J$30,0)),TRUE) -> TRUE | AI102: =IF(AH102=FALSE,"",IFERROR(CHOOSE('Guts-2'!$D$27,AB102,AC102,AD102,AE102,AF102,AG102),"")) -> 46 | AJ102: 46 | AK102: =IF(AH102=FALSE,"",IFERROR(CHOOSE('Guts-2'!$D$26,G102,J102,M102,P102,S102,V102,Y102,AR102),"")) -> 91.01 | AL102: =IFERROR(IF(Settings!$L$5="Mixed (Standard)",AK102,RANK(AK102,$AK$2:$AK$961,1)),"") -> 91.01 | AM102: =IFERROR(IF(Settings!$L$5="Mixed (Standard)",(RANK(AK102,$AK$2:$AK$961,1)/('Guts-2'!$N$1+1))+1,(RANK(AL102,$AL$2:$AL$961,1)/('Guts-2'!$N$1+1))+1),"") -> 7.384615385 | AN102: =IFERROR(CHOOSE('Guts-2'!$D$26,H102,K102,N102,Q102,T102,W102,Z102,AS102),"") -> 51 | AO102: =IFERROR(CHOOSE('Guts-2'!$D$26,I102,L102,O102,R102,U102,X102,AA102,AT102),"") -> 133 | AP102: 51 | AQ102: 133 | AR102: =INDEX('Import (ADP)'!$C$2:$C$999,MATCH(A102, 'Import (ADP)'!$B$2:$B$999,0)) ->  | AU102: =IF(VLOOKUP(A103,'Name-Sort'!$D$2:$E$961,2,FALSE)="",A103,"") -> Kole Calhoun | AV102: =IFERROR(INDEX($AU$1:$AU$961,SMALL(IF($AU$1:$AU$961<>"",ROW($AU$1:$AU$961)),ROW(AU102))),"") -> Kole Calhoun
A103: Kole Calhoun | B103: calhoko01 | C103: OF | D103: RF | E103: LAA | F103: 31 | G103: 360 | H103: 252 | I103: 503 | P103: 288 | Q103: 216 | R103: 503 | S103: 324.5 | T103: 243.375 | U103: 503 | V103: 438.21 | W103: 252 | X103: 503 | Y103: 352.6775 | Z103: 252 | AA103: 503 | AD103: 234 | AF103: 290 | AH103: =IFERROR(INDEX('Guts-2'!$K$1:$K$30,MATCH(E103,'Guts-2'!$J$1:$J$30,0)),TRUE) -> TRUE | AI103: =IF(AH103=FALSE,"",IFERROR(CHOOSE('Guts-2'!$D$27,AB103,AC103,AD103,AE103,AF103,AG103),"")) -> 234 | AJ103: 234 | AK103: =IF(AH103=FALSE,"",IFERROR(CHOOSE('Guts-2'!$D$26,G103,J103,M103,P103,S103,V103,Y103,AR103),"")) ->  | AL103: =IFERROR(IF(Settings!$L$5="Mixed (Standard)",AK103,RANK(AK103,$AK$2:$AK$961,1)),"") ->  | AM103: =IFERROR(IF(Settings!$L$5="Mixed (Standard)",(RANK(AK103,$AK$2:$AK$961,1)/('Guts-2'!$N$1+1))+1,(RANK(AL103,$AL$2:$AL$961,1)/('Guts-2'!$N$1+1))+1),"") ->  | AN103: =IFERROR(CHOOSE('Guts-2'!$D$26,H103,K103,N103,Q103,T103,W103,Z103,AS103),"") ->  | AO103: =IFERROR(CHOOSE('Guts-2'!$D$26,I103,L103,O103,R103,U103,X103,AA103,AT103),"") ->  | AR103: =INDEX('Import (ADP)'!$C$2:$C$999,MATCH(A103, 'Import (ADP)'!$B$2:$B$999,0)) ->  | AU103: =IF(VLOOKUP(A104,'Name-Sort'!$D$2:$E$961,2,FALSE)="",A104,"") -> Willie Calhoun | AV103: =IFERROR(INDEX($AU$1:$AU$961,SMALL(IF($AU$1:$AU$961<>"",ROW($AU$1:$AU$961)),ROW(AU103))),"") -> Willie Calhoun
A104: Willie Calhoun | B104: calhowi01 | C104: OF | D104: LF | E104: TEX | F104: 24 | V104: 513.45 | W104: 230 | X104: 500 | Y104: 513.45 | Z104: 230 | AA104: 682.8885 | AF104: 393 | AH104: =IFERROR(INDEX('Guts-2'!$K$1:$K$30,MATCH(E104,'Guts-2'!$J$1:$J$30,0)),TRUE) -> TRUE | AI104: =IF(AH104=FALSE,"",IFERROR(CHOOSE('Guts-2'!$D$27,AB104,AC104,AD104,AE104,AF104,AG104),"")) ->  | AK104: =IF(AH104=FALSE,"",IFERROR(CHOOSE('Guts-2'!$D$26,G104,J104,M104,P104,S104,V104,Y104,AR104),"")) ->  | AL104: =IFERROR(IF(Settings!$L$5="Mixed (Standard)",AK104,RANK(AK104,$AK$2:$AK$961,1)),"") ->  | AM104: =IFERROR(IF(Settings!$L$5="Mixed (Standard)",(RANK(AK104,$AK$2:$AK$961,1)/('Guts-2'!$N$1+1))+1,(RANK(AL104,$AL$2:$AL$961,1)/('Guts-2'!$N$1+1))+1),"") ->  | AN104: =IFERROR(CHOOSE('Guts-2'!$D$26,H104,K104,N104,Q104,T104,W104,Z104,AS104),"") ->  | AO104: =IFERROR(CHOOSE('Guts-2'!$D$26,I104,L104,O104,R104,U104,X104,AA104,AT104),"") ->  | AR104: =INDEX('Import (ADP)'!$C$2:$C$999,MATCH(A104, 'Import (ADP)'!$B$2:$B$999,0)) ->  | AU104: =IF(VLOOKUP(A105,'Name-Sort'!$D$2:$E$961,2,FALSE)="",A105,"") -> Johan Camargo | AV104: =IFERROR(INDEX($AU$1:$AU$961,SMALL(IF($AU$1:$AU$961<>"",ROW($AU$1:$AU$961)),ROW(AU104))),"") -> Johan Camargo
A105: Johan Camargo | B105: camarjo01 | C105: SS | E105: ATL | F105: 25 | G105: 278 | H105: 157 | I105: 446 | J105: 290 | K105: 157 | L105: 446 | P105: 372 | Q105: 157 | R105: 494.76 | S105: 338 | T105: 157 | U105: 449.54 | V105: 410.88 | W105: 157 | X105: 446 | Y105: 337.776 | Z105: 157 | AA105: 449.24208 | AF105: 376 | AH105: =IFERROR(INDEX('Guts-2'!$K$1:$K$30,MATCH(E105,'Guts-2'!$J$1:$J$30,0)),TRUE) -> TRUE | AI105: =IF(AH105=FALSE,"",IFERROR(CHOOSE('Guts-2'!$D$27,AB105,AC105,AD105,AE105,AF105,AG105),"")) ->  | AK105: =IF(AH105=FALSE,"",IFERROR(CHOOSE('Guts-2'!$D$26,G105,J105,M105,P105,S105,V105,Y105,AR105),"")) ->  | AL105: =IFERROR(IF(Settings!$L$5="Mixed (Standard)",AK105,RANK(AK105,$AK$2:$AK$961,1)),"") ->  | AM105: =IFERROR(IF(Settings!$L$5="Mixed (Standard)",(RANK(AK105,$AK$2:$AK$961,1)/('Guts-2'!$N$1+1))+1,(RANK(AL105,$AL$2:$AL$961,1)/('Guts-2'!$N$1+1))+1),"") ->  | AN105: =IFERROR(CHOOSE('Guts-2'!$D$26,H105,K105,N105,Q105,T105,W105,Z105,AS105),"") ->  | AO105: =IFERROR(CHOOSE('Guts-2'!$D$26,I105,L105,O105,R105,U105,X105,AA105,AT105),"") ->  | AR105: =INDEX('Import (ADP)'!$C$2:$C$999,MATCH(A105, 'Import (ADP)'!$B$2:$B$999,0)) ->  | AU105: =IF(VLOOKUP(A106,'Name-Sort'!$D$2:$E$961,2,FALSE)="",A106,"") -> Jeimer Candelario | AV105: =IFERROR(INDEX($AU$1:$AU$961,SMALL(IF($AU$1:$AU$961<>"",ROW($AU$1:$AU$961)),ROW(AU105))),"") -> Jeimer Candelario
A106: Jeimer Candelario | B106: candeje01 | C106: 3B | E106: DET | F106: 25 | G106: 304 | H106: 228 | I106: 427 | J106: 272 | K106: 204 | L106: 427 | P106: 332 | Q106: 228 | R106: 441.56 | S106: 319.3 | T106: 228 | U106: 427 | V106: 449.7 | W106: 228 | X106: 427 | Y106: 335.4 | Z106: 228 | AA106: 446.082 | AD106: 221 | AE106: 240 | AF106: 280 | AH106: =IFERROR(INDEX('Guts-2'!$K$1:$K$30,MATCH(E106,'Guts-2'!$J$1:$J$30,0)),TRUE) -> TRUE | AI106: =IF(AH106=FALSE,"",IFERROR(CHOOSE('Guts-2'!$D$27,AB106,AC106,AD106,AE106,AF106,AG106),"")) -> 221 | AJ106: 221 | AK106: =IF(AH106=FALSE,"",IFERROR(CHOOSE('Guts-2'!$D$26,G106,J106,M106,P106,S106,V106,Y106,AR106),"")) ->  | AL106: =IFERROR(IF(Settings!$L$5="Mixed (Standard)",AK106,RANK(AK106,$AK$2:$AK$961,1)),"") ->  | AM106: =IFERROR(IF(Settings!$L$5="Mixed (Standard)",(RANK(AK106,$AK$2:$AK$961,1)/('Guts-2'!$N$1+1))+1,(RANK(AL106,$AL$2:$AL$961,1)/('Guts-2'!$N$1+1))+1),"") ->  | AN106: =IFERROR(CHOOSE('Guts-2'!$D$26,H106,K106,N106,Q106,T106,W106,Z106,AS106),"") ->  | AO106: =IFERROR(CHOOSE('Guts-2'!$D$26,I106,L106,O106,R106,U106,X106,AA106,AT106),"") ->  | AR106: =INDEX('Import (ADP)'!$C$2:$C$999,MATCH(A106, 'Import (ADP)'!$B$2:$B$999,0)) ->  | AU106: =IF(VLOOKUP(A107,'Name-Sort'!$D$2:$E$961,2,FALSE)="",A107,"") -> Mark Canha | AV106: =IFERROR(INDEX($AU$1:$AU$961,SMALL(IF($AU$1:$AU$961<>"",ROW($AU$1:$AU$961)),ROW(AU106))),"") -> Mark Canha
A107: Mark Canha | B107: canhama01 | C107: OF | D107: LF,CF,RF | E107: OAK | F107: 30 | G107: 594 | H107: 441 | I107: 790.02 | P107: 560 | Q107: 420 | R107: 749 | S107: 589.5 | T107: 441 | U107: 784.035 | V107: 715.68 | W107: 441 | X107: 749 | Y107: 614.795 | Z107: 441 | AA107: 817.67735 | AF107: 579 | AH107: =IFERROR(INDEX('Guts-2'!$K$1:$K$30,MATCH(E107,'Guts-2'!$J$1:$J$30,0)),TRUE) -> TRUE | AI107: =IF(AH107=FALSE,"",IFERROR(CHOOSE('Guts-2'!$D$27,AB107,AC107,AD107,AE107,AF107,AG107),"")) ->  | AK107: =IF(AH107=FALSE,"",IFERROR(CHOOSE('Guts-2'!$D$26,G107,J107,M107,P107,S107,V107,Y107,AR107),"")) ->  | AL107: =IFERROR(IF(Settings!$L$5="Mixed (Standard)",AK107,RANK(AK107,$AK$2:$AK$961,1)),"") ->  | AM107: =IFERROR(IF(Settings!$L$5="Mixed (Standard)",(RANK(AK107,$AK$2:$AK$961,1)/('Guts-2'!$N$1+1))+1,(RANK(AL107,$AL$2:$AL$961,1)/('Guts-2'!$N$1+1))+1),"") ->  | AN107: =IFERROR(CHOOSE('Guts-2'!$D$26,H107,K107,N107,Q107,T107,W107,Z107,AS107),"") ->  | AO107: =IFERROR(CHOOSE('Guts-2'!$D$26,I107,L107,O107,R107,U107,X107,AA107,AT107),"") ->  | AR107: =INDEX('Import (ADP)'!$C$2:$C$999,MATCH(A107, 'Import (ADP)'!$B$2:$B$999,0)) ->  | AU107: =IF(VLOOKUP(A108,'Name-Sort'!$D$2:$E$961,2,FALSE)="",A108,"") -> Robinson Cano | AV107: =IFERROR(INDEX($AU$1:$AU$961,SMALL(IF($AU$1:$AU$961<>"",ROW($AU$1:$AU$961)),ROW(AU107))),"") -> Robinson Cano
A108: Robinson Cano | B108: canoro01 | C108: 2B | E108: NYM | F108: 36 | G108: 125 | H108: 42 | I108: 170 | J108: 92 | K108: 42 | L108: 170 | M108: 88.05 | N108: 42 | O108: 127 | P108: 91 | Q108: 42 | R108: 170 | S108: 109 | T108: 42 | U108: 170 | V108: 122.71 | W108: 69 | X108: 170 | Y108: 104.6266667 | Z108: 42 | AA108: 170 | AB108: 74 | AC108: 111 | AD108: 78 | AE108: 80 | AF108: 100 | AH108: =IFERROR(INDEX('Guts-2'!$K$1:$K$30,MATCH(E108,'Guts-2'!$J$1:$J$30,0)),TRUE) -> TRUE | AI108: =IF(AH108=FALSE,"",IFERROR(CHOOSE('Guts-2'!$D$27,AB108,AC108,AD108,AE108,AF108,AG108),"")) -> 78 | AJ108: 78 | AK108: =IF(AH108=FALSE,"",IFERROR(CHOOSE('Guts-2'!$D$26,G108,J108,M108,P108,S108,V108,Y108,AR108),"")) -> 88.05 | AL108: =IFERROR(IF(Settings!$L$5="Mixed (Standard)",AK108,RANK(AK108,$AK$2:$AK$961,1)),"") -> 88.05 | AM108: =IFERROR(IF(Settings!$L$5="Mixed (Standard)",(RANK(AK108,$AK$2:$AK$961,1)/('Guts-2'!$N$1+1))+1,(RANK(AL108,$AL$2:$AL$961,1)/('Guts-2'!$N$1+1))+1),"") -> 7.076923077 | AN108: =IFERROR(CHOOSE('Guts-2'!$D$26,H108,K108,N108,Q108,T108,W108,Z108,AS108),"") -> 42 | AO108: =IFERROR(CHOOSE('Guts-2'!$D$26,I108,L108,O108,R108,U108,X108,AA108,AT108),"") -> 127 | AP108: 42 | AQ108: 127 | AR108: =INDEX('Import (ADP)'!$C$2:$C$999,MATCH(A108, 'Import (ADP)'!$B$2:$B$999,0)) ->  | AU108: =IF(VLOOKUP(A109,'Name-Sort'!$D$2:$E$961,2,FALSE)="",A109,"") -> Victor Caratini | AV108: =IFERROR(INDEX($AU$1:$AU$961,SMALL(IF($AU$1:$AU$961<>"",ROW($AU$1:$AU$961)),ROW(AU108))),"") -> Victor Caratini
A109: Victor Caratini | B109: caratvi01 | C109: C | E109: CHC | F109: 25 | G109: 578 | H109: 420 | I109: 768.74 | P109: 416 | Q109: 312 | R109: 663 | S109: 493.5 | T109: 370.125 | U109: 663 | V109: 692.09 | W109: 420 | X109: 663 | Y109: 544.8975 | Z109: 408.673125 | AA109: 724.713675 | AF109: 698 | AH109: =IFERROR(INDEX('Guts-2'!$K$1:$K$30,MATCH(E109,'Guts-2'!$J$1:$J$30,0)),TRUE) -> TRUE | AI109: =IF(AH109=FALSE,"",IFERROR(CHOOSE('Guts-2'!$D$27,AB109,AC109,AD109,AE109,AF109,AG109),"")) ->  | AK109: =IF(AH109=FALSE,"",IFERROR(CHOOSE('Guts-2'!$D$26,G109,J109,M109,P109,S109,V109,Y109,AR109),"")) ->  | AL109: =IFERROR(IF(Settings!$L$5="Mixed (Standard)",AK109,RANK(AK109,$AK$2:$AK$961,1)),"") ->  | AM109: =IFERROR(IF(Settings!$L$5="Mixed (Standard)",(RANK(AK109,$AK$2:$AK$961,1)/('Guts-2'!$N$1+1))+1,(RANK(AL109,$AL$2:$AL$961,1)/('Guts-2'!$N$1+1))+1),"") ->  | AN109: =IFERROR(CHOOSE('Guts-2'!$D$26,H109,K109,N109,Q109,T109,W109,Z109,AS109),"") ->  | AO109: =IFERROR(CHOOSE('Guts-2'!$D$26,I109,L109,O109,R109,U109,X109,AA109,AT109),"") ->  | AR109: =INDEX('Import (ADP)'!$C$2:$C$999,MATCH(A109, 'Import (ADP)'!$B$2:$B$999,0)) ->  | AU109: =IF(VLOOKUP(A110,'Name-Sort'!$D$2:$E$961,2,FALSE)="",A110,"") -> Matt Carpenter | AV109: =IFERROR(INDEX($AU$1:$AU$961,SMALL(IF($AU$1:$AU$961<>"",ROW($AU$1:$AU$961)),ROW(AU109))),"") -> Matt Carpenter
A110: Matt Carpenter | B110: carpema01 | C110: 1B | E110: STL | F110: 33 | G110: 60 | H110: 34 | I110: 102 | J110: 64 | K110: 34 | L110: 102 | M110: 58.05 | N110: 34 | O110: 83 | P110: 60 | Q110: 34 | R110: 102 | S110: 66.3 | T110: 34 | U110: 102 | V110: 71.15 | W110: 40 | X110: 102 | Y110: 63.25 | Z110: 34 | AA110: 102 | AB110: 84 | AC110: 69 | AD110: 54 | AE110: 57 | AF110: 65 | AH110: =IFERROR(INDEX('Guts-2'!$K$1:$K$30,MATCH(E110,'Guts-2'!$J$1:$J$30,0)),TRUE) -> TRUE | AI110: =IF(AH110=FALSE,"",IFERROR(CHOOSE('Guts-2'!$D$27,AB110,AC110,AD110,AE110,AF110,AG110),"")) -> 54 | AJ110: 54 | AK110: =IF(AH110=FALSE,"",IFERROR(CHOOSE('Guts-2'!$D$26,G110,J110,M110,P110,S110,V110,Y110,AR110),"")) -> 58.05 | AL110: =IFERROR(IF(Settings!$L$5="Mixed (Standard)",AK110,RANK(AK110,$AK$2:$AK$961,1)),"") -> 58.05 | AM110: =IFERROR(IF(Settings!$L$5="Mixed (Standard)",(RANK(AK110,$AK$2:$AK$961,1)/('Guts-2'!$N$1+1))+1,(RANK(AL110,$AL$2:$AL$961,1)/('Guts-2'!$N$1+1))+1),"") -> 5.153846154 | AN110: =IFERROR(CHOOSE('Guts-2'!$D$26,H110,K110,N110,Q110,T110,W110,Z110,AS110),"") -> 34 | AO110: =IFERROR(CHOOSE('Guts-2'!$D$26,I110,L110,O110,R110,U110,X110,AA110,AT110),"") -> 83 | AP110: 34 | AQ110: 83 | AR110: =INDEX('Import (ADP)'!$C$2:$C$999,MATCH(A110, 'Import (ADP)'!$B$2:$B$999,0)) ->  | AU110: =IF(VLOOKUP(A111,'Name-Sort'!$D$2:$E$961,2,FALSE)="",A111,"") -> Carlos Carrasco | AV110: =IFERROR(INDEX($AU$1:$AU$961,SMALL(IF($AU$1:$AU$961<>"",ROW($AU$1:$AU$961)),ROW(AU110))),"") -> Carlos Carrasco
A111: Carlos Carrasco | B111: carraca01 | C111: SP | E111: CLE | F111: 32 | G111: 38 | H111: 13 | I111: 53 | J111: 42 | K111: 13 | L111: 55.86 | M111: 27.99 | N111: 13 | O111: 51 | P111: 38 | Q111: 13 | R111: 53 | S111: 37 | T111: 13 | U111: 53 | V111: 36.62 | W111: 26 | X111: 53 | Y111: 36.60166667 | Z111: 13 | AA111: 53 | AB111: 42 | AC111: 37 | AD111: 62 | AE111: 41 | AF111: 36 | AH111: =IFERROR(INDEX('Guts-2'!$K$1:$K$30,MATCH(E111,'Guts-2'!$J$1:$J$30,0)),TRUE) -> TRUE | AI111: =IF(AH111=FALSE,"",IFERROR(CHOOSE('Guts-2'!$D$27,AB111,AC111,AD111,AE111,AF111,AG111),"")) -> 62 | AJ111: 62 | AK111: =IF(AH111=FALSE,"",IFERROR(CHOOSE('Guts-2'!$D$26,G111,J111,M111,P111,S111,V111,Y111,AR111),"")) -> 27.99 | AL111: =IFERROR(IF(Settings!$L$5="Mixed (Standard)",AK111,RANK(AK111,$AK$2:$AK$961,1)),"") -> 27.99 | AM111: =IFERROR(IF(Settings!$L$5="Mixed (Standard)",(RANK(AK111,$AK$2:$AK$961,1)/('Guts-2'!$N$1+1))+1,(RANK(AL111,$AL$2:$AL$961,1)/('Guts-2'!$N$1+1))+1),"") -> 2.846153846 | AN111: =IFERROR(CHOOSE('Guts-2'!$D$26,H111,K111,N111,Q111,T111,W111,Z111,AS111),"") -> 13 | AO111: =IFERROR(CHOOSE('Guts-2'!$D$26,I111,L111,O111,R111,U111,X111,AA111,AT111),"") -> 51 | AP111: 13 | AQ111: 51 | AR111: =INDEX('Import (ADP)'!$C$2:$C$999,MATCH(A111, 'Import (ADP)'!$B$2:$B$999,0)) ->  | AU111: =IF(VLOOKUP(A112,'Name-Sort'!$D$2:$E$961,2,FALSE)="",A112,"") -> Curt Casali | AV111: =IFERROR(INDEX($AU$1:$AU$961,SMALL(IF($AU$1:$AU$961<>"",ROW($AU$1:$AU$961)),ROW(AU111))),"") -> Curt Casali
A112: Curt Casali | B112: casalcu01 | C112: C | E112: CIN | F112: 30 | V112: 727.23 | W112: 461 | X112: 748 | Y112: 727.23 | Z112: 461 | AA112: 967.2159 | AH112: =IFERROR(INDEX('Guts-2'!$K$1:$K$30,MATCH(E112,'Guts-2'!$J$1:$J$30,0)),TRUE) -> TRUE | AI112: =IF(AH112=FALSE,"",IFERROR(CHOOSE('Guts-2'!$D$27,AB112,AC112,AD112,AE112,AF112,AG112),"")) ->  | AK112: =IF(AH112=FALSE,"",IFERROR(CHOOSE('Guts-2'!$D$26,G112,J112,M112,P112,S112,V112,Y112,AR112),"")) ->  | AL112: =IFERROR(IF(Settings!$L$5="Mixed (Standard)",AK112,RANK(AK112,$AK$2:$AK$961,1)),"") ->  | AM112: =IFERROR(IF(Settings!$L$5="Mixed (Standard)",(RANK(AK112,$AK$2:$AK$961,1)/('Guts-2'!$N$1+1))+1,(RANK(AL112,$AL$2:$AL$961,1)/('Guts-2'!$N$1+1))+1),"") ->  | AN112: =IFERROR(CHOOSE('Guts-2'!$D$26,H112,K112,N112,Q112,T112,W112,Z112,AS112),"") ->  | AO112: =IFERROR(CHOOSE('Guts-2'!$D$26,I112,L112,O112,R112,U112,X112,AA112,AT112),"") ->  | AR112: =INDEX('Import (ADP)'!$C$2:$C$999,MATCH(A112, 'Import (ADP)'!$B$2:$B$999,0)) ->  | AU112: =IF(VLOOKUP(A113,'Name-Sort'!$D$2:$E$961,2,FALSE)="",A113,"") -> Andrew Cashner | AV112: =IFERROR(INDEX($AU$1:$AU$961,SMALL(IF($AU$1:$AU$961<>"",ROW($AU$1:$AU$961)),ROW(AU112))),"") -> Andrew Cashner
A113: Andrew Cashner | B113: cashnan01 | C113: SP | E113: BAL | F113: 32 | V113: 749.88 | W113: 688 | X113: 742 | Y113: 749.88 | Z113: 562.41 | AA113: 997.3404 | AF113: 765 | AH113: =IFERROR(INDEX('Guts-2'!$K$1:$K$30,MATCH(E113,'Guts-2'!$J$1:$J$30,0)),TRUE) -> TRUE | AI113: =IF(AH113=FALSE,"",IFERROR(CHOOSE('Guts-2'!$D$27,AB113,AC113,AD113,AE113,AF113,AG113),"")) ->  | AK113: =IF(AH113=FALSE,"",IFERROR(CHOOSE('Guts-2'!$D$26,G113,J113,M113,P113,S113,V113,Y113,AR113),"")) ->  | AL113: =IFERROR(IF(Settings!$L$5="Mixed (Standard)",AK113,RANK(AK113,$AK$2:$AK$961,1)),"") ->  | AM113: =IFERROR(IF(Settings!$L$5="Mixed (Standard)",(RANK(AK113,$AK$2:$AK$961,1)/('Guts-2'!$N$1+1))+1,(RANK(AL113,$AL$2:$AL$961,1)/('Guts-2'!$N$1+1))+1),"") ->  | AN113: =IFERROR(CHOOSE('Guts-2'!$D$26,H113,K113,N113,Q113,T113,W113,Z113,AS113),"") ->  | AO113: =IFERROR(CHOOSE('Guts-2'!$D$26,I113,L113,O113,R113,U113,X113,AA113,AT113),"") ->  | AR113: =INDEX('Import (ADP)'!$C$2:$C$999,MATCH(A113, 'Import (ADP)'!$B$2:$B$999,0)) ->  | AU113: =IF(VLOOKUP(A114,'Name-Sort'!$D$2:$E$961,2,FALSE)="",A114,"") -> Nick Castellanos | AV113: =IFERROR(INDEX($AU$1:$AU$961,SMALL(IF($AU$1:$AU$961<>"",ROW($AU$1:$AU$961)),ROW(AU113))),"") -> Nick Castellanos
A114: Nick Castellanos | B114: casteni01 | C114: 3B | D114: RF | E114: DET | F114: 27 | G114: 77 | H114: 51 | I114: 142 | J114: 85 | K114: 51 | L114: 142 | M114: 99.11 | N114: 52 | O114: 142 | P114: 53 | Q114: 39.75 | R114: 142 | S114: 82.3 | T114: 51 | U114: 142 | V114: 92.26 | W114: 51 | X114: 136 | Y114: 81.445 | Z114: 51 | AA114: 142 | AB114: 55 | AC114: 84 | AD114: 51 | AE114: 47 | AF114: 83 | AH114: =IFERROR(INDEX('Guts-2'!$K$1:$K$30,MATCH(E114,'Guts-2'!$J$1:$J$30,0)),TRUE) -> TRUE | AI114: =IF(AH114=FALSE,"",IFERROR(CHOOSE('Guts-2'!$D$27,AB114,AC114,AD114,AE114,AF114,AG114),"")) -> 51 | AJ114: 51 | AK114: =IF(AH114=FALSE,"",IFERROR(CHOOSE('Guts-2'!$D$26,G114,J114,M114,P114,S114,V114,Y114,AR114),"")) -> 99.11 | AL114: =IFERROR(IF(Settings!$L$5="Mixed (Standard)",AK114,RANK(AK114,$AK$2:$AK$961,1)),"") -> 99.11 | AM114: =IFERROR(IF(Settings!$L$5="Mixed (Standard)",(RANK(AK114,$AK$2:$AK$961,1)/('Guts-2'!$N$1+1))+1,(RANK(AL114,$AL$2:$AL$961,1)/('Guts-2'!$N$1+1))+1),"") -> 8.538461538 | AN114: =IFERROR(CHOOSE('Guts-2'!$D$26,H114,K114,N114,Q114,T114,W114,Z114,AS114),"") -> 52 | AO114: =IFERROR(CHOOSE('Guts-2'!$D$26,I114,L114,O114,R114,U114,X114,AA114,AT114),"") -> 142 | AP114: 52 | AQ114: 142 | AR114: =INDEX('Import (ADP)'!$C$2:$C$999,MATCH(A114, 'Import (ADP)'!$B$2:$B$999,0)) ->  | AU114: =IF(VLOOKUP(A115,'Name-Sort'!$D$2:$E$961,2,FALSE)="",A115,"") -> Diego Castillo | AV114: =IFERROR(INDEX($AU$1:$AU$961,SMALL(IF($AU$1:$AU$961<>"",ROW($AU$1:$AU$961)),ROW(AU114))),"") -> Diego Castillo
A115: Diego Castillo | B115: castidi01 | C115: RP | E115: TB | F115: 25 | G115: 493 | H115: 308 | I115: 655.69 | S115: 417.5 | T115: 308 | U115: 555.275 | V115: 602.56 | W115: 308 | X115: 524 | Y115: 504.3533333 | Z115: 308 | AA115: 670.7899333 | AB115: 300 | AF115: 409 | AH115: =IFERROR(INDEX('Guts-2'!$K$1:$K$30,MATCH(E115,'Guts-2'!$J$1:$J$30,0)),TRUE) -> TRUE | AI115: =IF(AH115=FALSE,"",IFERROR(CHOOSE('Guts-2'!$D$27,AB115,AC115,AD115,AE115,AF115,AG115),"")) ->  | AK115: =IF(AH115=FALSE,"",IFERROR(CHOOSE('Guts-2'!$D$26,G115,J115,M115,P115,S115,V115,Y115,AR115),"")) ->  | AL115: =IFERROR(IF(Settings!$L$5="Mixed (Standard)",AK115,RANK(AK115,$AK$2:$AK$961,1)),"") ->  | AM115: =IFERROR(IF(Settings!$L$5="Mixed (Standard)",(RANK(AK115,$AK$2:$AK$961,1)/('Guts-2'!$N$1+1))+1,(RANK(AL115,$AL$2:$AL$961,1)/('Guts-2'!$N$1+1))+1),"") ->  | AN115: =IFERROR(CHOOSE('Guts-2'!$D$26,H115,K115,N115,Q115,T115,W115,Z115,AS115),"") ->  | AO115: =IFERROR(CHOOSE('Guts-2'!$D$26,I115,L115,O115,R115,U115,X115,AA115,AT115),"") ->  | AR115: =INDEX('Import (ADP)'!$C$2:$C$999,MATCH(A115, 'Import (ADP)'!$B$2:$B$999,0)) ->  | AU115: =IF(VLOOKUP(A116,'Name-Sort'!$D$2:$E$961,2,FALSE)="",A116,"") -> Jose Castillo | AV115: =IFERROR(INDEX($AU$1:$AU$961,SMALL(IF($AU$1:$AU$961<>"",ROW($AU$1:$AU$961)),ROW(AU115))),"") -> Jose Castillo
A116: Jose Castillo | B116: castijo03 | C116: RP | E116: SD | F116: 23 | V116: 679.98 | W116: 314 | X116: 750 | Y116: 679.98 | Z116: 314 | AA116: 904.3734 | AF116: 570 | AH116: =IFERROR(INDEX('Guts-2'!$K$1:$K$30,MATCH(E116,'Guts-2'!$J$1:$J$30,0)),TRUE) -> TRUE | AI116: =IF(AH116=FALSE,"",IFERROR(CHOOSE('Guts-2'!$D$27,AB116,AC116,AD116,AE116,AF116,AG116),"")) ->  | AK116: =IF(AH116=FALSE,"",IFERROR(CHOOSE('Guts-2'!$D$26,G116,J116,M116,P116,S116,V116,Y116,AR116),"")) ->  | AL116: =IFERROR(IF(Settings!$L$5="Mixed (Standard)",AK116,RANK(AK116,$AK$2:$AK$961,1)),"") ->  | AM116: =IFERROR(IF(Settings!$L$5="Mixed (Standard)",(RANK(AK116,$AK$2:$AK$961,1)/('Guts-2'!$N$1+1))+1,(RANK(AL116,$AL$2:$AL$961,1)/('Guts-2'!$N$1+1))+1),"") ->  | AN116: =IFERROR(CHOOSE('Guts-2'!$D$26,H116,K116,N116,Q116,T116,W116,Z116,AS116),"") ->  | AO116: =IFERROR(CHOOSE('Guts-2'!$D$26,I116,L116,O116,R116,U116,X116,AA116,AT116),"") ->  | AR116: =INDEX('Import (ADP)'!$C$2:$C$999,MATCH(A116, 'Import (ADP)'!$B$2:$B$999,0)) ->  | AU116: =IF(VLOOKUP(A117,'Name-Sort'!$D$2:$E$961,2,FALSE)="",A117,"") -> Luis Castillo | AV116: =IFERROR(INDEX($AU$1:$AU$961,SMALL(IF($AU$1:$AU$961<>"",ROW($AU$1:$AU$961)),ROW(AU116))),"") -> Luis Castillo
A117: Luis Castillo | B117: castilu02 | C117: SP | E117: CIN | F117: 26 | G117: 811 | H117: 65 | I117: 1078.63 | J117: 134 | K117: 65 | L117: 209 | M117: 138.33 | N117: 88 | O117: 209 | P117: 135 | Q117: 65 | R117: 209 | S117: 125.3 | T117: 65 | U117: 209 | V117: 114.89 | W117: 65 | X117: 151 | Y117: 243.0866667 | Z117: 65 | AA117: 323.3052667 | AB117: 174 | AC117: 134 | AD117: 205 | AE117: 146 | AF117: 118 | AH117: =IFERROR(INDEX('Guts-2'!$K$1:$K$30,MATCH(E117,'Guts-2'!$J$1:$J$30,0)),TRUE) -> TRUE | AI117: =IF(AH117=FALSE,"",IFERROR(CHOOSE('Guts-2'!$D$27,AB117,AC117,AD117,AE117,AF117,AG117),"")) -> 205 | AJ117: 205 | AK117: =IF(AH117=FALSE,"",IFERROR(CHOOSE('Guts-2'!$D$26,G117,J117,M117,P117,S117,V117,Y117,AR117),"")) -> 138.33 | AL117: =IFERROR(IF(Settings!$L$5="Mixed (Standard)",AK117,RANK(AK117,$AK$2:$AK$961,1)),"") -> 138.33 | AM117: =IFERROR(IF(Settings!$L$5="Mixed (Standard)",(RANK(AK117,$AK$2:$AK$961,1)/('Guts-2'!$N$1+1))+1,(RANK(AL117,$AL$2:$AL$961,1)/('Guts-2'!$N$1+1))+1),"") -> 11.53846154 | AN117: =IFERROR(CHOOSE('Guts-2'!$D$26,H117,K117,N117,Q117,T117,W117,Z117,AS117),"") -> 88 | AO117: =IFERROR(CHOOSE('Guts-2'!$D$26,I117,L117,O117,R117,U117,X117,AA117,AT117),"") -> 209 | AP117: 88 | AQ117: 209 | AR117: =INDEX('Import (ADP)'!$C$2:$C$999,MATCH(A117, 'Import (ADP)'!$B$2:$B$999,0)) ->  | AU117: =IF(VLOOKUP(A118,'Name-Sort'!$D$2:$E$961,2,FALSE)="",A118,"") -> Welington Castillo | AV117: =IFERROR(INDEX($AU$1:$AU$961,SMALL(IF($AU$1:$AU$961<>"",ROW($AU$1:$AU$961)),ROW(AU117))),"") -> Welington Castillo
A118: Welington Castillo | B118: castiwe01 | C118: C | E118: CWS | F118: 31 | G118: 292 | H118: 115 | I118: 388.36 | J118: 210 | K118: 115 | L118: 338 | M118: 216.29 | N118: 115 | O118: 338 | P118: 318 | Q118: 115 | R118: 422.94 | S118: 239.8 | T118: 115 | U118: 338 | V118: 212.02 | W118: 119 | X118: 277 | Y118: 248.0183333 | Z118: 115 | AA118: 338 | AB118: 246 | AC118: 288 | AE118: 232 | AF118: 265 | AH118: =IFERROR(INDEX('Guts-2'!$K$1:$K$30,MATCH(E118,'Guts-2'!$J$1:$J$30,0)),TRUE) -> TRUE | AI118: =IF(AH118=FALSE,"",IFERROR(CHOOSE('Guts-2'!$D$27,AB118,AC118,AD118,AE118,AF118,AG118),"")) ->  | AK118: =IF(AH118=FALSE,"",IFERROR(CHOOSE('Guts-2'!$D$26,G118,J118,M118,P118,S118,V118,Y118,AR118),"")) -> 216.29 | AL118: =IFERROR(IF(Settings!$L$5="Mixed (Standard)",AK118,RANK(AK118,$AK$2:$AK$961,1)),"") -> 216.29 | AM118: =IFERROR(IF(Settings!$L$5="Mixed (Standard)",(RANK(AK118,$AK$2:$AK$961,1)/('Guts-2'!$N$1+1))+1,(RANK(AL118,$AL$2:$AL$961,1)/('Guts-2'!$N$1+1))+1),"") -> 21.53846154 | AN118: =IFERROR(CHOOSE('Guts-2'!$D$26,H118,K118,N118,Q118,T118,W118,Z118,AS118),"") -> 115 | AO118: =IFERROR(CHOOSE('Guts-2'!$D$26,I118,L118,O118,R118,U118,X118,AA118,AT118),"") -> 338 | AP118: 115 | AQ118: 338 | AR118: =INDEX('Import (ADP)'!$C$2:$C$999,MATCH(A118, 'Import (ADP)'!$B$2:$B$999,0)) ->  | AU118: =IF(VLOOKUP(A119,'Name-Sort'!$D$2:$E$961,2,FALSE)="",A119,"") -> Jason Castro | AV118: =IFERROR(INDEX($AU$1:$AU$961,SMALL(IF($AU$1:$AU$961<>"",ROW($AU$1:$AU$961)),ROW(AU118))),"") -> Jason Castro
A119: Jason Castro | B119: castrja01 | C119: C | E119: MIN | F119: 31 | V119: 663.9 | W119: 314 | X119: 672 | Y119: 663.9 | Z119: 314 | AA119: 882.987 | AF119: 625 | AH119: =IFERROR(INDEX('Guts-2'!$K$1:$K$30,MATCH(E119,'Guts-2'!$J$1:$J$30,0)),TRUE) -> TRUE | AI119: =IF(AH119=FALSE,"",IFERROR(CHOOSE('Guts-2'!$D$27,AB119,AC119,AD119,AE119,AF119,AG119),"")) ->  | AK119: =IF(AH119=FALSE,"",IFERROR(CHOOSE('Guts-2'!$D$26,G119,J119,M119,P119,S119,V119,Y119,AR119),"")) ->  | AL119: =IFERROR(IF(Settings!$L$5="Mixed (Standard)",AK119,RANK(AK119,$AK$2:$AK$961,1)),"") ->  | AM119: =IFERROR(IF(Settings!$L$5="Mixed (Standard)",(RANK(AK119,$AK$2:$AK$961,1)/('Guts-2'!$N$1+1))+1,(RANK(AL119,$AL$2:$AL$961,1)/('Guts-2'!$N$1+1))+1),"") ->  | AN119: =IFERROR(CHOOSE('Guts-2'!$D$26,H119,K119,N119,Q119,T119,W119,Z119,AS119),"") ->  | AO119: =IFERROR(CHOOSE('Guts-2'!$D$26,I119,L119,O119,R119,U119,X119,AA119,AT119),"") ->  | AR119: =INDEX('Import (ADP)'!$C$2:$C$999,MATCH(A119, 'Import (ADP)'!$B$2:$B$999,0)) ->  | AU119: =IF(VLOOKUP(A120,'Name-Sort'!$D$2:$E$961,2,FALSE)="",A120,"") -> Starlin Castro | AV119: =IFERROR(INDEX($AU$1:$AU$961,SMALL(IF($AU$1:$AU$961<>"",ROW($AU$1:$AU$961)),ROW(AU119))),"") -> Starlin Castro
A120: Starlin Castro | B120: castrst01 | C120: 2B | E120: MIA | F120: 29 | G120: 310 | H120: 232.5 | I120: 412.3 | J120: 380 | K120: 248 | L120: 505.4 | P120: 254 | Q120: 190.5 | R120: 401 | S120: 320.8 | T120: 240.6 | U120: 426.664 | V120: 362.57 | W120: 248 | X120: 401 | Y120: 325.474 | Z120: 244.1055 | AA120: 432.88042 | AB120: 169 | AC120: 257 | AD120: 190 | AE120: 228 | AF120: 270 | AH120: =IFERROR(INDEX('Guts-2'!$K$1:$K$30,MATCH(E120,'Guts-2'!$J$1:$J$30,0)),TRUE) -> TRUE | AI120: =IF(AH120=FALSE,"",IFERROR(CHOOSE('Guts-2'!$D$27,AB120,AC120,AD120,AE120,AF120,AG120),"")) -> 190 | AJ120: 190 | AK120: =IF(AH120=FALSE,"",IFERROR(CHOOSE('Guts-2'!$D$26,G120,J120,M120,P120,S120,V120,Y120,AR120),"")) ->  | AL120: =IFERROR(IF(Settings!$L$5="Mixed (Standard)",AK120,RANK(AK120,$AK$2:$AK$961,1)),"") ->  | AM120: =IFERROR(IF(Settings!$L$5="Mixed (Standard)",(RANK(AK120,$AK$2:$AK$961,1)/('Guts-2'!$N$1+1))+1,(RANK(AL120,$AL$2:$AL$961,1)/('Guts-2'!$N$1+1))+1),"") ->  | AN120: =IFERROR(CHOOSE('Guts-2'!$D$26,H120,K120,N120,Q120,T120,W120,Z120,AS120),"") ->  | AO120: =IFERROR(CHOOSE('Guts-2'!$D$26,I120,L120,O120,R120,U120,X120,AA120,AT120),"") ->  | AR120: =INDEX('Import (ADP)'!$C$2:$C$999,MATCH(A120, 'Import (ADP)'!$B$2:$B$999,0)) ->  | AU120: =IF(VLOOKUP(A121,'Name-Sort'!$D$2:$E$961,2,FALSE)="",A121,"") -> Jake Cave | AV120: =IFERROR(INDEX($AU$1:$AU$961,SMALL(IF($AU$1:$AU$961<>"",ROW($AU$1:$AU$961)),ROW(AU120))),"") -> Jake Cave
A121: Jake Cave | B121: caveja01 | C121: OF | D121: CF,RF | E121: MIN | F121: 26 | G121: 402 | H121: 301.5 | I121: 676 | S121: 432 | T121: 324 | U121: 676 | V121: 659.15 | W121: 363 | X121: 676 | Y121: 497.7166667 | Z121: 363 | AA121: 676 | AF121: 432 | AH121: =IFERROR(INDEX('Guts-2'!$K$1:$K$30,MATCH(E121,'Guts-2'!$J$1:$J$30,0)),TRUE) -> TRUE | AI121: =IF(AH121=FALSE,"",IFERROR(CHOOSE('Guts-2'!$D$27,AB121,AC121,AD121,AE121,AF121,AG121),"")) ->  | AK121: =IF(AH121=FALSE,"",IFERROR(CHOOSE('Guts-2'!$D$26,G121,J121,M121,P121,S121,V121,Y121,AR121),"")) ->  | AL121: =IFERROR(IF(Settings!$L$5="Mixed (Standard)",AK121,RANK(AK121,$AK$2:$AK$961,1)),"") ->  | AM121: =IFERROR(IF(Settings!$L$5="Mixed (Standard)",(RANK(AK121,$AK$2:$AK$961,1)/('Guts-2'!$N$1+1))+1,(RANK(AL121,$AL$2:$AL$961,1)/('Guts-2'!$N$1+1))+1),"") ->  | AN121: =IFERROR(CHOOSE('Guts-2'!$D$26,H121,K121,N121,Q121,T121,W121,Z121,AS121),"") ->  | AO121: =IFERROR(CHOOSE('Guts-2'!$D$26,I121,L121,O121,R121,U121,X121,AA121,AT121),"") ->  | AR121: =INDEX('Import (ADP)'!$C$2:$C$999,MATCH(A121, 'Import (ADP)'!$B$2:$B$999,0)) ->  | AU121: =IF(VLOOKUP(A122,'Name-Sort'!$D$2:$E$961,2,FALSE)="",A122,"") -> Dylan Cease | AV121: =IFERROR(INDEX($AU$1:$AU$961,SMALL(IF($AU$1:$AU$961<>"",ROW($AU$1:$AU$961)),ROW(AU121))),"") -> Dylan Cease
A122: Dylan Cease | B122: ceasedy01 | C122: SP | E122: CWS | F122: 23 | G122: 482 | H122: 295 | I122: 641.06 | P122: 432 | Q122: 295 | R122: 590 | S122: 467 | T122: 295 | U122: 621.11 | V122: 652.33 | W122: 295 | X122: 590 | Y122: 508.3325 | Z122: 295 | AA122: 676.082225 | AF122: 717 | AH122: =IFERROR(INDEX('Guts-2'!$K$1:$K$30,MATCH(E122,'Guts-2'!$J$1:$J$30,0)),TRUE) -> TRUE | AI122: =IF(AH122=FALSE,"",IFERROR(CHOOSE('Guts-2'!$D$27,AB122,AC122,AD122,AE122,AF122,AG122),"")) ->  | AK122: =IF(AH122=FALSE,"",IFERROR(CHOOSE('Guts-2'!$D$26,G122,J122,M122,P122,S122,V122,Y122,AR122),"")) ->  | AL122: =IFERROR(IF(Settings!$L$5="Mixed (Standard)",AK122,RANK(AK122,$AK$2:$AK$961,1)),"") ->  | AM122: =IFERROR(IF(Settings!$L$5="Mixed (Standard)",(RANK(AK122,$AK$2:$AK$961,1)/('Guts-2'!$N$1+1))+1,(RANK(AL122,$AL$2:$AL$961,1)/('Guts-2'!$N$1+1))+1),"") ->  | AN122: =IFERROR(CHOOSE('Guts-2'!$D$26,H122,K122,N122,Q122,T122,W122,Z122,AS122),"") ->  | AO122: =IFERROR(CHOOSE('Guts-2'!$D$26,I122,L122,O122,R122,U122,X122,AA122,AT122),"") ->  | AR122: =INDEX('Import (ADP)'!$C$2:$C$999,MATCH(A122, 'Import (ADP)'!$B$2:$B$999,0)) ->  | AU122: =IF(VLOOKUP(A123,'Name-Sort'!$D$2:$E$961,2,FALSE)="",A123,"") -> Francisco Cervelli | AV122: =IFERROR(INDEX($AU$1:$AU$961,SMALL(IF($AU$1:$AU$961<>"",ROW($AU$1:$AU$961)),ROW(AU122))),"") -> Francisco Cervelli
A123: Francisco Cervelli | B123: cervefr01 | C123: C | E123: PIT | F123: 33 | G123: 316 | H123: 87 | I123: 420.28 | J123: 209 | K123: 87 | L123: 330 | M123: 158.13 | N123: 87 | O123: 236 | P123: 233 | Q123: 87 | R123: 330 | S123: 242.3 | T123: 87 | U123: 330 | V123: 265.52 | W123: 119 | X123: 330 | Y123: 237.325 | Z123: 87 | AA123: 330 | AB123: 277 | AC123: 293 | AE123: 289 | AF123: 297 | AH123: =IFERROR(INDEX('Guts-2'!$K$1:$K$30,MATCH(E123,'Guts-2'!$J$1:$J$30,0)),TRUE) -> TRUE | AI123: =IF(AH123=FALSE,"",IFERROR(CHOOSE('Guts-2'!$D$27,AB123,AC123,AD123,AE123,AF123,AG123),"")) ->  | AK123: =IF(AH123=FALSE,"",IFERROR(CHOOSE('Guts-2'!$D$26,G123,J123,M123,P123,S123,V123,Y123,AR123),"")) -> 158.13 | AL123: =IFERROR(IF(Settings!$L$5="Mixed (Standard)",AK123,RANK(AK123,$AK$2:$AK$961,1)),"") -> 158.13 | AM123: =IFERROR(IF(Settings!$L$5="Mixed (Standard)",(RANK(AK123,$AK$2:$AK$961,1)/('Guts-2'!$N$1+1))+1,(RANK(AL123,$AL$2:$AL$961,1)/('Guts-2'!$N$1+1))+1),"") -> 13.30769231 | AN123: =IFERROR(CHOOSE('Guts-2'!$D$26,H123,K123,N123,Q123,T123,W123,Z123,AS123),"") -> 87 | AO123: =IFERROR(CHOOSE('Guts-2'!$D$26,I123,L123,O123,R123,U123,X123,AA123,AT123),"") -> 236 | AP123: 87 | AQ123: 236 | AR123: =INDEX('Import (ADP)'!$C$2:$C$999,MATCH(A123, 'Import (ADP)'!$B$2:$B$999,0)) ->  | AU123: =IF(VLOOKUP(A124,'Name-Sort'!$D$2:$E$961,2,FALSE)="",A124,"") -> Yoenis Cespedes | AV123: =IFERROR(INDEX($AU$1:$AU$961,SMALL(IF($AU$1:$AU$961<>"",ROW($AU$1:$AU$961)),ROW(AU123))),"") -> Yoenis Cespedes
A124: Yoenis Cespedes | B124: cespeyo01 | C124: OF | D124: LF | E124: NYM | F124: 33 | G124: 361 | H124: 51 | I124: 695 | J124: 373 | K124: 51 | L124: 695 | P124: 344 | Q124: 51 | R124: 695 | S124: 391 | T124: 51 | U124: 695 | V124: 619.24 | W124: 51 | X124: 695 | Y124: 417.648 | Z124: 51 | AA124: 695 | AC124: 270 | AF124: 312 | AH124: =IFERROR(INDEX('Guts-2'!$K$1:$K$30,MATCH(E124,'Guts-2'!$J$1:$J$30,0)),TRUE) -> TRUE | AI124: =IF(AH124=FALSE,"",IFERROR(CHOOSE('Guts-2'!$D$27,AB124,AC124,AD124,AE124,AF124,AG124),"")) ->  | AK124: =IF(AH124=FALSE,"",IFERROR(CHOOSE('Guts-2'!$D$26,G124,J124,M124,P124,S124,V124,Y124,AR124),"")) ->  | AL124: =IFERROR(IF(Settings!$L$5="Mixed (Standard)",AK124,RANK(AK124,$AK$2:$AK$961,1)),"") ->  | AM124: =IFERROR(IF(Settings!$L$5="Mixed (Standard)",(RANK(AK124,$AK$2:$AK$961,1)/('Guts-2'!$N$1+1))+1,(RANK(AL124,$AL$2:$AL$961,1)/('Guts-2'!$N$1+1))+1),"") ->  | AN124: =IFERROR(CHOOSE('Guts-2'!$D$26,H124,K124,N124,Q124,T124,W124,Z124,AS124),"") ->  | AO124: =IFERROR(CHOOSE('Guts-2'!$D$26,I124,L124,O124,R124,U124,X124,AA124,AT124),"") ->  | AR124: =INDEX('Import (ADP)'!$C$2:$C$999,MATCH(A124, 'Import (ADP)'!$B$2:$B$999,0)) ->  | AU124: =IF(VLOOKUP(A125,'Name-Sort'!$D$2:$E$961,2,FALSE)="",A125,"") -> Jhoulys Chacin | AV124: =IFERROR(INDEX($AU$1:$AU$961,SMALL(IF($AU$1:$AU$961<>"",ROW($AU$1:$AU$961)),ROW(AU124))),"") -> Jhoulys Chacin
A125: Jhoulys Chacin | B125: chacijh01 | C125: SP | E125: MIL | F125: 31 | G125: 230 | H125: 94 | I125: 360 | J125: 261 | K125: 94 | L125: 360 | M125: 155.79 | N125: 94 | O125: 230 | P125: 245 | Q125: 94 | R125: 360 | S125: 243.8 | T125: 94 | U125: 360 | V125: 266.64 | W125: 181 | X125: 360 | Y125: 233.705 | Z125: 94 | AA125: 360 | AB125: 160 | AD125: 293 | AE125: 236 | AF125: 334 | AH125: =IFERROR(INDEX('Guts-2'!$K$1:$K$30,MATCH(E125,'Guts-2'!$J$1:$J$30,0)),TRUE) -> TRUE | AI125: =IF(AH125=FALSE,"",IFERROR(CHOOSE('Guts-2'!$D$27,AB125,AC125,AD125,AE125,AF125,AG125),"")) -> 293 | AJ125: 293 | AK125: =IF(AH125=FALSE,"",IFERROR(CHOOSE('Guts-2'!$D$26,G125,J125,M125,P125,S125,V125,Y125,AR125),"")) -> 155.79 | AL125: =IFERROR(IF(Settings!$L$5="Mixed (Standard)",AK125,RANK(AK125,$AK$2:$AK$961,1)),"") -> 155.79 | AM125: =IFERROR(IF(Settings!$L$5="Mixed (Standard)",(RANK(AK125,$AK$2:$AK$961,1)/('Guts-2'!$N$1+1))+1,(RANK(AL125,$AL$2:$AL$961,1)/('Guts-2'!$N$1+1))+1),"") -> 13 | AN125: =IFERROR(CHOOSE('Guts-2'!$D$26,H125,K125,N125,Q125,T125,W125,Z125,AS125),"") -> 94 | AO125: =IFERROR(CHOOSE('Guts-2'!$D$26,I125,L125,O125,R125,U125,X125,AA125,AT125),"") -> 230 | AP125: 94 | AQ125: 230 | AR125: =INDEX('Import (ADP)'!$C$2:$C$999,MATCH(A125, 'Import (ADP)'!$B$2:$B$999,0)) ->  | AU125: =IF(VLOOKUP(A126,'Name-Sort'!$D$2:$E$961,2,FALSE)="",A126,"") -> Aroldis Chapman | AV125: =IFERROR(INDEX($AU$1:$AU$961,SMALL(IF($AU$1:$AU$961<>"",ROW($AU$1:$AU$961)),ROW(AU125))),"") -> Aroldis Chapman
... 156 more rows

Sheet Name-Sort (hidden)
B1: =IFERROR(INDEX($A$1:$A$961,SMALL(IF($A$1:$A$961<>"",ROW($A$1:$A$961)),ROW(A1))),"") -> Mike Trout | C1: ORDER | D1: PLAYERNAME | E1: Team | F1: Original Pos | G1: New Pos | H1: Pos to Use | I1: New Pos | J1: Show Team? | K1: Drafted | L1: Show or No | M1: ADP | N1: Projected Points | O1: Expert Ranking | P1: StDev Above Average | Q1: Points Per IP | R1: Points Per PA | S1: Pos.ADPRank | W1: =IFERROR(INDEX($V$1:$V$961,SMALL(IF($V$1:$V$961<>"",ROW($V$1:$V$961)),ROW(V1))),"") -> Mike Trout
A2: =IFERROR(IF(VLOOKUP(ROW($A1),$C$2:$N$961,9,FALSE)=FALSE,VLOOKUP(ROW($A1),$C$2:$N$961,2,FALSE),""),"") -> Mike Trout | B2: =IFERROR(INDEX($A$1:$A$961,SMALL(IF($A$1:$A$961<>"",ROW($A$1:$A$961)),ROW(A2))),"") -> Mookie Betts | C2: =IFERROR(IF(L2=FALSE,"",CHOOSE(MATCH(RIGHT('Your Points Draft'!$R$3,LEN('Your Points Draft'!$R$3)-8),$M$1:$R$1,0),1+SUMPRODUCT(($L$2:$L$962=TRUE)*($M$2:$M$962<M2))+COUNTIFS($L$2:L2,L2,$M$2:M2,M2)-1,1+SUMPRODUCT(($L$2:$L$962=TRUE)*($N$2:$N$962>N2))+COUNTIFS($L$2:L2,L2,$N$2:N2,N2)-1,1+SUMPRODUCT(($L$2:$L$962=TRUE)*($O$2:$O$962<O2))+COUNTIFS($L$2:L2,L2,$O$2:O2,O2)-1,1+SUMPRODUCT(($L$2:$L$962=TRUE)*($P$2:$P$962>P2))+COUNTIFS($L$2:L2,L2,$P$2:P2,P2)-1,1+SUMPRODUCT(($L$2:$L$962=TRUE)*($Q$2:$Q$962>Q2))+COUNTIFS($L$2:L2,L2,$Q$2:Q2,Q2)-1,1+SUMPRODUCT(($L$2:$L$962=TRUE)*($R$2:$R$962>R2))+COUNTIFS($L$2:L2,L2,$R$2:R2,R2)-1,)),"") -> 62 | D2: Jose Abreu | E2: =IFERROR(INDEX('Draft Log'!$D$3:$D$807,MATCH(D2,'Draft Log'!$C$3:$C$807,0)),"") ->  | F2: =IFERROR(INDEX('ADP-Rank'!$C$2:$C$832,MATCH(D2,'ADP-Rank'!$A$2:$A$832,0)),"") -> 1B | G2: =IFERROR(IF(F2=I2,"",IF(INDEX('Your Points Draft'!$B$10:$B$633,MATCH(D2,'Your Points Draft'!$C$10:$C$633,0))="",IF(I2<>"",I2,""),INDEX('Your Points Draft'!$B$10:$B$633,MATCH(D2,'Your Points Draft'!$C$10:$C$633,0)))),"") ->  | H2: =IFERROR(IF(I2="",F2,IF(I2<>F2,I2,F2)),"") -> 1B | J2: =INDEX('ADP-Rank'!$AH$2:$AH$832,MATCH(D2,'ADP-Rank'!$A$2:$A$832,0)) -> TRUE | K2: =IF(E2="",FALSE,TRUE) -> FALSE | L2: =IF(J2=FALSE,FALSE,IF(AND('Your Points Draft'!$R$5="Hide Drafted Players",K2=TRUE),FALSE,IF(OR('Your Points Draft'!$R$4="Show All Positions",AND('Your Points Draft'!$R$4="Only Show: C",H2="C"),AND('Your Points Draft'!$R$4="Only Show: 1B",H2="1B"),AND('Your Points Draft'!$R$4="Only Show: 2B",H2="2B"),AND('Your Points Draft'!$R$4="Only Show: 3B",H2="3B"),AND('Your Points Draft'!$R$4="Only Show: SS",H2="SS"),AND('Your Points Draft'!$R$4="Only Show: OF",H2="OF"),AND('Your Points Draft'!$R$4="Only Show: SP",H2="SP"),AND('Your Points Draft'!$R$4="Only Show: RP",H2="RP"),AND('Your Points Draft'!$R$4="Only Show: CI",OR(H2={"1B","3B"})),AND('Your Points Draft'!$R$4="Only Show: MI",OR(H2={"2B","SS"})),AND('Your Points Draft'!$R$4="Only Show: IF",OR(H2={"C","1B","2B","3B","SS"})),AND('Your Points Draft'!$R$4="Only Show: DH",OR(H2={"C","1B","2B","3B","SS","OF","DH"})),AND('Your Points Draft'!$R$4="Only Show: P",OR(H2={"SP","RP"})),AND('Your Points Draft'!$R$4="Only Show: LF",ISERROR(SEARCH("LF",VLOOKUP($D2,'ADP-Rank'!$A$2:$D$961,4,FALSE)))=FALSE),AND('Your Points Draft'!$R$4="Only Show: RF",ISERROR(SEARCH("RF",VLOOKUP($D2,'ADP-Rank'!$A$2:$D$961,4,FALSE)))=FALSE),AND('Your Points Draft'!$R$4="Only Show: CF",ISERROR(SEARCH("CF",VLOOKUP($D2,'ADP-Rank'!$A$2:$D$961,4,FALSE)))=FALSE)),TRUE,FALSE))) -> TRUE | M2: =IFERROR(IF(VLOOKUP($D2,'ADP-Rank'!$A$2:$AV$961,38,FALSE)="",9999,VLOOKUP($D2,'ADP-Rank'!$A$2:$AV$961,38,FALSE)),9999) -> 68.83 | N2: =IF(D2="Non-Ranked Player",-1001,IF(VLOOKUP($D2,'Starter Calc'!$B$2:$D$961,3,FALSE)="",-1000,VLOOKUP($D2,'Starter Calc'!$B$2:$D$961,3,FALSE))) -> 379.2535097 | O2: =IF(D2="Non-Ranked Player",10000,IFERROR(IF(VLOOKUP(D2,'ADP-Rank'!A2:AJ961,36,FALSE)="",9999,VLOOKUP(D2,'ADP-Rank'!A2:AJ961,36,FALSE)),9999)) -> 58 | P2: =IF($D2="Unlisted Player",-1001,IFERROR(IF(IF(OR($H2="RP",$H2="SP"),VLOOKUP($D2,'Filtered-P'!$A$3:$X$938,13,FALSE),VLOOKUP($D2,'Filtered-H'!$A$3:$Z$950,22,FALSE))="",-1000,IF(OR($H2="RP",$H2="SP"),VLOOKUP($D2,'Filtered-P'!$A$3:$X$938,13,FALSE),VLOOKUP($D2,'Filtered-H'!$A$3:$Z$950,22,FALSE))),-1000)) -> -0.4927432611 | Q2: =IFERROR(IF($D2="Unlisted Player",-1001,IF(OR(H2="SP",H2="RP"),N2/VLOOKUP($D2,'Filtered-P'!$A$1:$AB$961,4,FALSE),-1000)),-1000) -> -1000 | R2: =IFERROR(IF($D2="Unlisted Player",-1001,IF(OR(H2="SP",H2="RP"),-1000,N2/VLOOKUP($D2,'Filtered-H'!$A$1:$AD$961,2,FALSE))),-1000) -> 0.6110093599 | S2: =IF(H2="",#N/A,H2&"."&1+SUMPRODUCT(($H$2:$H$962=H2)*($M$2:$M$962<M2))+COUNTIFS($M$2:M2,M2,$H$2:H2,H2)-1) -> 1B.7 | T2: =IFERROR(IF(D2=0,1001,IF(VLOOKUP($D2,'ADP-Rank'!$A$2:$AV$961,38,FALSE)="",999+(IF(J2=FALSE,1,0)),VLOOKUP($D2,'ADP-Rank'!$A$2:$AV$961,38,FALSE))),999+(IF(J2=FALSE,1,0))) -> 68.83 | U2: =IF(H2="",#N/A,1+SUMPRODUCT(($H$2:$H$962=H2)*($M$2:$M$962<M2))+COUNTIFS($M$2:M2,M2,$H$2:H2,H2)-1) -> 7 | V2: =IF(ISERROR(VLOOKUP($B1,Keepers!$C$2:$D$450,2,FALSE)),B1,"") -> Mike Trout | W2: =IFERROR(INDEX($V$1:$V$961,SMALL(IF($V$1:$V$961<>"",ROW($V$1:$V$961)),ROW(V2))),"") -> Mookie Betts | X2: =IF(D2="Non-Ranked Player",0,IF(VLOOKUP($D2,'Starter Calc'!$B$2:$D$961,3,FALSE)="",0,VLOOKUP($D2,'Starter Calc'!$B$2:$D$961,3,FALSE))) -> 379.2535097 | Y2: =IFERROR(VLOOKUP(D2,'Starter Calc'!B$2:BS$961,70,FALSE),"") -> Bench
A3: Mookie Betts | B3: =IFERROR(INDEX($A$1:$A$961,SMALL(IF($A$1:$A$961<>"",ROW($A$1:$A$961)),ROW(A3))),"") -> Max Scherzer | C3: =IFERROR(IF(L3=FALSE,"",CHOOSE(MATCH(RIGHT('Your Points Draft'!$R$3,LEN('Your Points Draft'!$R$3)-8),$M$1:$R$1,0),1+SUMPRODUCT(($L$2:$L$962=TRUE)*($M$2:$M$962<M3))+COUNTIFS($L$2:L3,L3,$M$2:M3,M3)-1,1+SUMPRODUCT(($L$2:$L$962=TRUE)*($N$2:$N$962>N3))+COUNTIFS($L$2:L3,L3,$N$2:N3,N3)-1,1+SUMPRODUCT(($L$2:$L$962=TRUE)*($O$2:$O$962<O3))+COUNTIFS($L$2:L3,L3,$O$2:O3,O3)-1,1+SUMPRODUCT(($L$2:$L$962=TRUE)*($P$2:$P$962>P3))+COUNTIFS($L$2:L3,L3,$P$2:P3,P3)-1,1+SUMPRODUCT(($L$2:$L$962=TRUE)*($Q$2:$Q$962>Q3))+COUNTIFS($L$2:L3,L3,$Q$2:Q3,Q3)-1,1+SUMPRODUCT(($L$2:$L$962=TRUE)*($R$2:$R$962>R3))+COUNTIFS($L$2:L3,L3,$R$2:R3,R3)-1,)),"") -> 16 | D3: Ronald Acuna | E3: =IFERROR(INDEX('Draft Log'!$D$3:$D$807,MATCH(D3,'Draft Log'!$C$3:$C$807,0)),"") ->  | F3: =IFERROR(INDEX('ADP-Rank'!$C$2:$C$832,MATCH(D3,'ADP-Rank'!$A$2:$A$832,0)),"") -> OF | G3: =IFERROR(IF(F3=I3,"",IF(INDEX('Your Points Draft'!$B$10:$B$633,MATCH(D3,'Your Points Draft'!$C$10:$C$633,0))="",IF(I3<>"",I3,""),INDEX('Your Points Draft'!$B$10:$B$633,MATCH(D3,'Your Points Draft'!$C$10:$C$633,0)))),"") ->  | H3: OF | J3: =INDEX('ADP-Rank'!$AH$2:$AH$832,MATCH(D3,'ADP-Rank'!$A$2:$A$832,0)) -> TRUE | K3: =IF(E3="",FALSE,TRUE) -> FALSE | L3: =IF(J3=FALSE,FALSE,IF(AND('Your Points Draft'!$R$5="Hide Drafted Players",K3=TRUE),FALSE,IF(OR('Your Points Draft'!$R$4="Show All Positions",AND('Your Points Draft'!$R$4="Only Show: C",H3="C"),AND('Your Points Draft'!$R$4="Only Show: 1B",H3="1B"),AND('Your Points Draft'!$R$4="Only Show: 2B",H3="2B"),AND('Your Points Draft'!$R$4="Only Show: 3B",H3="3B"),AND('Your Points Draft'!$R$4="Only Show: SS",H3="SS"),AND('Your Points Draft'!$R$4="Only Show: OF",H3="OF"),AND('Your Points Draft'!$R$4="Only Show: SP",H3="SP"),AND('Your Points Draft'!$R$4="Only Show: RP",H3="RP"),AND('Your Points Draft'!$R$4="Only Show: CI",OR(H3={"1B","3B"})),AND('Your Points Draft'!$R$4="Only Show: MI",OR(H3={"2B","SS"})),AND('Your Points Draft'!$R$4="Only Show: IF",OR(H3={"C","1B","2B","3B","SS"})),AND('Your Points Draft'!$R$4="Only Show: DH",OR(H3={"C","1B","2B","3B","SS","OF","DH"})),AND('Your Points Draft'!$R$4="Only Show: P",OR(H3={"SP","RP"})),AND('Your Points Draft'!$R$4="Only Show: LF",ISERROR(SEARCH("LF",VLOOKUP($D3,'ADP-Rank'!$A$2:$D$961,4,FALSE)))=FALSE),AND('Your Points Draft'!$R$4="Only Show: RF",ISERROR(SEARCH("RF",VLOOKUP($D3,'ADP-Rank'!$A$2:$D$961,4,FALSE)))=FALSE),AND('Your Points Draft'!$R$4="Only Show: CF",ISERROR(SEARCH("CF",VLOOKUP($D3,'ADP-Rank'!$A$2:$D$961,4,FALSE)))=FALSE)),TRUE,FALSE))) -> TRUE | M3: =IFERROR(IF(VLOOKUP($D3,'ADP-Rank'!$A$2:$AV$961,38,FALSE)="",9999,VLOOKUP($D3,'ADP-Rank'!$A$2:$AV$961,38,FALSE)),9999) -> 14.52 | N3: =IF(D3="Non-Ranked Player",-1001,IF(VLOOKUP($D3,'Starter Calc'!$B$2:$D$961,3,FALSE)="",-1000,VLOOKUP($D3,'Starter Calc'!$B$2:$D$961,3,FALSE))) -> 415.6422234 | O3: =IF(D3="Non-Ranked Player",10000,IFERROR(IF(VLOOKUP(D3,'ADP-Rank'!A3:AJ962,36,FALSE)="",9999,VLOOKUP(D3,'ADP-Rank'!A3:AJ962,36,FALSE)),9999)) -> 28 | P3: =IF($D3="Unlisted Player",-1001,IFERROR(IF(IF(OR($H3="RP",$H3="SP"),VLOOKUP($D3,'Filtered-P'!$A$3:$X$938,13,FALSE),VLOOKUP($D3,'Filtered-H'!$A$3:$Z$950,22,FALSE))="",-1000,IF(OR($H3="RP",$H3="SP"),VLOOKUP($D3,'Filtered-P'!$A$3:$X$938,13,FALSE),VLOOKUP($D3,'Filtered-H'!$A$3:$Z$950,22,FALSE))),-1000)) -> 0.7014817913 | Q3: =IFERROR(IF($D3="Unlisted Player",-1001,IF(OR(H3="SP",H3="RP"),N3/VLOOKUP($D3,'Filtered-P'!$A$1:$AB$961,4,FALSE),-1000)),-1000) -> -1000 | R3: =IFERROR(IF($D3="Unlisted Player",-1001,IF(OR(H3="SP",H3="RP"),-1000,N3/VLOOKUP($D3,'Filtered-H'!$A$1:$AD$961,2,FALSE))),-1000) -> 0.6497455423 | S3: =IF(H3="",#N/A,H3&"."&1+SUMPRODUCT(($H$2:$H$962=H3)*($M$2:$M$962<M3))+COUNTIFS($M$2:M3,M3,$H$2:H3,H3)-1) -> OF.5 | T3: =IFERROR(IF(D3=0,1001,IF(VLOOKUP($D3,'ADP-Rank'!$A$2:$AV$961,38,FALSE)="",999+(IF(J3=FALSE,1,0)),VLOOKUP($D3,'ADP-Rank'!$A$2:$AV$961,38,FALSE))),999+(IF(J3=FALSE,1,0))) -> 14.52 | U3: =IF(H3="",#N/A,1+SUMPRODUCT(($H$2:$H$962=H3)*($M$2:$M$962<M3))+COUNTIFS($M$2:M3,M3,$H$2:H3,H3)-1) -> 5 | V3: =IF(ISERROR(VLOOKUP($B2,Keepers!$C$2:$D$450,2,FALSE)),B2,"") -> Mookie Betts | W3: =IFERROR(INDEX($V$1:$V$961,SMALL(IF($V$1:$V$961<>"",ROW($V$1:$V$961)),ROW(V3))),"") -> Max Scherzer | X3: =IF(D3="Non-Ranked Player",0,IF(VLOOKUP($D3,'Starter Calc'!$B$2:$D$961,3,FALSE)="",0,VLOOKUP($D3,'Starter Calc'!$B$2:$D$961,3,FALSE))) -> 415.6422234 | Y3: =IFERROR(VLOOKUP(D3,'Starter Calc'!B$2:BS$961,70,FALSE),"") -> Bench
A4: Max Scherzer | B4: =IFERROR(INDEX($A$1:$A$961,SMALL(IF($A$1:$A$961<>"",ROW($A$1:$A$961)),ROW(A4))),"") -> Jose Ramirez | C4: =IFERROR(IF(L4=FALSE,"",CHOOSE(MATCH(RIGHT('Your Points Draft'!$R$3,LEN('Your Points Draft'!$R$3)-8),$M$1:$R$1,0),1+SUMPRODUCT(($L$2:$L$962=TRUE)*($M$2:$M$962<M4))+COUNTIFS($L$2:L4,L4,$M$2:M4,M4)-1,1+SUMPRODUCT(($L$2:$L$962=TRUE)*($N$2:$N$962>N4))+COUNTIFS($L$2:L4,L4,$N$2:N4,N4)-1,1+SUMPRODUCT(($L$2:$L$962=TRUE)*($O$2:$O$962<O4))+COUNTIFS($L$2:L4,L4,$O$2:O4,O4)-1,1+SUMPRODUCT(($L$2:$L$962=TRUE)*($P$2:$P$962>P4))+COUNTIFS($L$2:L4,L4,$P$2:P4,P4)-1,1+SUMPRODUCT(($L$2:$L$962=TRUE)*($Q$2:$Q$962>Q4))+COUNTIFS($L$2:L4,L4,$Q$2:Q4,Q4)-1,1+SUMPRODUCT(($L$2:$L$962=TRUE)*($R$2:$R$962>R4))+COUNTIFS($L$2:L4,L4,$R$2:R4,R4)-1,)),"") -> 314 | D4: Willy Adames | E4: =IFERROR(INDEX('Draft Log'!$D$3:$D$807,MATCH(D4,'Draft Log'!$C$3:$C$807,0)),"") ->  | F4: =IFERROR(INDEX('ADP-Rank'!$C$2:$C$832,MATCH(D4,'ADP-Rank'!$A$2:$A$832,0)),"") -> SS | G4: =IFERROR(IF(F4=I4,"",IF(INDEX('Your Points Draft'!$B$10:$B$633,MATCH(D4,'Your Points Draft'!$C$10:$C$633,0))="",IF(I4<>"",I4,""),INDEX('Your Points Draft'!$B$10:$B$633,MATCH(D4,'Your Points Draft'!$C$10:$C$633,0)))),"") ->  | H4: SS | J4: =INDEX('ADP-Rank'!$AH$2:$AH$832,MATCH(D4,'ADP-Rank'!$A$2:$A$832,0)) -> TRUE | K4: FALSE | L4: =IF(J4=FALSE,FALSE,IF(AND('Your Points Draft'!$R$5="Hide Drafted Players",K4=TRUE),FALSE,IF(OR('Your Points Draft'!$R$4="Show All Positions",AND('Your Points Draft'!$R$4="Only Show: C",H4="C"),AND('Your Points Draft'!$R$4="Only Show: 1B",H4="1B"),AND('Your Points Draft'!$R$4="Only Show: 2B",H4="2B"),AND('Your Points Draft'!$R$4="Only Show: 3B",H4="3B"),AND('Your Points Draft'!$R$4="Only Show: SS",H4="SS"),AND('Your Points Draft'!$R$4="Only Show: OF",H4="OF"),AND('Your Points Draft'!$R$4="Only Show: SP",H4="SP"),AND('Your Points Draft'!$R$4="Only Show: RP",H4="RP"),AND('Your Points Draft'!$R$4="Only Show: CI",OR(H4={"1B","3B"})),AND('Your Points Draft'!$R$4="Only Show: MI",OR(H4={"2B","SS"})),AND('Your Points Draft'!$R$4="Only Show: IF",OR(H4={"C","1B","2B","3B","SS"})),AND('Your Points Draft'!$R$4="Only Show: DH",OR(H4={"C","1B","2B","3B","SS","OF","DH"})),AND('Your Points Draft'!$R$4="Only Show: P",OR(H4={"SP","RP"})),AND('Your Points Draft'!$R$4="Only Show: LF",ISERROR(SEARCH("LF",VLOOKUP($D4,'ADP-Rank'!$A$2:$D$961,4,FALSE)))=FALSE),AND('Your Points Draft'!$R$4="Only Show: RF",ISERROR(SEARCH("RF",VLOOKUP($D4,'ADP-Rank'!$A$2:$D$961,4,FALSE)))=FALSE),AND('Your Points Draft'!$R$4="Only Show: CF",ISERROR(SEARCH("CF",VLOOKUP($D4,'ADP-Rank'!$A$2:$D$961,4,FALSE)))=FALSE)),TRUE,FALSE))) -> TRUE | M4: =IFERROR(IF(VLOOKUP($D4,'ADP-Rank'!$A$2:$AV$961,38,FALSE)="",9999,VLOOKUP($D4,'ADP-Rank'!$A$2:$AV$961,38,FALSE)),9999) -> 9999 | N4: =IF(D4="Non-Ranked Player",-1001,IF(VLOOKUP($D4,'Starter Calc'!$B$2:$D$961,3,FALSE)="",-1000,VLOOKUP($D4,'Starter Calc'!$B$2:$D$961,3,FALSE))) -> 258.0302102 | O4: =IF(D4="Non-Ranked Player",10000,IFERROR(IF(VLOOKUP(D4,'ADP-Rank'!A4:AJ963,36,FALSE)="",9999,VLOOKUP(D4,'ADP-Rank'!A4:AJ963,36,FALSE)),9999)) -> 242 | P4: =IF($D4="Unlisted Player",-1001,IFERROR(IF(IF(OR($H4="RP",$H4="SP"),VLOOKUP($D4,'Filtered-P'!$A$3:$X$938,13,FALSE),VLOOKUP($D4,'Filtered-H'!$A$3:$Z$950,22,FALSE))="",-1000,IF(OR($H4="RP",$H4="SP"),VLOOKUP($D4,'Filtered-P'!$A$3:$X$938,13,FALSE),VLOOKUP($D4,'Filtered-H'!$A$3:$Z$950,22,FALSE))),-1000)) -> -2.667350415 | Q4: =IFERROR(IF($D4="Unlisted Player",-1001,IF(OR(H4="SP",H4="RP"),N4/VLOOKUP($D4,'Filtered-P'!$A$1:$AB$961,4,FALSE),-1000)),-1000) -> -1000 | R4: =IFERROR(IF($D4="Unlisted Player",-1001,IF(OR(H4="SP",H4="RP"),-1000,N4/VLOOKUP($D4,'Filtered-H'!$A$1:$AD$961,2,FALSE))),-1000) -> 0.4182013132 | S4: =IF(H4="",#N/A,H4&"."&1+SUMPRODUCT(($H$2:$H$962=H4)*($M$2:$M$962<M4))+COUNTIFS($M$2:M4,M4,$H$2:H4,H4)-1) -> SS.28 | T4: =IFERROR(IF(D4=0,1001,IF(VLOOKUP($D4,'ADP-Rank'!$A$2:$AV$961,38,FALSE)="",999+(IF(J4=FALSE,1,0)),VLOOKUP($D4,'ADP-Rank'!$A$2:$AV$961,38,FALSE))),999+(IF(J4=FALSE,1,0))) -> 999 | U4: =IF(H4="",#N/A,1+SUMPRODUCT(($H$2:$H$962=H4)*($M$2:$M$962<M4))+COUNTIFS($M$2:M4,M4,$H$2:H4,H4)-1) -> 28 | V4: =IF(ISERROR(VLOOKUP($B3,Keepers!$C$2:$D$450,2,FALSE)),B3,"") -> Max Scherzer | W4: =IFERROR(INDEX($V$1:$V$961,SMALL(IF($V$1:$V$961<>"",ROW($V$1:$V$961)),ROW(V4))),"") -> Jose Ramirez | X4: =IF(D4="Non-Ranked Player",0,IF(VLOOKUP($D4,'Starter Calc'!$B$2:$D$961,3,FALSE)="",0,VLOOKUP($D4,'Starter Calc'!$B$2:$D$961,3,FALSE))) -> 258.0302102 | Y4: =IFERROR(VLOOKUP(D4,'Starter Calc'!B$2:BS$961,70,FALSE),"") -> Bench
A5: Jose Ramirez | B5: =IFERROR(INDEX($A$1:$A$961,SMALL(IF($A$1:$A$961<>"",ROW($A$1:$A$961)),ROW(A5))),"") -> Nolan Arenado | C5: =IFERROR(IF(L5=FALSE,"",CHOOSE(MATCH(RIGHT('Your Points Draft'!$R$3,LEN('Your Points Draft'!$R$3)-8),$M$1:$R$1,0),1+SUMPRODUCT(($L$2:$L$962=TRUE)*($M$2:$M$962<M5))+COUNTIFS($L$2:L5,L5,$M$2:M5,M5)-1,1+SUMPRODUCT(($L$2:$L$962=TRUE)*($N$2:$N$962>N5))+COUNTIFS($L$2:L5,L5,$N$2:N5,N5)-1,1+SUMPRODUCT(($L$2:$L$962=TRUE)*($O$2:$O$962<O5))+COUNTIFS($L$2:L5,L5,$O$2:O5,O5)-1,1+SUMPRODUCT(($L$2:$L$962=TRUE)*($P$2:$P$962>P5))+COUNTIFS($L$2:L5,L5,$P$2:P5,P5)-1,1+SUMPRODUCT(($L$2:$L$962=TRUE)*($Q$2:$Q$962>Q5))+COUNTIFS($L$2:L5,L5,$Q$2:Q5,Q5)-1,1+SUMPRODUCT(($L$2:$L$962=TRUE)*($R$2:$R$962>R5))+COUNTIFS($L$2:L5,L5,$R$2:R5,R5)-1,)),"") -> 315 | D5: Matt Adams | E5: =IFERROR(INDEX('Draft Log'!$D$3:$D$807,MATCH(D5,'Draft Log'!$C$3:$C$807,0)),"") ->  | F5: =IFERROR(INDEX('ADP-Rank'!$C$2:$C$832,MATCH(D5,'ADP-Rank'!$A$2:$A$832,0)),"") -> 1B | G5: =IFERROR(IF(F5=I5,"",IF(INDEX('Your Points Draft'!$B$10:$B$633,MATCH(D5,'Your Points Draft'!$C$10:$C$633,0))="",IF(I5<>"",I5,""),INDEX('Your Points Draft'!$B$10:$B$633,MATCH(D5,'Your Points Draft'!$C$10:$C$633,0)))),"") ->  | H5: 1B | J5: =INDEX('ADP-Rank'!$AH$2:$AH$832,MATCH(D5,'ADP-Rank'!$A$2:$A$832,0)) -> TRUE | K5: FALSE | L5: =IF(J5=FALSE,FALSE,IF(AND('Your Points Draft'!$R$5="Hide Drafted Players",K5=TRUE),FALSE,IF(OR('Your Points Draft'!$R$4="Show All Positions",AND('Your Points Draft'!$R$4="Only Show: C",H5="C"),AND('Your Points Draft'!$R$4="Only Show: 1B",H5="1B"),AND('Your Points Draft'!$R$4="Only Show: 2B",H5="2B"),AND('Your Points Draft'!$R$4="Only Show: 3B",H5="3B"),AND('Your Points Draft'!$R$4="Only Show: SS",H5="SS"),AND('Your Points Draft'!$R$4="Only Show: OF",H5="OF"),AND('Your Points Draft'!$R$4="Only Show: SP",H5="SP"),AND('Your Points Draft'!$R$4="Only Show: RP",H5="RP"),AND('Your Points Draft'!$R$4="Only Show: CI",OR(H5={"1B","3B"})),AND('Your Points Draft'!$R$4="Only Show: MI",OR(H5={"2B","SS"})),AND('Your Points Draft'!$R$4="Only Show: IF",OR(H5={"C","1B","2B","3B","SS"})),AND('Your Points Draft'!$R$4="Only Show: DH",OR(H5={"C","1B","2B","3B","SS","OF","DH"})),AND('Your Points Draft'!$R$4="Only Show: P",OR(H5={"SP","RP"})),AND('Your Points Draft'!$R$4="Only Show: LF",ISERROR(SEARCH("LF",VLOOKUP($D5,'ADP-Rank'!$A$2:$D$961,4,FALSE)))=FALSE),AND('Your Points Draft'!$R$4="Only Show: RF",ISERROR(SEARCH("RF",VLOOKUP($D5,'ADP-Rank'!$A$2:$D$961,4,FALSE)))=FALSE),AND('Your Points Draft'!$R$4="Only Show: CF",ISERROR(SEARCH("CF",VLOOKUP($D5,'ADP-Rank'!$A$2:$D$961,4,FALSE)))=FALSE)),TRUE,FALSE))) -> TRUE | M5: =IFERROR(IF(VLOOKUP($D5,'ADP-Rank'!$A$2:$AV$961,38,FALSE)="",9999,VLOOKUP($D5,'ADP-Rank'!$A$2:$AV$961,38,FALSE)),9999) -> 9999 | N5: =IF(D5="Non-Ranked Player",-1001,IF(VLOOKUP($D5,'Starter Calc'!$B$2:$D$961,3,FALSE)="",-1000,VLOOKUP($D5,'Starter Calc'!$B$2:$D$961,3,FALSE))) -> 166.8556316 | O5: =IF(D5="Non-Ranked Player",10000,IFERROR(IF(VLOOKUP(D5,'ADP-Rank'!A5:AJ964,36,FALSE)="",9999,VLOOKUP(D5,'ADP-Rank'!A5:AJ964,36,FALSE)),9999)) -> 9999 | P5: =IF($D5="Unlisted Player",-1001,IFERROR(IF(IF(OR($H5="RP",$H5="SP"),VLOOKUP($D5,'Filtered-P'!$A$3:$X$938,13,FALSE),VLOOKUP($D5,'Filtered-H'!$A$3:$Z$950,22,FALSE))="",-1000,IF(OR($H5="RP",$H5="SP"),VLOOKUP($D5,'Filtered-P'!$A$3:$X$938,13,FALSE),VLOOKUP($D5,'Filtered-H'!$A$3:$Z$950,22,FALSE))),-1000)) -> -5.282025541 | Q5: =IFERROR(IF($D5="Unlisted Player",-1001,IF(OR(H5="SP",H5="RP"),N5/VLOOKUP($D5,'Filtered-P'!$A$1:$AB$961,4,FALSE),-1000)),-1000) -> -1000 | R5: =IFERROR(IF($D5="Unlisted Player",-1001,IF(OR(H5="SP",H5="RP"),-1000,N5/VLOOKUP($D5,'Filtered-H'!$A$1:$AD$961,2,FALSE))),-1000) -> 0.6043304296 | S5: =IF(H5="",#N/A,H5&"."&1+SUMPRODUCT(($H$2:$H$962=H5)*($M$2:$M$962<M5))+COUNTIFS($M$2:M5,M5,$H$2:H5,H5)-1) -> 1B.24 | T5: =IFERROR(IF(D5=0,1001,IF(VLOOKUP($D5,'ADP-Rank'!$A$2:$AV$961,38,FALSE)="",999+(IF(J5=FALSE,1,0)),VLOOKUP($D5,'ADP-Rank'!$A$2:$AV$961,38,FALSE))),999+(IF(J5=FALSE,1,0))) -> 999 | U5: =IF(H5="",#N/A,1+SUMPRODUCT(($H$2:$H$962=H5)*($M$2:$M$962<M5))+COUNTIFS($M$2:M5,M5,$H$2:H5,H5)-1) -> 24 | V5: =IF(ISERROR(VLOOKUP($B4,Keepers!$C$2:$D$450,2,FALSE)),B4,"") -> Jose Ramirez | W5: =IFERROR(INDEX($V$1:$V$961,SMALL(IF($V$1:$V$961<>"",ROW($V$1:$V$961)),ROW(V5))),"") -> Nolan Arenado | X5: =IF(D5="Non-Ranked Player",0,IF(VLOOKUP($D5,'Starter Calc'!$B$2:$D$961,3,FALSE)="",0,VLOOKUP($D5,'Starter Calc'!$B$2:$D$961,3,FALSE))) -> 166.8556316 | Y5: =IFERROR(VLOOKUP(D5,'Starter Calc'!B$2:BS$961,70,FALSE),"") -> Bench
A6: Nolan Arenado | B6: =IFERROR(INDEX($A$1:$A$961,SMALL(IF($A$1:$A$961<>"",ROW($A$1:$A$961)),ROW(A6))),"") -> Jacob deGrom | C6: =IFERROR(IF(L6=FALSE,"",CHOOSE(MATCH(RIGHT('Your Points Draft'!$R$3,LEN('Your Points Draft'!$R$3)-8),$M$1:$R$1,0),1+SUMPRODUCT(($L$2:$L$962=TRUE)*($M$2:$M$962<M6))+COUNTIFS($L$2:L6,L6,$M$2:M6,M6)-1,1+SUMPRODUCT(($L$2:$L$962=TRUE)*($N$2:$N$962>N6))+COUNTIFS($L$2:L6,L6,$N$2:N6,N6)-1,1+SUMPRODUCT(($L$2:$L$962=TRUE)*($O$2:$O$962<O6))+COUNTIFS($L$2:L6,L6,$O$2:O6,O6)-1,1+SUMPRODUCT(($L$2:$L$962=TRUE)*($P$2:$P$962>P6))+COUNTIFS($L$2:L6,L6,$P$2:P6,P6)-1,1+SUMPRODUCT(($L$2:$L$962=TRUE)*($Q$2:$Q$962>Q6))+COUNTIFS($L$2:L6,L6,$Q$2:Q6,Q6)-1,1+SUMPRODUCT(($L$2:$L$962=TRUE)*($R$2:$R$962>R6))+COUNTIFS($L$2:L6,L6,$R$2:R6,R6)-1,)),"") -> 316 | D6: Ehire Adrianza | E6: =IFERROR(INDEX('Draft Log'!$D$3:$D$807,MATCH(D6,'Draft Log'!$C$3:$C$807,0)),"") ->  | F6: =IFERROR(INDEX('ADP-Rank'!$C$2:$C$832,MATCH(D6,'ADP-Rank'!$A$2:$A$832,0)),"") -> SS | G6: =IFERROR(IF(F6=I6,"",IF(INDEX('Your Points Draft'!$B$10:$B$633,MATCH(D6,'Your Points Draft'!$C$10:$C$633,0))="",IF(I6<>"",I6,""),INDEX('Your Points Draft'!$B$10:$B$633,MATCH(D6,'Your Points Draft'!$C$10:$C$633,0)))),"") ->  | H6: SS | J6: =INDEX('ADP-Rank'!$AH$2:$AH$832,MATCH(D6,'ADP-Rank'!$A$2:$A$832,0)) -> TRUE | K6: FALSE | L6: =IF(J6=FALSE,FALSE,IF(AND('Your Points Draft'!$R$5="Hide Drafted Players",K6=TRUE),FALSE,IF(OR('Your Points Draft'!$R$4="Show All Positions",AND('Your Points Draft'!$R$4="Only Show: C",H6="C"),AND('Your Points Draft'!$R$4="Only Show: 1B",H6="1B"),AND('Your Points Draft'!$R$4="Only Show: 2B",H6="2B"),AND('Your Points Draft'!$R$4="Only Show: 3B",H6="3B"),AND('Your Points Draft'!$R$4="Only Show: SS",H6="SS"),AND('Your Points Draft'!$R$4="Only Show: OF",H6="OF"),AND('Your Points Draft'!$R$4="Only Show: SP",H6="SP"),AND('Your Points Draft'!$R$4="Only Show: RP",H6="RP"),AND('Your Points Draft'!$R$4="Only Show: CI",OR(H6={"1B","3B"})),AND('Your Points Draft'!$R$4="Only Show: MI",OR(H6={"2B","SS"})),AND('Your Points Draft'!$R$4="Only Show: IF",OR(H6={"C","1B","2B","3B","SS"})),AND('Your Points Draft'!$R$4="Only Show: DH",OR(H6={"C","1B","2B","3B","SS","OF","DH"})),AND('Your Points Draft'!$R$4="Only Show: P",OR(H6={"SP","RP"})),AND('Your Points Draft'!$R$4="Only Show: LF",ISERROR(SEARCH("LF",VLOOKUP($D6,'ADP-Rank'!$A$2:$D$961,4,FALSE)))=FALSE),AND('Your Points Draft'!$R$4="Only Show: RF",ISERROR(SEARCH("RF",VLOOKUP($D6,'ADP-Rank'!$A$2:$D$961,4,FALSE)))=FALSE),AND('Your Points Draft'!$R$4="Only Show: CF",ISERROR(SEARCH("CF",VLOOKUP($D6,'ADP-Rank'!$A$2:$D$961,4,FALSE)))=FALSE)),TRUE,FALSE))) -> TRUE | M6: =IFERROR(IF(VLOOKUP($D6,'ADP-Rank'!$A$2:$AV$961,38,FALSE)="",9999,VLOOKUP($D6,'ADP-Rank'!$A$2:$AV$961,38,FALSE)),9999) -> 9999 | N6: =IF(D6="Non-Ranked Player",-1001,IF(VLOOKUP($D6,'Starter Calc'!$B$2:$D$961,3,FALSE)="",-1000,VLOOKUP($D6,'Starter Calc'!$B$2:$D$961,3,FALSE))) -> 70.26583623 | O6: =IF(D6="Non-Ranked Player",10000,IFERROR(IF(VLOOKUP(D6,'ADP-Rank'!A6:AJ965,36,FALSE)="",9999,VLOOKUP(D6,'ADP-Rank'!A6:AJ965,36,FALSE)),9999)) -> 9999 | P6: =IF($D6="Unlisted Player",-1001,IFERROR(IF(IF(OR($H6="RP",$H6="SP"),VLOOKUP($D6,'Filtered-P'!$A$3:$X$938,13,FALSE),VLOOKUP($D6,'Filtered-H'!$A$3:$Z$950,22,FALSE))="",-1000,IF(OR($H6="RP",$H6="SP"),VLOOKUP($D6,'Filtered-P'!$A$3:$X$938,13,FALSE),VLOOKUP($D6,'Filtered-H'!$A$3:$Z$950,22,FALSE))),-1000)) -> -6.300573081 | Q6: =IFERROR(IF($D6="Unlisted Player",-1001,IF(OR(H6="SP",H6="RP"),N6/VLOOKUP($D6,'Filtered-P'!$A$1:$AB$961,4,FALSE),-1000)),-1000) -> -1000 | R6: =IFERROR(IF($D6="Unlisted Player",-1001,IF(OR(H6="SP",H6="RP"),-1000,N6/VLOOKUP($D6,'Filtered-H'!$A$1:$AD$961,2,FALSE))),-1000) -> 0.5077011288 | S6: =IF(H6="",#N/A,H6&"."&1+SUMPRODUCT(($H$2:$H$962=H6)*($M$2:$M$962<M6))+COUNTIFS($M$2:M6,M6,$H$2:H6,H6)-1) -> SS.29 | T6: =IFERROR(IF(D6=0,1001,IF(VLOOKUP($D6,'ADP-Rank'!$A$2:$AV$961,38,FALSE)="",999+(IF(J6=FALSE,1,0)),VLOOKUP($D6,'ADP-Rank'!$A$2:$AV$961,38,FALSE))),999+(IF(J6=FALSE,1,0))) -> 999 | U6: =IF(H6="",#N/A,1+SUMPRODUCT(($H$2:$H$962=H6)*($M$2:$M$962<M6))+COUNTIFS($M$2:M6,M6,$H$2:H6,H6)-1) -> 29 | V6: =IF(ISERROR(VLOOKUP($B5,Keepers!$C$2:$D$450,2,FALSE)),B5,"") -> Nolan Arenado | W6: =IFERROR(INDEX($V$1:$V$961,SMALL(IF($V$1:$V$961<>"",ROW($V$1:$V$961)),ROW(V6))),"") -> Jacob deGrom | X6: =IF(D6="Non-Ranked Player",0,IF(VLOOKUP($D6,'Starter Calc'!$B$2:$D$961,3,FALSE)="",0,VLOOKUP($D6,'Starter Calc'!$B$2:$D$961,3,FALSE))) -> 70.26583623 | Y6: =IFERROR(VLOOKUP(D6,'Starter Calc'!B$2:BS$961,70,FALSE),"") -> Bench
A7: Jacob deGrom | B7: =IFERROR(INDEX($A$1:$A$961,SMALL(IF($A$1:$A$961<>"",ROW($A$1:$A$961)),ROW(A7))),"") -> Justin Verlander | C7: =IFERROR(IF(L7=FALSE,"",CHOOSE(MATCH(RIGHT('Your Points Draft'!$R$3,LEN('Your Points Draft'!$R$3)-8),$M$1:$R$1,0),1+SUMPRODUCT(($L$2:$L$962=TRUE)*($M$2:$M$962<M7))+COUNTIFS($L$2:L7,L7,$M$2:M7,M7)-1,1+SUMPRODUCT(($L$2:$L$962=TRUE)*($N$2:$N$962>N7))+COUNTIFS($L$2:L7,L7,$N$2:N7,N7)-1,1+SUMPRODUCT(($L$2:$L$962=TRUE)*($O$2:$O$962<O7))+COUNTIFS($L$2:L7,L7,$O$2:O7,O7)-1,1+SUMPRODUCT(($L$2:$L$962=TRUE)*($P$2:$P$962>P7))+COUNTIFS($L$2:L7,L7,$P$2:P7,P7)-1,1+SUMPRODUCT(($L$2:$L$962=TRUE)*($Q$2:$Q$962>Q7))+COUNTIFS($L$2:L7,L7,$Q$2:Q7,Q7)-1,1+SUMPRODUCT(($L$2:$L$962=TRUE)*($R$2:$R$962>R7))+COUNTIFS($L$2:L7,L7,$R$2:R7,R7)-1,)),"") -> 113 | D7: Jesus Aguilar | E7: =IFERROR(INDEX('Draft Log'!$D$3:$D$807,MATCH(D7,'Draft Log'!$C$3:$C$807,0)),"") ->  | F7: =IFERROR(INDEX('ADP-Rank'!$C$2:$C$832,MATCH(D7,'ADP-Rank'!$A$2:$A$832,0)),"") -> 1B | G7: =IFERROR(IF(F7=I7,"",IF(INDEX('Your Points Draft'!$B$10:$B$633,MATCH(D7,'Your Points Draft'!$C$10:$C$633,0))="",IF(I7<>"",I7,""),INDEX('Your Points Draft'!$B$10:$B$633,MATCH(D7,'Your Points Draft'!$C$10:$C$633,0)))),"") ->  | H7: 1B | J7: =INDEX('ADP-Rank'!$AH$2:$AH$832,MATCH(D7,'ADP-Rank'!$A$2:$A$832,0)) -> TRUE | K7: FALSE | L7: =IF(J7=FALSE,FALSE,IF(AND('Your Points Draft'!$R$5="Hide Drafted Players",K7=TRUE),FALSE,IF(OR('Your Points Draft'!$R$4="Show All Positions",AND('Your Points Draft'!$R$4="Only Show: C",H7="C"),AND('Your Points Draft'!$R$4="Only Show: 1B",H7="1B"),AND('Your Points Draft'!$R$4="Only Show: 2B",H7="2B"),AND('Your Points Draft'!$R$4="Only Show: 3B",H7="3B"),AND('Your Points Draft'!$R$4="Only Show: SS",H7="SS"),AND('Your Points Draft'!$R$4="Only Show: OF",H7="OF"),AND('Your Points Draft'!$R$4="Only Show: SP",H7="SP"),AND('Your Points Draft'!$R$4="Only Show: RP",H7="RP"),AND('Your Points Draft'!$R$4="Only Show: CI",OR(H7={"1B","3B"})),AND('Your Points Draft'!$R$4="Only Show: MI",OR(H7={"2B","SS"})),AND('Your Points Draft'!$R$4="Only Show: IF",OR(H7={"C","1B","2B","3B","SS"})),AND('Your Points Draft'!$R$4="Only Show: DH",OR(H7={"C","1B","2B","3B","SS","OF","DH"})),AND('Your Points Draft'!$R$4="Only Show: P",OR(H7={"SP","RP"})),AND('Your Points Draft'!$R$4="Only Show: LF",ISERROR(SEARCH("LF",VLOOKUP($D7,'ADP-Rank'!$A$2:$D$961,4,FALSE)))=FALSE),AND('Your Points Draft'!$R$4="Only Show: RF",ISERROR(SEARCH("RF",VLOOKUP($D7,'ADP-Rank'!$A$2:$D$961,4,FALSE)))=FALSE),AND('Your Points Draft'!$R$4="Only Show: CF",ISERROR(SEARCH("CF",VLOOKUP($D7,'ADP-Rank'!$A$2:$D$961,4,FALSE)))=FALSE)),TRUE,FALSE))) -> TRUE | M7: =IFERROR(IF(VLOOKUP($D7,'ADP-Rank'!$A$2:$AV$961,38,FALSE)="",9999,VLOOKUP($D7,'ADP-Rank'!$A$2:$AV$961,38,FALSE)),9999) -> 114.32 | N7: =IF(D7="Non-Ranked Player",-1001,IF(VLOOKUP($D7,'Starter Calc'!$B$2:$D$961,3,FALSE)="",-1000,VLOOKUP($D7,'Starter Calc'!$B$2:$D$961,3,FALSE))) -> 334.0955959 | O7: =IF(D7="Non-Ranked Player",10000,IFERROR(IF(VLOOKUP(D7,'ADP-Rank'!A7:AJ966,36,FALSE)="",9999,VLOOKUP(D7,'ADP-Rank'!A7:AJ966,36,FALSE)),9999)) -> 90 | P7: =IF($D7="Unlisted Player",-1001,IFERROR(IF(IF(OR($H7="RP",$H7="SP"),VLOOKUP($D7,'Filtered-P'!$A$3:$X$938,13,FALSE),VLOOKUP($D7,'Filtered-H'!$A$3:$Z$950,22,FALSE))="",-1000,IF(OR($H7="RP",$H7="SP"),VLOOKUP($D7,'Filtered-P'!$A$3:$X$938,13,FALSE),VLOOKUP($D7,'Filtered-H'!$A$3:$Z$950,22,FALSE))),-1000)) -> -1.510992587 | Q7: =IFERROR(IF($D7="Unlisted Player",-1001,IF(OR(H7="SP",H7="RP"),N7/VLOOKUP($D7,'Filtered-P'!$A$1:$AB$961,4,FALSE),-1000)),-1000) -> -1000 | R7: =IFERROR(IF($D7="Unlisted Player",-1001,IF(OR(H7="SP",H7="RP"),-1000,N7/VLOOKUP($D7,'Filtered-H'!$A$1:$AD$961,2,FALSE))),-1000) -> 0.5678035281 | S7: =IF(H7="",#N/A,H7&"."&1+SUMPRODUCT(($H$2:$H$962=H7)*($M$2:$M$962<M7))+COUNTIFS($M$2:M7,M7,$H$2:H7,H7)-1) -> 1B.9 | T7: =IFERROR(IF(D7=0,1001,IF(VLOOKUP($D7,'ADP-Rank'!$A$2:$AV$961,38,FALSE)="",999+(IF(J7=FALSE,1,0)),VLOOKUP($D7,'ADP-Rank'!$A$2:$AV$961,38,FALSE))),999+(IF(J7=FALSE,1,0))) -> 114.32 | U7: =IF(H7="",#N/A,1+SUMPRODUCT(($H$2:$H$962=H7)*($M$2:$M$962<M7))+COUNTIFS($M$2:M7,M7,$H$2:H7,H7)-1) -> 9 | V7: =IF(ISERROR(VLOOKUP($B6,Keepers!$C$2:$D$450,2,FALSE)),B6,"") -> Jacob deGrom | W7: =IFERROR(INDEX($V$1:$V$961,SMALL(IF($V$1:$V$961<>"",ROW($V$1:$V$961)),ROW(V7))),"") -> Justin Verlander | X7: =IF(D7="Non-Ranked Player",0,IF(VLOOKUP($D7,'Starter Calc'!$B$2:$D$961,3,FALSE)="",0,VLOOKUP($D7,'Starter Calc'!$B$2:$D$961,3,FALSE))) -> 334.0955959 | Y7: =IFERROR(VLOOKUP(D7,'Starter Calc'!B$2:BS$961,70,FALSE),"") -> Bench
A8: Justin Verlander | B8: =IFERROR(INDEX($A$1:$A$961,SMALL(IF($A$1:$A$961<>"",ROW($A$1:$A$961)),ROW(A8))),"") -> Christian Yelich | C8: =IFERROR(IF(L8=FALSE,"",CHOOSE(MATCH(RIGHT('Your Points Draft'!$R$3,LEN('Your Points Draft'!$R$3)-8),$M$1:$R$1,0),1+SUMPRODUCT(($L$2:$L$962=TRUE)*($M$2:$M$962<M8))+COUNTIFS($L$2:L8,L8,$M$2:M8,M8)-1,1+SUMPRODUCT(($L$2:$L$962=TRUE)*($N$2:$N$962>N8))+COUNTIFS($L$2:L8,L8,$N$2:N8,N8)-1,1+SUMPRODUCT(($L$2:$L$962=TRUE)*($O$2:$O$962<O8))+COUNTIFS($L$2:L8,L8,$O$2:O8,O8)-1,1+SUMPRODUCT(($L$2:$L$962=TRUE)*($P$2:$P$962>P8))+COUNTIFS($L$2:L8,L8,$P$2:P8,P8)-1,1+SUMPRODUCT(($L$2:$L$962=TRUE)*($Q$2:$Q$962>Q8))+COUNTIFS($L$2:L8,L8,$Q$2:Q8,Q8)-1,1+SUMPRODUCT(($L$2:$L$962=TRUE)*($R$2:$R$962>R8))+COUNTIFS($L$2:L8,L8,$R$2:R8,R8)-1,)),"") -> 317 | D8: Nick Ahmed | E8: =IFERROR(INDEX('Draft Log'!$D$3:$D$807,MATCH(D8,'Draft Log'!$C$3:$C$807,0)),"") ->  | F8: =IFERROR(INDEX('ADP-Rank'!$C$2:$C$832,MATCH(D8,'ADP-Rank'!$A$2:$A$832,0)),"") -> SS | G8: =IFERROR(IF(F8=I8,"",IF(INDEX('Your Points Draft'!$B$10:$B$633,MATCH(D8,'Your Points Draft'!$C$10:$C$633,0))="",IF(I8<>"",I8,""),INDEX('Your Points Draft'!$B$10:$B$633,MATCH(D8,'Your Points Draft'!$C$10:$C$633,0)))),"") ->  | H8: SS | J8: =INDEX('ADP-Rank'!$AH$2:$AH$832,MATCH(D8,'ADP-Rank'!$A$2:$A$832,0)) -> TRUE | K8: FALSE | L8: =IF(J8=FALSE,FALSE,IF(AND('Your Points Draft'!$R$5="Hide Drafted Players",K8=TRUE),FALSE,IF(OR('Your Points Draft'!$R$4="Show All Positions",AND('Your Points Draft'!$R$4="Only Show: C",H8="C"),AND('Your Points Draft'!$R$4="Only Show: 1B",H8="1B"),AND('Your Points Draft'!$R$4="Only Show: 2B",H8="2B"),AND('Your Points Draft'!$R$4="Only Show: 3B",H8="3B"),AND('Your Points Draft'!$R$4="Only Show: SS",H8="SS"),AND('Your Points Draft'!$R$4="Only Show: OF",H8="OF"),AND('Your Points Draft'!$R$4="Only Show: SP",H8="SP"),AND('Your Points Draft'!$R$4="Only Show: RP",H8="RP"),AND('Your Points Draft'!$R$4="Only Show: CI",OR(H8={"1B","3B"})),AND('Your Points Draft'!$R$4="Only Show: MI",OR(H8={"2B","SS"})),AND('Your Points Draft'!$R$4="Only Show: IF",OR(H8={"C","1B","2B","3B","SS"})),AND('Your Points Draft'!$R$4="Only Show: DH",OR(H8={"C","1B","2B","3B","SS","OF","DH"})),AND('Your Points Draft'!$R$4="Only Show: P",OR(H8={"SP","RP"})),AND('Your Points Draft'!$R$4="Only Show: LF",ISERROR(SEARCH("LF",VLOOKUP($D8,'ADP-Rank'!$A$2:$D$961,4,FALSE)))=FALSE),AND('Your Points Draft'!$R$4="Only Show: RF",ISERROR(SEARCH("RF",VLOOKUP($D8,'ADP-Rank'!$A$2:$D$961,4,FALSE)))=FALSE),AND('Your Points Draft'!$R$4="Only Show: CF",ISERROR(SEARCH("CF",VLOOKUP($D8,'ADP-Rank'!$A$2:$D$961,4,FALSE)))=FALSE)),TRUE,FALSE))) -> TRUE | M8: =IFERROR(IF(VLOOKUP($D8,'ADP-Rank'!$A$2:$AV$961,38,FALSE)="",9999,VLOOKUP($D8,'ADP-Rank'!$A$2:$AV$961,38,FALSE)),9999) -> 9999 | N8: =IF(D8="Non-Ranked Player",-1001,IF(VLOOKUP($D8,'Starter Calc'!$B$2:$D$961,3,FALSE)="",-1000,VLOOKUP($D8,'Starter Calc'!$B$2:$D$961,3,FALSE))) -> 255.2983306 | O8: =IF(D8="Non-Ranked Player",10000,IFERROR(IF(VLOOKUP(D8,'ADP-Rank'!A8:AJ967,36,FALSE)="",9999,VLOOKUP(D8,'ADP-Rank'!A8:AJ967,36,FALSE)),9999)) -> 9999 | P8: =IF($D8="Unlisted Player",-1001,IFERROR(IF(IF(OR($H8="RP",$H8="SP"),VLOOKUP($D8,'Filtered-P'!$A$3:$X$938,13,FALSE),VLOOKUP($D8,'Filtered-H'!$A$3:$Z$950,22,FALSE))="",-1000,IF(OR($H8="RP",$H8="SP"),VLOOKUP($D8,'Filtered-P'!$A$3:$X$938,13,FALSE),VLOOKUP($D8,'Filtered-H'!$A$3:$Z$950,22,FALSE))),-1000)) -> -2.720212024 | Q8: =IFERROR(IF($D8="Unlisted Player",-1001,IF(OR(H8="SP",H8="RP"),N8/VLOOKUP($D8,'Filtered-P'!$A$1:$AB$961,4,FALSE),-1000)),-1000) -> -1000 | R8: =IFERROR(IF($D8="Unlisted Player",-1001,IF(OR(H8="SP",H8="RP"),-1000,N8/VLOOKUP($D8,'Filtered-H'!$A$1:$AD$961,2,FALSE))),-1000) -> 0.4507385781 | S8: =IF(H8="",#N/A,H8&"."&1+SUMPRODUCT(($H$2:$H$962=H8)*($M$2:$M$962<M8))+COUNTIFS($M$2:M8,M8,$H$2:H8,H8)-1) -> SS.30 | T8: =IFERROR(IF(D8=0,1001,IF(VLOOKUP($D8,'ADP-Rank'!$A$2:$AV$961,38,FALSE)="",999+(IF(J8=FALSE,1,0)),VLOOKUP($D8,'ADP-Rank'!$A$2:$AV$961,38,FALSE))),999+(IF(J8=FALSE,1,0))) -> 999 | U8: =IF(H8="",#N/A,1+SUMPRODUCT(($H$2:$H$962=H8)*($M$2:$M$962<M8))+COUNTIFS($M$2:M8,M8,$H$2:H8,H8)-1) -> 30 | V8: =IF(ISERROR(VLOOKUP($B7,Keepers!$C$2:$D$450,2,FALSE)),B7,"") -> Justin Verlander | W8: =IFERROR(INDEX($V$1:$V$961,SMALL(IF($V$1:$V$961<>"",ROW($V$1:$V$961)),ROW(V8))),"") -> Christian Yelich | X8: =IF(D8="Non-Ranked Player",0,IF(VLOOKUP($D8,'Starter Calc'!$B$2:$D$961,3,FALSE)="",0,VLOOKUP($D8,'Starter Calc'!$B$2:$D$961,3,FALSE))) -> 255.2983306 | Y8: =IFERROR(VLOOKUP(D8,'Starter Calc'!B$2:BS$961,70,FALSE),"") -> Bench
A9: Christian Yelich | B9: =IFERROR(INDEX($A$1:$A$961,SMALL(IF($A$1:$A$961<>"",ROW($A$1:$A$961)),ROW(A9))),"") -> Corey Kluber | C9: =IFERROR(IF(L9=FALSE,"",CHOOSE(MATCH(RIGHT('Your Points Draft'!$R$3,LEN('Your Points Draft'!$R$3)-8),$M$1:$R$1,0),1+SUMPRODUCT(($L$2:$L$962=TRUE)*($M$2:$M$962<M9))+COUNTIFS($L$2:L9,L9,$M$2:M9,M9)-1,1+SUMPRODUCT(($L$2:$L$962=TRUE)*($N$2:$N$962>N9))+COUNTIFS($L$2:L9,L9,$N$2:N9,N9)-1,1+SUMPRODUCT(($L$2:$L$962=TRUE)*($O$2:$O$962<O9))+COUNTIFS($L$2:L9,L9,$O$2:O9,O9)-1,1+SUMPRODUCT(($L$2:$L$962=TRUE)*($P$2:$P$962>P9))+COUNTIFS($L$2:L9,L9,$P$2:P9,P9)-1,1+SUMPRODUCT(($L$2:$L$962=TRUE)*($Q$2:$Q$962>Q9))+COUNTIFS($L$2:L9,L9,$Q$2:Q9,Q9)-1,1+SUMPRODUCT(($L$2:$L$962=TRUE)*($R$2:$R$962>R9))+COUNTIFS($L$2:L9,L9,$R$2:R9,R9)-1,)),"") -> 74 | D9: Ozzie Albies | E9: =IFERROR(INDEX('Draft Log'!$D$3:$D$807,MATCH(D9,'Draft Log'!$C$3:$C$807,0)),"") ->  | F9: =IFERROR(INDEX('ADP-Rank'!$C$2:$C$832,MATCH(D9,'ADP-Rank'!$A$2:$A$832,0)),"") -> 2B | G9: =IFERROR(IF(F9=I9,"",IF(INDEX('Your Points Draft'!$B$10:$B$633,MATCH(D9,'Your Points Draft'!$C$10:$C$633,0))="",IF(I9<>"",I9,""),INDEX('Your Points Draft'!$B$10:$B$633,MATCH(D9,'Your Points Draft'!$C$10:$C$633,0)))),"") ->  | H9: 2B | J9: =INDEX('ADP-Rank'!$AH$2:$AH$832,MATCH(D9,'ADP-Rank'!$A$2:$A$832,0)) -> TRUE | K9: FALSE | L9: =IF(J9=FALSE,FALSE,IF(AND('Your Points Draft'!$R$5="Hide Drafted Players",K9=TRUE),FALSE,IF(OR('Your Points Draft'!$R$4="Show All Positions",AND('Your Points Draft'!$R$4="Only Show: C",H9="C"),AND('Your Points Draft'!$R$4="Only Show: 1B",H9="1B"),AND('Your Points Draft'!$R$4="Only Show: 2B",H9="2B"),AND('Your Points Draft'!$R$4="Only Show: 3B",H9="3B"),AND('Your Points Draft'!$R$4="Only Show: SS",H9="SS"),AND('Your Points Draft'!$R$4="Only Show: OF",H9="OF"),AND('Your Points Draft'!$R$4="Only Show: SP",H9="SP"),AND('Your Points Draft'!$R$4="Only Show: RP",H9="RP"),AND('Your Points Draft'!$R$4="Only Show: CI",OR(H9={"1B","3B"})),AND('Your Points Draft'!$R$4="Only Show: MI",OR(H9={"2B","SS"})),AND('Your Points Draft'!$R$4="Only Show: IF",OR(H9={"C","1B","2B","3B","SS"})),AND('Your Points Draft'!$R$4="Only Show: DH",OR(H9={"C","1B","2B","3B","SS","OF","DH"})),AND('Your Points Draft'!$R$4="Only Show: P",OR(H9={"SP","RP"})),AND('Your Points Draft'!$R$4="Only Show: LF",ISERROR(SEARCH("LF",VLOOKUP($D9,'ADP-Rank'!$A$2:$D$961,4,FALSE)))=FALSE),AND('Your Points Draft'!$R$4="Only Show: RF",ISERROR(SEARCH("RF",VLOOKUP($D9,'ADP-Rank'!$A$2:$D$961,4,FALSE)))=FALSE),AND('Your Points Draft'!$R$4="Only Show: CF",ISERROR(SEARCH("CF",VLOOKUP($D9,'ADP-Rank'!$A$2:$D$961,4,FALSE)))=FALSE)),TRUE,FALSE))) -> TRUE | M9: =IFERROR(IF(VLOOKUP($D9,'ADP-Rank'!$A$2:$AV$961,38,FALSE)="",9999,VLOOKUP($D9,'ADP-Rank'!$A$2:$AV$961,38,FALSE)),9999) -> 80.82 | N9: =IF(D9="Non-Ranked Player",-1001,IF(VLOOKUP($D9,'Starter Calc'!$B$2:$D$961,3,FALSE)="",-1000,VLOOKUP($D9,'Starter Calc'!$B$2:$D$961,3,FALSE))) -> 409.8569946 | O9: =IF(D9="Non-Ranked Player",10000,IFERROR(IF(VLOOKUP(D9,'ADP-Rank'!A9:AJ968,36,FALSE)="",9999,VLOOKUP(D9,'ADP-Rank'!A9:AJ968,36,FALSE)),9999)) -> 57 | P9: =IF($D9="Unlisted Player",-1001,IFERROR(IF(IF(OR($H9="RP",$H9="SP"),VLOOKUP($D9,'Filtered-P'!$A$3:$X$938,13,FALSE),VLOOKUP($D9,'Filtered-H'!$A$3:$Z$950,22,FALSE))="",-1000,IF(OR($H9="RP",$H9="SP"),VLOOKUP($D9,'Filtered-P'!$A$3:$X$938,13,FALSE),VLOOKUP($D9,'Filtered-H'!$A$3:$Z$950,22,FALSE))),-1000)) -> 1.126462645 | Q9: =IFERROR(IF($D9="Unlisted Player",-1001,IF(OR(H9="SP",H9="RP"),N9/VLOOKUP($D9,'Filtered-P'!$A$1:$AB$961,4,FALSE),-1000)),-1000) -> -1000 | R9: =IFERROR(IF($D9="Unlisted Player",-1001,IF(OR(H9="SP",H9="RP"),-1000,N9/VLOOKUP($D9,'Filtered-H'!$A$1:$AD$961,2,FALSE))),-1000) -> 0.6264053103 | S9: =IF(H9="",#N/A,H9&"."&1+SUMPRODUCT(($H$2:$H$962=H9)*($M$2:$M$962<M9))+COUNTIFS($M$2:M9,M9,$H$2:H9,H9)-1) -> 2B.4 | T9: =IFERROR(IF(D9=0,1001,IF(VLOOKUP($D9,'ADP-Rank'!$A$2:$AV$961,38,FALSE)="",999+(IF(J9=FALSE,1,0)),VLOOKUP($D9,'ADP-Rank'!$A$2:$AV$961,38,FALSE))),999+(IF(J9=FALSE,1,0))) -> 80.82 | U9: =IF(H9="",#N/A,1+SUMPRODUCT(($H$2:$H$962=H9)*($M$2:$M$962<M9))+COUNTIFS($M$2:M9,M9,$H$2:H9,H9)-1) -> 4 | V9: =IF(ISERROR(VLOOKUP($B8,Keepers!$C$2:$D$450,2,FALSE)),B8,"") -> Christian Yelich | W9: =IFERROR(INDEX($V$1:$V$961,SMALL(IF($V$1:$V$961<>"",ROW($V$1:$V$961)),ROW(V9))),"") -> Corey Kluber | X9: =IF(D9="Non-Ranked Player",0,IF(VLOOKUP($D9,'Starter Calc'!$B$2:$D$961,3,FALSE)="",0,VLOOKUP($D9,'Starter Calc'!$B$2:$D$961,3,FALSE))) -> 409.8569946 | Y9: =IFERROR(VLOOKUP(D9,'Starter Calc'!B$2:BS$961,70,FALSE),"") -> Bench
A10: Corey Kluber | B10: =IFERROR(INDEX($A$1:$A$961,SMALL(IF($A$1:$A$961<>"",ROW($A$1:$A$961)),ROW(A10))),"") -> J.D. Martinez | C10: =IFERROR(IF(L10=FALSE,"",CHOOSE(MATCH(RIGHT('Your Points Draft'!$R$3,LEN('Your Points Draft'!$R$3)-8),$M$1:$R$1,0),1+SUMPRODUCT(($L$2:$L$962=TRUE)*($M$2:$M$962<M10))+COUNTIFS($L$2:L10,L10,$M$2:M10,M10)-1,1+SUMPRODUCT(($L$2:$L$962=TRUE)*($N$2:$N$962>N10))+COUNTIFS($L$2:L10,L10,$N$2:N10,N10)-1,1+SUMPRODUCT(($L$2:$L$962=TRUE)*($O$2:$O$962<O10))+COUNTIFS($L$2:L10,L10,$O$2:O10,O10)-1,1+SUMPRODUCT(($L$2:$L$962=TRUE)*($P$2:$P$962>P10))+COUNTIFS($L$2:L10,L10,$P$2:P10,P10)-1,1+SUMPRODUCT(($L$2:$L$962=TRUE)*($Q$2:$Q$962>Q10))+COUNTIFS($L$2:L10,L10,$Q$2:Q10,Q10)-1,1+SUMPRODUCT(($L$2:$L$962=TRUE)*($R$2:$R$962>R10))+COUNTIFS($L$2:L10,L10,$R$2:R10,R10)-1,)),"") -> 318 | D10: Sandy Alcantara | E10: =IFERROR(INDEX('Draft Log'!$D$3:$D$807,MATCH(D10,'Draft Log'!$C$3:$C$807,0)),"") ->  | F10: =IFERROR(INDEX('ADP-Rank'!$C$2:$C$832,MATCH(D10,'ADP-Rank'!$A$2:$A$832,0)),"") -> SP | G10: =IFERROR(IF(F10=I10,"",IF(INDEX('Your Points Draft'!$B$10:$B$633,MATCH(D10,'Your Points Draft'!$C$10:$C$633,0))="",IF(I10<>"",I10,""),INDEX('Your Points Draft'!$B$10:$B$633,MATCH(D10,'Your Points Draft'!$C$10:$C$633,0)))),"") ->  | H10: SP | J10: =INDEX('ADP-Rank'!$AH$2:$AH$832,MATCH(D10,'ADP-Rank'!$A$2:$A$832,0)) -> TRUE | K10: FALSE | L10: =IF(J10=FALSE,FALSE,IF(AND('Your Points Draft'!$R$5="Hide Drafted Players",K10=TRUE),FALSE,IF(OR('Your Points Draft'!$R$4="Show All Positions",AND('Your Points Draft'!$R$4="Only Show: C",H10="C"),AND('Your Points Draft'!$R$4="Only Show: 1B",H10="1B"),AND('Your Points Draft'!$R$4="Only Show: 2B",H10="2B"),AND('Your Points Draft'!$R$4="Only Show: 3B",H10="3B"),AND('Your Points Draft'!$R$4="Only Show: SS",H10="SS"),AND('Your Points Draft'!$R$4="Only Show: OF",H10="OF"),AND('Your Points Draft'!$R$4="Only Show: SP",H10="SP"),AND('Your Points Draft'!$R$4="Only Show: RP",H10="RP"),AND('Your Points Draft'!$R$4="Only Show: CI",OR(H10={"1B","3B"})),AND('Your Points Draft'!$R$4="Only Show: MI",OR(H10={"2B","SS"})),AND('Your Points Draft'!$R$4="Only Show: IF",OR(H10={"C","1B","2B","3B","SS"})),AND('Your Points Draft'!$R$4="Only Show: DH",OR(H10={"C","1B","2B","3B","SS","OF","DH"})),AND('Your Points Draft'!$R$4="Only Show: P",OR(H10={"SP","RP"})),AND('Your Points Draft'!$R$4="Only Show: LF",ISERROR(SEARCH("LF",VLOOKUP($D10,'ADP-Rank'!$A$2:$D$961,4,FALSE)))=FALSE),AND('Your Points Draft'!$R$4="Only Show: RF",ISERROR(SEARCH("RF",VLOOKUP($D10,'ADP-Rank'!$A$2:$D$961,4,FALSE)))=FALSE),AND('Your Points Draft'!$R$4="Only Show: CF",ISERROR(SEARCH("CF",VLOOKUP($D10,'ADP-Rank'!$A$2:$D$961,4,FALSE)))=FALSE)),TRUE,FALSE))) -> TRUE | M10: =IFERROR(IF(VLOOKUP($D10,'ADP-Rank'!$A$2:$AV$961,38,FALSE)="",9999,VLOOKUP($D10,'ADP-Rank'!$A$2:$AV$961,38,FALSE)),9999) -> 9999 | N10: =IF(D10="Non-Ranked Player",-1001,IF(VLOOKUP($D10,'Starter Calc'!$B$2:$D$961,3,FALSE)="",-1000,VLOOKUP($D10,'Starter Calc'!$B$2:$D$961,3,FALSE))) -> 101.8124557 | O10: =IF(D10="Non-Ranked Player",10000,IFERROR(IF(VLOOKUP(D10,'ADP-Rank'!A10:AJ969,36,FALSE)="",9999,VLOOKUP(D10,'ADP-Rank'!A10:AJ969,36,FALSE)),9999)) -> 9999 | P10: =IF($D10="Unlisted Player",-1001,IFERROR(IF(IF(OR($H10="RP",$H10="SP"),VLOOKUP($D10,'Filtered-P'!$A$3:$X$938,13,FALSE),VLOOKUP($D10,'Filtered-H'!$A$3:$Z$950,22,FALSE))="",-1000,IF(OR($H10="RP",$H10="SP"),VLOOKUP($D10,'Filtered-P'!$A$3:$X$938,13,FALSE),VLOOKUP($D10,'Filtered-H'!$A$3:$Z$950,22,FALSE))),-1000)) -> -3.095140578 | Q10: =IFERROR(IF($D10="Unlisted Player",-1001,IF(OR(H10="SP",H10="RP"),N10/VLOOKUP($D10,'Filtered-P'!$A$1:$AB$961,4,FALSE),-1000)),-1000) -> 1.519588891 | R10: =IFERROR(IF($D10="Unlisted Player",-1001,IF(OR(H10="SP",H10="RP"),-1000,N10/VLOOKUP($D10,'Filtered-H'!$A$1:$AD$961,2,FALSE))),-1000) -> -1000 | S10: =IF(H10="",#N/A,H10&"."&1+SUMPRODUCT(($H$2:$H$962=H10)*($M$2:$M$962<M10))+COUNTIFS($M$2:M10,M10,$H$2:H10,H10)-1) -> SP.99 | T10: =IFERROR(IF(D10=0,1001,IF(VLOOKUP($D10,'ADP-Rank'!$A$2:$AV$961,38,FALSE)="",999+(IF(J10=FALSE,1,0)),VLOOKUP($D10,'ADP-Rank'!$A$2:$AV$961,38,FALSE))),999+(IF(J10=FALSE,1,0))) -> 999 | U10: =IF(H10="",#N/A,1+SUMPRODUCT(($H$2:$H$962=H10)*($M$2:$M$962<M10))+COUNTIFS($M$2:M10,M10,$H$2:H10,H10)-1) -> 99 | V10: =IF(ISERROR(VLOOKUP($B9,Keepers!$C$2:$D$450,2,FALSE)),B9,"") -> Corey Kluber | W10: =IFERROR(INDEX($V$1:$V$961,SMALL(IF($V$1:$V$961<>"",ROW($V$1:$V$961)),ROW(V10))),"") -> J.D. Martinez | X10: =IF(D10="Non-Ranked Player",0,IF(VLOOKUP($D10,'Starter Calc'!$B$2:$D$961,3,FALSE)="",0,VLOOKUP($D10,'Starter Calc'!$B$2:$D$961,3,FALSE))) -> 101.8124557 | Y10: =IFERROR(VLOOKUP(D10,'Starter Calc'!B$2:BS$961,70,FALSE),"") -> Bench
A11: J.D. Martinez | B11: =IFERROR(INDEX($A$1:$A$961,SMALL(IF($A$1:$A$961<>"",ROW($A$1:$A$961)),ROW(A11))),"") -> Bryce Harper | C11: =IFERROR(IF(L11=FALSE,"",CHOOSE(MATCH(RIGHT('Your Points Draft'!$R$3,LEN('Your Points Draft'!$R$3)-8),$M$1:$R$1,0),1+SUMPRODUCT(($L$2:$L$962=TRUE)*($M$2:$M$962<M11))+COUNTIFS($L$2:L11,L11,$M$2:M11,M11)-1,1+SUMPRODUCT(($L$2:$L$962=TRUE)*($N$2:$N$962>N11))+COUNTIFS($L$2:L11,L11,$N$2:N11,N11)-1,1+SUMPRODUCT(($L$2:$L$962=TRUE)*($O$2:$O$962<O11))+COUNTIFS($L$2:L11,L11,$O$2:O11,O11)-1,1+SUMPRODUCT(($L$2:$L$962=TRUE)*($P$2:$P$962>P11))+COUNTIFS($L$2:L11,L11,$P$2:P11,P11)-1,1+SUMPRODUCT(($L$2:$L$962=TRUE)*($Q$2:$Q$962>Q11))+COUNTIFS($L$2:L11,L11,$Q$2:Q11,Q11)-1,1+SUMPRODUCT(($L$2:$L$962=TRUE)*($R$2:$R$962>R11))+COUNTIFS($L$2:L11,L11,$R$2:R11,R11)-1,)),"") -> 319 | D11: Jorge Alfaro | E11: =IFERROR(INDEX('Draft Log'!$D$3:$D$807,MATCH(D11,'Draft Log'!$C$3:$C$807,0)),"") ->  | F11: =IFERROR(INDEX('ADP-Rank'!$C$2:$C$832,MATCH(D11,'ADP-Rank'!$A$2:$A$832,0)),"") -> C | G11: =IFERROR(IF(F11=I11,"",IF(INDEX('Your Points Draft'!$B$10:$B$633,MATCH(D11,'Your Points Draft'!$C$10:$C$633,0))="",IF(I11<>"",I11,""),INDEX('Your Points Draft'!$B$10:$B$633,MATCH(D11,'Your Points Draft'!$C$10:$C$633,0)))),"") ->  | H11: C | J11: =INDEX('ADP-Rank'!$AH$2:$AH$832,MATCH(D11,'ADP-Rank'!$A$2:$A$832,0)) -> TRUE | K11: FALSE | L11: =IF(J11=FALSE,FALSE,IF(AND('Your Points Draft'!$R$5="Hide Drafted Players",K11=TRUE),FALSE,IF(OR('Your Points Draft'!$R$4="Show All Positions",AND('Your Points Draft'!$R$4="Only Show: C",H11="C"),AND('Your Points Draft'!$R$4="Only Show: 1B",H11="1B"),AND('Your Points Draft'!$R$4="Only Show: 2B",H11="2B"),AND('Your Points Draft'!$R$4="Only Show: 3B",H11="3B"),AND('Your Points Draft'!$R$4="Only Show: SS",H11="SS"),AND('Your Points Draft'!$R$4="Only Show: OF",H11="OF"),AND('Your Points Draft'!$R$4="Only Show: SP",H11="SP"),AND('Your Points Draft'!$R$4="Only Show: RP",H11="RP"),AND('Your Points Draft'!$R$4="Only Show: CI",OR(H11={"1B","3B"})),AND('Your Points Draft'!$R$4="Only Show: MI",OR(H11={"2B","SS"})),AND('Your Points Draft'!$R$4="Only Show: IF",OR(H11={"C","1B","2B","3B","SS"})),AND('Your Points Draft'!$R$4="Only Show: DH",OR(H11={"C","1B","2B","3B","SS","OF","DH"})),AND('Your Points Draft'!$R$4="Only Show: P",OR(H11={"SP","RP"})),AND('Your Points Draft'!$R$4="Only Show: LF",ISERROR(SEARCH("LF",VLOOKUP($D11,'ADP-Rank'!$A$2:$D$961,4,FALSE)))=FALSE),AND('Your Points Draft'!$R$4="Only Show: RF",ISERROR(SEARCH("RF",VLOOKUP($D11,'ADP-Rank'!$A$2:$D$961,4,FALSE)))=FALSE),AND('Your Points Draft'!$R$4="Only Show: CF",ISERROR(SEARCH("CF",VLOOKUP($D11,'ADP-Rank'!$A$2:$D$961,4,FALSE)))=FALSE)),TRUE,FALSE))) -> TRUE | M11: =IFERROR(IF(VLOOKUP($D11,'ADP-Rank'!$A$2:$AV$961,38,FALSE)="",9999,VLOOKUP($D11,'ADP-Rank'!$A$2:$AV$961,38,FALSE)),9999) -> 9999 | N11: =IF(D11="Non-Ranked Player",-1001,IF(VLOOKUP($D11,'Starter Calc'!$B$2:$D$961,3,FALSE)="",-1000,VLOOKUP($D11,'Starter Calc'!$B$2:$D$961,3,FALSE))) -> 122.9636931 | O11: =IF(D11="Non-Ranked Player",10000,IFERROR(IF(VLOOKUP(D11,'ADP-Rank'!A11:AJ970,36,FALSE)="",9999,VLOOKUP(D11,'ADP-Rank'!A11:AJ970,36,FALSE)),9999)) -> 9999 | P11: =IF($D11="Unlisted Player",-1001,IFERROR(IF(IF(OR($H11="RP",$H11="SP"),VLOOKUP($D11,'Filtered-P'!$A$3:$X$938,13,FALSE),VLOOKUP($D11,'Filtered-H'!$A$3:$Z$950,22,FALSE))="",-1000,IF(OR($H11="RP",$H11="SP"),VLOOKUP($D11,'Filtered-P'!$A$3:$X$938,13,FALSE),VLOOKUP($D11,'Filtered-H'!$A$3:$Z$950,22,FALSE))),-1000)) -> -2.235971851 | Q11: =IFERROR(IF($D11="Unlisted Player",-1001,IF(OR(H11="SP",H11="RP"),N11/VLOOKUP($D11,'Filtered-P'!$A$1:$AB$961,4,FALSE),-1000)),-1000) -> -1000 | R11: =IFERROR(IF($D11="Unlisted Player",-1001,IF(OR(H11="SP",H11="RP"),-1000,N11/VLOOKUP($D11,'Filtered-H'!$A$1:$AD$961,2,FALSE))),-1000) -> 0.266732523 | S11: =IF(H11="",#N/A,H11&"."&1+SUMPRODUCT(($H$2:$H$962=H11)*($M$2:$M$962<M11))+COUNTIFS($M$2:M11,M11,$H$2:H11,H11)-1) -> C.21 | T11: =IFERROR(IF(D11=0,1001,IF(VLOOKUP($D11,'ADP-Rank'!$A$2:$AV$961,38,FALSE)="",999+(IF(J11=FALSE,1,0)),VLOOKUP($D11,'ADP-Rank'!$A$2:$AV$961,38,FALSE))),999+(IF(J11=FALSE,1,0))) -> 999 | U11: =IF(H11="",#N/A,1+SUMPRODUCT(($H$2:$H$962=H11)*($M$2:$M$962<M11))+COUNTIFS($M$2:M11,M11,$H$2:H11,H11)-1) -> 21 | V11: =IF(ISERROR(VLOOKUP($B10,Keepers!$C$2:$D$450,2,FALSE)),B10,"") -> J.D. Martinez | W11: =IFERROR(INDEX($V$1:$V$961,SMALL(IF($V$1:$V$961<>"",ROW($V$1:$V$961)),ROW(V11))),"") -> Bryce Harper | X11: =IF(D11="Non-Ranked Player",0,IF(VLOOKUP($D11,'Starter Calc'!$B$2:$D$961,3,FALSE)="",0,VLOOKUP($D11,'Starter Calc'!$B$2:$D$961,3,FALSE))) -> 122.9636931 | Y11: =IFERROR(VLOOKUP(D11,'Starter Calc'!B$2:BS$961,70,FALSE),"") -> Bench
A12: Bryce Harper | B12: =IFERROR(INDEX($A$1:$A$961,SMALL(IF($A$1:$A$961<>"",ROW($A$1:$A$961)),ROW(A12))),"") -> Francisco Lindor | C12: =IFERROR(IF(L12=FALSE,"",CHOOSE(MATCH(RIGHT('Your Points Draft'!$R$3,LEN('Your Points Draft'!$R$3)-8),$M$1:$R$1,0),1+SUMPRODUCT(($L$2:$L$962=TRUE)*($M$2:$M$962<M12))+COUNTIFS($L$2:L12,L12,$M$2:M12,M12)-1,1+SUMPRODUCT(($L$2:$L$962=TRUE)*($N$2:$N$962>N12))+COUNTIFS($L$2:L12,L12,$N$2:N12,N12)-1,1+SUMPRODUCT(($L$2:$L$962=TRUE)*($O$2:$O$962<O12))+COUNTIFS($L$2:L12,L12,$O$2:O12,O12)-1,1+SUMPRODUCT(($L$2:$L$962=TRUE)*($P$2:$P$962>P12))+COUNTIFS($L$2:L12,L12,$P$2:P12,P12)-1,1+SUMPRODUCT(($L$2:$L$962=TRUE)*($Q$2:$Q$962>Q12))+COUNTIFS($L$2:L12,L12,$Q$2:Q12,Q12)-1,1+SUMPRODUCT(($L$2:$L$962=TRUE)*($R$2:$R$962>R12))+COUNTIFS($L$2:L12,L12,$R$2:R12,R12)-1,)),"") -> 320 | D12: Anthony Alford | E12: =IFERROR(INDEX('Draft Log'!$D$3:$D$807,MATCH(D12,'Draft Log'!$C$3:$C$807,0)),"") ->  | F12: =IFERROR(INDEX('ADP-Rank'!$C$2:$C$832,MATCH(D12,'ADP-Rank'!$A$2:$A$832,0)),"") -> OF | G12: =IFERROR(IF(F12=I12,"",IF(INDEX('Your Points Draft'!$B$10:$B$633,MATCH(D12,'Your Points Draft'!$C$10:$C$633,0))="",IF(I12<>"",I12,""),INDEX('Your Points Draft'!$B$10:$B$633,MATCH(D12,'Your Points Draft'!$C$10:$C$633,0)))),"") ->  | H12: OF | J12: =INDEX('ADP-Rank'!$AH$2:$AH$832,MATCH(D12,'ADP-Rank'!$A$2:$A$832,0)) -> TRUE | K12: FALSE | L12: =IF(J12=FALSE,FALSE,IF(AND('Your Points Draft'!$R$5="Hide Drafted Players",K12=TRUE),FALSE,IF(OR('Your Points Draft'!$R$4="Show All Positions",AND('Your Points Draft'!$R$4="Only Show: C",H12="C"),AND('Your Points Draft'!$R$4="Only Show: 1B",H12="1B"),AND('Your Points Draft'!$R$4="Only Show: 2B",H12="2B"),AND('Your Points Draft'!$R$4="Only Show: 3B",H12="3B"),AND('Your Points Draft'!$R$4="Only Show: SS",H12="SS"),AND('Your Points Draft'!$R$4="Only Show: OF",H12="OF"),AND('Your Points Draft'!$R$4="Only Show: SP",H12="SP"),AND('Your Points Draft'!$R$4="Only Show: RP",H12="RP"),AND('Your Points Draft'!$R$4="Only Show: CI",OR(H12={"1B","3B"})),AND('Your Points Draft'!$R$4="Only Show: MI",OR(H12={"2B","SS"})),AND('Your Points Draft'!$R$4="Only Show: IF",OR(H12={"C","1B","2B","3B","SS"})),AND('Your Points Draft'!$R$4="Only Show: DH",OR(H12={"C","1B","2B","3B","SS","OF","DH"})),AND('Your Points Draft'!$R$4="Only Show: P",OR(H12={"SP","RP"})),AND('Your Points Draft'!$R$4="Only Show: LF",ISERROR(SEARCH("LF",VLOOKUP($D12,'ADP-Rank'!$A$2:$D$961,4,FALSE)))=FALSE),AND('Your Points Draft'!$R$4="Only Show: RF",ISERROR(SEARCH("RF",VLOOKUP($D12,'ADP-Rank'!$A$2:$D$961,4,FALSE)))=FALSE),AND('Your Points Draft'!$R$4="Only Show: CF",ISERROR(SEARCH("CF",VLOOKUP($D12,'ADP-Rank'!$A$2:$D$961,4,FALSE)))=FALSE)),TRUE,FALSE))) -> TRUE | M12: =IFERROR(IF(VLOOKUP($D12,'ADP-Rank'!$A$2:$AV$961,38,FALSE)="",9999,VLOOKUP($D12,'ADP-Rank'!$A$2:$AV$961,38,FALSE)),9999) -> 9999 | N12: =IF(D12="Non-Ranked Player",-1001,IF(VLOOKUP($D12,'Starter Calc'!$B$2:$D$961,3,FALSE)="",-1000,VLOOKUP($D12,'Starter Calc'!$B$2:$D$961,3,FALSE))) -> 53.33993521 | O12: =IF(D12="Non-Ranked Player",10000,IFERROR(IF(VLOOKUP(D12,'ADP-Rank'!A12:AJ971,36,FALSE)="",9999,VLOOKUP(D12,'ADP-Rank'!A12:AJ971,36,FALSE)),9999)) -> 9999 | P12: =IF($D12="Unlisted Player",-1001,IFERROR(IF(IF(OR($H12="RP",$H12="SP"),VLOOKUP($D12,'Filtered-P'!$A$3:$X$938,13,FALSE),VLOOKUP($D12,'Filtered-H'!$A$3:$Z$950,22,FALSE))="",-1000,IF(OR($H12="RP",$H12="SP"),VLOOKUP($D12,'Filtered-P'!$A$3:$X$938,13,FALSE),VLOOKUP($D12,'Filtered-H'!$A$3:$Z$950,22,FALSE))),-1000)) -> -3.813274195 | Q12: =IFERROR(IF($D12="Unlisted Player",-1001,IF(OR(H12="SP",H12="RP"),N12/VLOOKUP($D12,'Filtered-P'!$A$1:$AB$961,4,FALSE),-1000)),-1000) -> -1000 | R12: =IFERROR(IF($D12="Unlisted Player",-1001,IF(OR(H12="SP",H12="RP"),-1000,N12/VLOOKUP($D12,'Filtered-H'!$A$1:$AD$961,2,FALSE))),-1000) -> 0.2897334884 | S12: =IF(H12="",#N/A,H12&"."&1+SUMPRODUCT(($H$2:$H$962=H12)*($M$2:$M$962<M12))+COUNTIFS($M$2:M12,M12,$H$2:H12,H12)-1) -> OF.62 | T12: =IFERROR(IF(D12=0,1001,IF(VLOOKUP($D12,'ADP-Rank'!$A$2:$AV$961,38,FALSE)="",999+(IF(J12=FALSE,1,0)),VLOOKUP($D12,'ADP-Rank'!$A$2:$AV$961,38,FALSE))),999+(IF(J12=FALSE,1,0))) -> 999 | U12: =IF(H12="",#N/A,1+SUMPRODUCT(($H$2:$H$962=H12)*($M$2:$M$962<M12))+COUNTIFS($M$2:M12,M12,$H$2:H12,H12)-1) -> 62 | V12: =IF(ISERROR(VLOOKUP($B11,Keepers!$C$2:$D$450,2,FALSE)),B11,"") -> Bryce Harper | W12: =IFERROR(INDEX($V$1:$V$961,SMALL(IF($V$1:$V$961<>"",ROW($V$1:$V$961)),ROW(V12))),"") -> Francisco Lindor | X12: =IF(D12="Non-Ranked Player",0,IF(VLOOKUP($D12,'Starter Calc'!$B$2:$D$961,3,FALSE)="",0,VLOOKUP($D12,'Starter Calc'!$B$2:$D$961,3,FALSE))) -> 53.33993521 | Y12: =IFERROR(VLOOKUP(D12,'Starter Calc'!B$2:BS$961,70,FALSE),"") -> Bench
A13: Francisco Lindor | B13: =IFERROR(INDEX($A$1:$A$961,SMALL(IF($A$1:$A$961<>"",ROW($A$1:$A$961)),ROW(A13))),"") -> Alex Bregman | C13: =IFERROR(IF(L13=FALSE,"",CHOOSE(MATCH(RIGHT('Your Points Draft'!$R$3,LEN('Your Points Draft'!$R$3)-8),$M$1:$R$1,0),1+SUMPRODUCT(($L$2:$L$962=TRUE)*($M$2:$M$962<M13))+COUNTIFS($L$2:L13,L13,$M$2:M13,M13)-1,1+SUMPRODUCT(($L$2:$L$962=TRUE)*($N$2:$N$962>N13))+COUNTIFS($L$2:L13,L13,$N$2:N13,N13)-1,1+SUMPRODUCT(($L$2:$L$962=TRUE)*($O$2:$O$962<O13))+COUNTIFS($L$2:L13,L13,$O$2:O13,O13)-1,1+SUMPRODUCT(($L$2:$L$962=TRUE)*($P$2:$P$962>P13))+COUNTIFS($L$2:L13,L13,$P$2:P13,P13)-1,1+SUMPRODUCT(($L$2:$L$962=TRUE)*($Q$2:$Q$962>Q13))+COUNTIFS($L$2:L13,L13,$Q$2:Q13,Q13)-1,1+SUMPRODUCT(($L$2:$L$962=TRUE)*($R$2:$R$962>R13))+COUNTIFS($L$2:L13,L13,$R$2:R13,R13)-1,)),"") -> 321 | D13: Kolby Allard | E13: =IFERROR(INDEX('Draft Log'!$D$3:$D$807,MATCH(D13,'Draft Log'!$C$3:$C$807,0)),"") ->  | F13: =IFERROR(INDEX('ADP-Rank'!$C$2:$C$832,MATCH(D13,'ADP-Rank'!$A$2:$A$832,0)),"") -> SP | G13: =IFERROR(IF(F13=I13,"",IF(INDEX('Your Points Draft'!$B$10:$B$633,MATCH(D13,'Your Points Draft'!$C$10:$C$633,0))="",IF(I13<>"",I13,""),INDEX('Your Points Draft'!$B$10:$B$633,MATCH(D13,'Your Points Draft'!$C$10:$C$633,0)))),"") ->  | H13: SP | J13: =INDEX('ADP-Rank'!$AH$2:$AH$832,MATCH(D13,'ADP-Rank'!$A$2:$A$832,0)) -> TRUE | K13: FALSE | L13: =IF(J13=FALSE,FALSE,IF(AND('Your Points Draft'!$R$5="Hide Drafted Players",K13=TRUE),FALSE,IF(OR('Your Points Draft'!$R$4="Show All Positions",AND('Your Points Draft'!$R$4="Only Show: C",H13="C"),AND('Your Points Draft'!$R$4="Only Show: 1B",H13="1B"),AND('Your Points Draft'!$R$4="Only Show: 2B",H13="2B"),AND('Your Points Draft'!$R$4="Only Show: 3B",H13="3B"),AND('Your Points Draft'!$R$4="Only Show: SS",H13="SS"),AND('Your Points Draft'!$R$4="Only Show: OF",H13="OF"),AND('Your Points Draft'!$R$4="Only Show: SP",H13="SP"),AND('Your Points Draft'!$R$4="Only Show: RP",H13="RP"),AND('Your Points Draft'!$R$4="Only Show: CI",OR(H13={"1B","3B"})),AND('Your Points Draft'!$R$4="Only Show: MI",OR(H13={"2B","SS"})),AND('Your Points Draft'!$R$4="Only Show: IF",OR(H13={"C","1B","2B","3B","SS"})),AND('Your Points Draft'!$R$4="Only Show: DH",OR(H13={"C","1B","2B","3B","SS","OF","DH"})),AND('Your Points Draft'!$R$4="Only Show: P",OR(H13={"SP","RP"})),AND('Your Points Draft'!$R$4="Only Show: LF",ISERROR(SEARCH("LF",VLOOKUP($D13,'ADP-Rank'!$A$2:$D$961,4,FALSE)))=FALSE),AND('Your Points Draft'!$R$4="Only Show: RF",ISERROR(SEARCH("RF",VLOOKUP($D13,'ADP-Rank'!$A$2:$D$961,4,FALSE)))=FALSE),AND('Your Points Draft'!$R$4="Only Show: CF",ISERROR(SEARCH("CF",VLOOKUP($D13,'ADP-Rank'!$A$2:$D$961,4,FALSE)))=FALSE)),TRUE,FALSE))) -> TRUE | M13: =IFERROR(IF(VLOOKUP($D13,'ADP-Rank'!$A$2:$AV$961,38,FALSE)="",9999,VLOOKUP($D13,'ADP-Rank'!$A$2:$AV$961,38,FALSE)),9999) -> 9999 | N13: =IF(D13="Non-Ranked Player",-1001,IF(VLOOKUP($D13,'Starter Calc'!$B$2:$D$961,3,FALSE)="",-1000,VLOOKUP($D13,'Starter Calc'!$B$2:$D$961,3,FALSE))) -> -1000 | O13: =IF(D13="Non-Ranked Player",10000,IFERROR(IF(VLOOKUP(D13,'ADP-Rank'!A13:AJ972,36,FALSE)="",9999,VLOOKUP(D13,'ADP-Rank'!A13:AJ972,36,FALSE)),9999)) -> 9999 | P13: =IF($D13="Unlisted Player",-1001,IFERROR(IF(IF(OR($H13="RP",$H13="SP"),VLOOKUP($D13,'Filtered-P'!$A$3:$X$938,13,FALSE),VLOOKUP($D13,'Filtered-H'!$A$3:$Z$950,22,FALSE))="",-1000,IF(OR($H13="RP",$H13="SP"),VLOOKUP($D13,'Filtered-P'!$A$3:$X$938,13,FALSE),VLOOKUP($D13,'Filtered-H'!$A$3:$Z$950,22,FALSE))),-1000)) -> -1000 | Q13: =IFERROR(IF($D13="Unlisted Player",-1001,IF(OR(H13="SP",H13="RP"),N13/VLOOKUP($D13,'Filtered-P'!$A$1:$AB$961,4,FALSE),-1000)),-1000) -> -1000 | R13: =IFERROR(IF($D13="Unlisted Player",-1001,IF(OR(H13="SP",H13="RP"),-1000,N13/VLOOKUP($D13,'Filtered-H'!$A$1:$AD$961,2,FALSE))),-1000) -> -1000 | S13: =IF(H13="",#N/A,H13&"."&1+SUMPRODUCT(($H$2:$H$962=H13)*($M$2:$M$962<M13))+COUNTIFS($M$2:M13,M13,$H$2:H13,H13)-1) -> SP.100 | T13: =IFERROR(IF(D13=0,1001,IF(VLOOKUP($D13,'ADP-Rank'!$A$2:$AV$961,38,FALSE)="",999+(IF(J13=FALSE,1,0)),VLOOKUP($D13,'ADP-Rank'!$A$2:$AV$961,38,FALSE))),999+(IF(J13=FALSE,1,0))) -> 999 | U13: =IF(H13="",#N/A,1+SUMPRODUCT(($H$2:$H$962=H13)*($M$2:$M$962<M13))+COUNTIFS($M$2:M13,M13,$H$2:H13,H13)-1) -> 100 | V13: =IF(ISERROR(VLOOKUP($B12,Keepers!$C$2:$D$450,2,FALSE)),B12,"") -> Francisco Lindor | W13: =IFERROR(INDEX($V$1:$V$961,SMALL(IF($V$1:$V$961<>"",ROW($V$1:$V$961)),ROW(V13))),"") -> Alex Bregman | X13: =IF(D13="Non-Ranked Player",0,IF(VLOOKUP($D13,'Starter Calc'!$B$2:$D$961,3,FALSE)="",0,VLOOKUP($D13,'Starter Calc'!$B$2:$D$961,3,FALSE))) -> 0 | Y13: =IFERROR(VLOOKUP(D13,'Starter Calc'!B$2:BS$961,70,FALSE),"") -> Bench
A14: Alex Bregman | B14: =IFERROR(INDEX($A$1:$A$961,SMALL(IF($A$1:$A$961<>"",ROW($A$1:$A$961)),ROW(A14))),"") -> Chris Sale | C14: =IFERROR(IF(L14=FALSE,"",CHOOSE(MATCH(RIGHT('Your Points Draft'!$R$3,LEN('Your Points Draft'!$R$3)-8),$M$1:$R$1,0),1+SUMPRODUCT(($L$2:$L$962=TRUE)*($M$2:$M$962<M14))+COUNTIFS($L$2:L14,L14,$M$2:M14,M14)-1,1+SUMPRODUCT(($L$2:$L$962=TRUE)*($N$2:$N$962>N14))+COUNTIFS($L$2:L14,L14,$N$2:N14,N14)-1,1+SUMPRODUCT(($L$2:$L$962=TRUE)*($O$2:$O$962<O14))+COUNTIFS($L$2:L14,L14,$O$2:O14,O14)-1,1+SUMPRODUCT(($L$2:$L$962=TRUE)*($P$2:$P$962>P14))+COUNTIFS($L$2:L14,L14,$P$2:P14,P14)-1,1+SUMPRODUCT(($L$2:$L$962=TRUE)*($Q$2:$Q$962>Q14))+COUNTIFS($L$2:L14,L14,$Q$2:Q14,Q14)-1,1+SUMPRODUCT(($L$2:$L$962=TRUE)*($R$2:$R$962>R14))+COUNTIFS($L$2:L14,L14,$R$2:R14,R14)-1,)),"") -> 188 | D14: Cody Allen | E14: =IFERROR(INDEX('Draft Log'!$D$3:$D$807,MATCH(D14,'Draft Log'!$C$3:$C$807,0)),"") ->  | F14: =IFERROR(INDEX('ADP-Rank'!$C$2:$C$832,MATCH(D14,'ADP-Rank'!$A$2:$A$832,0)),"") -> RP | G14: =IFERROR(IF(F14=I14,"",IF(INDEX('Your Points Draft'!$B$10:$B$633,MATCH(D14,'Your Points Draft'!$C$10:$C$633,0))="",IF(I14<>"",I14,""),INDEX('Your Points Draft'!$B$10:$B$633,MATCH(D14,'Your Points Draft'!$C$10:$C$633,0)))),"") ->  | H14: RP | J14: =INDEX('ADP-Rank'!$AH$2:$AH$832,MATCH(D14,'ADP-Rank'!$A$2:$A$832,0)) -> TRUE | K14: FALSE | L14: =IF(J14=FALSE,FALSE,IF(AND('Your Points Draft'!$R$5="Hide Drafted Players",K14=TRUE),FALSE,IF(OR('Your Points Draft'!$R$4="Show All Positions",AND('Your Points Draft'!$R$4="Only Show: C",H14="C"),AND('Your Points Draft'!$R$4="Only Show: 1B",H14="1B"),AND('Your Points Draft'!$R$4="Only Show: 2B",H14="2B"),AND('Your Points Draft'!$R$4="Only Show: 3B",H14="3B"),AND('Your Points Draft'!$R$4="Only Show: SS",H14="SS"),AND('Your Points Draft'!$R$4="Only Show: OF",H14="OF"),AND('Your Points Draft'!$R$4="Only Show: SP",H14="SP"),AND('Your Points Draft'!$R$4="Only Show: RP",H14="RP"),AND('Your Points Draft'!$R$4="Only Show: CI",OR(H14={"1B","3B"})),AND('Your Points Draft'!$R$4="Only Show: MI",OR(H14={"2B","SS"})),AND('Your Points Draft'!$R$4="Only Show: IF",OR(H14={"C","1B","2B","3B","SS"})),AND('Your Points Draft'!$R$4="Only Show: DH",OR(H14={"C","1B","2B","3B","SS","OF","DH"})),AND('Your Points Draft'!$R$4="Only Show: P",OR(H14={"SP","RP"})),AND('Your Points Draft'!$R$4="Only Show: LF",ISERROR(SEARCH("LF",VLOOKUP($D14,'ADP-Rank'!$A$2:$D$961,4,FALSE)))=FALSE),AND('Your Points Draft'!$R$4="Only Show: RF",ISERROR(SEARCH("RF",VLOOKUP($D14,'ADP-Rank'!$A$2:$D$961,4,FALSE)))=FALSE),AND('Your Points Draft'!$R$4="Only Show: CF",ISERROR(SEARCH("CF",VLOOKUP($D14,'ADP-Rank'!$A$2:$D$961,4,FALSE)))=FALSE)),TRUE,FALSE))) -> TRUE | M14: =IFERROR(IF(VLOOKUP($D14,'ADP-Rank'!$A$2:$AV$961,38,FALSE)="",9999,VLOOKUP($D14,'ADP-Rank'!$A$2:$AV$961,38,FALSE)),9999) -> 177.07 | N14: =IF(D14="Non-Ranked Player",-1001,IF(VLOOKUP($D14,'Starter Calc'!$B$2:$D$961,3,FALSE)="",-1000,VLOOKUP($D14,'Starter Calc'!$B$2:$D$961,3,FALSE))) -> 353.7509106 | O14: =IF(D14="Non-Ranked Player",10000,IFERROR(IF(VLOOKUP(D14,'ADP-Rank'!A14:AJ973,36,FALSE)="",9999,VLOOKUP(D14,'ADP-Rank'!A14:AJ973,36,FALSE)),9999)) -> 127 | P14: =IF($D14="Unlisted Player",-1001,IFERROR(IF(IF(OR($H14="RP",$H14="SP"),VLOOKUP($D14,'Filtered-P'!$A$3:$X$938,13,FALSE),VLOOKUP($D14,'Filtered-H'!$A$3:$Z$950,22,FALSE))="",-1000,IF(OR($H14="RP",$H14="SP"),VLOOKUP($D14,'Filtered-P'!$A$3:$X$938,13,FALSE),VLOOKUP($D14,'Filtered-H'!$A$3:$Z$950,22,FALSE))),-1000)) -> 0.1127066246 | Q14: =IFERROR(IF($D14="Unlisted Player",-1001,IF(OR(H14="SP",H14="RP"),N14/VLOOKUP($D14,'Filtered-P'!$A$1:$AB$961,4,FALSE),-1000)),-1000) -> 5.279864337 | R14: =IFERROR(IF($D14="Unlisted Player",-1001,IF(OR(H14="SP",H14="RP"),-1000,N14/VLOOKUP($D14,'Filtered-H'!$A$1:$AD$961,2,FALSE))),-1000) -> -1000 | S14: =IF(H14="",#N/A,H14&"."&1+SUMPRODUCT(($H$2:$H$962=H14)*($M$2:$M$962<M14))+COUNTIFS($M$2:M14,M14,$H$2:H14,H14)-1) -> RP.22 | T14: =IFERROR(IF(D14=0,1001,IF(VLOOKUP($D14,'ADP-Rank'!$A$2:$AV$961,38,FALSE)="",999+(IF(J14=FALSE,1,0)),VLOOKUP($D14,'ADP-Rank'!$A$2:$AV$961,38,FALSE))),999+(IF(J14=FALSE,1,0))) -> 177.07 | U14: =IF(H14="",#N/A,1+SUMPRODUCT(($H$2:$H$962=H14)*($M$2:$M$962<M14))+COUNTIFS($M$2:M14,M14,$H$2:H14,H14)-1) -> 22 | V14: =IF(ISERROR(VLOOKUP($B13,Keepers!$C$2:$D$450,2,FALSE)),B13,"") -> Alex Bregman | W14: =IFERROR(INDEX($V$1:$V$961,SMALL(IF($V$1:$V$961<>"",ROW($V$1:$V$961)),ROW(V14))),"") -> Chris Sale | X14: =IF(D14="Non-Ranked Player",0,IF(VLOOKUP($D14,'Starter Calc'!$B$2:$D$961,3,FALSE)="",0,VLOOKUP($D14,'Starter Calc'!$B$2:$D$961,3,FALSE))) -> 353.7509106 | Y14: =IFERROR(VLOOKUP(D14,'Starter Calc'!B$2:BS$961,70,FALSE),"") -> Bench
A15: Chris Sale | B15: =IFERROR(INDEX($A$1:$A$961,SMALL(IF($A$1:$A$961<>"",ROW($A$1:$A$961)),ROW(A15))),"") -> Jose Altuve | C15: =IFERROR(IF(L15=FALSE,"",CHOOSE(MATCH(RIGHT('Your Points Draft'!$R$3,LEN('Your Points Draft'!$R$3)-8),$M$1:$R$1,0),1+SUMPRODUCT(($L$2:$L$962=TRUE)*($M$2:$M$962<M15))+COUNTIFS($L$2:L15,L15,$M$2:M15,M15)-1,1+SUMPRODUCT(($L$2:$L$962=TRUE)*($N$2:$N$962>N15))+COUNTIFS($L$2:L15,L15,$N$2:N15,N15)-1,1+SUMPRODUCT(($L$2:$L$962=TRUE)*($O$2:$O$962<O15))+COUNTIFS($L$2:L15,L15,$O$2:O15,O15)-1,1+SUMPRODUCT(($L$2:$L$962=TRUE)*($P$2:$P$962>P15))+COUNTIFS($L$2:L15,L15,$P$2:P15,P15)-1,1+SUMPRODUCT(($L$2:$L$962=TRUE)*($Q$2:$Q$962>Q15))+COUNTIFS($L$2:L15,L15,$Q$2:Q15,Q15)-1,1+SUMPRODUCT(($L$2:$L$962=TRUE)*($R$2:$R$962>R15))+COUNTIFS($L$2:L15,L15,$R$2:R15,R15)-1,)),"") -> 322 | D15: Greg Allen | E15: =IFERROR(INDEX('Draft Log'!$D$3:$D$807,MATCH(D15,'Draft Log'!$C$3:$C$807,0)),"") ->  | F15: =IFERROR(INDEX('ADP-Rank'!$C$2:$C$832,MATCH(D15,'ADP-Rank'!$A$2:$A$832,0)),"") -> OF | G15: =IFERROR(IF(F15=I15,"",IF(INDEX('Your Points Draft'!$B$10:$B$633,MATCH(D15,'Your Points Draft'!$C$10:$C$633,0))="",IF(I15<>"",I15,""),INDEX('Your Points Draft'!$B$10:$B$633,MATCH(D15,'Your Points Draft'!$C$10:$C$633,0)))),"") ->  | H15: OF | J15: =INDEX('ADP-Rank'!$AH$2:$AH$832,MATCH(D15,'ADP-Rank'!$A$2:$A$832,0)) -> TRUE | K15: FALSE | L15: =IF(J15=FALSE,FALSE,IF(AND('Your Points Draft'!$R$5="Hide Drafted Players",K15=TRUE),FALSE,IF(OR('Your Points Draft'!$R$4="Show All Positions",AND('Your Points Draft'!$R$4="Only Show: C",H15="C"),AND('Your Points Draft'!$R$4="Only Show: 1B",H15="1B"),AND('Your Points Draft'!$R$4="Only Show: 2B",H15="2B"),AND('Your Points Draft'!$R$4="Only Show: 3B",H15="3B"),AND('Your Points Draft'!$R$4="Only Show: SS",H15="SS"),AND('Your Points Draft'!$R$4="Only Show: OF",H15="OF"),AND('Your Points Draft'!$R$4="Only Show: SP",H15="SP"),AND('Your Points Draft'!$R$4="Only Show: RP",H15="RP"),AND('Your Points Draft'!$R$4="Only Show: CI",OR(H15={"1B","3B"})),AND('Your Points Draft'!$R$4="Only Show: MI",OR(H15={"2B","SS"})),AND('Your Points Draft'!$R$4="Only Show: IF",OR(H15={"C","1B","2B","3B","SS"})),AND('Your Points Draft'!$R$4="Only Show: DH",OR(H15={"C","1B","2B","3B","SS","OF","DH"})),AND('Your Points Draft'!$R$4="Only Show: P",OR(H15={"SP","RP"})),AND('Your Points Draft'!$R$4="Only Show: LF",ISERROR(SEARCH("LF",VLOOKUP($D15,'ADP-Rank'!$A$2:$D$961,4,FALSE)))=FALSE),AND('Your Points Draft'!$R$4="Only Show: RF",ISERROR(SEARCH("RF",VLOOKUP($D15,'ADP-Rank'!$A$2:$D$961,4,FALSE)))=FALSE),AND('Your Points Draft'!$R$4="Only Show: CF",ISERROR(SEARCH("CF",VLOOKUP($D15,'ADP-Rank'!$A$2:$D$961,4,FALSE)))=FALSE)),TRUE,FALSE))) -> TRUE | M15: =IFERROR(IF(VLOOKUP($D15,'ADP-Rank'!$A$2:$AV$961,38,FALSE)="",9999,VLOOKUP($D15,'ADP-Rank'!$A$2:$AV$961,38,FALSE)),9999) -> 9999 | N15: =IF(D15="Non-Ranked Player",-1001,IF(VLOOKUP($D15,'Starter Calc'!$B$2:$D$961,3,FALSE)="",-1000,VLOOKUP($D15,'Starter Calc'!$B$2:$D$961,3,FALSE))) -> 199.3703128 | O15: =IF(D15="Non-Ranked Player",10000,IFERROR(IF(VLOOKUP(D15,'ADP-Rank'!A15:AJ974,36,FALSE)="",9999,VLOOKUP(D15,'ADP-Rank'!A15:AJ974,36,FALSE)),9999)) -> 9999 | P15: =IF($D15="Unlisted Player",-1001,IFERROR(IF(IF(OR($H15="RP",$H15="SP"),VLOOKUP($D15,'Filtered-P'!$A$3:$X$938,13,FALSE),VLOOKUP($D15,'Filtered-H'!$A$3:$Z$950,22,FALSE))="",-1000,IF(OR($H15="RP",$H15="SP"),VLOOKUP($D15,'Filtered-P'!$A$3:$X$938,13,FALSE),VLOOKUP($D15,'Filtered-H'!$A$3:$Z$950,22,FALSE))),-1000)) -> -1.993546462 | Q15: =IFERROR(IF($D15="Unlisted Player",-1001,IF(OR(H15="SP",H15="RP"),N15/VLOOKUP($D15,'Filtered-P'!$A$1:$AB$961,4,FALSE),-1000)),-1000) -> -1000 | R15: =IFERROR(IF($D15="Unlisted Player",-1001,IF(OR(H15="SP",H15="RP"),-1000,N15/VLOOKUP($D15,'Filtered-H'!$A$1:$AD$961,2,FALSE))),-1000) -> 0.4736762006 | S15: =IF(H15="",#N/A,H15&"."&1+SUMPRODUCT(($H$2:$H$962=H15)*($M$2:$M$962<M15))+COUNTIFS($M$2:M15,M15,$H$2:H15,H15)-1) -> OF.63 | T15: =IFERROR(IF(D15=0,1001,IF(VLOOKUP($D15,'ADP-Rank'!$A$2:$AV$961,38,FALSE)="",999+(IF(J15=FALSE,1,0)),VLOOKUP($D15,'ADP-Rank'!$A$2:$AV$961,38,FALSE))),999+(IF(J15=FALSE,1,0))) -> 999 | U15: =IF(H15="",#N/A,1+SUMPRODUCT(($H$2:$H$962=H15)*($M$2:$M$962<M15))+COUNTIFS($M$2:M15,M15,$H$2:H15,H15)-1) -> 63 | V15: =IF(ISERROR(VLOOKUP($B14,Keepers!$C$2:$D$450,2,FALSE)),B14,"") -> Chris Sale | W15: =IFERROR(INDEX($V$1:$V$961,SMALL(IF($V$1:$V$961<>"",ROW($V$1:$V$961)),ROW(V15))),"") -> Jose Altuve | X15: =IF(D15="Non-Ranked Player",0,IF(VLOOKUP($D15,'Starter Calc'!$B$2:$D$961,3,FALSE)="",0,VLOOKUP($D15,'Starter Calc'!$B$2:$D$961,3,FALSE))) -> 199.3703128 | Y15: =IFERROR(VLOOKUP(D15,'Starter Calc'!B$2:BS$961,70,FALSE),"") -> Bench
A16: Jose Altuve | B16: =IFERROR(INDEX($A$1:$A$961,SMALL(IF($A$1:$A$961<>"",ROW($A$1:$A$961)),ROW(A16))),"") -> Ronald Acuna | C16: =IFERROR(IF(L16=FALSE,"",CHOOSE(MATCH(RIGHT('Your Points Draft'!$R$3,LEN('Your Points Draft'!$R$3)-8),$M$1:$R$1,0),1+SUMPRODUCT(($L$2:$L$962=TRUE)*($M$2:$M$962<M16))+COUNTIFS($L$2:L16,L16,$M$2:M16,M16)-1,1+SUMPRODUCT(($L$2:$L$962=TRUE)*($N$2:$N$962>N16))+COUNTIFS($L$2:L16,L16,$N$2:N16,N16)-1,1+SUMPRODUCT(($L$2:$L$962=TRUE)*($O$2:$O$962<O16))+COUNTIFS($L$2:L16,L16,$O$2:O16,O16)-1,1+SUMPRODUCT(($L$2:$L$962=TRUE)*($P$2:$P$962>P16))+COUNTIFS($L$2:L16,L16,$P$2:P16,P16)-1,1+SUMPRODUCT(($L$2:$L$962=TRUE)*($Q$2:$Q$962>Q16))+COUNTIFS($L$2:L16,L16,$Q$2:Q16,Q16)-1,1+SUMPRODUCT(($L$2:$L$962=TRUE)*($R$2:$R$962>R16))+COUNTIFS($L$2:L16,L16,$R$2:R16,R16)-1,)),"") -> 323 | D16: Albert Almora | E16: =IFERROR(INDEX('Draft Log'!$D$3:$D$807,MATCH(D16,'Draft Log'!$C$3:$C$807,0)),"") ->  | F16: =IFERROR(INDEX('ADP-Rank'!$C$2:$C$832,MATCH(D16,'ADP-Rank'!$A$2:$A$832,0)),"") -> OF | G16: =IFERROR(IF(F16=I16,"",IF(INDEX('Your Points Draft'!$B$10:$B$633,MATCH(D16,'Your Points Draft'!$C$10:$C$633,0))="",IF(I16<>"",I16,""),INDEX('Your Points Draft'!$B$10:$B$633,MATCH(D16,'Your Points Draft'!$C$10:$C$633,0)))),"") ->  | H16: OF | J16: =INDEX('ADP-Rank'!$AH$2:$AH$832,MATCH(D16,'ADP-Rank'!$A$2:$A$832,0)) -> TRUE | K16: FALSE | L16: =IF(J16=FALSE,FALSE,IF(AND('Your Points Draft'!$R$5="Hide Drafted Players",K16=TRUE),FALSE,IF(OR('Your Points Draft'!$R$4="Show All Positions",AND('Your Points Draft'!$R$4="Only Show: C",H16="C"),AND('Your Points Draft'!$R$4="Only Show: 1B",H16="1B"),AND('Your Points Draft'!$R$4="Only Show: 2B",H16="2B"),AND('Your Points Draft'!$R$4="Only Show: 3B",H16="3B"),AND('Your Points Draft'!$R$4="Only Show: SS",H16="SS"),AND('Your Points Draft'!$R$4="Only Show: OF",H16="OF"),AND('Your Points Draft'!$R$4="Only Show: SP",H16="SP"),AND('Your Points Draft'!$R$4="Only Show: RP",H16="RP"),AND('Your Points Draft'!$R$4="Only Show: CI",OR(H16={"1B","3B"})),AND('Your Points Draft'!$R$4="Only Show: MI",OR(H16={"2B","SS"})),AND('Your Points Draft'!$R$4="Only Show: IF",OR(H16={"C","1B","2B","3B","SS"})),AND('Your Points Draft'!$R$4="Only Show: DH",OR(H16={"C","1B","2B","3B","SS","OF","DH"})),AND('Your Points Draft'!$R$4="Only Show: P",OR(H16={"SP","RP"})),AND('Your Points Draft'!$R$4="Only Show: LF",ISERROR(SEARCH("LF",VLOOKUP($D16,'ADP-Rank'!$A$2:$D$961,4,FALSE)))=FALSE),AND('Your Points Draft'!$R$4="Only Show: RF",ISERROR(SEARCH("RF",VLOOKUP($D16,'ADP-Rank'!$A$2:$D$961,4,FALSE)))=FALSE),AND('Your Points Draft'!$R$4="Only Show: CF",ISERROR(SEARCH("CF",VLOOKUP($D16,'ADP-Rank'!$A$2:$D$961,4,FALSE)))=FALSE)),TRUE,FALSE))) -> TRUE | M16: =IFERROR(IF(VLOOKUP($D16,'ADP-Rank'!$A$2:$AV$961,38,FALSE)="",9999,VLOOKUP($D16,'ADP-Rank'!$A$2:$AV$961,38,FALSE)),9999) -> 9999 | N16: =IF(D16="Non-Ranked Player",-1001,IF(VLOOKUP($D16,'Starter Calc'!$B$2:$D$961,3,FALSE)="",-1000,VLOOKUP($D16,'Starter Calc'!$B$2:$D$961,3,FALSE))) -> 218.6920467 | O16: =IF(D16="Non-Ranked Player",10000,IFERROR(IF(VLOOKUP(D16,'ADP-Rank'!A16:AJ975,36,FALSE)="",9999,VLOOKUP(D16,'ADP-Rank'!A16:AJ975,36,FALSE)),9999)) -> 9999 | P16: =IF($D16="Unlisted Player",-1001,IFERROR(IF(IF(OR($H16="RP",$H16="SP"),VLOOKUP($D16,'Filtered-P'!$A$3:$X$938,13,FALSE),VLOOKUP($D16,'Filtered-H'!$A$3:$Z$950,22,FALSE))="",-1000,IF(OR($H16="RP",$H16="SP"),VLOOKUP($D16,'Filtered-P'!$A$3:$X$938,13,FALSE),VLOOKUP($D16,'Filtered-H'!$A$3:$Z$950,22,FALSE))),-1000)) -> -1.752772621 | Q16: =IFERROR(IF($D16="Unlisted Player",-1001,IF(OR(H16="SP",H16="RP"),N16/VLOOKUP($D16,'Filtered-P'!$A$1:$AB$961,4,FALSE),-1000)),-1000) -> -1000 | R16: =IFERROR(IF($D16="Unlisted Player",-1001,IF(OR(H16="SP",H16="RP"),-1000,N16/VLOOKUP($D16,'Filtered-H'!$A$1:$AD$961,2,FALSE))),-1000) -> 0.4642157646 | S16: =IF(H16="",#N/A,H16&"."&1+SUMPRODUCT(($H$2:$H$962=H16)*($M$2:$M$962<M16))+COUNTIFS($M$2:M16,M16,$H$2:H16,H16)-1) -> OF.64 | T16: =IFERROR(IF(D16=0,1001,IF(VLOOKUP($D16,'ADP-Rank'!$A$2:$AV$961,38,FALSE)="",999+(IF(J16=FALSE,1,0)),VLOOKUP($D16,'ADP-Rank'!$A$2:$AV$961,38,FALSE))),999+(IF(J16=FALSE,1,0))) -> 999 | U16: =IF(H16="",#N/A,1+SUMPRODUCT(($H$2:$H$962=H16)*($M$2:$M$962<M16))+COUNTIFS($M$2:M16,M16,$H$2:H16,H16)-1) -> 64 | V16: =IF(ISERROR(VLOOKUP($B15,Keepers!$C$2:$D$450,2,FALSE)),B15,"") -> Jose Altuve | W16: =IFERROR(INDEX($V$1:$V$961,SMALL(IF($V$1:$V$961<>"",ROW($V$1:$V$961)),ROW(V16))),"") -> Ronald Acuna | X16: =IF(D16="Non-Ranked Player",0,IF(VLOOKUP($D16,'Starter Calc'!$B$2:$D$961,3,FALSE)="",0,VLOOKUP($D16,'Starter Calc'!$B$2:$D$961,3,FALSE))) -> 218.6920467 | Y16: =IFERROR(VLOOKUP(D16,'Starter Calc'!B$2:BS$961,70,FALSE),"") -> Bench
A17: Ronald Acuna | B17: =IFERROR(INDEX($A$1:$A$961,SMALL(IF($A$1:$A$961<>"",ROW($A$1:$A$961)),ROW(A17))),"") -> Paul Goldschmidt | C17: =IFERROR(IF(L17=FALSE,"",CHOOSE(MATCH(RIGHT('Your Points Draft'!$R$3,LEN('Your Points Draft'!$R$3)-8),$M$1:$R$1,0),1+SUMPRODUCT(($L$2:$L$962=TRUE)*($M$2:$M$962<M17))+COUNTIFS($L$2:L17,L17,$M$2:M17,M17)-1,1+SUMPRODUCT(($L$2:$L$962=TRUE)*($N$2:$N$962>N17))+COUNTIFS($L$2:L17,L17,$N$2:N17,N17)-1,1+SUMPRODUCT(($L$2:$L$962=TRUE)*($O$2:$O$962<O17))+COUNTIFS($L$2:L17,L17,$O$2:O17,O17)-1,1+SUMPRODUCT(($L$2:$L$962=TRUE)*($P$2:$P$962>P17))+COUNTIFS($L$2:L17,L17,$P$2:P17,P17)-1,1+SUMPRODUCT(($L$2:$L$962=TRUE)*($Q$2:$Q$962>Q17))+COUNTIFS($L$2:L17,L17,$Q$2:Q17,Q17)-1,1+SUMPRODUCT(($L$2:$L$962=TRUE)*($R$2:$R$962>R17))+COUNTIFS($L$2:L17,L17,$R$2:R17,R17)-1,)),"") -> 210 | D17: Peter Alonso | E17: =IFERROR(INDEX('Draft Log'!$D$3:$D$807,MATCH(D17,'Draft Log'!$C$3:$C$807,0)),"") ->  | F17: =IFERROR(INDEX('ADP-Rank'!$C$2:$C$832,MATCH(D17,'ADP-Rank'!$A$2:$A$832,0)),"") -> 1B | G17: =IFERROR(IF(F17=I17,"",IF(INDEX('Your Points Draft'!$B$10:$B$633,MATCH(D17,'Your Points Draft'!$C$10:$C$633,0))="",IF(I17<>"",I17,""),INDEX('Your Points Draft'!$B$10:$B$633,MATCH(D17,'Your Points Draft'!$C$10:$C$633,0)))),"") ->  | H17: 1B | J17: =INDEX('ADP-Rank'!$AH$2:$AH$832,MATCH(D17,'ADP-Rank'!$A$2:$A$832,0)) -> TRUE | K17: FALSE | L17: =IF(J17=FALSE,FALSE,IF(AND('Your Points Draft'!$R$5="Hide Drafted Players",K17=TRUE),FALSE,IF(OR('Your Points Draft'!$R$4="Show All Positions",AND('Your Points Draft'!$R$4="Only Show: C",H17="C"),AND('Your Points Draft'!$R$4="Only Show: 1B",H17="1B"),AND('Your Points Draft'!$R$4="Only Show: 2B",H17="2B"),AND('Your Points Draft'!$R$4="Only Show: 3B",H17="3B"),AND('Your Points Draft'!$R$4="Only Show: SS",H17="SS"),AND('Your Points Draft'!$R$4="Only Show: OF",H17="OF"),AND('Your Points Draft'!$R$4="Only Show: SP",H17="SP"),AND('Your Points Draft'!$R$4="Only Show: RP",H17="RP"),AND('Your Points Draft'!$R$4="Only Show: CI",OR(H17={"1B","3B"})),AND('Your Points Draft'!$R$4="Only Show: MI",OR(H17={"2B","SS"})),AND('Your Points Draft'!$R$4="Only Show: IF",OR(H17={"C","1B","2B","3B","SS"})),AND('Your Points Draft'!$R$4="Only Show: DH",OR(H17={"C","1B","2B","3B","SS","OF","DH"})),AND('Your Points Draft'!$R$4="Only Show: P",OR(H17={"SP","RP"})),AND('Your Points Draft'!$R$4="Only Show: LF",ISERROR(SEARCH("LF",VLOOKUP($D17,'ADP-Rank'!$A$2:$D$961,4,FALSE)))=FALSE),AND('Your Points Draft'!$R$4="Only Show: RF",ISERROR(SEARCH("RF",VLOOKUP($D17,'ADP-Rank'!$A$2:$D$961,4,FALSE)))=FALSE),AND('Your Points Draft'!$R$4="Only Show: CF",ISERROR(SEARCH("CF",VLOOKUP($D17,'ADP-Rank'!$A$2:$D$961,4,FALSE)))=FALSE)),TRUE,FALSE))) -> TRUE | M17: =IFERROR(IF(VLOOKUP($D17,'ADP-Rank'!$A$2:$AV$961,38,FALSE)="",9999,VLOOKUP($D17,'ADP-Rank'!$A$2:$AV$961,38,FALSE)),9999) -> 190.82 | N17: =IF(D17="Non-Ranked Player",-1001,IF(VLOOKUP($D17,'Starter Calc'!$B$2:$D$961,3,FALSE)="",-1000,VLOOKUP($D17,'Starter Calc'!$B$2:$D$961,3,FALSE))) -> 253.3324385 | O17: =IF(D17="Non-Ranked Player",10000,IFERROR(IF(VLOOKUP(D17,'ADP-Rank'!A17:AJ976,36,FALSE)="",9999,VLOOKUP(D17,'ADP-Rank'!A17:AJ976,36,FALSE)),9999)) -> 9999 | P17: =IF($D17="Unlisted Player",-1001,IFERROR(IF(IF(OR($H17="RP",$H17="SP"),VLOOKUP($D17,'Filtered-P'!$A$3:$X$938,13,FALSE),VLOOKUP($D17,'Filtered-H'!$A$3:$Z$950,22,FALSE))="",-1000,IF(OR($H17="RP",$H17="SP"),VLOOKUP($D17,'Filtered-P'!$A$3:$X$938,13,FALSE),VLOOKUP($D17,'Filtered-H'!$A$3:$Z$950,22,FALSE))),-1000)) -> -3.332091566 | Q17: =IFERROR(IF($D17="Unlisted Player",-1001,IF(OR(H17="SP",H17="RP"),N17/VLOOKUP($D17,'Filtered-P'!$A$1:$AB$961,4,FALSE),-1000)),-1000) -> -1000 | R17: =IFERROR(IF($D17="Unlisted Player",-1001,IF(OR(H17="SP",H17="RP"),-1000,N17/VLOOKUP($D17,'Filtered-H'!$A$1:$AD$961,2,FALSE))),-1000) -> 0.5182742194 | S17: =IF(H17="",#N/A,H17&"."&1+SUMPRODUCT(($H$2:$H$962=H17)*($M$2:$M$962<M17))+COUNTIFS($M$2:M17,M17,$H$2:H17,H17)-1) -> 1B.18 | T17: =IFERROR(IF(D17=0,1001,IF(VLOOKUP($D17,'ADP-Rank'!$A$2:$AV$961,38,FALSE)="",999+(IF(J17=FALSE,1,0)),VLOOKUP($D17,'ADP-Rank'!$A$2:$AV$961,38,FALSE))),999+(IF(J17=FALSE,1,0))) -> 190.82 | U17: =IF(H17="",#N/A,1+SUMPRODUCT(($H$2:$H$962=H17)*($M$2:$M$962<M17))+COUNTIFS($M$2:M17,M17,$H$2:H17,H17)-1) -> 18 | V17: =IF(ISERROR(VLOOKUP($B16,Keepers!$C$2:$D$450,2,FALSE)),B16,"") -> Ronald Acuna | W17: =IFERROR(INDEX($V$1:$V$961,SMALL(IF($V$1:$V$961<>"",ROW($V$1:$V$961)),ROW(V17))),"") -> Paul Goldschmidt | X17: =IF(D17="Non-Ranked Player",0,IF(VLOOKUP($D17,'Starter Calc'!$B$2:$D$961,3,FALSE)="",0,VLOOKUP($D17,'Starter Calc'!$B$2:$D$961,3,FALSE))) -> 253.3324385 | Y17: =IFERROR(VLOOKUP(D17,'Starter Calc'!B$2:BS$961,70,FALSE),"") -> Bench
A18: Paul Goldschmidt | B18: =IFERROR(INDEX($A$1:$A$961,SMALL(IF($A$1:$A$961<>"",ROW($A$1:$A$961)),ROW(A18))),"") -> Gerrit Cole | C18: =IFERROR(IF(L18=FALSE,"",CHOOSE(MATCH(RIGHT('Your Points Draft'!$R$3,LEN('Your Points Draft'!$R$3)-8),$M$1:$R$1,0),1+SUMPRODUCT(($L$2:$L$962=TRUE)*($M$2:$M$962<M18))+COUNTIFS($L$2:L18,L18,$M$2:M18,M18)-1,1+SUMPRODUCT(($L$2:$L$962=TRUE)*($N$2:$N$962>N18))+COUNTIFS($L$2:L18,L18,$N$2:N18,N18)-1,1+SUMPRODUCT(($L$2:$L$962=TRUE)*($O$2:$O$962<O18))+COUNTIFS($L$2:L18,L18,$O$2:O18,O18)-1,1+SUMPRODUCT(($L$2:$L$962=TRUE)*($P$2:$P$962>P18))+COUNTIFS($L$2:L18,L18,$P$2:P18,P18)-1,1+SUMPRODUCT(($L$2:$L$962=TRUE)*($Q$2:$Q$962>Q18))+COUNTIFS($L$2:L18,L18,$Q$2:Q18,Q18)-1,1+SUMPRODUCT(($L$2:$L$962=TRUE)*($R$2:$R$962>R18))+COUNTIFS($L$2:L18,L18,$R$2:R18,R18)-1,)),"") -> 324 | D18: Yonder Alonso | E18: =IFERROR(INDEX('Draft Log'!$D$3:$D$807,MATCH(D18,'Draft Log'!$C$3:$C$807,0)),"") ->  | F18: =IFERROR(INDEX('ADP-Rank'!$C$2:$C$832,MATCH(D18,'ADP-Rank'!$A$2:$A$832,0)),"") -> 1B | G18: =IFERROR(IF(F18=I18,"",IF(INDEX('Your Points Draft'!$B$10:$B$633,MATCH(D18,'Your Points Draft'!$C$10:$C$633,0))="",IF(I18<>"",I18,""),INDEX('Your Points Draft'!$B$10:$B$633,MATCH(D18,'Your Points Draft'!$C$10:$C$633,0)))),"") ->  | H18: 1B | J18: =INDEX('ADP-Rank'!$AH$2:$AH$832,MATCH(D18,'ADP-Rank'!$A$2:$A$832,0)) -> TRUE | K18: FALSE | L18: =IF(J18=FALSE,FALSE,IF(AND('Your Points Draft'!$R$5="Hide Drafted Players",K18=TRUE),FALSE,IF(OR('Your Points Draft'!$R$4="Show All Positions",AND('Your Points Draft'!$R$4="Only Show: C",H18="C"),AND('Your Points Draft'!$R$4="Only Show: 1B",H18="1B"),AND('Your Points Draft'!$R$4="Only Show: 2B",H18="2B"),AND('Your Points Draft'!$R$4="Only Show: 3B",H18="3B"),AND('Your Points Draft'!$R$4="Only Show: SS",H18="SS"),AND('Your Points Draft'!$R$4="Only Show: OF",H18="OF"),AND('Your Points Draft'!$R$4="Only Show: SP",H18="SP"),AND('Your Points Draft'!$R$4="Only Show: RP",H18="RP"),AND('Your Points Draft'!$R$4="Only Show: CI",OR(H18={"1B","3B"})),AND('Your Points Draft'!$R$4="Only Show: MI",OR(H18={"2B","SS"})),AND('Your Points Draft'!$R$4="Only Show: IF",OR(H18={"C","1B","2B","3B","SS"})),AND('Your Points Draft'!$R$4="Only Show: DH",OR(H18={"C","1B","2B","3B","SS","OF","DH"})),AND('Your Points Draft'!$R$4="Only Show: P",OR(H18={"SP","RP"})),AND('Your Points Draft'!$R$4="Only Show: LF",ISERROR(SEARCH("LF",VLOOKUP($D18,'ADP-Rank'!$A$2:$D$961,4,FALSE)))=FALSE),AND('Your Points Draft'!$R$4="Only Show: RF",ISERROR(SEARCH("RF",VLOOKUP($D18,'ADP-Rank'!$A$2:$D$961,4,FALSE)))=FALSE),AND('Your Points Draft'!$R$4="Only Show: CF",ISERROR(SEARCH("CF",VLOOKUP($D18,'ADP-Rank'!$A$2:$D$961,4,FALSE)))=FALSE)),TRUE,FALSE))) -> TRUE | M18: =IFERROR(IF(VLOOKUP($D18,'ADP-Rank'!$A$2:$AV$961,38,FALSE)="",9999,VLOOKUP($D18,'ADP-Rank'!$A$2:$AV$961,38,FALSE)),9999) -> 9999 | N18: =IF(D18="Non-Ranked Player",-1001,IF(VLOOKUP($D18,'Starter Calc'!$B$2:$D$961,3,FALSE)="",-1000,VLOOKUP($D18,'Starter Calc'!$B$2:$D$961,3,FALSE))) -> 294.0705686 | O18: =IF(D18="Non-Ranked Player",10000,IFERROR(IF(VLOOKUP(D18,'ADP-Rank'!A18:AJ977,36,FALSE)="",9999,VLOOKUP(D18,'ADP-Rank'!A18:AJ977,36,FALSE)),9999)) -> 233 | P18: =IF($D18="Unlisted Player",-1001,IFERROR(IF(IF(OR($H18="RP",$H18="SP"),VLOOKUP($D18,'Filtered-P'!$A$3:$X$938,13,FALSE),VLOOKUP($D18,'Filtered-H'!$A$3:$Z$950,22,FALSE))="",-1000,IF(OR($H18="RP",$H18="SP"),VLOOKUP($D18,'Filtered-P'!$A$3:$X$938,13,FALSE),VLOOKUP($D18,'Filtered-H'!$A$3:$Z$950,22,FALSE))),-1000)) -> -2.413502328 | Q18: =IFERROR(IF($D18="Unlisted Player",-1001,IF(OR(H18="SP",H18="RP"),N18/VLOOKUP($D18,'Filtered-P'!$A$1:$AB$961,4,FALSE),-1000)),-1000) -> -1000 | R18: =IFERROR(IF($D18="Unlisted Player",-1001,IF(OR(H18="SP",H18="RP"),-1000,N18/VLOOKUP($D18,'Filtered-H'!$A$1:$AD$961,2,FALSE))),-1000) -> 0.5186429782 | S18: =IF(H18="",#N/A,H18&"."&1+SUMPRODUCT(($H$2:$H$962=H18)*($M$2:$M$962<M18))+COUNTIFS($M$2:M18,M18,$H$2:H18,H18)-1) -> 1B.25 | T18: =IFERROR(IF(D18=0,1001,IF(VLOOKUP($D18,'ADP-Rank'!$A$2:$AV$961,38,FALSE)="",999+(IF(J18=FALSE,1,0)),VLOOKUP($D18,'ADP-Rank'!$A$2:$AV$961,38,FALSE))),999+(IF(J18=FALSE,1,0))) -> 999 | U18: =IF(H18="",#N/A,1+SUMPRODUCT(($H$2:$H$962=H18)*($M$2:$M$962<M18))+COUNTIFS($M$2:M18,M18,$H$2:H18,H18)-1) -> 25 | V18: =IF(ISERROR(VLOOKUP($B17,Keepers!$C$2:$D$450,2,FALSE)),B17,"") -> Paul Goldschmidt | W18: =IFERROR(INDEX($V$1:$V$961,SMALL(IF($V$1:$V$961<>"",ROW($V$1:$V$961)),ROW(V18))),"") -> Gerrit Cole | X18: =IF(D18="Non-Ranked Player",0,IF(VLOOKUP($D18,'Starter Calc'!$B$2:$D$961,3,FALSE)="",0,VLOOKUP($D18,'Starter Calc'!$B$2:$D$961,3,FALSE))) -> 294.0705686 | Y18: =IFERROR(VLOOKUP(D18,'Starter Calc'!B$2:BS$961,70,FALSE),"") -> Bench
A19: Gerrit Cole | B19: =IFERROR(INDEX($A$1:$A$961,SMALL(IF($A$1:$A$961<>"",ROW($A$1:$A$961)),ROW(A19))),"") -> Aaron Judge | C19: =IFERROR(IF(L19=FALSE,"",CHOOSE(MATCH(RIGHT('Your Points Draft'!$R$3,LEN('Your Points Draft'!$R$3)-8),$M$1:$R$1,0),1+SUMPRODUCT(($L$2:$L$962=TRUE)*($M$2:$M$962<M19))+COUNTIFS($L$2:L19,L19,$M$2:M19,M19)-1,1+SUMPRODUCT(($L$2:$L$962=TRUE)*($N$2:$N$962>N19))+COUNTIFS($L$2:L19,L19,$N$2:N19,N19)-1,1+SUMPRODUCT(($L$2:$L$962=TRUE)*($O$2:$O$962<O19))+COUNTIFS($L$2:L19,L19,$O$2:O19,O19)-1,1+SUMPRODUCT(($L$2:$L$962=TRUE)*($P$2:$P$962>P19))+COUNTIFS($L$2:L19,L19,$P$2:P19,P19)-1,1+SUMPRODUCT(($L$2:$L$962=TRUE)*($Q$2:$Q$962>Q19))+COUNTIFS($L$2:L19,L19,$Q$2:Q19,Q19)-1,1+SUMPRODUCT(($L$2:$L$962=TRUE)*($R$2:$R$962>R19))+COUNTIFS($L$2:L19,L19,$R$2:R19,R19)-1,)),"") -> 325 | D19: Aaron Altherr | E19: =IFERROR(INDEX('Draft Log'!$D$3:$D$807,MATCH(D19,'Draft Log'!$C$3:$C$807,0)),"") ->  | F19: =IFERROR(INDEX('ADP-Rank'!$C$2:$C$832,MATCH(D19,'ADP-Rank'!$A$2:$A$832,0)),"") -> OF | G19: =IFERROR(IF(F19=I19,"",IF(INDEX('Your Points Draft'!$B$10:$B$633,MATCH(D19,'Your Points Draft'!$C$10:$C$633,0))="",IF(I19<>"",I19,""),INDEX('Your Points Draft'!$B$10:$B$633,MATCH(D19,'Your Points Draft'!$C$10:$C$633,0)))),"") ->  | H19: OF | J19: =INDEX('ADP-Rank'!$AH$2:$AH$832,MATCH(D19,'ADP-Rank'!$A$2:$A$832,0)) -> TRUE | K19: FALSE | L19: =IF(J19=FALSE,FALSE,IF(AND('Your Points Draft'!$R$5="Hide Drafted Players",K19=TRUE),FALSE,IF(OR('Your Points Draft'!$R$4="Show All Positions",AND('Your Points Draft'!$R$4="Only Show: C",H19="C"),AND('Your Points Draft'!$R$4="Only Show: 1B",H19="1B"),AND('Your Points Draft'!$R$4="Only Show: 2B",H19="2B"),AND('Your Points Draft'!$R$4="Only Show: 3B",H19="3B"),AND('Your Points Draft'!$R$4="Only Show: SS",H19="SS"),AND('Your Points Draft'!$R$4="Only Show: OF",H19="OF"),AND('Your Points Draft'!$R$4="Only Show: SP",H19="SP"),AND('Your Points Draft'!$R$4="Only Show: RP",H19="RP"),AND('Your Points Draft'!$R$4="Only Show: CI",OR(H19={"1B","3B"})),AND('Your Points Draft'!$R$4="Only Show: MI",OR(H19={"2B","SS"})),AND('Your Points Draft'!$R$4="Only Show: IF",OR(H19={"C","1B","2B","3B","SS"})),AND('Your Points Draft'!$R$4="Only Show: DH",OR(H19={"C","1B","2B","3B","SS","OF","DH"})),AND('Your Points Draft'!$R$4="Only Show: P",OR(H19={"SP","RP"})),AND('Your Points Draft'!$R$4="Only Show: LF",ISERROR(SEARCH("LF",VLOOKUP($D19,'ADP-Rank'!$A$2:$D$961,4,FALSE)))=FALSE),AND('Your Points Draft'!$R$4="Only Show: RF",ISERROR(SEARCH("RF",VLOOKUP($D19,'ADP-Rank'!$A$2:$D$961,4,FALSE)))=FALSE),AND('Your Points Draft'!$R$4="Only Show: CF",ISERROR(SEARCH("CF",VLOOKUP($D19,'ADP-Rank'!$A$2:$D$961,4,FALSE)))=FALSE)),TRUE,FALSE))) -> TRUE | M19: =IFERROR(IF(VLOOKUP($D19,'ADP-Rank'!$A$2:$AV$961,38,FALSE)="",9999,VLOOKUP($D19,'ADP-Rank'!$A$2:$AV$961,38,FALSE)),9999) -> 9999 | N19: =IF(D19="Non-Ranked Player",-1001,IF(VLOOKUP($D19,'Starter Calc'!$B$2:$D$961,3,FALSE)="",-1000,VLOOKUP($D19,'Starter Calc'!$B$2:$D$961,3,FALSE))) -> 108.5157453 | O19: =IF(D19="Non-Ranked Player",10000,IFERROR(IF(VLOOKUP(D19,'ADP-Rank'!A19:AJ978,36,FALSE)="",9999,VLOOKUP(D19,'ADP-Rank'!A19:AJ978,36,FALSE)),9999)) -> 9999 | P19: =IF($D19="Unlisted Player",-1001,IFERROR(IF(IF(OR($H19="RP",$H19="SP"),VLOOKUP($D19,'Filtered-P'!$A$3:$X$938,13,FALSE),VLOOKUP($D19,'Filtered-H'!$A$3:$Z$950,22,FALSE))="",-1000,IF(OR($H19="RP",$H19="SP"),VLOOKUP($D19,'Filtered-P'!$A$3:$X$938,13,FALSE),VLOOKUP($D19,'Filtered-H'!$A$3:$Z$950,22,FALSE))),-1000)) -> -3.125712104 | Q19: =IFERROR(IF($D19="Unlisted Player",-1001,IF(OR(H19="SP",H19="RP"),N19/VLOOKUP($D19,'Filtered-P'!$A$1:$AB$961,4,FALSE),-1000)),-1000) -> -1000 | R19: =IFERROR(IF($D19="Unlisted Player",-1001,IF(OR(H19="SP",H19="RP"),-1000,N19/VLOOKUP($D19,'Filtered-H'!$A$1:$AD$961,2,FALSE))),-1000) -> 0.4525260439 | S19: =IF(H19="",#N/A,H19&"."&1+SUMPRODUCT(($H$2:$H$962=H19)*($M$2:$M$962<M19))+COUNTIFS($M$2:M19,M19,$H$2:H19,H19)-1) -> OF.65 | T19: =IFERROR(IF(D19=0,1001,IF(VLOOKUP($D19,'ADP-Rank'!$A$2:$AV$961,38,FALSE)="",999+(IF(J19=FALSE,1,0)),VLOOKUP($D19,'ADP-Rank'!$A$2:$AV$961,38,FALSE))),999+(IF(J19=FALSE,1,0))) -> 999 | U19: =IF(H19="",#N/A,1+SUMPRODUCT(($H$2:$H$962=H19)*($M$2:$M$962<M19))+COUNTIFS($M$2:M19,M19,$H$2:H19,H19)-1) -> 65 | V19: =IF(ISERROR(VLOOKUP($B18,Keepers!$C$2:$D$450,2,FALSE)),B18,"") -> Gerrit Cole | W19: =IFERROR(INDEX($V$1:$V$961,SMALL(IF($V$1:$V$961<>"",ROW($V$1:$V$961)),ROW(V19))),"") -> Aaron Judge | X19: =IF(D19="Non-Ranked Player",0,IF(VLOOKUP($D19,'Starter Calc'!$B$2:$D$961,3,FALSE)="",0,VLOOKUP($D19,'Starter Calc'!$B$2:$D$961,3,FALSE))) -> 108.5157453 | Y19: =IFERROR(VLOOKUP(D19,'Starter Calc'!B$2:BS$961,70,FALSE),"") -> Bench
A20: Aaron Judge | B20: =IFERROR(INDEX($A$1:$A$961,SMALL(IF($A$1:$A$961<>"",ROW($A$1:$A$961)),ROW(A20))),"") -> Trevor Bauer | C20: =IFERROR(IF(L20=FALSE,"",CHOOSE(MATCH(RIGHT('Your Points Draft'!$R$3,LEN('Your Points Draft'!$R$3)-8),$M$1:$R$1,0),1+SUMPRODUCT(($L$2:$L$962=TRUE)*($M$2:$M$962<M20))+COUNTIFS($L$2:L20,L20,$M$2:M20,M20)-1,1+SUMPRODUCT(($L$2:$L$962=TRUE)*($N$2:$N$962>N20))+COUNTIFS($L$2:L20,L20,$N$2:N20,N20)-1,1+SUMPRODUCT(($L$2:$L$962=TRUE)*($O$2:$O$962<O20))+COUNTIFS($L$2:L20,L20,$O$2:O20,O20)-1,1+SUMPRODUCT(($L$2:$L$962=TRUE)*($P$2:$P$962>P20))+COUNTIFS($L$2:L20,L20,$P$2:P20,P20)-1,1+SUMPRODUCT(($L$2:$L$962=TRUE)*($Q$2:$Q$962>Q20))+COUNTIFS($L$2:L20,L20,$Q$2:Q20,Q20)-1,1+SUMPRODUCT(($L$2:$L$962=TRUE)*($R$2:$R$962>R20))+COUNTIFS($L$2:L20,L20,$R$2:R20,R20)-1,)),"") -> 15 | D20: Jose Altuve | E20: =IFERROR(INDEX('Draft Log'!$D$3:$D$807,MATCH(D20,'Draft Log'!$C$3:$C$807,0)),"") ->  | F20: =IFERROR(INDEX('ADP-Rank'!$C$2:$C$832,MATCH(D20,'ADP-Rank'!$A$2:$A$832,0)),"") -> 2B | G20: =IFERROR(IF(F20=I20,"",IF(INDEX('Your Points Draft'!$B$10:$B$633,MATCH(D20,'Your Points Draft'!$C$10:$C$633,0))="",IF(I20<>"",I20,""),INDEX('Your Points Draft'!$B$10:$B$633,MATCH(D20,'Your Points Draft'!$C$10:$C$633,0)))),"") ->  | H20: 2B | J20: =INDEX('ADP-Rank'!$AH$2:$AH$832,MATCH(D20,'ADP-Rank'!$A$2:$A$832,0)) -> TRUE | K20: FALSE | L20: =IF(J20=FALSE,FALSE,IF(AND('Your Points Draft'!$R$5="Hide Drafted Players",K20=TRUE),FALSE,IF(OR('Your Points Draft'!$R$4="Show All Positions",AND('Your Points Draft'!$R$4="Only Show: C",H20="C"),AND('Your Points Draft'!$R$4="Only Show: 1B",H20="1B"),AND('Your Points Draft'!$R$4="Only Show: 2B",H20="2B"),AND('Your Points Draft'!$R$4="Only Show: 3B",H20="3B"),AND('Your Points Draft'!$R$4="Only Show: SS",H20="SS"),AND('Your Points Draft'!$R$4="Only Show: OF",H20="OF"),AND('Your Points Draft'!$R$4="Only Show: SP",H20="SP"),AND('Your Points Draft'!$R$4="Only Show: RP",H20="RP"),AND('Your Points Draft'!$R$4="Only Show: CI",OR(H20={"1B","3B"})),AND('Your Points Draft'!$R$4="Only Show: MI",OR(H20={"2B","SS"})),AND('Your Points Draft'!$R$4="Only Show: IF",OR(H20={"C","1B","2B","3B","SS"})),AND('Your Points Draft'!$R$4="Only Show: DH",OR(H20={"C","1B","2B","3B","SS","OF","DH"})),AND('Your Points Draft'!$R$4="Only Show: P",OR(H20={"SP","RP"})),AND('Your Points Draft'!$R$4="Only Show: LF",ISERROR(SEARCH("LF",VLOOKUP($D20,'ADP-Rank'!$A$2:$D$961,4,FALSE)))=FALSE),AND('Your Points Draft'!$R$4="Only Show: RF",ISERROR(SEARCH("RF",VLOOKUP($D20,'ADP-Rank'!$A$2:$D$961,4,FALSE)))=FALSE),AND('Your Points Draft'!$R$4="Only Show: CF",ISERROR(SEARCH("CF",VLOOKUP($D20,'ADP-Rank'!$A$2:$D$961,4,FALSE)))=FALSE)),TRUE,FALSE))) -> TRUE | M20: =IFERROR(IF(VLOOKUP($D20,'ADP-Rank'!$A$2:$AV$961,38,FALSE)="",9999,VLOOKUP($D20,'ADP-Rank'!$A$2:$AV$961,38,FALSE)),9999) -> 14.45 | N20: =IF(D20="Non-Ranked Player",-1001,IF(VLOOKUP($D20,'Starter Calc'!$B$2:$D$961,3,FALSE)="",-1000,VLOOKUP($D20,'Starter Calc'!$B$2:$D$961,3,FALSE))) -> 447.2055291 | O20: =IF(D20="Non-Ranked Player",10000,IFERROR(IF(VLOOKUP(D20,'ADP-Rank'!A20:AJ979,36,FALSE)="",9999,VLOOKUP(D20,'ADP-Rank'!A20:AJ979,36,FALSE)),9999)) -> 11 | P20: =IF($D20="Unlisted Player",-1001,IFERROR(IF(IF(OR($H20="RP",$H20="SP"),VLOOKUP($D20,'Filtered-P'!$A$3:$X$938,13,FALSE),VLOOKUP($D20,'Filtered-H'!$A$3:$Z$950,22,FALSE))="",-1000,IF(OR($H20="RP",$H20="SP"),VLOOKUP($D20,'Filtered-P'!$A$3:$X$938,13,FALSE),VLOOKUP($D20,'Filtered-H'!$A$3:$Z$950,22,FALSE))),-1000)) -> 1.933826013 | Q20: =IFERROR(IF($D20="Unlisted Player",-1001,IF(OR(H20="SP",H20="RP"),N20/VLOOKUP($D20,'Filtered-P'!$A$1:$AB$961,4,FALSE),-1000)),-1000) -> -1000 | R20: =IFERROR(IF($D20="Unlisted Player",-1001,IF(OR(H20="SP",H20="RP"),-1000,N20/VLOOKUP($D20,'Filtered-H'!$A$1:$AD$961,2,FALSE))),-1000) -> 0.6929121926 | S20: =IF(H20="",#N/A,H20&"."&1+SUMPRODUCT(($H$2:$H$962=H20)*($M$2:$M$962<M20))+COUNTIFS($M$2:M20,M20,$H$2:H20,H20)-1) -> 2B.1 | T20: =IFERROR(IF(D20=0,1001,IF(VLOOKUP($D20,'ADP-Rank'!$A$2:$AV$961,38,FALSE)="",999+(IF(J20=FALSE,1,0)),VLOOKUP($D20,'ADP-Rank'!$A$2:$AV$961,38,FALSE))),999+(IF(J20=FALSE,1,0))) -> 14.45 | U20: =IF(H20="",#N/A,1+SUMPRODUCT(($H$2:$H$962=H20)*($M$2:$M$962<M20))+COUNTIFS($M$2:M20,M20,$H$2:H20,H20)-1) -> 1 | V20: =IF(ISERROR(VLOOKUP($B19,Keepers!$C$2:$D$450,2,FALSE)),B19,"") -> Aaron Judge | W20: =IFERROR(INDEX($V$1:$V$961,SMALL(IF($V$1:$V$961<>"",ROW($V$1:$V$961)),ROW(V20))),"") -> Trevor Bauer | X20: =IF(D20="Non-Ranked Player",0,IF(VLOOKUP($D20,'Starter Calc'!$B$2:$D$961,3,FALSE)="",0,VLOOKUP($D20,'Starter Calc'!$B$2:$D$961,3,FALSE))) -> 447.2055291 | Y20: =IFERROR(VLOOKUP(D20,'Starter Calc'!B$2:BS$961,70,FALSE),"") -> Bench
A21: Trevor Bauer | B21: =IFERROR(INDEX($A$1:$A$961,SMALL(IF($A$1:$A$961<>"",ROW($A$1:$A$961)),ROW(A21))),"") -> Manny Machado | C21: =IFERROR(IF(L21=FALSE,"",CHOOSE(MATCH(RIGHT('Your Points Draft'!$R$3,LEN('Your Points Draft'!$R$3)-8),$M$1:$R$1,0),1+SUMPRODUCT(($L$2:$L$962=TRUE)*($M$2:$M$962<M21))+COUNTIFS($L$2:L21,L21,$M$2:M21,M21)-1,1+SUMPRODUCT(($L$2:$L$962=TRUE)*($N$2:$N$962>N21))+COUNTIFS($L$2:L21,L21,$N$2:N21,N21)-1,1+SUMPRODUCT(($L$2:$L$962=TRUE)*($O$2:$O$962<O21))+COUNTIFS($L$2:L21,L21,$O$2:O21,O21)-1,1+SUMPRODUCT(($L$2:$L$962=TRUE)*($P$2:$P$962>P21))+COUNTIFS($L$2:L21,L21,$P$2:P21,P21)-1,1+SUMPRODUCT(($L$2:$L$962=TRUE)*($Q$2:$Q$962>Q21))+COUNTIFS($L$2:L21,L21,$Q$2:Q21,Q21)-1,1+SUMPRODUCT(($L$2:$L$962=TRUE)*($R$2:$R$962>R21))+COUNTIFS($L$2:L21,L21,$R$2:R21,R21)-1,)),"") -> 213 | D21: Jose Alvarado | E21: =IFERROR(INDEX('Draft Log'!$D$3:$D$807,MATCH(D21,'Draft Log'!$C$3:$C$807,0)),"") ->  | F21: =IFERROR(INDEX('ADP-Rank'!$C$2:$C$832,MATCH(D21,'ADP-Rank'!$A$2:$A$832,0)),"") -> RP | G21: =IFERROR(IF(F21=I21,"",IF(INDEX('Your Points Draft'!$B$10:$B$633,MATCH(D21,'Your Points Draft'!$C$10:$C$633,0))="",IF(I21<>"",I21,""),INDEX('Your Points Draft'!$B$10:$B$633,MATCH(D21,'Your Points Draft'!$C$10:$C$633,0)))),"") ->  | H21: RP | J21: =INDEX('ADP-Rank'!$AH$2:$AH$832,MATCH(D21,'ADP-Rank'!$A$2:$A$832,0)) -> TRUE | K21: FALSE | L21: =IF(J21=FALSE,FALSE,IF(AND('Your Points Draft'!$R$5="Hide Drafted Players",K21=TRUE),FALSE,IF(OR('Your Points Draft'!$R$4="Show All Positions",AND('Your Points Draft'!$R$4="Only Show: C",H21="C"),AND('Your Points Draft'!$R$4="Only Show: 1B",H21="1B"),AND('Your Points Draft'!$R$4="Only Show: 2B",H21="2B"),AND('Your Points Draft'!$R$4="Only Show: 3B",H21="3B"),AND('Your Points Draft'!$R$4="Only Show: SS",H21="SS"),AND('Your Points Draft'!$R$4="Only Show: OF",H21="OF"),AND('Your Points Draft'!$R$4="Only Show: SP",H21="SP"),AND('Your Points Draft'!$R$4="Only Show: RP",H21="RP"),AND('Your Points Draft'!$R$4="Only Show: CI",OR(H21={"1B","3B"})),AND('Your Points Draft'!$R$4="Only Show: MI",OR(H21={"2B","SS"})),AND('Your Points Draft'!$R$4="Only Show: IF",OR(H21={"C","1B","2B","3B","SS"})),AND('Your Points Draft'!$R$4="Only Show: DH",OR(H21={"C","1B","2B","3B","SS","OF","DH"})),AND('Your Points Draft'!$R$4="Only Show: P",OR(H21={"SP","RP"})),AND('Your Points Draft'!$R$4="Only Show: LF",ISERROR(SEARCH("LF",VLOOKUP($D21,'ADP-Rank'!$A$2:$D$961,4,FALSE)))=FALSE),AND('Your Points Draft'!$R$4="Only Show: RF",ISERROR(SEARCH("RF",VLOOKUP($D21,'ADP-Rank'!$A$2:$D$961,4,FALSE)))=FALSE),AND('Your Points Draft'!$R$4="Only Show: CF",ISERROR(SEARCH("CF",VLOOKUP($D21,'ADP-Rank'!$A$2:$D$961,4,FALSE)))=FALSE)),TRUE,FALSE))) -> TRUE | M21: =IFERROR(IF(VLOOKUP($D21,'ADP-Rank'!$A$2:$AV$961,38,FALSE)="",9999,VLOOKUP($D21,'ADP-Rank'!$A$2:$AV$961,38,FALSE)),9999) -> 191.74 | N21: =IF(D21="Non-Ranked Player",-1001,IF(VLOOKUP($D21,'Starter Calc'!$B$2:$D$961,3,FALSE)="",-1000,VLOOKUP($D21,'Starter Calc'!$B$2:$D$961,3,FALSE))) -> 297.5423468 | O21: =IF(D21="Non-Ranked Player",10000,IFERROR(IF(VLOOKUP(D21,'ADP-Rank'!A21:AJ980,36,FALSE)="",9999,VLOOKUP(D21,'ADP-Rank'!A21:AJ980,36,FALSE)),9999)) -> 107 | P21: =IF($D21="Unlisted Player",-1001,IFERROR(IF(IF(OR($H21="RP",$H21="SP"),VLOOKUP($D21,'Filtered-P'!$A$3:$X$938,13,FALSE),VLOOKUP($D21,'Filtered-H'!$A$3:$Z$950,22,FALSE))="",-1000,IF(OR($H21="RP",$H21="SP"),VLOOKUP($D21,'Filtered-P'!$A$3:$X$938,13,FALSE),VLOOKUP($D21,'Filtered-H'!$A$3:$Z$950,22,FALSE))),-1000)) -> -0.8359272176 | Q21: =IFERROR(IF($D21="Unlisted Player",-1001,IF(OR(H21="SP",H21="RP"),N21/VLOOKUP($D21,'Filtered-P'!$A$1:$AB$961,4,FALSE),-1000)),-1000) -> 4.440930549 | R21: =IFERROR(IF($D21="Unlisted Player",-1001,IF(OR(H21="SP",H21="RP"),-1000,N21/VLOOKUP($D21,'Filtered-H'!$A$1:$AD$961,2,FALSE))),-1000) -> -1000 | S21: =IF(H21="",#N/A,H21&"."&1+SUMPRODUCT(($H$2:$H$962=H21)*($M$2:$M$962<M21))+COUNTIFS($M$2:M21,M21,$H$2:H21,H21)-1) -> RP.25 | T21: =IFERROR(IF(D21=0,1001,IF(VLOOKUP($D21,'ADP-Rank'!$A$2:$AV$961,38,FALSE)="",999+(IF(J21=FALSE,1,0)),VLOOKUP($D21,'ADP-Rank'!$A$2:$AV$961,38,FALSE))),999+(IF(J21=FALSE,1,0))) -> 191.74 | U21: =IF(H21="",#N/A,1+SUMPRODUCT(($H$2:$H$962=H21)*($M$2:$M$962<M21))+COUNTIFS($M$2:M21,M21,$H$2:H21,H21)-1) -> 25 | V21: =IF(ISERROR(VLOOKUP($B20,Keepers!$C$2:$D$450,2,FALSE)),B20,"") -> Trevor Bauer | W21: =IFERROR(INDEX($V$1:$V$961,SMALL(IF($V$1:$V$961<>"",ROW($V$1:$V$961)),ROW(V21))),"") -> Manny Machado | X21: =IF(D21="Non-Ranked Player",0,IF(VLOOKUP($D21,'Starter Calc'!$B$2:$D$961,3,FALSE)="",0,VLOOKUP($D21,'Starter Calc'!$B$2:$D$961,3,FALSE))) -> 297.5423468 | Y21: =IFERROR(VLOOKUP(D21,'Starter Calc'!B$2:BS$961,70,FALSE),"") -> Bench
A22: Manny Machado | B22: =IFERROR(INDEX($A$1:$A$961,SMALL(IF($A$1:$A$961<>"",ROW($A$1:$A$961)),ROW(A22))),"") -> Blake Snell | C22: =IFERROR(IF(L22=FALSE,"",CHOOSE(MATCH(RIGHT('Your Points Draft'!$R$3,LEN('Your Points Draft'!$R$3)-8),$M$1:$R$1,0),1+SUMPRODUCT(($L$2:$L$962=TRUE)*($M$2:$M$962<M22))+COUNTIFS($L$2:L22,L22,$M$2:M22,M22)-1,1+SUMPRODUCT(($L$2:$L$962=TRUE)*($N$2:$N$962>N22))+COUNTIFS($L$2:L22,L22,$N$2:N22,N22)-1,1+SUMPRODUCT(($L$2:$L$962=TRUE)*($O$2:$O$962<O22))+COUNTIFS($L$2:L22,L22,$O$2:O22,O22)-1,1+SUMPRODUCT(($L$2:$L$962=TRUE)*($P$2:$P$962>P22))+COUNTIFS($L$2:L22,L22,$P$2:P22,P22)-1,1+SUMPRODUCT(($L$2:$L$962=TRUE)*($Q$2:$Q$962>Q22))+COUNTIFS($L$2:L22,L22,$Q$2:Q22,Q22)-1,1+SUMPRODUCT(($L$2:$L$962=TRUE)*($R$2:$R$962>R22))+COUNTIFS($L$2:L22,L22,$R$2:R22,R22)-1,)),"") -> 326 | D22: Brett Anderson | E22: =IFERROR(INDEX('Draft Log'!$D$3:$D$807,MATCH(D22,'Draft Log'!$C$3:$C$807,0)),"") ->  | F22: =IFERROR(INDEX('ADP-Rank'!$C$2:$C$832,MATCH(D22,'ADP-Rank'!$A$2:$A$832,0)),"") -> SP | G22: =IFERROR(IF(F22=I22,"",IF(INDEX('Your Points Draft'!$B$10:$B$633,MATCH(D22,'Your Points Draft'!$C$10:$C$633,0))="",IF(I22<>"",I22,""),INDEX('Your Points Draft'!$B$10:$B$633,MATCH(D22,'Your Points Draft'!$C$10:$C$633,0)))),"") ->  | H22: SP | J22: =INDEX('ADP-Rank'!$AH$2:$AH$832,MATCH(D22,'ADP-Rank'!$A$2:$A$832,0)) -> TRUE | K22: FALSE | L22: =IF(J22=FALSE,FALSE,IF(AND('Your Points Draft'!$R$5="Hide Drafted Players",K22=TRUE),FALSE,IF(OR('Your Points Draft'!$R$4="Show All Positions",AND('Your Points Draft'!$R$4="Only Show: C",H22="C"),AND('Your Points Draft'!$R$4="Only Show: 1B",H22="1B"),AND('Your Points Draft'!$R$4="Only Show: 2B",H22="2B"),AND('Your Points Draft'!$R$4="Only Show: 3B",H22="3B"),AND('Your Points Draft'!$R$4="Only Show: SS",H22="SS"),AND('Your Points Draft'!$R$4="Only Show: OF",H22="OF"),AND('Your Points Draft'!$R$4="Only Show: SP",H22="SP"),AND('Your Points Draft'!$R$4="Only Show: RP",H22="RP"),AND('Your Points Draft'!$R$4="Only Show: CI",OR(H22={"1B","3B"})),AND('Your Points Draft'!$R$4="Only Show: MI",OR(H22={"2B","SS"})),AND('Your Points Draft'!$R$4="Only Show: IF",OR(H22={"C","1B","2B","3B","SS"})),AND('Your Points Draft'!$R$4="Only Show: DH",OR(H22={"C","1B","2B","3B","SS","OF","DH"})),AND('Your Points Draft'!$R$4="Only Show: P",OR(H22={"SP","RP"})),AND('Your Points Draft'!$R$4="Only Show: LF",ISERROR(SEARCH("LF",VLOOKUP($D22,'ADP-Rank'!$A$2:$D$961,4,FALSE)))=FALSE),AND('Your Points Draft'!$R$4="Only Show: RF",ISERROR(SEARCH("RF",VLOOKUP($D22,'ADP-Rank'!$A$2:$D$961,4,FALSE)))=FALSE),AND('Your Points Draft'!$R$4="Only Show: CF",ISERROR(SEARCH("CF",VLOOKUP($D22,'ADP-Rank'!$A$2:$D$961,4,FALSE)))=FALSE)),TRUE,FALSE))) -> TRUE | M22: =IFERROR(IF(VLOOKUP($D22,'ADP-Rank'!$A$2:$AV$961,38,FALSE)="",9999,VLOOKUP($D22,'ADP-Rank'!$A$2:$AV$961,38,FALSE)),9999) -> 9999 | N22: =IF(D22="Non-Ranked Player",-1001,IF(VLOOKUP($D22,'Starter Calc'!$B$2:$D$961,3,FALSE)="",-1000,VLOOKUP($D22,'Starter Calc'!$B$2:$D$961,3,FALSE))) -> 142.8340369 | O22: =IF(D22="Non-Ranked Player",10000,IFERROR(IF(VLOOKUP(D22,'ADP-Rank'!A22:AJ981,36,FALSE)="",9999,VLOOKUP(D22,'ADP-Rank'!A22:AJ981,36,FALSE)),9999)) -> 9999 | P22: =IF($D22="Unlisted Player",-1001,IFERROR(IF(IF(OR($H22="RP",$H22="SP"),VLOOKUP($D22,'Filtered-P'!$A$3:$X$938,13,FALSE),VLOOKUP($D22,'Filtered-H'!$A$3:$Z$950,22,FALSE))="",-1000,IF(OR($H22="RP",$H22="SP"),VLOOKUP($D22,'Filtered-P'!$A$3:$X$938,13,FALSE),VLOOKUP($D22,'Filtered-H'!$A$3:$Z$950,22,FALSE))),-1000)) -> -2.658744623 | Q22: =IFERROR(IF($D22="Unlisted Player",-1001,IF(OR(H22="SP",H22="RP"),N22/VLOOKUP($D22,'Filtered-P'!$A$1:$AB$961,4,FALSE),-1000)),-1000) -> 1.831205601 | R22: =IFERROR(IF($D22="Unlisted Player",-1001,IF(OR(H22="SP",H22="RP"),-1000,N22/VLOOKUP($D22,'Filtered-H'!$A$1:$AD$961,2,FALSE))),-1000) -> -1000 | S22: =IF(H22="",#N/A,H22&"."&1+SUMPRODUCT(($H$2:$H$962=H22)*($M$2:$M$962<M22))+COUNTIFS($M$2:M22,M22,$H$2:H22,H22)-1) -> SP.101 | T22: =IFERROR(IF(D22=0,1001,IF(VLOOKUP($D22,'ADP-Rank'!$A$2:$AV$961,38,FALSE)="",999+(IF(J22=FALSE,1,0)),VLOOKUP($D22,'ADP-Rank'!$A$2:$AV$961,38,FALSE))),999+(IF(J22=FALSE,1,0))) -> 999 | U22: =IF(H22="",#N/A,1+SUMPRODUCT(($H$2:$H$962=H22)*($M$2:$M$962<M22))+COUNTIFS($M$2:M22,M22,$H$2:H22,H22)-1) -> 101 | V22: =IF(ISERROR(VLOOKUP($B21,Keepers!$C$2:$D$450,2,FALSE)),B21,"") -> Manny Machado | W22: =IFERROR(INDEX($V$1:$V$961,SMALL(IF($V$1:$V$961<>"",ROW($V$1:$V$961)),ROW(V22))),"") -> Blake Snell | X22: =IF(D22="Non-Ranked Player",0,IF(VLOOKUP($D22,'Starter Calc'!$B$2:$D$961,3,FALSE)="",0,VLOOKUP($D22,'Starter Calc'!$B$2:$D$961,3,FALSE))) -> 142.8340369 | Y22: =IFERROR(VLOOKUP(D22,'Starter Calc'!B$2:BS$961,70,FALSE),"") -> Bench
A23: Blake Snell | B23: =IFERROR(INDEX($A$1:$A$961,SMALL(IF($A$1:$A$961<>"",ROW($A$1:$A$961)),ROW(A23))),"") -> Aaron Nola | C23: =IFERROR(IF(L23=FALSE,"",CHOOSE(MATCH(RIGHT('Your Points Draft'!$R$3,LEN('Your Points Draft'!$R$3)-8),$M$1:$R$1,0),1+SUMPRODUCT(($L$2:$L$962=TRUE)*($M$2:$M$962<M23))+COUNTIFS($L$2:L23,L23,$M$2:M23,M23)-1,1+SUMPRODUCT(($L$2:$L$962=TRUE)*($N$2:$N$962>N23))+COUNTIFS($L$2:L23,L23,$N$2:N23,N23)-1,1+SUMPRODUCT(($L$2:$L$962=TRUE)*($O$2:$O$962<O23))+COUNTIFS($L$2:L23,L23,$O$2:O23,O23)-1,1+SUMPRODUCT(($L$2:$L$962=TRUE)*($P$2:$P$962>P23))+COUNTIFS($L$2:L23,L23,$P$2:P23,P23)-1,1+SUMPRODUCT(($L$2:$L$962=TRUE)*($Q$2:$Q$962>Q23))+COUNTIFS($L$2:L23,L23,$Q$2:Q23,Q23)-1,1+SUMPRODUCT(($L$2:$L$962=TRUE)*($R$2:$R$962>R23))+COUNTIFS($L$2:L23,L23,$R$2:R23,R23)-1,)),"") -> 259 | D23: Brian Anderson | E23: =IFERROR(INDEX('Draft Log'!$D$3:$D$807,MATCH(D23,'Draft Log'!$C$3:$C$807,0)),"") ->  | F23: =IFERROR(INDEX('ADP-Rank'!$C$2:$C$832,MATCH(D23,'ADP-Rank'!$A$2:$A$832,0)),"") -> 3B | G23: =IFERROR(IF(F23=I23,"",IF(INDEX('Your Points Draft'!$B$10:$B$633,MATCH(D23,'Your Points Draft'!$C$10:$C$633,0))="",IF(I23<>"",I23,""),INDEX('Your Points Draft'!$B$10:$B$633,MATCH(D23,'Your Points Draft'!$C$10:$C$633,0)))),"") ->  | H23: 3B | J23: =INDEX('ADP-Rank'!$AH$2:$AH$832,MATCH(D23,'ADP-Rank'!$A$2:$A$832,0)) -> TRUE | K23: FALSE | L23: =IF(J23=FALSE,FALSE,IF(AND('Your Points Draft'!$R$5="Hide Drafted Players",K23=TRUE),FALSE,IF(OR('Your Points Draft'!$R$4="Show All Positions",AND('Your Points Draft'!$R$4="Only Show: C",H23="C"),AND('Your Points Draft'!$R$4="Only Show: 1B",H23="1B"),AND('Your Points Draft'!$R$4="Only Show: 2B",H23="2B"),AND('Your Points Draft'!$R$4="Only Show: 3B",H23="3B"),AND('Your Points Draft'!$R$4="Only Show: SS",H23="SS"),AND('Your Points Draft'!$R$4="Only Show: OF",H23="OF"),AND('Your Points Draft'!$R$4="Only Show: SP",H23="SP"),AND('Your Points Draft'!$R$4="Only Show: RP",H23="RP"),AND('Your Points Draft'!$R$4="Only Show: CI",OR(H23={"1B","3B"})),AND('Your Points Draft'!$R$4="Only Show: MI",OR(H23={"2B","SS"})),AND('Your Points Draft'!$R$4="Only Show: IF",OR(H23={"C","1B","2B","3B","SS"})),AND('Your Points Draft'!$R$4="Only Show: DH",OR(H23={"C","1B","2B","3B","SS","OF","DH"})),AND('Your Points Draft'!$R$4="Only Show: P",OR(H23={"SP","RP"})),AND('Your Points Draft'!$R$4="Only Show: LF",ISERROR(SEARCH("LF",VLOOKUP($D23,'ADP-Rank'!$A$2:$D$961,4,FALSE)))=FALSE),AND('Your Points Draft'!$R$4="Only Show: RF",ISERROR(SEARCH("RF",VLOOKUP($D23,'ADP-Rank'!$A$2:$D$961,4,FALSE)))=FALSE),AND('Your Points Draft'!$R$4="Only Show: CF",ISERROR(SEARCH("CF",VLOOKUP($D23,'ADP-Rank'!$A$2:$D$961,4,FALSE)))=FALSE)),TRUE,FALSE))) -> TRUE | M23: =IFERROR(IF(VLOOKUP($D23,'ADP-Rank'!$A$2:$AV$961,38,FALSE)="",9999,VLOOKUP($D23,'ADP-Rank'!$A$2:$AV$961,38,FALSE)),9999) -> 213.09 | N23: =IF(D23="Non-Ranked Player",-1001,IF(VLOOKUP($D23,'Starter Calc'!$B$2:$D$961,3,FALSE)="",-1000,VLOOKUP($D23,'Starter Calc'!$B$2:$D$961,3,FALSE))) -> 305.0276191 | O23: =IF(D23="Non-Ranked Player",10000,IFERROR(IF(VLOOKUP(D23,'ADP-Rank'!A23:AJ982,36,FALSE)="",9999,VLOOKUP(D23,'ADP-Rank'!A23:AJ982,36,FALSE)),9999)) -> 227 | P23: =IF($D23="Unlisted Player",-1001,IFERROR(IF(IF(OR($H23="RP",$H23="SP"),VLOOKUP($D23,'Filtered-P'!$A$3:$X$938,13,FALSE),VLOOKUP($D23,'Filtered-H'!$A$3:$Z$950,22,FALSE))="",-1000,IF(OR($H23="RP",$H23="SP"),VLOOKUP($D23,'Filtered-P'!$A$3:$X$938,13,FALSE),VLOOKUP($D23,'Filtered-H'!$A$3:$Z$950,22,FALSE))),-1000)) -> -1.784440454 | Q23: =IFERROR(IF($D23="Unlisted Player",-1001,IF(OR(H23="SP",H23="RP"),N23/VLOOKUP($D23,'Filtered-P'!$A$1:$AB$961,4,FALSE),-1000)),-1000) -> -1000 | R23: =IFERROR(IF($D23="Unlisted Player",-1001,IF(OR(H23="SP",H23="RP"),-1000,N23/VLOOKUP($D23,'Filtered-H'!$A$1:$AD$961,2,FALSE))),-1000) -> 0.4706490033 | S23: =IF(H23="",#N/A,H23&"."&1+SUMPRODUCT(($H$2:$H$962=H23)*($M$2:$M$962<M23))+COUNTIFS($M$2:M23,M23,$H$2:H23,H23)-1) -> 3B.19 | T23: =IFERROR(IF(D23=0,1001,IF(VLOOKUP($D23,'ADP-Rank'!$A$2:$AV$961,38,FALSE)="",999+(IF(J23=FALSE,1,0)),VLOOKUP($D23,'ADP-Rank'!$A$2:$AV$961,38,FALSE))),999+(IF(J23=FALSE,1,0))) -> 213.09 | U23: =IF(H23="",#N/A,1+SUMPRODUCT(($H$2:$H$962=H23)*($M$2:$M$962<M23))+COUNTIFS($M$2:M23,M23,$H$2:H23,H23)-1) -> 19 | V23: =IF(ISERROR(VLOOKUP($B22,Keepers!$C$2:$D$450,2,FALSE)),B22,"") -> Blake Snell | W23: =IFERROR(INDEX($V$1:$V$961,SMALL(IF($V$1:$V$961<>"",ROW($V$1:$V$961)),ROW(V23))),"") -> Aaron Nola | X23: =IF(D23="Non-Ranked Player",0,IF(VLOOKUP($D23,'Starter Calc'!$B$2:$D$961,3,FALSE)="",0,VLOOKUP($D23,'Starter Calc'!$B$2:$D$961,3,FALSE))) -> 305.0276191 | Y23: =IFERROR(VLOOKUP(D23,'Starter Calc'!B$2:BS$961,70,FALSE),"") -> Bench
A24: Aaron Nola | B24: =IFERROR(INDEX($A$1:$A$961,SMALL(IF($A$1:$A$961<>"",ROW($A$1:$A$961)),ROW(A24))),"") -> Carlos Carrasco | C24: =IFERROR(IF(L24=FALSE,"",CHOOSE(MATCH(RIGHT('Your Points Draft'!$R$3,LEN('Your Points Draft'!$R$3)-8),$M$1:$R$1,0),1+SUMPRODUCT(($L$2:$L$962=TRUE)*($M$2:$M$962<M24))+COUNTIFS($L$2:L24,L24,$M$2:M24,M24)-1,1+SUMPRODUCT(($L$2:$L$962=TRUE)*($N$2:$N$962>N24))+COUNTIFS($L$2:L24,L24,$N$2:N24,N24)-1,1+SUMPRODUCT(($L$2:$L$962=TRUE)*($O$2:$O$962<O24))+COUNTIFS($L$2:L24,L24,$O$2:O24,O24)-1,1+SUMPRODUCT(($L$2:$L$962=TRUE)*($P$2:$P$962>P24))+COUNTIFS($L$2:L24,L24,$P$2:P24,P24)-1,1+SUMPRODUCT(($L$2:$L$962=TRUE)*($Q$2:$Q$962>Q24))+COUNTIFS($L$2:L24,L24,$Q$2:Q24,Q24)-1,1+SUMPRODUCT(($L$2:$L$962=TRUE)*($R$2:$R$962>R24))+COUNTIFS($L$2:L24,L24,$R$2:R24,R24)-1,)),"") -> 207 | D24: Chase Anderson | E24: =IFERROR(INDEX('Draft Log'!$D$3:$D$807,MATCH(D24,'Draft Log'!$C$3:$C$807,0)),"") ->  | F24: =IFERROR(INDEX('ADP-Rank'!$C$2:$C$832,MATCH(D24,'ADP-Rank'!$A$2:$A$832,0)),"") -> SP | G24: =IFERROR(IF(F24=I24,"",IF(INDEX('Your Points Draft'!$B$10:$B$633,MATCH(D24,'Your Points Draft'!$C$10:$C$633,0))="",IF(I24<>"",I24,""),INDEX('Your Points Draft'!$B$10:$B$633,MATCH(D24,'Your Points Draft'!$C$10:$C$633,0)))),"") ->  | H24: SP | J24: =INDEX('ADP-Rank'!$AH$2:$AH$832,MATCH(D24,'ADP-Rank'!$A$2:$A$832,0)) -> TRUE | K24: FALSE | L24: =IF(J24=FALSE,FALSE,IF(AND('Your Points Draft'!$R$5="Hide Drafted Players",K24=TRUE),FALSE,IF(OR('Your Points Draft'!$R$4="Show All Positions",AND('Your Points Draft'!$R$4="Only Show: C",H24="C"),AND('Your Points Draft'!$R$4="Only Show: 1B",H24="1B"),AND('Your Points Draft'!$R$4="Only Show: 2B",H24="2B"),AND('Your Points Draft'!$R$4="Only Show: 3B",H24="3B"),AND('Your Points Draft'!$R$4="Only Show: SS",H24="SS"),AND('Your Points Draft'!$R$4="Only Show: OF",H24="OF"),AND('Your Points Draft'!$R$4="Only Show: SP",H24="SP"),AND('Your Points Draft'!$R$4="Only Show: RP",H24="RP"),AND('Your Points Draft'!$R$4="Only Show: CI",OR(H24={"1B","3B"})),AND('Your Points Draft'!$R$4="Only Show: MI",OR(H24={"2B","SS"})),AND('Your Points Draft'!$R$4="Only Show: IF",OR(H24={"C","1B","2B","3B","SS"})),AND('Your Points Draft'!$R$4="Only Show: DH",OR(H24={"C","1B","2B","3B","SS","OF","DH"})),AND('Your Points Draft'!$R$4="Only Show: P",OR(H24={"SP","RP"})),AND('Your Points Draft'!$R$4="Only Show: LF",ISERROR(SEARCH("LF",VLOOKUP($D24,'ADP-Rank'!$A$2:$D$961,4,FALSE)))=FALSE),AND('Your Points Draft'!$R$4="Only Show: RF",ISERROR(SEARCH("RF",VLOOKUP($D24,'ADP-Rank'!$A$2:$D$961,4,FALSE)))=FALSE),AND('Your Points Draft'!$R$4="Only Show: CF",ISERROR(SEARCH("CF",VLOOKUP($D24,'ADP-Rank'!$A$2:$D$961,4,FALSE)))=FALSE)),TRUE,FALSE))) -> TRUE | M24: =IFERROR(IF(VLOOKUP($D24,'ADP-Rank'!$A$2:$AV$961,38,FALSE)="",9999,VLOOKUP($D24,'ADP-Rank'!$A$2:$AV$961,38,FALSE)),9999) -> 190.04 | N24: =IF(D24="Non-Ranked Player",-1001,IF(VLOOKUP($D24,'Starter Calc'!$B$2:$D$961,3,FALSE)="",-1000,VLOOKUP($D24,'Starter Calc'!$B$2:$D$961,3,FALSE))) -> 241.4701758 | O24: =IF(D24="Non-Ranked Player",10000,IFERROR(IF(VLOOKUP(D24,'ADP-Rank'!A24:AJ983,36,FALSE)="",9999,VLOOKUP(D24,'ADP-Rank'!A24:AJ983,36,FALSE)),9999)) -> 9999 | P24: =IF($D24="Unlisted Player",-1001,IFERROR(IF(IF(OR($H24="RP",$H24="SP"),VLOOKUP($D24,'Filtered-P'!$A$3:$X$938,13,FALSE),VLOOKUP($D24,'Filtered-H'!$A$3:$Z$950,22,FALSE))="",-1000,IF(OR($H24="RP",$H24="SP"),VLOOKUP($D24,'Filtered-P'!$A$3:$X$938,13,FALSE),VLOOKUP($D24,'Filtered-H'!$A$3:$Z$950,22,FALSE))),-1000)) -> -1.609433241 | Q24: =IFERROR(IF($D24="Unlisted Player",-1001,IF(OR(H24="SP",H24="RP"),N24/VLOOKUP($D24,'Filtered-P'!$A$1:$AB$961,4,FALSE),-1000)),-1000) -> 1.642654257 | R24: =IFERROR(IF($D24="Unlisted Player",-1001,IF(OR(H24="SP",H24="RP"),-1000,N24/VLOOKUP($D24,'Filtered-H'!$A$1:$AD$961,2,FALSE))),-1000) -> -1000 | S24: =IF(H24="",#N/A,H24&"."&1+SUMPRODUCT(($H$2:$H$962=H24)*($M$2:$M$962<M24))+COUNTIFS($M$2:M24,M24,$H$2:H24,H24)-1) -> SP.66 | T24: =IFERROR(IF(D24=0,1001,IF(VLOOKUP($D24,'ADP-Rank'!$A$2:$AV$961,38,FALSE)="",999+(IF(J24=FALSE,1,0)),VLOOKUP($D24,'ADP-Rank'!$A$2:$AV$961,38,FALSE))),999+(IF(J24=FALSE,1,0))) -> 190.04 | U24: =IF(H24="",#N/A,1+SUMPRODUCT(($H$2:$H$962=H24)*($M$2:$M$962<M24))+COUNTIFS($M$2:M24,M24,$H$2:H24,H24)-1) -> 66 | V24: =IF(ISERROR(VLOOKUP($B23,Keepers!$C$2:$D$450,2,FALSE)),B23,"") -> Aaron Nola | W24: =IFERROR(INDEX($V$1:$V$961,SMALL(IF($V$1:$V$961<>"",ROW($V$1:$V$961)),ROW(V24))),"") -> Carlos Carrasco | X24: =IF(D24="Non-Ranked Player",0,IF(VLOOKUP($D24,'Starter Calc'!$B$2:$D$961,3,FALSE)="",0,VLOOKUP($D24,'Starter Calc'!$B$2:$D$961,3,FALSE))) -> 241.4701758 | Y24: =IFERROR(VLOOKUP(D24,'Starter Calc'!B$2:BS$961,70,FALSE),"") -> Bench
A25: Carlos Carrasco | B25: =IFERROR(INDEX($A$1:$A$961,SMALL(IF($A$1:$A$961<>"",ROW($A$1:$A$961)),ROW(A25))),"") -> Freddie Freeman | C25: =IFERROR(IF(L25=FALSE,"",CHOOSE(MATCH(RIGHT('Your Points Draft'!$R$3,LEN('Your Points Draft'!$R$3)-8),$M$1:$R$1,0),1+SUMPRODUCT(($L$2:$L$962=TRUE)*($M$2:$M$962<M25))+COUNTIFS($L$2:L25,L25,$M$2:M25,M25)-1,1+SUMPRODUCT(($L$2:$L$962=TRUE)*($N$2:$N$962>N25))+COUNTIFS($L$2:L25,L25,$N$2:N25,N25)-1,1+SUMPRODUCT(($L$2:$L$962=TRUE)*($O$2:$O$962<O25))+COUNTIFS($L$2:L25,L25,$O$2:O25,O25)-1,1+SUMPRODUCT(($L$2:$L$962=TRUE)*($P$2:$P$962>P25))+COUNTIFS($L$2:L25,L25,$P$2:P25,P25)-1,1+SUMPRODUCT(($L$2:$L$962=TRUE)*($Q$2:$Q$962>Q25))+COUNTIFS($L$2:L25,L25,$Q$2:Q25,Q25)-1,1+SUMPRODUCT(($L$2:$L$962=TRUE)*($R$2:$R$962>R25))+COUNTIFS($L$2:L25,L25,$R$2:R25,R25)-1,)),"") -> 327 | D25: Ian Anderson | E25: =IFERROR(INDEX('Draft Log'!$D$3:$D$807,MATCH(D25,'Draft Log'!$C$3:$C$807,0)),"") ->  | F25: =IFERROR(INDEX('ADP-Rank'!$C$2:$C$832,MATCH(D25,'ADP-Rank'!$A$2:$A$832,0)),"") -> SP | G25: =IFERROR(IF(F25=I25,"",IF(INDEX('Your Points Draft'!$B$10:$B$633,MATCH(D25,'Your Points Draft'!$C$10:$C$633,0))="",IF(I25<>"",I25,""),INDEX('Your Points Draft'!$B$10:$B$633,MATCH(D25,'Your Points Draft'!$C$10:$C$633,0)))),"") ->  | H25: SP | J25: =INDEX('ADP-Rank'!$AH$2:$AH$832,MATCH(D25,'ADP-Rank'!$A$2:$A$832,0)) -> TRUE | K25: FALSE | L25: =IF(J25=FALSE,FALSE,IF(AND('Your Points Draft'!$R$5="Hide Drafted Players",K25=TRUE),FALSE,IF(OR('Your Points Draft'!$R$4="Show All Positions",AND('Your Points Draft'!$R$4="Only Show: C",H25="C"),AND('Your Points Draft'!$R$4="Only Show: 1B",H25="1B"),AND('Your Points Draft'!$R$4="Only Show: 2B",H25="2B"),AND('Your Points Draft'!$R$4="Only Show: 3B",H25="3B"),AND('Your Points Draft'!$R$4="Only Show: SS",H25="SS"),AND('Your Points Draft'!$R$4="Only Show: OF",H25="OF"),AND('Your Points Draft'!$R$4="Only Show: SP",H25="SP"),AND('Your Points Draft'!$R$4="Only Show: RP",H25="RP"),AND('Your Points Draft'!$R$4="Only Show: CI",OR(H25={"1B","3B"})),AND('Your Points Draft'!$R$4="Only Show: MI",OR(H25={"2B","SS"})),AND('Your Points Draft'!$R$4="Only Show: IF",OR(H25={"C","1B","2B","3B","SS"})),AND('Your Points Draft'!$R$4="Only Show: DH",OR(H25={"C","1B","2B","3B","SS","OF","DH"})),AND('Your Points Draft'!$R$4="Only Show: P",OR(H25={"SP","RP"})),AND('Your Points Draft'!$R$4="Only Show: LF",ISERROR(SEARCH("LF",VLOOKUP($D25,'ADP-Rank'!$A$2:$D$961,4,FALSE)))=FALSE),AND('Your Points Draft'!$R$4="Only Show: RF",ISERROR(SEARCH("RF",VLOOKUP($D25,'ADP-Rank'!$A$2:$D$961,4,FALSE)))=FALSE),AND('Your Points Draft'!$R$4="Only Show: CF",ISERROR(SEARCH("CF",VLOOKUP($D25,'ADP-Rank'!$A$2:$D$961,4,FALSE)))=FALSE)),TRUE,FALSE))) -> TRUE | M25: =IFERROR(IF(VLOOKUP($D25,'ADP-Rank'!$A$2:$AV$961,38,FALSE)="",9999,VLOOKUP($D25,'ADP-Rank'!$A$2:$AV$961,38,FALSE)),9999) -> 9999 | N25: =IF(D25="Non-Ranked Player",-1001,IF(VLOOKUP($D25,'Starter Calc'!$B$2:$D$961,3,FALSE)="",-1000,VLOOKUP($D25,'Starter Calc'!$B$2:$D$961,3,FALSE))) -> -1000 | O25: =IF(D25="Non-Ranked Player",10000,IFERROR(IF(VLOOKUP(D25,'ADP-Rank'!A25:AJ984,36,FALSE)="",9999,VLOOKUP(D25,'ADP-Rank'!A25:AJ984,36,FALSE)),9999)) -> 9999 | P25: =IF($D25="Unlisted Player",-1001,IFERROR(IF(IF(OR($H25="RP",$H25="SP"),VLOOKUP($D25,'Filtered-P'!$A$3:$X$938,13,FALSE),VLOOKUP($D25,'Filtered-H'!$A$3:$Z$950,22,FALSE))="",-1000,IF(OR($H25="RP",$H25="SP"),VLOOKUP($D25,'Filtered-P'!$A$3:$X$938,13,FALSE),VLOOKUP($D25,'Filtered-H'!$A$3:$Z$950,22,FALSE))),-1000)) -> -1000 | Q25: =IFERROR(IF($D25="Unlisted Player",-1001,IF(OR(H25="SP",H25="RP"),N25/VLOOKUP($D25,'Filtered-P'!$A$1:$AB$961,4,FALSE),-1000)),-1000) -> -1000 | R25: =IFERROR(IF($D25="Unlisted Player",-1001,IF(OR(H25="SP",H25="RP"),-1000,N25/VLOOKUP($D25,'Filtered-H'!$A$1:$AD$961,2,FALSE))),-1000) -> -1000 | S25: =IF(H25="",#N/A,H25&"."&1+SUMPRODUCT(($H$2:$H$962=H25)*($M$2:$M$962<M25))+COUNTIFS($M$2:M25,M25,$H$2:H25,H25)-1) -> SP.102 | T25: =IFERROR(IF(D25=0,1001,IF(VLOOKUP($D25,'ADP-Rank'!$A$2:$AV$961,38,FALSE)="",999+(IF(J25=FALSE,1,0)),VLOOKUP($D25,'ADP-Rank'!$A$2:$AV$961,38,FALSE))),999+(IF(J25=FALSE,1,0))) -> 999 | U25: =IF(H25="",#N/A,1+SUMPRODUCT(($H$2:$H$962=H25)*($M$2:$M$962<M25))+COUNTIFS($M$2:M25,M25,$H$2:H25,H25)-1) -> 102 | V25: =IF(ISERROR(VLOOKUP($B24,Keepers!$C$2:$D$450,2,FALSE)),B24,"") -> Carlos Carrasco | W25: =IFERROR(INDEX($V$1:$V$961,SMALL(IF($V$1:$V$961<>"",ROW($V$1:$V$961)),ROW(V25))),"") -> Freddie Freeman | X25: =IF(D25="Non-Ranked Player",0,IF(VLOOKUP($D25,'Starter Calc'!$B$2:$D$961,3,FALSE)="",0,VLOOKUP($D25,'Starter Calc'!$B$2:$D$961,3,FALSE))) -> 0 | Y25: =IFERROR(VLOOKUP(D25,'Starter Calc'!B$2:BS$961,70,FALSE),"") -> Bench
A26: Freddie Freeman | B26: =IFERROR(INDEX($A$1:$A$961,SMALL(IF($A$1:$A$961<>"",ROW($A$1:$A$961)),ROW(A26))),"") -> Andrew Benintendi | C26: =IFERROR(IF(L26=FALSE,"",CHOOSE(MATCH(RIGHT('Your Points Draft'!$R$3,LEN('Your Points Draft'!$R$3)-8),$M$1:$R$1,0),1+SUMPRODUCT(($L$2:$L$962=TRUE)*($M$2:$M$962<M26))+COUNTIFS($L$2:L26,L26,$M$2:M26,M26)-1,1+SUMPRODUCT(($L$2:$L$962=TRUE)*($N$2:$N$962>N26))+COUNTIFS($L$2:L26,L26,$N$2:N26,N26)-1,1+SUMPRODUCT(($L$2:$L$962=TRUE)*($O$2:$O$962<O26))+COUNTIFS($L$2:L26,L26,$O$2:O26,O26)-1,1+SUMPRODUCT(($L$2:$L$962=TRUE)*($P$2:$P$962>P26))+COUNTIFS($L$2:L26,L26,$P$2:P26,P26)-1,1+SUMPRODUCT(($L$2:$L$962=TRUE)*($Q$2:$Q$962>Q26))+COUNTIFS($L$2:L26,L26,$Q$2:Q26,Q26)-1,1+SUMPRODUCT(($L$2:$L$962=TRUE)*($R$2:$R$962>R26))+COUNTIFS($L$2:L26,L26,$R$2:R26,R26)-1,)),"") -> 328 | D26: Justin Anderson | E26: =IFERROR(INDEX('Draft Log'!$D$3:$D$807,MATCH(D26,'Draft Log'!$C$3:$C$807,0)),"") ->  | F26: =IFERROR(INDEX('ADP-Rank'!$C$2:$C$832,MATCH(D26,'ADP-Rank'!$A$2:$A$832,0)),"") -> RP | G26: =IFERROR(IF(F26=I26,"",IF(INDEX('Your Points Draft'!$B$10:$B$633,MATCH(D26,'Your Points Draft'!$C$10:$C$633,0))="",IF(I26<>"",I26,""),INDEX('Your Points Draft'!$B$10:$B$633,MATCH(D26,'Your Points Draft'!$C$10:$C$633,0)))),"") ->  | H26: RP | J26: =INDEX('ADP-Rank'!$AH$2:$AH$832,MATCH(D26,'ADP-Rank'!$A$2:$A$832,0)) -> TRUE | K26: FALSE | L26: =IF(J26=FALSE,FALSE,IF(AND('Your Points Draft'!$R$5="Hide Drafted Players",K26=TRUE),FALSE,IF(OR('Your Points Draft'!$R$4="Show All Positions",AND('Your Points Draft'!$R$4="Only Show: C",H26="C"),AND('Your Points Draft'!$R$4="Only Show: 1B",H26="1B"),AND('Your Points Draft'!$R$4="Only Show: 2B",H26="2B"),AND('Your Points Draft'!$R$4="Only Show: 3B",H26="3B"),AND('Your Points Draft'!$R$4="Only Show: SS",H26="SS"),AND('Your Points Draft'!$R$4="Only Show: OF",H26="OF"),AND('Your Points Draft'!$R$4="Only Show: SP",H26="SP"),AND('Your Points Draft'!$R$4="Only Show: RP",H26="RP"),AND('Your Points Draft'!$R$4="Only Show: CI",OR(H26={"1B","3B"})),AND('Your Points Draft'!$R$4="Only Show: MI",OR(H26={"2B","SS"})),AND('Your Points Draft'!$R$4="Only Show: IF",OR(H26={"C","1B","2B","3B","SS"})),AND('Your Points Draft'!$R$4="Only Show: DH",OR(H26={"C","1B","2B","3B","SS","OF","DH"})),AND('Your Points Draft'!$R$4="Only Show: P",OR(H26={"SP","RP"})),AND('Your Points Draft'!$R$4="Only Show: LF",ISERROR(SEARCH("LF",VLOOKUP($D26,'ADP-Rank'!$A$2:$D$961,4,FALSE)))=FALSE),AND('Your Points Draft'!$R$4="Only Show: RF",ISERROR(SEARCH("RF",VLOOKUP($D26,'ADP-Rank'!$A$2:$D$961,4,FALSE)))=FALSE),AND('Your Points Draft'!$R$4="Only Show: CF",ISERROR(SEARCH("CF",VLOOKUP($D26,'ADP-Rank'!$A$2:$D$961,4,FALSE)))=FALSE)),TRUE,FALSE))) -> TRUE | M26: =IFERROR(IF(VLOOKUP($D26,'ADP-Rank'!$A$2:$AV$961,38,FALSE)="",9999,VLOOKUP($D26,'ADP-Rank'!$A$2:$AV$961,38,FALSE)),9999) -> 9999 | N26: =IF(D26="Non-Ranked Player",-1001,IF(VLOOKUP($D26,'Starter Calc'!$B$2:$D$961,3,FALSE)="",-1000,VLOOKUP($D26,'Starter Calc'!$B$2:$D$961,3,FALSE))) -> 90.85227444 | O26: =IF(D26="Non-Ranked Player",10000,IFERROR(IF(VLOOKUP(D26,'ADP-Rank'!A26:AJ985,36,FALSE)="",9999,VLOOKUP(D26,'ADP-Rank'!A26:AJ985,36,FALSE)),9999)) -> 9999 | P26: =IF($D26="Unlisted Player",-1001,IFERROR(IF(IF(OR($H26="RP",$H26="SP"),VLOOKUP($D26,'Filtered-P'!$A$3:$X$938,13,FALSE),VLOOKUP($D26,'Filtered-H'!$A$3:$Z$950,22,FALSE))="",-1000,IF(OR($H26="RP",$H26="SP"),VLOOKUP($D26,'Filtered-P'!$A$3:$X$938,13,FALSE),VLOOKUP($D26,'Filtered-H'!$A$3:$Z$950,22,FALSE))),-1000)) -> -4.324242595 | Q26: =IFERROR(IF($D26="Unlisted Player",-1001,IF(OR(H26="SP",H26="RP"),N26/VLOOKUP($D26,'Filtered-P'!$A$1:$AB$961,4,FALSE),-1000)),-1000) -> 1.356004096 | R26: =IFERROR(IF($D26="Unlisted Player",-1001,IF(OR(H26="SP",H26="RP"),-1000,N26/VLOOKUP($D26,'Filtered-H'!$A$1:$AD$961,2,FALSE))),-1000) -> -1000 | S26: =IF(H26="",#N/A,H26&"."&1+SUMPRODUCT(($H$2:$H$962=H26)*($M$2:$M$962<M26))+COUNTIFS($M$2:M26,M26,$H$2:H26,H26)-1) -> RP.36 | T26: =IFERROR(IF(D26=0,1001,IF(VLOOKUP($D26,'ADP-Rank'!$A$2:$AV$961,38,FALSE)="",999+(IF(J26=FALSE,1,0)),VLOOKUP($D26,'ADP-Rank'!$A$2:$AV$961,38,FALSE))),999+(IF(J26=FALSE,1,0))) -> 999 | U26: =IF(H26="",#N/A,1+SUMPRODUCT(($H$2:$H$962=H26)*($M$2:$M$962<M26))+COUNTIFS($M$2:M26,M26,$H$2:H26,H26)-1) -> 36 | V26: =IF(ISERROR(VLOOKUP($B25,Keepers!$C$2:$D$450,2,FALSE)),B25,"") -> Freddie Freeman | W26: =IFERROR(INDEX($V$1:$V$961,SMALL(IF($V$1:$V$961<>"",ROW($V$1:$V$961)),ROW(V26))),"") -> Andrew Benintendi | X26: =IF(D26="Non-Ranked Player",0,IF(VLOOKUP($D26,'Starter Calc'!$B$2:$D$961,3,FALSE)="",0,VLOOKUP($D26,'Starter Calc'!$B$2:$D$961,3,FALSE))) -> 90.85227444 | Y26: =IFERROR(VLOOKUP(D26,'Starter Calc'!B$2:BS$961,70,FALSE),"") -> Bench
A27: Andrew Benintendi | B27: =IFERROR(INDEX($A$1:$A$961,SMALL(IF($A$1:$A$961<>"",ROW($A$1:$A$961)),ROW(A27))),"") -> Javier Baez | C27: =IFERROR(IF(L27=FALSE,"",CHOOSE(MATCH(RIGHT('Your Points Draft'!$R$3,LEN('Your Points Draft'!$R$3)-8),$M$1:$R$1,0),1+SUMPRODUCT(($L$2:$L$962=TRUE)*($M$2:$M$962<M27))+COUNTIFS($L$2:L27,L27,$M$2:M27,M27)-1,1+SUMPRODUCT(($L$2:$L$962=TRUE)*($N$2:$N$962>N27))+COUNTIFS($L$2:L27,L27,$N$2:N27,N27)-1,1+SUMPRODUCT(($L$2:$L$962=TRUE)*($O$2:$O$962<O27))+COUNTIFS($L$2:L27,L27,$O$2:O27,O27)-1,1+SUMPRODUCT(($L$2:$L$962=TRUE)*($P$2:$P$962>P27))+COUNTIFS($L$2:L27,L27,$P$2:P27,P27)-1,1+SUMPRODUCT(($L$2:$L$962=TRUE)*($Q$2:$Q$962>Q27))+COUNTIFS($L$2:L27,L27,$Q$2:Q27,Q27)-1,1+SUMPRODUCT(($L$2:$L$962=TRUE)*($R$2:$R$962>R27))+COUNTIFS($L$2:L27,L27,$R$2:R27,R27)-1,)),"") -> 251 | D27: Tim Anderson | E27: =IFERROR(INDEX('Draft Log'!$D$3:$D$807,MATCH(D27,'Draft Log'!$C$3:$C$807,0)),"") ->  | F27: =IFERROR(INDEX('ADP-Rank'!$C$2:$C$832,MATCH(D27,'ADP-Rank'!$A$2:$A$832,0)),"") -> SS | G27: =IFERROR(IF(F27=I27,"",IF(INDEX('Your Points Draft'!$B$10:$B$633,MATCH(D27,'Your Points Draft'!$C$10:$C$633,0))="",IF(I27<>"",I27,""),INDEX('Your Points Draft'!$B$10:$B$633,MATCH(D27,'Your Points Draft'!$C$10:$C$633,0)))),"") ->  | H27: SS | J27: =INDEX('ADP-Rank'!$AH$2:$AH$832,MATCH(D27,'ADP-Rank'!$A$2:$A$832,0)) -> TRUE | K27: FALSE | L27: =IF(J27=FALSE,FALSE,IF(AND('Your Points Draft'!$R$5="Hide Drafted Players",K27=TRUE),FALSE,IF(OR('Your Points Draft'!$R$4="Show All Positions",AND('Your Points Draft'!$R$4="Only Show: C",H27="C"),AND('Your Points Draft'!$R$4="Only Show: 1B",H27="1B"),AND('Your Points Draft'!$R$4="Only Show: 2B",H27="2B"),AND('Your Points Draft'!$R$4="Only Show: 3B",H27="3B"),AND('Your Points Draft'!$R$4="Only Show: SS",H27="SS"),AND('Your Points Draft'!$R$4="Only Show: OF",H27="OF"),AND('Your Points Draft'!$R$4="Only Show: SP",H27="SP"),AND('Your Points Draft'!$R$4="Only Show: RP",H27="RP"),AND('Your Points Draft'!$R$4="Only Show: CI",OR(H27={"1B","3B"})),AND('Your Points Draft'!$R$4="Only Show: MI",OR(H27={"2B","SS"})),AND('Your Points Draft'!$R$4="Only Show: IF",OR(H27={"C","1B","2B","3B","SS"})),AND('Your Points Draft'!$R$4="Only Show: DH",OR(H27={"C","1B","2B","3B","SS","OF","DH"})),AND('Your Points Draft'!$R$4="Only Show: P",OR(H27={"SP","RP"})),AND('Your Points Draft'!$R$4="Only Show: LF",ISERROR(SEARCH("LF",VLOOKUP($D27,'ADP-Rank'!$A$2:$D$961,4,FALSE)))=FALSE),AND('Your Points Draft'!$R$4="Only Show: RF",ISERROR(SEARCH("RF",VLOOKUP($D27,'ADP-Rank'!$A$2:$D$961,4,FALSE)))=FALSE),AND('Your Points Draft'!$R$4="Only Show: CF",ISERROR(SEARCH("CF",VLOOKUP($D27,'ADP-Rank'!$A$2:$D$961,4,FALSE)))=FALSE)),TRUE,FALSE))) -> TRUE | M27: =IFERROR(IF(VLOOKUP($D27,'ADP-Rank'!$A$2:$AV$961,38,FALSE)="",9999,VLOOKUP($D27,'ADP-Rank'!$A$2:$AV$961,38,FALSE)),9999) -> 210.98 | N27: =IF(D27="Non-Ranked Player",-1001,IF(VLOOKUP($D27,'Starter Calc'!$B$2:$D$961,3,FALSE)="",-1000,VLOOKUP($D27,'Starter Calc'!$B$2:$D$961,3,FALSE))) -> 283.1570745 | O27: =IF(D27="Non-Ranked Player",10000,IFERROR(IF(VLOOKUP(D27,'ADP-Rank'!A27:AJ986,36,FALSE)="",9999,VLOOKUP(D27,'ADP-Rank'!A27:AJ986,36,FALSE)),9999)) -> 133 | P27: =IF($D27="Unlisted Player",-1001,IFERROR(IF(IF(OR($H27="RP",$H27="SP"),VLOOKUP($D27,'Filtered-P'!$A$3:$X$938,13,FALSE),VLOOKUP($D27,'Filtered-H'!$A$3:$Z$950,22,FALSE))="",-1000,IF(OR($H27="RP",$H27="SP"),VLOOKUP($D27,'Filtered-P'!$A$3:$X$938,13,FALSE),VLOOKUP($D27,'Filtered-H'!$A$3:$Z$950,22,FALSE))),-1000)) -> -2.181147995 | Q27: =IFERROR(IF($D27="Unlisted Player",-1001,IF(OR(H27="SP",H27="RP"),N27/VLOOKUP($D27,'Filtered-P'!$A$1:$AB$961,4,FALSE),-1000)),-1000) -> -1000 | R27: =IFERROR(IF($D27="Unlisted Player",-1001,IF(OR(H27="SP",H27="RP"),-1000,N27/VLOOKUP($D27,'Filtered-H'!$A$1:$AD$961,2,FALSE))),-1000) -> 0.4454256324 | S27: =IF(H27="",#N/A,H27&"."&1+SUMPRODUCT(($H$2:$H$962=H27)*($M$2:$M$962<M27))+COUNTIFS($M$2:M27,M27,$H$2:H27,H27)-1) -> SS.21 | T27: =IFERROR(IF(D27=0,1001,IF(VLOOKUP($D27,'ADP-Rank'!$A$2:$AV$961,38,FALSE)="",999+(IF(J27=FALSE,1,0)),VLOOKUP($D27,'ADP-Rank'!$A$2:$AV$961,38,FALSE))),999+(IF(J27=FALSE,1,0))) -> 210.98 | U27: =IF(H27="",#N/A,1+SUMPRODUCT(($H$2:$H$962=H27)*($M$2:$M$962<M27))+COUNTIFS($M$2:M27,M27,$H$2:H27,H27)-1) -> 21 | V27: =IF(ISERROR(VLOOKUP($B26,Keepers!$C$2:$D$450,2,FALSE)),B26,"") -> Andrew Benintendi | W27: =IFERROR(INDEX($V$1:$V$961,SMALL(IF($V$1:$V$961<>"",ROW($V$1:$V$961)),ROW(V27))),"") -> Javier Baez | X27: =IF(D27="Non-Ranked Player",0,IF(VLOOKUP($D27,'Starter Calc'!$B$2:$D$961,3,FALSE)="",0,VLOOKUP($D27,'Starter Calc'!$B$2:$D$961,3,FALSE))) -> 283.1570745 | Y27: =IFERROR(VLOOKUP(D27,'Starter Calc'!B$2:BS$961,70,FALSE),"") -> Bench
A28: Javier Baez | B28: =IFERROR(INDEX($A$1:$A$961,SMALL(IF($A$1:$A$961<>"",ROW($A$1:$A$961)),ROW(A28))),"") -> Trea Turner | C28: =IFERROR(IF(L28=FALSE,"",CHOOSE(MATCH(RIGHT('Your Points Draft'!$R$3,LEN('Your Points Draft'!$R$3)-8),$M$1:$R$1,0),1+SUMPRODUCT(($L$2:$L$962=TRUE)*($M$2:$M$962<M28))+COUNTIFS($L$2:L28,L28,$M$2:M28,M28)-1,1+SUMPRODUCT(($L$2:$L$962=TRUE)*($N$2:$N$962>N28))+COUNTIFS($L$2:L28,L28,$N$2:N28,N28)-1,1+SUMPRODUCT(($L$2:$L$962=TRUE)*($O$2:$O$962<O28))+COUNTIFS($L$2:L28,L28,$O$2:O28,O28)-1,1+SUMPRODUCT(($L$2:$L$962=TRUE)*($P$2:$P$962>P28))+COUNTIFS($L$2:L28,L28,$P$2:P28,P28)-1,1+SUMPRODUCT(($L$2:$L$962=TRUE)*($Q$2:$Q$962>Q28))+COUNTIFS($L$2:L28,L28,$Q$2:Q28,Q28)-1,1+SUMPRODUCT(($L$2:$L$962=TRUE)*($R$2:$R$962>R28))+COUNTIFS($L$2:L28,L28,$R$2:R28,R28)-1,)),"") -> 329 | D28: Tyler Anderson | E28: =IFERROR(INDEX('Draft Log'!$D$3:$D$807,MATCH(D28,'Draft Log'!$C$3:$C$807,0)),"") ->  | F28: =IFERROR(INDEX('ADP-Rank'!$C$2:$C$832,MATCH(D28,'ADP-Rank'!$A$2:$A$832,0)),"") -> SP | G28: =IFERROR(IF(F28=I28,"",IF(INDEX('Your Points Draft'!$B$10:$B$633,MATCH(D28,'Your Points Draft'!$C$10:$C$633,0))="",IF(I28<>"",I28,""),INDEX('Your Points Draft'!$B$10:$B$633,MATCH(D28,'Your Points Draft'!$C$10:$C$633,0)))),"") ->  | H28: SP | J28: =INDEX('ADP-Rank'!$AH$2:$AH$832,MATCH(D28,'ADP-Rank'!$A$2:$A$832,0)) -> TRUE | K28: FALSE | L28: =IF(J28=FALSE,FALSE,IF(AND('Your Points Draft'!$R$5="Hide Drafted Players",K28=TRUE),FALSE,IF(OR('Your Points Draft'!$R$4="Show All Positions",AND('Your Points Draft'!$R$4="Only Show: C",H28="C"),AND('Your Points Draft'!$R$4="Only Show: 1B",H28="1B"),AND('Your Points Draft'!$R$4="Only Show: 2B",H28="2B"),AND('Your Points Draft'!$R$4="Only Show: 3B",H28="3B"),AND('Your Points Draft'!$R$4="Only Show: SS",H28="SS"),AND('Your Points Draft'!$R$4="Only Show: OF",H28="OF"),AND('Your Points Draft'!$R$4="Only Show: SP",H28="SP"),AND('Your Points Draft'!$R$4="Only Show: RP",H28="RP"),AND('Your Points Draft'!$R$4="Only Show: CI",OR(H28={"1B","3B"})),AND('Your Points Draft'!$R$4="Only Show: MI",OR(H28={"2B","SS"})),AND('Your Points Draft'!$R$4="Only Show: IF",OR(H28={"C","1B","2B","3B","SS"})),AND('Your Points Draft'!$R$4="Only Show: DH",OR(H28={"C","1B","2B","3B","SS","OF","DH"})),AND('Your Points Draft'!$R$4="Only Show: P",OR(H28={"SP","RP"})),AND('Your Points Draft'!$R$4="Only Show: LF",ISERROR(SEARCH("LF",VLOOKUP($D28,'ADP-Rank'!$A$2:$D$961,4,FALSE)))=FALSE),AND('Your Points Draft'!$R$4="Only Show: RF",ISERROR(SEARCH("RF",VLOOKUP($D28,'ADP-Rank'!$A$2:$D$961,4,FALSE)))=FALSE),AND('Your Points Draft'!$R$4="Only Show: CF",ISERROR(SEARCH("CF",VLOOKUP($D28,'ADP-Rank'!$A$2:$D$961,4,FALSE)))=FALSE)),TRUE,FALSE))) -> TRUE | M28: =IFERROR(IF(VLOOKUP($D28,'ADP-Rank'!$A$2:$AV$961,38,FALSE)="",9999,VLOOKUP($D28,'ADP-Rank'!$A$2:$AV$961,38,FALSE)),9999) -> 9999 | N28: =IF(D28="Non-Ranked Player",-1001,IF(VLOOKUP($D28,'Starter Calc'!$B$2:$D$961,3,FALSE)="",-1000,VLOOKUP($D28,'Starter Calc'!$B$2:$D$961,3,FALSE))) -> 268.8041896 | O28: =IF(D28="Non-Ranked Player",10000,IFERROR(IF(VLOOKUP(D28,'ADP-Rank'!A28:AJ987,36,FALSE)="",9999,VLOOKUP(D28,'ADP-Rank'!A28:AJ987,36,FALSE)),9999)) -> 9999 | P28: =IF($D28="Unlisted Player",-1001,IFERROR(IF(IF(OR($H28="RP",$H28="SP"),VLOOKUP($D28,'Filtered-P'!$A$3:$X$938,13,FALSE),VLOOKUP($D28,'Filtered-H'!$A$3:$Z$950,22,FALSE))="",-1000,IF(OR($H28="RP",$H28="SP"),VLOOKUP($D28,'Filtered-P'!$A$3:$X$938,13,FALSE),VLOOKUP($D28,'Filtered-H'!$A$3:$Z$950,22,FALSE))),-1000)) -> -1.318648422 | Q28: =IFERROR(IF($D28="Unlisted Player",-1001,IF(OR(H28="SP",H28="RP"),N28/VLOOKUP($D28,'Filtered-P'!$A$1:$AB$961,4,FALSE),-1000)),-1000) -> 1.804054963 | R28: =IFERROR(IF($D28="Unlisted Player",-1001,IF(OR(H28="SP",H28="RP"),-1000,N28/VLOOKUP($D28,'Filtered-H'!$A$1:$AD$961,2,FALSE))),-1000) -> -1000 | S28: =IF(H28="",#N/A,H28&"."&1+SUMPRODUCT(($H$2:$H$962=H28)*($M$2:$M$962<M28))+COUNTIFS($M$2:M28,M28,$H$2:H28,H28)-1) -> SP.103 | T28: =IFERROR(IF(D28=0,1001,IF(VLOOKUP($D28,'ADP-Rank'!$A$2:$AV$961,38,FALSE)="",999+(IF(J28=FALSE,1,0)),VLOOKUP($D28,'ADP-Rank'!$A$2:$AV$961,38,FALSE))),999+(IF(J28=FALSE,1,0))) -> 999 | U28: =IF(H28="",#N/A,1+SUMPRODUCT(($H$2:$H$962=H28)*($M$2:$M$962<M28))+COUNTIFS($M$2:M28,M28,$H$2:H28,H28)-1) -> 103 | V28: =IF(ISERROR(VLOOKUP($B27,Keepers!$C$2:$D$450,2,FALSE)),B27,"") -> Javier Baez | W28: =IFERROR(INDEX($V$1:$V$961,SMALL(IF($V$1:$V$961<>"",ROW($V$1:$V$961)),ROW(V28))),"") -> Trea Turner | X28: =IF(D28="Non-Ranked Player",0,IF(VLOOKUP($D28,'Starter Calc'!$B$2:$D$961,3,FALSE)="",0,VLOOKUP($D28,'Starter Calc'!$B$2:$D$961,3,FALSE))) -> 268.8041896 | Y28: =IFERROR(VLOOKUP(D28,'Starter Calc'!B$2:BS$961,70,FALSE),"") -> Bench
A29: Trea Turner | B29: =IFERROR(INDEX($A$1:$A$961,SMALL(IF($A$1:$A$961<>"",ROW($A$1:$A$961)),ROW(A29))),"") -> Noah Syndergaard | C29: =IFERROR(IF(L29=FALSE,"",CHOOSE(MATCH(RIGHT('Your Points Draft'!$R$3,LEN('Your Points Draft'!$R$3)-8),$M$1:$R$1,0),1+SUMPRODUCT(($L$2:$L$962=TRUE)*($M$2:$M$962<M29))+COUNTIFS($L$2:L29,L29,$M$2:M29,M29)-1,1+SUMPRODUCT(($L$2:$L$962=TRUE)*($N$2:$N$962>N29))+COUNTIFS($L$2:L29,L29,$N$2:N29,N29)-1,1+SUMPRODUCT(($L$2:$L$962=TRUE)*($O$2:$O$962<O29))+COUNTIFS($L$2:L29,L29,$O$2:O29,O29)-1,1+SUMPRODUCT(($L$2:$L$962=TRUE)*($P$2:$P$962>P29))+COUNTIFS($L$2:L29,L29,$P$2:P29,P29)-1,1+SUMPRODUCT(($L$2:$L$962=TRUE)*($Q$2:$Q$962>Q29))+COUNTIFS($L$2:L29,L29,$Q$2:Q29,Q29)-1,1+SUMPRODUCT(($L$2:$L$962=TRUE)*($R$2:$R$962>R29))+COUNTIFS($L$2:L29,L29,$R$2:R29,R29)-1,)),"") -> 330 | D29: Matt Andriese | E29: =IFERROR(INDEX('Draft Log'!$D$3:$D$807,MATCH(D29,'Draft Log'!$C$3:$C$807,0)),"") ->  | F29: =IFERROR(INDEX('ADP-Rank'!$C$2:$C$832,MATCH(D29,'ADP-Rank'!$A$2:$A$832,0)),"") -> RP | G29: =IFERROR(IF(F29=I29,"",IF(INDEX('Your Points Draft'!$B$10:$B$633,MATCH(D29,'Your Points Draft'!$C$10:$C$633,0))="",IF(I29<>"",I29,""),INDEX('Your Points Draft'!$B$10:$B$633,MATCH(D29,'Your Points Draft'!$C$10:$C$633,0)))),"") ->  | H29: RP | J29: =INDEX('ADP-Rank'!$AH$2:$AH$832,MATCH(D29,'ADP-Rank'!$A$2:$A$832,0)) -> TRUE | K29: FALSE | L29: =IF(J29=FALSE,FALSE,IF(AND('Your Points Draft'!$R$5="Hide Drafted Players",K29=TRUE),FALSE,IF(OR('Your Points Draft'!$R$4="Show All Positions",AND('Your Points Draft'!$R$4="Only Show: C",H29="C"),AND('Your Points Draft'!$R$4="Only Show: 1B",H29="1B"),AND('Your Points Draft'!$R$4="Only Show: 2B",H29="2B"),AND('Your Points Draft'!$R$4="Only Show: 3B",H29="3B"),AND('Your Points Draft'!$R$4="Only Show: SS",H29="SS"),AND('Your Points Draft'!$R$4="Only Show: OF",H29="OF"),AND('Your Points Draft'!$R$4="Only Show: SP",H29="SP"),AND('Your Points Draft'!$R$4="Only Show: RP",H29="RP"),AND('Your Points Draft'!$R$4="Only Show: CI",OR(H29={"1B","3B"})),AND('Your Points Draft'!$R$4="Only Show: MI",OR(H29={"2B","SS"})),AND('Your Points Draft'!$R$4="Only Show: IF",OR(H29={"C","1B","2B","3B","SS"})),AND('Your Points Draft'!$R$4="Only Show: DH",OR(H29={"C","1B","2B","3B","SS","OF","DH"})),AND('Your Points Draft'!$R$4="Only Show: P",OR(H29={"SP","RP"})),AND('Your Points Draft'!$R$4="Only Show: LF",ISERROR(SEARCH("LF",VLOOKUP($D29,'ADP-Rank'!$A$2:$D$961,4,FALSE)))=FALSE),AND('Your Points Draft'!$R$4="Only Show: RF",ISERROR(SEARCH("RF",VLOOKUP($D29,'ADP-Rank'!$A$2:$D$961,4,FALSE)))=FALSE),AND('Your Points Draft'!$R$4="Only Show: CF",ISERROR(SEARCH("CF",VLOOKUP($D29,'ADP-Rank'!$A$2:$D$961,4,FALSE)))=FALSE)),TRUE,FALSE))) -> TRUE | M29: =IFERROR(IF(VLOOKUP($D29,'ADP-Rank'!$A$2:$AV$961,38,FALSE)="",9999,VLOOKUP($D29,'ADP-Rank'!$A$2:$AV$961,38,FALSE)),9999) -> 9999 | N29: =IF(D29="Non-Ranked Player",-1001,IF(VLOOKUP($D29,'Starter Calc'!$B$2:$D$961,3,FALSE)="",-1000,VLOOKUP($D29,'Starter Calc'!$B$2:$D$961,3,FALSE))) -> 61.58442465 | O29: =IF(D29="Non-Ranked Player",10000,IFERROR(IF(VLOOKUP(D29,'ADP-Rank'!A29:AJ988,36,FALSE)="",9999,VLOOKUP(D29,'ADP-Rank'!A29:AJ988,36,FALSE)),9999)) -> 9999 | P29: =IF($D29="Unlisted Player",-1001,IFERROR(IF(IF(OR($H29="RP",$H29="SP"),VLOOKUP($D29,'Filtered-P'!$A$3:$X$938,13,FALSE),VLOOKUP($D29,'Filtered-H'!$A$3:$Z$950,22,FALSE))="",-1000,IF(OR($H29="RP",$H29="SP"),VLOOKUP($D29,'Filtered-P'!$A$3:$X$938,13,FALSE),VLOOKUP($D29,'Filtered-H'!$A$3:$Z$950,22,FALSE))),-1000)) -> -4.818197091 | Q29: =IFERROR(IF($D29="Unlisted Player",-1001,IF(OR(H29="SP",H29="RP"),N29/VLOOKUP($D29,'Filtered-P'!$A$1:$AB$961,4,FALSE),-1000)),-1000) -> 0.9056533037 | R29: =IFERROR(IF($D29="Unlisted Player",-1001,IF(OR(H29="SP",H29="RP"),-1000,N29/VLOOKUP($D29,'Filtered-H'!$A$1:$AD$961,2,FALSE))),-1000) -> -1000 | S29: =IF(H29="",#N/A,H29&"."&1+SUMPRODUCT(($H$2:$H$962=H29)*($M$2:$M$962<M29))+COUNTIFS($M$2:M29,M29,$H$2:H29,H29)-1) -> RP.37 | T29: =IFERROR(IF(D29=0,1001,IF(VLOOKUP($D29,'ADP-Rank'!$A$2:$AV$961,38,FALSE)="",999+(IF(J29=FALSE,1,0)),VLOOKUP($D29,'ADP-Rank'!$A$2:$AV$961,38,FALSE))),999+(IF(J29=FALSE,1,0))) -> 999 | U29: =IF(H29="",#N/A,1+SUMPRODUCT(($H$2:$H$962=H29)*($M$2:$M$962<M29))+COUNTIFS($M$2:M29,M29,$H$2:H29,H29)-1) -> 37 | V29: =IF(ISERROR(VLOOKUP($B28,Keepers!$C$2:$D$450,2,FALSE)),B28,"") -> Trea Turner | W29: =IFERROR(INDEX($V$1:$V$961,SMALL(IF($V$1:$V$961<>"",ROW($V$1:$V$961)),ROW(V29))),"") -> Noah Syndergaard | X29: =IF(D29="Non-Ranked Player",0,IF(VLOOKUP($D29,'Starter Calc'!$B$2:$D$961,3,FALSE)="",0,VLOOKUP($D29,'Starter Calc'!$B$2:$D$961,3,FALSE))) -> 61.58442465 | Y29: =IFERROR(VLOOKUP(D29,'Starter Calc'!B$2:BS$961,70,FALSE),"") -> Bench
